Workbook

Sheet Health Vote 2018-19 post-Budget
A1: Summary: additional operational funding required | B1: =AA69*1000 -> 805925753.7 | C1: 1 | D1: For 2018/19 | AC1: Budget 2018
A2: 2.6 | B2: =B1/(A2*10^9) -> 0.3099714437 | C2: 2017/18 | D2: Medical salary increases | E2: Medical proportion of DHB provider expenditure | F2: Nursing salary increases | G2: Nursing proportion of DHB provider expenditure | H2: Other Wage increases - DHB Provider | I2: Other Wage proportion of DHB provider expenditure | J2: Wage increases in DHB funded services | K2: Other Wage proportion of DHB funded activities expenditure | L2: Non-labour health services cost increases | M2: Non-labour proportion | N2: Non-labour general cost increases | O2: Population growth, including ageing effect | P2: Non-demographic growth | Q2: Productivity growth | R2: Capital Goods proportion | S2: Capital Goods price increase | U2: Total increases | W2: Additional costs identified for 2018/19 | X2: Restructuring/ devolution | Y2: Required | Z2: Totals | AA2: Increase Required | AC2: After Supplementary 2017/18 | AD2: Est actual 2017/18 | AE2: 2018/19 | AF2: Increase Budget 2018 on Budget 2017 | AG2: Increase Budget 2018 on Actual | AI2: Labour proportion of expenditure | AJ2: CPI | AK2: Increase in births | AL2: Child popn growth (0 - 19 yrs old) | AM2: DHB provider wage increase | AN2: Total wage increase | AO2: Forecast All Industries Average Wage increase | AP2: Provider proportion of DHB expenditure | AQ2: Other wages increases | AR2: Cost-weighted Maori population growth
A3: Without 'new policy initiatives' and 'savings' | B3: =B1-W69*1000 -> 733693753.7 | C3: $000 | D3: % | E3: % | F3: % | G3: % | H3: % | I3: % | J3: % | K3: % | L3: % | M3: % | N3: % | O3: % | P3: % | S3: % | U3: % | W3: $000 | X3: $000 | Y3: $000 | Z3: $000 | AA3: $000 | AI3: % | AJ3: % | AK3: % | AL3: % | AQ3: % | AR3: %
A4: For sensitivity testing | B4: 805925753.7 | C4: Parameters: | D4: 0.02 | E4: =DHBProviderProportion18*19.5% -> 0.1099672207 | F4: 0.02 | G4: =DHBProviderProportion18*24.1% -> 0.1359082061 | H4: 0.02 | I4: =DHBProviderProportion18*18.8% -> 0.1060196794 | J4: =OtherWagesIncreases18 -> 0.027 | K4: =(1-DHBProviderProportion18)*LabourProportion18 -> 0.2734130905 | L4: =_CPI18 -> 0.015 | M4: =1-LabourProportion18 -> 0.373 | N4: =_CPI18 -> 0.015 | O4: =Demographics!W21 -> 0.02339289445 | P4: =IF(NDGandProdSwitch18=0,1,0)*1.5% -> 0 | Q4: =IF(NDGandProdSwitch18=0,1,0)*0.3% -> 0 | R4: 1 | S4: 0.026 | AI4: 0.627 | AJ4: 0.015 | AK4: 0.02167 | AL4: 0.0045 | AM4: =(MedicalSalaryIncreases18*MedicalProportion18+NursingSalaryIncrease18*NursingProportion18+OtherDHBWageIncreases18*OtherWageProportion18)/(MedicalProportion18+NursingProportion18+OtherWageProportion18) -> 0.02 | AN4: =(MedicalSalaryIncreases18*MedicalProportion18+NursingSalaryIncrease18*NursingProportion18+OtherDHBWageIncreases18*OtherWageProportion18+DHBFundedWageIncreases18*DHBFundedProportion18)/LabourProportion18 -> 0.02299849372 | AO4: 0.027 | AP4: ='DHB Stats'!L33 -> 0.5639344649 | AQ4: =AllIndustriesWageIncr18 -> 0.027 | AR4: =Demographics!EH14 -> 0.02737594599
B5: =B4-B1 -> 0
AI6: Shortfall
AI7: Population, aging, wage and price increases only | AJ7: Including "initiatives" | AK7: After shifts to DHBs/Vote restructuring | AL7: After "savings"
A8: Department operating appropriations | C8: 198282 | J8: =AllIndustriesWageIncr18 -> 0.027 | K8: =LabourProportion18 -> 0.627 | M8: =NonLabourProportion18 -> 0.373 | N8: =NonLabourGeneralCostIncreases18 -> 0.015 | Q8: =ProductivityGrowth18 -> 0 | U8: =((1+D8)*E8+(1+F8)*G8+(1+H8)*I8+(1+J8)*K8+(1+L8+N8)*M8)*(1+O8)*(1+P8)*(1-Q8)+R8*(1+S8)-1 -> 0.022524 | W8: =K90 -> 6020 | X8: =G90 -> 0 | Y8: =C8*(1+U8)+W8+X8 -> 208768.1038 | Z8: =Y8 -> 208768.1038 | AA8: =Z8-C8 -> 10486.10377 | AC8: 204534 | AD8: 202645 | AE8: 207460 | AF8: =AE8-C8 -> 9178 | AG8: =AE8-AD8 -> 4815 | AI8: =Y8-W8-AE8-X8 -> -4711.896232 | AJ8: =AI8+E90 -> 1308.103768 | AK8: =AJ8+G90 -> 1308.103768 | AL8: =AK8+I90 -> 1308.103768
V9: Without additional costs | Y9: =Y8-W8-X8 -> 202748.1038 | Z9: Increase | AA9: =AA8/C8 -> 0.05288479927 | AC9: =$C8-AC8 -> -6252 | AD9: =$C8-AD8 -> -4363 | AE9: Below need by | AF9: =AA8-AF8 -> 1308.103768 | AG9: =AD8*U8+W8+X8-AG8 -> 5769.37598
A10: Non-Departmental Output Expenses | V10: Increase | Y10: =Y9-C8 -> 4466.103768 | AE10: =(Y8-W8)-AE8 -> -4711.896232
A11: DHBs
A12: Auckland | C12: 1239980 | AC12: 1252081 | AD12: 1252081 | AE12: 1320417 | AF12: =AE12-C12 -> 80437 | AG12: =AE12-AD12 -> 68336
A13: Bay of Plenty | C13: 694230 | AC13: 694749 | AD13: 694749 | AE13: 724436 | AF13: =AE13-C13 -> 30206 | AG13: =AE13-AD13 -> 29687
A14: Canterbury | C14: 1375372 | AC14: 1383508 | AD14: 1379508 | AE14: 1421052 | AF14: =AE14-C14 -> 45680 | AG14: 41544
A15: Capital and Coast | C15: 738901 | AC15: 735633 | AD15: 735633 | AE15: 765489 | AF15: 26588 | AG15: 29856
A16: Counties-Manukau | C16: 1377805 | AC16: 1375692 | AD16: 1375692 | AE16: 1439807 | AF16: 62002 | AG16: 64115
A17: Hawkes Bay | C17: 484193 | AC17: 482426 | AD17: 482426 | AE17: 497215 | AF17: 13022 | AG17: 14789
A18: Hutt | C18: 388121 | AC18: 384880 | AD18: 384880 | AE18: 397128 | AF18: 9007 | AG18: 12248
A19: Lakes | C19: 310096 | AC19: 314712 | AD19: 314712 | AE19: 326173 | AF19: 16077 | AG19: 11461
A20: MidCentral | C20: 499456 | AC20: 494253 | AD20: 494253 | AE20: 511676 | AF20: 12220 | AG20: 17423
A21: Nelson-Marlborough | C21: 418304 | AC21: 418363 | AD21: 418363 | AE21: 437795 | AF21: 19491 | AG21: 19432
A22: Northland | C22: 557165 | AC22: 564289 | AD22: 564289 | AE22: 599300 | AF22: 42135 | AG22: 35011
A23: South Canterbury | C23: 178097 | AC23: 177019 | AD23: 177019 | AE23: 181432 | AF23: 3335 | AG23: 4413
A24: Southern | C24: 852087 | AC24: 846386 | AD24: 846386 | AE24: 876351 | AF24: 24264 | AG24: 29965
A25: Tairawhiti | C25: 160113 | AC25: 160655 | AD25: 160655 | AE25: 165267 | AF25: 5154 | AG25: 4612
A26: Taranaki | C26: 338959 | AC26: 335663 | AD26: 335663 | AE26: 345188 | AF26: 6229 | AG26: 9525
A27: Waikato | C27: 1134739 | AC27: 1150497 | AD27: 1150497 | AE27: 1197666 | AF27: 62927 | AG27: 47169
A28: Wairarapa | C28: 136657 | AC28: 135250 | AD28: 135250 | AE28: 140030 | AF28: 3373 | AG28: 4780
A29: Waitemata | C29: 1450808 | AC29: 1464458 | AD29: 1464458 | AE29: 1531538 | AF29: 80730 | AG29: 67080
A30: West Coast | C30: 128823 | AC30: 128077 | AD30: 128077 | AE30: 132618 | AF30: 3795 | AG30: 4541
A31: Whanganui | C31: 218859 | AC31: 218556 | AD31: 218556 | AE31: 225131 | AF31: =AE31-C31 -> 6272 | AG31: =AE31-AD31 -> 6575
A32: Total DHBs | C32: =SUM(C12:C31) -> 12682765 | D32: =MedicalSalaryIncreases18 -> 0.02 | E32: =MedicalProportion18 -> 0.1099672207 | F32: =NursingSalaryIncrease18 -> 0.02 | G32: =NursingProportion18 -> 0.1359082061 | H32: =OtherDHBWageIncreases18 -> 0.02 | I32: =OtherWageProportion18 -> 0.1060196794 | J32: =DHBFundedWageIncreases18 -> 0.027 | K32: =DHBFundedProportion18 -> 0.2734130905 | L32: =NonLabourHealthServicesCostIncrease18 -> 0.015 | M32: =NonLabourProportion18 -> 0.373 | O32: =PopulationGrowth18 -> 0.02339289445 | P32: =NonDemographicGrowth18 -> 0 | Q32: =ProductivityGrowth18 -> 0 | U32: =((1+D32)*E32+(1+F32)*G32+(1+H32)*I32+(1+J32)*K32+(1+L32+N32)*M32)*(1+O32)*(1+P32)*(1-Q32)+R32*(1+S32)-1 -> 0.04214478053 | W32: =K93 -> -29300 | X32: =G93 -> 10316 | Y32: =C32*(1+U32)+W32+X32 -> 13198293.35 | AA32: =Y32-C32 -> 515528.3474 | AC32: =SUM(AC12:AC31) -> 12717147 | AD32: =SUM(AD12:AD31) -> 12713147 | AE32: =SUM(AE12:AE31) -> 13235709 | AF32: =AE32-C32 -> 552944 | AG32: 522562 | AI32: =Y32-W32-AE32-X32 -> -18431.65261 | AJ32: =AI32+E93 -> -18431.65261 | AK32: =AJ32+G93 -> -8115.652606 | AL32: =AK32+I93 -> -37415.65261
V33: Without additional costs | Y33: =Y32-W32-X32 -> 13217277.35 | Z33: Increase | AA33: =AA32/C32 -> 0.04064794604 | AC33: =AC32-$C32 -> 34382 | AD33: =AD32-$C32 -> 30382 | AE33: Below need by | AF33: =AA32-AF32 -> -37415.65261 | AG33: =AA32-AG32 -> -7033.652606
V34: Increase | Y34: =Y33-C32 -> 534512.3474
V35: Below need by | Y35: =Y34-AF32 -> -18431.65261
A36: Auckland Health Projects Integrated Investment Plan | C36: 650 | J36: =AllIndustriesWageIncr18 -> 0.027 | K36: =LabourProportion18 -> 0.627 | M36: =NonLabourProportion18 -> 0.373 | N36: =NonLabourGeneralCostIncreases18 -> 0.015 | P36: =NonDemographicGrowth18 -> 0 | Q36: =ProductivityGrowth18 -> 0 | U36: =((1+D36)*E36+(1+F36)*G36+(1+H36)*I36+(1+J36)*K36+(1+L36+N36)*M36)*(1+O36)*(1+P36)*(1-Q36)+R36*(1+S36)-1 -> 0.022524 | W36: =K96 -> 0 | X36: =G96 -> 0 | Y36: =C36*(1+U36)+W36+X36 -> 664.6406 | AA36: =Y36-C36 -> 14.6406 | AC36: 370 | AD36: 185 | AE36: 1000 | AF36: =AE36-C36 -> 350 | AG36: =AE36-AD36 -> 815 | AI36: =Y36-W36-AE36-X36 -> -335.3594 | AJ36: =AI36+E96 -> -335.3594 | AK36: =AJ36+G96 -> -335.3594 | AL36: =AK36+I96 -> -335.3594
A37: Health Sector Projects Operating Expenses | C37: 0 | J37: =AllIndustriesWageIncr18 -> 0.027 | K37: 0.627 | M37: 0.373 | N37: 0.015 | P37: 0 | Q37: 0 | U37: =((1+D37)*E37+(1+F37)*G37+(1+H37)*I37+(1+J37)*K37+(1+L37+N37)*M37)*(1+O37)*(1+P37)*(1-Q37)+R37*(1+S37)-1 -> 0.022524 | W37: =K97 -> 0 | X37: =G97 -> 0 | Y37: =C37*(1+U37)+W37+X37 -> 0 | AA37: =Y37-C37 -> 0 | AC37: 10328 | AD37: 8628 | AE37: 3500 | AF37: =AE37-C37 -> 3500 | AG37: =AE37-AD37 -> -5128 | AI37: =Y37-W37-AE37-X37 -> -3500 | AJ37: =AI37+E97 -> -3500 | AK37: =AJ37+G97 -> -3500 | AL37: =AK37+I97 -> -3500
A38: Health Workforce Training and Development | C38: 186745 | J38: =AllIndustriesWageIncr18 -> 0.027 | K38: 0.627 | M38: 0.373 | N38: 0.015 | P38: 0 | Q38: 0 | U38: =((1+D38)*E38+(1+F38)*G38+(1+H38)*I38+(1+J38)*K38+(1+L38+N38)*M38)*(1+O38)*(1+P38)*(1-Q38)+R38*(1+S38)-1 -> 0.022524 | W38: 0 | X38: 0 | Y38: 190951.2444 | AA38: =Y38-C38 -> 4206.24438 | AC38: 186745 | AD38: 186745 | AE38: 186745 | AF38: 0 | AG38: 0 | AI38: =Y38-W38-AE38-X38 -> 4206.24438 | AJ38: 4206.24438 | AK38: 4206.24438 | AL38: 4206.24438
A39: Monitoring and Protecting Health and Disability Consumer Interests | C39: 28746 | J39: =AllIndustriesWageIncr18 -> 0.027 | K39: 0.627 | M39: 0.373 | N39: 0.015 | P39: 0 | Q39: 0 | U39: 0.022524 | W39: 0 | X39: 0 | Y39: 29393.4749 | AA39: =Y39-C39 -> 647.474904 | AC39: 29846 | AD39: 29846 | AE39: 29546 | AF39: 800 | AG39: -300 | AI39: -152.525096 | AJ39: -152.525096 | AK39: -152.525096 | AL39: -152.525096
A40: National Child Health Services | C40: 85001 | J40: =DHBProviderWageIncrease18 -> 0.02 | K40: 0.627 | M40: 0.373 | N40: 0.015 | O40: =ChildPopGrowth18 -> 0.0045 | P40: 0 | Q40: 0 | U40: 0.0227166075 | W40: 4253 | X40: 0 | Y40: 91184.93435 | AA40: 6183.934354 | AC40: 83001 | AD40: 83001 | AE40: 89254 | AF40: 4253 | AG40: 6253 | AI40: -2322.065646 | AJ40: 1930.934354 | AK40: 1930.934354 | AL40: 1930.934354
A41: National Contracted Services - Other | C41: 28720 | J41: =AllIndustriesWageIncr18 -> 0.027 | K41: 0.627 | M41: 0.373 | N41: 0.015 | O41: =PopulationGrowth18 -> 0.02339289445 | P41: 0 | Q41: 0 | U41: 0.04644379601 | W41: 0 | X41: 0 | Y41: 30053.86582 | AA41: 1333.865821 | AC41: 25220 | AD41: 25220 | AE41: 28720 | AF41: 0 | AG41: 3500 | AI41: 1333.865821 | AJ41: 1333.865821 | AK41: 1333.865821 | AL41: 1333.865821
A42: National Disability Support Services | C42: 1208374 | J42: =AllIndustriesWageIncr18 -> 0.027 | K42: 0.627 | M42: 0.373 | N42: 0.015 | O42: =PopulationGrowth18 -> 0.02339289445 | P42: 0 | Q42: 0 | U42: 0.04644379601 | W42: 0 | X42: -3809 | Y42: 1260686.476 | AA42: 52312.47556 | AC42: 1237680 | AD42: 1237680 | AE42: 1268594 | AF42: 60220 | AG42: 30914 | AI42: -4098.524445 | AJ42: -4098.524445 | AK42: -7907.524445 | AL42: -7907.524445
A43: National Elective Services | C43: 346517 | D43: =MedicalSalaryIncreases18 -> 0.02 | E43: =MedicalProportion18 -> 0.1099672207 | F43: =NursingSalaryIncrease18 -> 0.02 | G43: =NursingProportion18 -> 0.1359082061 | H43: =OtherDHBWageIncreases18 -> 0.02 | I43: =OtherWageProportion18 -> 0.1060196794 | J43: =DHBFundedWageIncreases18 -> 0.027 | K43: =DHBFundedProportion18 -> 0.2734130905 | L43: =NonLabourHealthServicesCostIncrease18 -> 0.015 | M43: 0.373 | O43: =PopulationGrowth18 -> 0.02339289445 | P43: 0 | Q43: 0 | U43: 0.04214478053 | W43: 0 | X43: 0 | Y43: 361120.8829 | AA43: 14603.88291 | AC43: 356145 | AD43: 354185 | AE43: 363517 | AF43: 17000 | AG43: 9332 | AI43: -2396.117086 | AJ43: -2396.117086 | AK43: -2396.117086 | AL43: -2396.117086
A44: National Emergency Services | C44: 109958 | J44: =AllIndustriesWageIncr18 -> 0.027 | K44: 0.627 | M44: 0.373 | N44: 0.015 | O44: =PopulationGrowth18 -> 0.02339289445 | P44: 0 | Q44: 0 | U44: 0.04644379601 | W44: 3740 | X44: 0 | Y44: 118804.8669 | AA44: 8846.866921 | AC44: 110118 | AD44: 108118 | AE44: 129597 | AF44: 19639 | AG44: 21479 | AI44: -14532.13308 | AJ44: -10792.13308 | AK44: -10792.13308 | AL44: -10792.13308
A45: National Health Information Systems | C45: 8236 | J45: =AllIndustriesWageIncr18 -> 0.027 | K45: 0.627 | M45: 0.373 | N45: 0.015 | P45: 0 | Q45: 0 | U45: 0.022524 | W45: 0 | X45: 0 | Y45: 8421.507664 | AA45: 185.507664 | AC45: 5028 | AD45: 5028 | AE45: 8042 | AF45: -194 | AG45: 3014 | AI45: 379.507664 | AJ45: 379.507664 | AK45: 379.507664 | AL45: 379.507664
A46: National Māori Health Services | C46: 6828 | J46: =AllIndustriesWageIncr18 -> 0.027 | K46: 0.627 | M46: 0.373 | N46: 0.015 | O46: =MaoriPopulationGrowth18 -> 0.02737594599 | P46: 0 | Q46: 0 | U46: 0.0505165618 | W46: 0 | X46: 0 | Y46: 7172.927084 | AA46: 344.927084 | AC46: 2750 | AD46: 2750 | AE46: 6828 | AF46: 0 | AG46: 4078 | AI46: 344.927084 | AJ46: 344.927084 | AK46: 344.927084 | AL46: 344.927084
A47: National Maternity Services | C47: 146767 | J47: =DHBProviderWageIncrease18 -> 0.02 | K47: 0.627 | M47: 0.373 | N47: 0.015 | O47: =BirthGrowth18 -> 0.02167 | P47: 0 | Q47: 0 | U47: 0.04019798545 | W47: 0 | X47: 0 | Y47: 152666.7377 | AA47: 5899.737731 | AC47: 166667 | AD47: 166667 | AE47: 181067 | AF47: 34300 | AG47: 14400 | AI47: -28400.26227 | AJ47: -28400.26227 | AK47: -28400.26227 | AL47: -28400.26227
A48: National Mental Health Services | C48: 62183 | J48: =DHBProviderWageIncrease18 -> 0.02 | K48: 0.627 | M48: 0.373 | N48: 0.015 | O48: 0.05 | P48: 0 | Q48: 0 | U48: 0.06904175 | W48: 8700 | X48: -3407 | Y48: 71769.22314 | AA48: 9586.22314 | AC48: 64556 | AD48: 64556 | AE48: 68094 | AF48: 5911 | AG48: 3538 | AI48: -1617.77686 | AJ48: 7082.22314 | AK48: 3675.22314 | AL48: 3675.22314
A49: National Personal Health Services | C49: 84057 | J49: =DHBProviderWageIncrease18 -> 0.02 | K49: 0.627 | M49: 0.373 | N49: 0.015 | O49: =PopulationGrowth18 -> 0.02339289445 | P49: 0 | Q49: 0 | U49: 0.04195212459 | W49: 0 | X49: -3100 | Y49: 84483.36974 | AA49: 426.3697369 | AC49: 82707 | AD49: 82707 | AE49: 78151 | AF49: -5906 | AG49: -4556 | AI49: 9432.369737 | AJ49: 9432.369737 | AK49: 6332.369737 | AL49: 6332.369737
A50: Primary Health Care Strategy | C50: 195405 | J50: =AllIndustriesWageIncr18 -> 0.027 | K50: 0.627 | M50: 0.373 | N50: 0.015 | O50: =PopulationGrowth18 -> 0.02339289445 | P50: 0 | Q50: 0 | U50: 0.04644379601 | W50: 61466 | X50: 0 | Y50: 265946.35 | AA50: 70541.34996 | AC50: 193405 | AD50: 193405 | AE50: 266396 | AF50: 70991 | AG50: 72991 | AI50: -61915.65004 | AJ50: -449.6500414 | AK50: -449.6500414 | AL50: -449.6500414
A51: Problem Gambling Services | C51: 17521 | J51: =AllIndustriesWageIncr18 -> 0.027 | K51: 0.627 | M51: 0.373 | N51: 0.015 | O51: =PopulationGrowth18 -> 0.02339289445 | P51: 0 | Q51: 0 | U51: 0.04644379601 | W51: 0 | X51: 0 | Y51: 18334.74175 | AA51: 813.7417498 | AC51: 17821 | AD51: 14821 | AE51: 20941 | AF51: 3420 | AG51: 6120 | AI51: -2606.25825 | AJ51: -2606.25825 | AK51: -2606.25825 | AL51: -2606.25825
A52: Public Health Service Purchasing | C52: 405471 | J52: =DHBProviderWageIncrease18 -> 0.02 | K52: 0.627 | M52: 0.373 | N52: 0.015 | O52: =PopulationGrowth18 -> 0.02339289445 | P52: 0 | Q52: 0 | U52: 0.04195212459 | W52: 17353 | X52: 0 | Y52: 439834.3699 | AA52: 34363.36991 | AC52: 375567 | AD52: 365340 | AE52: 423424 | AF52: =AE52-C52 -> 17953 | AG52: 58084 | AI52: -942.6300893 | AJ52: 16410.36991 | AK52: 16410.36991 | AL52: 16410.36991
A53: Supporting Equitable Pay for Care and Support Workers | C53: 279000 | U53: =Y53/C53-1 -> 0.247311828 | W53: 0 | X53: 0 | Y53: 348000 | AA53: 69000 | AC53: 299300 | AD53: 299300 | AE53: 348000 | AF53: =AE53-C53 -> 69000 | AG53: 48700 | AI53: 0 | AJ53: 0 | AK53: 0 | AL53: 0
A54: Total non-DHB | C54: =SUM(C36:C53) -> 3200179 | U54: =SUM(C36:C53*U36:U53)/SUM(C36:C53) -> 0.06065742336 | W54: =SUM(W36:W53) -> 95512 | X54: -10316 | Y54: 3479489.612 | Z54: =Y54 -> 3479489.612 | AA54: =Y54-C54 -> 279310.6124 | AC54: =SUM(AC36:AC53) -> 3247254 | AD54: =SUM(AD36:AD53) -> 3228182 | AE54: =SUM(AE36:AE53) -> 3501416 | AF54: 301237 | AG54: 273234 | AI54: =Y54-W54-AE54-X54 -> -107122.3876 | AJ54: =AI54+E114 -> -11610.38758 | AK54: =AJ54+G114 -> -21926.38758 | AL54: =AK54+I114 -> -21926.38758
V55: Without additional costs | Y55: =Y54-W54-X54 -> 3394293.612 | Z55: Increase | AA55: =AA54/C54 -> 0.08727968418 | AC55: =AC54-$C54 -> 47075 | AD55: =AD54-$C54 -> 28003 | AE55: Below need by | AF55: =AA54-AF54 -> -21926.38758 | AG55: =SUMPRODUCT(AD36:AD53,U36:U53)+W54+X54-AG54 -> 11423.49785
V56: Increase | Y56: =Y55-C54 -> 194114.6124 | Z56: Increase | AA56: =Y56/C54 -> 0.06065742336 | AF56: =Y56-AF54 -> -107122.3876
A57: Total Non-Departmental Output Expenses | C57: =C54+C32 -> 15882944 | U57: =SUM(C32:C52*U32:U52)/SUM(C32:C52) -> 0.04227309197 | W57: =W54+W32 -> 66212 | X57: =X54+X32 -> 0 | Y57: =Y32+Y54 -> 16677782.96 | Z57: =Y57 -> 16677782.96 | AA57: =Y57-C57 -> 794838.9598 | AC57: =AC32+AC54 -> 15964401 | AD57: =AD32+AD54 -> 15941329 | AE57: =AE32+AE54 -> 16737125 | AF57: =AE57-C57 -> 854181 | AG57: =AE57-AD57 -> 795796 | AI57: =AI54+AI32 -> -125554.0402 | AJ57: =AJ54+AJ32 -> -30042.04018 | AK57: =AK54+AK32 -> -30042.04018 | AL57: =AL54+AL32 -> -59342.04018
V58: Without additional costs | Y58: =Y57-W57 -> 16611570.96 | Z58: Increase | AA58: =AA57/C57 -> 0.05004355363 | AC58: =AC57-$C57 -> 81457 | AD58: =AD57-$C57 -> 58385 | AE58: Below need by | AF58: =AA57-AF57 -> -59342.04018 | AG58: =AG55+AG32 -> 533985.4979
A59: Departmental Other Expenses
A61: Total Departmental Other Expenses | C61: =SUM(C58:C60) -> 0 | U61: =IFERROR(SUM(C60*U60)/SUM(C60),U60) -> 0 | Y61: =SUM(C58:C60*(1+U58:U60)) -> 0 | Z61: =Y61 -> 0 | AA61: =Y61-C61 -> 0
A63: Non-Departmental Other Expenses
A64: International Health Organisations | C64: 2030 | M64: 1 | N64: =NonLabourGeneralCostIncreases18 -> 0.015 | U64: =((1+D64)*E64+(1+F64)*G64+(1+H64)*I64+(1+J64)*K64+(1+L64+N64)*M64)*(1+O64)*(1+P64)*(1-Q64)+R64*(1+S64)-1 -> 0.015 | Y64: =C64*(1+U64) -> 2060.45 | AC64: 1843 | AD64: 1843 | AE64: 2030 | AF64: =AE64-C64 -> 0 | AG64: =AE64-AD64 -> 187
A65: Legal Expenses | C65: 1028 | J65: =AllIndustriesWageIncr18 -> 0.027 | K65: =LabourProportion18 -> 0.627 | M65: =NonLabourProportion18 -> 0.373 | N65: =NonLabourGeneralCostIncreases18 -> 0.015 | Q65: =ProductivityGrowth18 -> 0 | U65: =((1+D65)*E65+(1+F65)*G65+(1+H65)*I65+(1+J65)*K65+(1+L65+N65)*M65)*(1+O65)*(1+P65)*(1-Q65)+R65*(1+S65)-1 -> 0.022524 | Y65: =C65*(1+U65) -> 1051.154672 | AC65: 2028 | AD65: 2028 | AE65: 1028 | AF65: 0 | AG65: =AE65-AD65 -> -1000
A66: Provider Development | C66: 24289 | J66: =AllIndustriesWageIncr18 -> 0.027 | K66: =LabourProportion18 -> 0.627 | M66: =NonLabourProportion18 -> 0.373 | N66: =NonLabourGeneralCostIncreases18 -> 0.015 | Q66: =ProductivityGrowth18 -> 0 | U66: =((1+D66)*E66+(1+F66)*G66+(1+H66)*I66+(1+J66)*K66+(1+L66+N66)*M66)*(1+O66)*(1+P66)*(1-Q66)+R66*(1+S66)-1 -> 0.022524 | Y66: =C66*(1+U66) -> 24836.08544 | AC66: 18539 | AD66: 18539 | AE66: 24289 | AF66: =AE66-C66 -> 0 | AG66: =AE66-AD66 -> 5750
A67: Total Non-Departmental Other Expenses | C67: =SUM(C64:C66) -> 27347 | U67: =SUM(C64:C66*U64:U66)/SUM(C64:C66) -> 0.02196548462 | W67: 0 | X67: 0 | Y67: =SUM(C64:C66*(1+U64:U66)) -> 27947.69011 | Z67: =Y67 -> 27947.69011 | AA67: =Y67-C67 -> 600.690108 | AC67: =SUM(AC64:AC66) -> 22410 | AD67: =SUM(AD64:AD66) -> 22410 | AE67: =SUM(AE64:AE66) -> 27347 | AF67: 0 | AG67: =AE67-AD67 -> 4937 | AI67: =Y67-W67-AE67-X67 -> 600.690108 | AJ67: =AI67+E117 -> 600.690108 | AK67: =AJ67+G117 -> 600.690108 | AL67: =AK67+I117 -> 600.690108
AC68: =AC67-$C67 -> -4937 | AD68: =AD67-$C67 -> -4937 | AE68: Below need by | AF68: =AA67-AF67 -> 600.690108 | AG68: =SUMPRODUCT(AD64:AD66,U64:U66)+W67+X67-AG67 -> -4446.103892
A69: Total Operational Expenses | C69: =C67+C61+C57+C8 -> 16108573 | U69: =(C8*U8+C57*U57+C61*U61+C67*U67)/(C8+C57+C67) -> 0.0419955229 | W69: =W67+W57+W61+W8 -> 72232 | X69: =X67+X57+X61+X8 -> 0 | Y69: =Y67+Y61+Y57+Y8 -> 16914498.75 | Z69: =Z67+Z57+Z61+Z8 -> 16914498.75 | AA69: =AA67+AA57+AA61+AA8 -> 805925.7537 | AC69: =AC67+AC61+AC57+AC8 -> 16191345 | AD69: =AD67+AD61+AD57+AD8 -> 16166384 | AE69: =AE67+AE61+AE57+AE8 -> 16971932 | AF69: 863359 | AG69: =AE69-AD69 -> 805548 | AI69: =AI57+AI67+AI8 -> -129665.2463 | AJ69: =AJ57+AJ67+AJ8 -> -28133.2463 | AK69: =AK57+AK67+AK8 -> -28133.2463 | AL69: =AL57+AL67+AL8 -> -57433.2463
V70: Without additional costs | Y70: =Y69-W69 -> 16842266.75 | Z70: Increase | AA70: =AA69/C69 -> 0.05003085957 | AC70: =$C69-AC69 -> -82772 | AD70: =$C69-AD69 -> -57811 | AE70: Below need by | AF70: =AA69-AF69 -> -57433.2463 | AG70: =AG68+AG61+AG57+AG7 -> 791349.8961
V71: Increase | Y71: =Y70-C69 -> 733693.7537 | Z71: or | AA71: =Y71/C69 -> 0.04554678765 | AE71: Increase | AF71: =AF69/C69 -> 0.05359624344
A72: Departmental Capital Expenditure | V72: Below need by | Y72: =Y71-AF69 -> -129665.2463
A73: Ministry of Health - Capital Expenditure PLA | C73: 8000 | R73: =CapitalGoodsProportion18 -> 1 | S73: =CapitalPI18 -> 0.026 | U73: =((1+D73)*E73+(1+F73)*G73+(1+H73)*I73+(1+L73+N73)*M73)*(1+O73)*(1+P73)+R73*(1+S73)-1 -> 0.026 | Y73: =C73*(1+U73) -> 8208 | AC73: 9929 | AD73: 9929 | AE73: 8837 | AF73: =AE73-C73 -> 837 | AG73: =AE73-AD73 -> -1092
A74: Total Departmental Capital Expenditure | C74: =SUM(C73) -> 8000 | Y74: =SUM(C73*(1+U73)) -> 8208 | AA74: =Y74-C74 -> 208 | AC74: =SUM(AC73) -> 9929 | AD74: =SUM(AD73) -> 9929 | AE74: =SUM(AE73) -> 8837 | AF74: =AE74-C74 -> 837 | AG74: =AE74-AD74 -> -1092
AC75: =$C74-AC74 -> -1929 | AD75: =$C74-AD74 -> -1929 | AE75: Below need by | AF75: =AA74-AF74 -> -629 | AG75: =AD73*U73+W73+X73-AG74 -> 1350.154
A76: Non-Departmental Capital Expenditure
A77: Equity for Capital Projects for DHBs and Health Sector Crown Agencies | C77: 303388 | R77: =CapitalGoodsProportion18 -> 1 | S77: =CapitalPI18 -> 0.026 | U77: =((1+D77)*E77+(1+F77)*G77+(1+H77)*I77+(1+L77+N77)*M77)*(1+O77)*(1+P77)+R77*(1+S77)-1 -> 0.026 | Y77: =C77*(1+U77) -> 311276.088 | AC77: 120639 | AD77: 48866 | AE77: 967383 | AF77: =AE77-C77 -> 663995 | AG77: =AE77-AD77 -> 918517
A78: Health Sector Projects | C78: 288108 | R78: =CapitalGoodsProportion18 -> 1 | S78: =CapitalPI18 -> 0.026 | U78: =((1+D78)*E78+(1+F78)*G78+(1+H78)*I78+(1+L78+N78)*M78)*(1+O78)*(1+P78)+R78*(1+S78)-1 -> 0.026 | Y78: =C78*(1+U78) -> 295598.808 | AC78: 280662 | AD78: 216990 | AE78: 123000 | AF78: =AE78-C78 -> -165108 | AG78: =AE78-AD78 -> -93990
A79: Residential Care Loans | C79: 15000 | R79: =CapitalGoodsProportion18 -> 1 | S79: =CapitalPI18 -> 0.026 | U79: =((1+D79)*E79+(1+F79)*G79+(1+H79)*I79+(1+L79+N79)*M79)*(1+O79)*(1+P79)+R79*(1+S79)-1 -> 0.026 | Y79: =C79*(1+U79) -> 15390 | AC79: 15000 | AD79: 15000 | AE79: 15000 | AF79: =AE79-C79 -> 0 | AG79: =AE79-AD79 -> 0
A80: Deficit Support for DHBs | C80: 50000 | R80: =CapitalGoodsProportion18 -> 1 | S80: =CapitalPI18 -> 0.026 | U80: =((1+D80)*E80+(1+F80)*G80+(1+H80)*I80+(1+L80+N80)*M80)*(1+O80)*(1+P80)+R80*(1+S80)-1 -> 0.026 | Y80: =C80*(1+U80) -> 51300 | AC80: 86924 | AD80: 86924 | AE80: 139211 | AF80: =AE80-C80 -> 89211 | AG80: =AE80-AD80 -> 52287
A81: Total Non-Departmental Capital Expenditure | C81: =SUM(C77:C80) -> 656496 | Y81: =SUM(C77:C80*(1+U77:U80)) -> 673564.896 | AA81: =Y81-C81 -> 17068.896 | AC81: =SUM(AC77:AC80) -> 503225 | AD81: =SUM(AD77:AD80) -> 367780 | AE81: =SUM(AE77:AE80) -> 1244594 | AF81: =AE81-C81 -> 588098 | AG81: =AE81-AD81 -> 876814
AC82: =$C81-AC81 -> 153271 | AD82: =$C81-AD81 -> 288716 | AE82: Below need by | AF82: =AA81-AF81 -> -571029.104 | AG82: =SUMPRODUCT(AD77:AD80,U77:U80)+W81+X81-AG81 -> -867251.72
A83: Total Capital Expenditure | C83: =C81+C74 -> 664496 | U83: =SUM(C73*U73,C77:C79*U77:U79)/SUM(C73,C77:C79) -> 0.026 | Y83: =Y81+Y74 -> 681772.896 | Z83: =Y83 -> 681772.896 | AA83: =AA81+AA74 -> 17276.896 | AC83: =AC81+AC74 -> 513154 | AD83: =AD81+AD74 -> 377709 | AE83: =AE81+AE74 -> 1253431 | AF83: =AE83-C83 -> 588935 | AG83: =AE83-AD83 -> 875722
A85: Total Annual and Permanent Appropriations | C85: =C83+C69 -> 16773069 | U85: =(C69*U69+C83*U83)/(C69+C83) -> 0.04136183082 | Z85: =Z83+Z69 -> 17596271.65 | AA85: =AA83+AA69 -> 823202.6497 | AC85: =AC83+AC69 -> 16704499 | AD85: =AD83+AD69 -> 16544093 | AE85: =AE83+AE69 -> 18225363 | AF85: =AE85-C85 -> 1452294 | AG85: =AE85-AD85 -> 1681270
A87: Summary of position, including "initiatives"
B88: Required for rising costs and population | C88: Appropriation | D88: Shortfall on rising costs and population | E88: Initiatives | F88: Shortfall after initiatives | G88: Devolution to DHBs/restructured vote | H88: Shortfall after devolution/restructured vote | I88: Savings | J88: Shortfall after savings and restructuring | K88: Net additional costs of initiatives
A89: Departmental "Initiatives"
A90: Departmental appropriation | B90: =C8*(1+U8) -> 202748.1038 | C90: =AE8 -> 207460 | D90: =B90-C90 -> -4711.896232 | E90: ='2018 Health appropriations'!D6+'2018 Health appropriations'!D11+'2018 Health appropriations'!D25+'2018 Health appropriations'!D28 -> 6020 | F90: =D90+E90 -> 1308.103768 | G90: 0 | H90: =F90+G90 -> 1308.103768 | I90: 0 | J90: =H90+I90 -> 1308.103768 | K90: =I90+E90 -> 6020
A92: DHB "Initiatives"
A93: DHB Appropriations | B93: =C32*(1+U32) -> 13217277.35 | C93: =AE32 -> 13235709 | D93: =B93-C93 -> -18431.65261 | E93: 0 | F93: =D93+E93 -> -18431.65261 | G93: =('2018 Health appropriations'!C93+'2018 Health appropriations'!C116+'2018 Health appropriations'!C125+'2018 Health appropriations'!C129+'2018 Health appropriations'!C133)/1000 -> 10316 | H93: =F93+G93 -> -8115.652606 | I93: ='2018 Health appropriations'!D31 -> -29300 | J93: =H93+I93 -> -37415.65261 | K93: =I93+E93 -> -29300
A95: National health services position
A96: Auckland Health Projects Integrated Investment Plan | B96: =C36*(1+U36) -> 664.6406 | C96: =AE36 -> 1000 | D96: =B96-C96 -> -335.3594 | E96: 0 | F96: =D96+E96 -> -335.3594 | G96: 0 | H96: =F96+G96 -> -335.3594 | I96: 0 | J96: =H96+I96 -> -335.3594 | K96: =I96+E96 -> 0
A97: Health Sector Projects Operating Expenses | B97: 0 | C97: 3500 | D97: -3500 | E97: 0 | F97: -3500 | G97: 0 | H97: =F97+G97 -> -3500 | I97: 0 | J97: =H97+I97 -> -3500 | K97: 0
A98: Health Workforce Training and Development | B98: 190951.2444 | C98: 186745 | D98: 4206.24438 | E98: 0 | F98: 4206.24438 | G98: 0 | H98: 4206.24438 | I98: 0 | J98: 4206.24438 | K98: 0
A99: Monitoring and Protecting Health and Disability Consumer Interests | B99: 29393.4749 | C99: 29546 | D99: -152.525096 | E99: 0 | F99: -152.525096 | G99: 0 | H99: -152.525096 | I99: 0 | J99: -152.525096 | K99: 0
A100: National Child Health Services | B100: 86931.93435 | C100: 89254 | D100: -2322.065646 | E100: ='2018 Health appropriations'!D22 -> 4253 | F100: 1930.934354 | G100: 0 | H100: 1930.934354 | I100: 0 | J100: 1930.934354 | K100: 4253
A101: National Contracted Services - Other | B101: 30053.86582 | C101: 28720 | D101: 1333.865821 | E101: 0 | F101: 1333.865821 | G101: 0 | H101: 1333.865821 | I101: 0 | J101: 1333.865821 | K101: 0
A102: National Disability Support Services | B102: 1264495.476 | C102: 1268594 | D102: -4098.524445 | E102: 0 | F102: -4098.524445 | G102: =-'2018 Health appropriations'!C116/1000 -> -3809 | H102: -7907.524445 | I102: 0 | J102: -7907.524445 | K102: 0
A103: National Elective Services | B103: 361120.8829 | C103: 363517 | D103: -2396.117086 | E103: 0 | F103: -2396.117086 | G103: 0 | H103: -2396.117086 | I103: 0 | J103: -2396.117086 | K103: 0
A104: National Emergency Services | B104: 115064.8669 | C104: 129597 | D104: -14532.13308 | E104: ='2018 Health appropriations'!D26 -> 3740 | F104: -10792.13308 | G104: 0 | H104: -10792.13308 | I104: 0 | J104: -10792.13308 | K104: 3740
A105: National Health Information Systems | B105: 8421.507664 | C105: 8042 | D105: 379.507664 | E105: 0 | F105: 379.507664 | G105: 0 | H105: 379.507664 | I105: 0 | J105: 379.507664 | K105: 0
A106: National Māori Health Services | B106: 7172.927084 | C106: 6828 | D106: 344.927084 | E106: 0 | F106: 344.927084 | G106: 0 | H106: 344.927084 | I106: 0 | J106: 344.927084 | K106: 0
A107: National Maternity Services | B107: 152666.7377 | C107: 181067 | D107: -28400.26227 | E107: 0 | F107: -28400.26227 | G107: 0 | H107: -28400.26227 | I107: 0 | J107: -28400.26227 | K107: 0
A108: National Mental Health Services | B108: 66476.22314 | C108: 68094 | D108: -1617.77686 | E108: ='2018 Health appropriations'!D16+'2018 Health appropriations'!D24 -> 8700 | F108: 7082.22314 | G108: =-('2018 Health appropriations'!C125+'2018 Health appropriations'!C129+'2018 Health appropriations'!C133)/1000 -> -3407 | H108: 3675.22314 | I108: 0 | J108: 3675.22314 | K108: 8700
A109: National Personal Health Services | B109: 87583.36974 | C109: 78151 | D109: 9432.369737 | E109: 0 | F109: 9432.369737 | G109: =-'2018 Health appropriations'!C93/1000 -> -3100 | H109: 6332.369737 | I109: 0 | J109: 6332.369737 | K109: 0
A110: Primary Health Care Strategy | B110: 204480.35 | C110: 266396 | D110: -61915.65004 | E110: ='2018 Health appropriations'!D5+'2018 Health appropriations'!D21 -> 61466 | F110: -449.6500414 | G110: 0 | H110: -449.6500414 | I110: 0 | J110: -449.6500414 | K110: 61466
A111: Problem Gambling Services | B111: 18334.74175 | C111: 20941 | D111: -2606.25825 | E111: 0 | F111: -2606.25825 | G111: 0 | H111: -2606.25825 | I111: 0 | J111: -2606.25825 | K111: 0
A112: Public Health Service Purchasing | B112: 422481.3699 | C112: 423424 | D112: -942.6300893 | E112: ='2018 Health appropriations'!D10+'2018 Health appropriations'!D23+'2018 Health appropriations'!D27 -> 17353 | F112: 16410.36991 | G112: 0 | H112: 16410.36991 | I112: 0 | J112: 16410.36991 | K112: 17353
A113: Supporting Equitable Pay for Care and Support Workers | B113: 348000 | C113: 348000 | D113: 0 | E113: 0 | F113: 0 | G113: 0 | H113: 0 | I113: 0 | J113: 0 | K113: 0
A114: Totals | B114: =SUM(B96:B113) -> 3394293.612 | C114: 3501416 | D114: -107122.3876 | E114: 95512 | F114: -11610.38758 | G114: =SUM(G96:G113) -> -10316 | H114: =SUM(H96:H113) -> -21926.38758 | I114: 0 | J114: -21926.38758 | K114: 95512
A116: Non-Departmental Other Expenses "initiatives"
A117: Total Non-Departmental Other Expenses | B117: =C67*(1+U67) -> 27947.69011 | C117: =AE67 -> 27347 | D117: =B117-C117 -> 600.690108 | E117: 0 | F117: =D117+E117 -> 600.690108 | G117: 0 | H117: =F117+G117 -> 600.690108 | I117: 0 | J117: =H117+I117 -> 600.690108 | K117: =I117+E117 -> 0
A119: Total | B119: =B90+B114+B93+B117 -> 16842266.75 | C119: 16971932 | D119: -129665.2463 | E119: 101532 | F119: -28133.2463 | G119: =G90+G114+G93+G117 -> 0 | H119: =H90+H114+H93+H117 -> -28133.2463 | I119: -29300 | J119: -57433.2463 | K119: =I119+E119 -> 72232
B121: Total initiatives as % operating expenses | E121: =E119/C69 -> 0.006302979165

Sheet 2018 Health appropriations
A1: 1. 1 - New Policy Initiatives (p.7-8 of Health Estimates) | M1: Summary of Financial Activity (p.9 of Health Estimates)
M2: 2013/14 | N2: 2014/15 | O2: 2015/16 | P2: 2016/17 | Q2: 2017/18 | S2: 2018/19 | V2: 2019/20 | W2: 2020/21 | X2: 2021/22
A3: Policy Initiative | B3: Appropriation | C3: 2017/18 Final Budgeted $000 | D3: 2018/19 Budget $000 | E3: 2019/20 Estimated $000 | F3: 2020/21 Estimated $000 | G3: 2021/22 Estimated $000 | H3: Demo/cost pressure to continue existing programmes | M3: Actual $000 | N3: Actual $000 | O3: Actual $000 | P3: Actual $000 | Q3: Final Budgeted $000 | R3: Estimated Actual $000 | S3: Departmental Transactions Budget $000 | T3: Non- Departmental Transactions Budget $000 | U3: Total Budget $000 | V3: Estimated $000 | W3: Estimated $000 | X3: Estimated $000
A4: District Health Boards - Additional Support | B4: Health and Disability Support Services - DHBs Non-departmental output expense | D4: 549000 | E4: 549000 | F4: 549000 | G4: 549000 | H4: 1 | L4: Appropriations
A5: Very Low Cost General Practitioner Visits for Community Services Card Holders | B5: Primary Health Care Strategy Non-departmental output expense | C5: 500 | D5: 58608 | E5: 100000 | F5: 100000 | G5: 100000 | L5: Output Expenses | M5: 14002497 | N5: 14297234 | O5: 14746556 | P5: 15228315 | Q5: 16148344 | R5: 16124183 | S5: 186469 | T5: 16737125 | U5: 16923594 | V5: 16938427 | W5: 16862674 | X5: 16961933
B6: Managing the Purchase of Services Departmental output expense | C6: 1500 | D6: 400 | L6: Benefits or Related Expenses | M6: - | N6: - | O6: - | P6: - | Q6: - | R6: - | S6: N/A | T6: - | U6: - | V6: - | W6: - | X6: -
A7: Disability Support Services - Additional Support | B7: National Disability Support Services Non-departmental output expense | C7: 9000 | D7: 58407 | E7: 54407 | F7: 46407 | G7: 42407 | H7: 1 | L7: Borrowing Expenses | M7: - | N7: - | O7: - | P7: - | Q7: - | R7: - | S7: - | T7: - | U7: - | V7: - | W7: - | X7: -
A8: Elective Surgical Procedures | B8: National Elective Services Non-departmental output expense | D8: 31500 | E8: 31500 | F8: 31500 | G8: 31500 | H8: 1 | L8: Other Expenses | M8: 27873 | N8: 26480 | O8: 25307 | P8: 102469 | Q8: 22410 | R8: 22410 | S8: - | T8: 27347 | U8: 27347 | V8: 27347 | W8: 27347 | X8: 27347
A9: National Maternity Services - Additional Support | B9: National Maternity Services Non-departmental output expense | C9: 9000 | D9: 25900 | E9: 25900 | F9: 25900 | G9: 25900 | H9: 1 | L9: Capital Expenditure | M9: 336432 | N9: 689136 | O9: 487272 | P9: 3043698 | Q9: 513154 | R9: 377709 | S9: 8837 | T9: 1244594 | U9: 1253431 | V9: 129434 | W9: 72895 | X9: 62550
A10: National Bowel Screening Programme Implementation Year Two | B10: Public Health Service Purchasing Non-departmental output expense | D10: 13391 | E10: 13184 | F10: 13314 | G10: 14196 | L10: Intelligence and Security Department Expenses and Capital Expenditure | M10: - | N10: - | O10: - | P10: - | Q10: - | R10: - | S10: - | T10: N/A | U10: - | V10: - | W10: - | X10: -
B11: Health Sector Information Systems Departmental output expense | D11: 4000 | E11: 4000 | F11: 2500 | G11: 2500 | L11: Multi-Category Expenses and Capital
A12: Meeting Air Ambulance Service Cost Pressures | B12: National Emergency Services Non-departmental output expense | D12: 14700 | E12: 14700 | F12: 14700 | G12: 14700 | H12: 1 | L12: Expenditure (MCA)
B13: Managing the Purchase of Services Departmental output expense | D13: 300 | E13: 300 | F13: 300 | G13: 300 | H13: 1 | L13: Output Expenses | M13: 20036 | N13: 20878 | O13: 20705 | P13: 20521 | Q13: 20591 | R13: 19791 | S13: 20991 | T13: - | U13: 20991 | V13: 20991 | W13: 20991 | X13: 20991
A14: National Maternity Services Settlement drawdown from Contingency Fund | B14: National Maternity Services Non-departmental output expense | C14: 8400 | D14: 8400 | E14: 8400 | F14: 8400 | G14: 8400 | H14: 1 | I14: Not clear that this was this govt (see Estimates) | L14: Other Expenses | M14: - | N14: - | O14: - | P14: - | Q14: - | R14: - | S14: - | T14: - | U14: - | V14: - | W14: - | X14: -
A15: Primary Health Care - Additional Support | B15: Primary Health Care Strategy Non-departmental output expense | D15: 9499 | E15: 9499 | F15: 9499 | G15: 9499 | H15: 1 | L15: Capital Expenditure | M15: - | N15: - | O15: - | P15: - | Q15: - | R15: - | S15: N/A | T15: - | U15: - | V15: - | W15: - | X15: -
A16: Improving Mental Health Services for Children in Canterbury and Kaikōura | B16: National Mental Health Services Non-departmental output expense | C16: 700 | D16: 7300 | E16: 10000 | F16: 10000 | L16: Total Appropriations | M16: 14386838 | N16: 15033728 | O16: 15279840 | P16: 18395003 | Q16: 16704499 | R16: 16544093 | S16: 216297 | T16: 18009066 | U16: 18225363 | V16: 17116199 | W16: 16983907 | X16: 17072821
A17: Pay Equity drawdown from Contingency Fund | B17: Supporting Equitable Pay Non-departmental output expense | C17: 22800 | H17: 1 | L17: Crown Revenue and Capital Receipts
B18: Managing the Purchase of Services Departmental output expense | C18: 1200 | H18: 1 | L18: Tax Revenue | M18: - | N18: - | O18: - | P18: - | Q18: - | R18: - | S18: N/A | T18: - | U18: - | V18: - | W18: - | X18: -
A19: Transforming the Disability Support System drawdown from Contingency Fund | B19: National Disability Support Services Non-departmental output expense | D19: 5622 | E19: 4829 | H19: 1 | L19: Non-Tax Revenue | M19: 655187 | N19: 669571 | O19: 687880 | P19: 675915 | Q19: 763154 | R19: 763154 | S19: N/A | T19: 787334 | U19: 787334 | V19: 809028 | W19: 809028 | X19: 809028
B20: Managing the Purchase of Services Departmental output expense | D20: 6971 | E20: 6420 | H20: 1 | L20: Capital Receipts | M20: 375698 | N20: 147800 | O20: 24648 | P20: 23133 | Q20: 27499 | R20: 27499 | S20: N/A | T20: 27499 | U20: 27499 | V20: 27499 | W20: 27499 | X20: 27499
A21: Extending Zero Fees Doctors' Visits to Under 14s | B21: Primary Health Care Strategy Non-departmental output expense | D21: 2858 | E21: 4900 | F21: 4900 | G21: 4900 | L21: Total Crown Revenue and Capital Receipts | M21: 1030885 | N21: 817371 | O21: 712528 | P21: 699048 | Q21: 790653 | R21: 790653 | S21: N/A | T21: 814833 | U21: 814833 | V21: 836527 | W21: 836527 | X21: 836527
A22: Expansion of School Based Health Services | B22: National Child Health Services Non-departmental output expense | D22: 4253 | E22: 4253 | F22: 4253 | G22: 4253
A23: National Bowel Screening Business Case drawdown from Contingency Fund | B23: Public Health Service Purchasing Non-departmental output expense | C23: 1832 | D23: 3713 | E23: 3585 | F23: 3300 | G23: 3300 | L23: Operational expenses | M23: =M5+M8+M13 -> 14050406 | N23: =N5+N8+N13 -> 14344592 | O23: 14792568 | P23: 15351305 | Q23: 16191345 | R23: =R5+R8+R13 -> 16166384 | U23: 16971932 | V23: 16986765 | W23: 16911012 | X23: 17010271
A24: Integrated Therapies Pilot for 18- 25 Year Olds | B24: National Mental Health Services Non-departmental output expense | D24: 1400 | E24: 3630 | F24: 4000
B25: Managing the Purchase of Services Departmental output expense | D25: 620 | E25: 420 | F25: 420
A26: Radio Assurance | B26: National Emergency Services Non-departmental output expense | D26: 3740
A27: Community Organisation Refugee Sponsorship Category | B27: Public Health Service Purchasing Non-departmental output expense | C27: 106 | D27: 249 | E27: 249 | F27: 249 | G27: 249
A28: Developing a Free Annual Health Check for SuperGold Card Holders | B28: Managing the Purchase of Services Departmental output expense | D28: 1000
A29: Migrant Settlement Initiative - Stocktake of New Zealand Health System for New Migrants | B29: Sector Planning and Performance Departmental output expense | C29: 48
A30: Total New Operating Expenditure | C30: 55086 | D30: 811831 | E30: 849176 | F30: 828642 | G30: 811104
A31: Savings in the PHARMAC Combined Pharmaceutical Budget | B31: Health and Disability Support Services - DHBs Non-departmental output expense | D31: -29300 | E31: -34800 | F31: -65300 | G31: -65300
A32: Total Operating Expenditure | C32: 55086 | D32: 782531 | E32: 814376 | F32: 763342 | G32: 745804
A33: District Health Boards' Capital Investment | B33: Equity for Capital Projects for DHBs and Health Sector Crown Agencies Non-departmental capital expenditure | D33: 750000
A34: Provision for Additional Deficit Support for District Health Boards | B34: Equity Support for DHB Deficits Non-departmental capital expenditure | D34: 100000
A35: Total Capital Expenditure | D35: 850000
A36: National Bowel Screening Programme IT Solution | B36: Departmental capital injection | C36: 2000
A37: Total Initiatives | C37: 57086 | D37: 1632531 | E37: 814376 | F37: 763342 | G37: 745804
C38: =C16+C22+C24+C25 -> 700 | D38: =D16+D22+D24+D25 -> 13573 | E38: =E16+E22+E24+E25 -> 18303 | F38: =F16+F22+F24+F25 -> 18673 | G38: =G16+G22+G24+G25 -> 4253
B39: Operational only:
B40: Total to meet cost and population pressures | D40: =SUM(D$4:D$31*$H$4:$H$31) -> 710299 | E40: =SUM(E$4:E$17*$H$4:$H$17) -> 693706 | F40: =SUM(F$4:F$17*$H$4:$H$17) -> 685706 | G40: =SUM(G$4:G$17*$H$4:$H$17) -> 681706
B41: New initiatives | D41: =D30-D40 -> 101532 | E41: =E30-E40 -> 155470 | F41: =F30-F40 -> 142936 | G41: =G30-G40 -> 129398
B42: Savings | D42: =D31 -> -29300 | E42: =E31 -> -34800 | F42: =F31 -> -65300 | G42: =G31 -> -65300
B43: Leaving additional requirements | D43: =D41+D42 -> 72232 | E43: =E41+E42 -> 120670 | F43: =F41+F42 -> 77636 | G43: =G41+G42 -> 64098
B44: Cost pressures | D44: ='Health Vote 2018-19 post-Budget'!B3/1000 -> 733693.7537
B45: Total | D45: =D44+D43 -> 805925.7537
B46: Provided | D46: ='Health Vote 2018-19 post-Budget'!AF69 -> 863359
B47: Shortfall | D47: =D45-D46 -> -57433.2463
A49: From Estimates
A50: Other initiatives/service requirements
A51: Health Sector Projects Operating Expenses (M36) | B51: Health Sector Projects Operating Expenses (M36) | C51: 10328 | D51: 3500
A54: Programmes ending or reducing (from Estimates)
A55: More Elective Surgery, Reducing Pain, and Increasing Prevention | B55: First budgeted 2015/16 | C55: 12000 | D55: - | E55: - | F55: - | G55: -
A56: Electives - bariatric surgery | B56: First budgeted 2014/15 | C56: 2500 | D56: - | E56: - | F56: - | G56: -
A58: Savings
A59: "Savings due to efficiencies with the transfer of responsibilities for hospital medicines purchasing to PHARMAC as part of their Combined Pharmaceutical Budget." See above
A62: Use of Reprioritisation | C62: 2017/18 | D62: 2018/19 | E62: 2019/20 | F62: 2020/21 | G62: 2021/22
A63: Mental Health Social Investment Fund Contingency
B64: Reprioritisation – Mental Health Social Investment Fund Contingency | C64: -24300 | D64: -17700 | E64: -15000 | F64: -15000 | G64: -25000
A65: Improving Mental Health Services for Children in Canterbury and Kaikōura | B65: National Mental Health Services Non-departmental output expense | C65: 700 | D65: 7300 | E65: 10000 | F65: 10000
C66: =C65-C64 -> 25000 | D66: =D65-D64 -> 25000 | E66: =E65-E64 -> 25000 | F66: =F65-F64 -> 25000 | G66: =G65-G64 -> 25000
A67: Expansion of School Based Health Services | B67: National Child Health Services Non-departmental output expense | D67: 4253 | E67: 4253 | F67: 4253 | G67: 4253
A68: Integrated Therapies Pilot for 18- 25 Year Olds | B68: National Mental Health Services Non-departmental output expense | D68: 1400 | E68: 3630 | F68: 4000
B69: Managing the Purchase of Services Departmental output expense | D69: 620 | E69: 420 | F69: 420
C70: =SUM(C67:C69) -> 0 | D70: =SUM(D67:D69) -> 6273 | E70: =SUM(E67:E69) -> 8303 | F70: =SUM(F67:F69) -> 8673 | G70: =SUM(G67:G69) -> 4253
A71: From Supplementary Estimates
A72: Devolution from | B72: National Personal Health Services
A73: Budget 2013 Diabetes Care Improvement Packages | B73: Auckland | C73: 328000
B74: Bay of Plenty | C74: 125000
B75: Canterbury | C75: 286000
B76: Capital and Coast | C76: 160000
B77: Counties-Manukau | C77: 473000
B78: Hawkes Bay | C78: 111000
B79: Hutt | C79: 96000
B80: Lakes | C80: 72000
B81: MidCentral | C81: 108000
B82: Nelson-Marlborough | C82: 83000
B83: Northland | C83: 138000
B84: South Canterbury | C84: 45000
B85: Southern | C85: 198000
B86: Tairawhiti | C86: 49000
B87: Taranaki | C87: 99000
B88: Waikato | C88: 263000
B89: Wairarapa | C89: 30000
B90: Waitemata | C90: 368000
B91: West Coast | C91: 20000
B92: Whanganui | C92: 48000
B93: Total | C93: =SUM(C73:C92) -> 3100000
A95: Devolution from | B95: National Disability Support Services
A96: In-between Travel (Part B) agreement. | B96: Auckland | C96: 292000
B97: Bay of Plenty | C97: 254000
B98: Canterbury | C98: 426000
B99: Capital and Coast | C99: 197000
B100: Counties-Manukau | C100: 332000
B101: Hawkes Bay | C101: 163000
B102: Hutt | C102: 113000
B103: Lakes | C103: 93000
B104: MidCentral | C104: 183000
B105: Nelson-Marlborough | C105: 150000
B106: Northland | C106: 194000
B107: South Canterbury | C107: 69000
B108: Southern | C108: 276000
B109: Tairawhiti | C109: 44000
B110: Taranaki | C110: 114000
B111: Waikato | C111: 355000
B112: Wairarapa | C112: 50000
B113: Waitemata | C113: 400000
B114: West Coast | C114: 29000
B115: Whanganui | C115: 75000
B116: Total | C116: =SUM(C96:C115) -> 3809000
A118: Devolution from | B118: National Mental Health Services
A119: Drivers of Crime | B119: Bay of Plenty DHB | C119: 465000
B120: Canterbury DHB | C120: 477000
B121: Northland | C121: 750000
B122: Southern | C122: 750000
B123: Waikato | C123: 214000
B124: Whanganui | C124: 250000
B125: Total | C125: =SUM(C119:C124) -> 2906000
A128: Devolution from | B128: National Mental Health Services
A129: Dedicated Methamphetamine Treatment Pathway (Social Detoxification) service | B129: Northland | C129: 85000
A132: Devolution from | B132: National Mental Health Services
A133: Youth addiction treatment service | B133: Waitemata | C133: 416000
A135: New appropriation
A136: Mainly transferred from the Health Sector Projects appropriation (capital) | B136: Health Sector Projects Operating Expenses | C136: 10328
A138: Relief for | B138: National Disability Support Services | D138: See also Estimates, p.64
A139: Transfer from | B139: National Child Health Services | C139: 1010000
A140: Transfer from | B140: National Contracted Services - Other | C140: 458000
B141: Public Health Service Purchasing | C141: 2500000
B142: National Māori Health Services | C142: 4078000
B143: Provider Development | C143: 3000000
B144: Primary Health Care Strategy | C144: 13069000
B145: Subtotal | C145: 24115000
A146: Disability Support Services - Additional Support - Budget 2018 | C146: 9000000
B147: Total | C147: =SUM(C145:C146) -> 33115000
A149: Relief for | B149: National Maternity Services
A150: Transfer from | B150: National Contracted Services - Other | C150: 2500000
A151: Budget 2018 initiative National Maternity Services - Additional Support | C151: 9000000
A152: National Maternity Services - Additional Support contingency fund | C152: 8400000
B153: Total | C153: =SUM(C150:C152) -> 19900000
A156: Relief for | B156: National Elective Services
A157: Transfer from | B157: National Contracted Services - Other | C157: 542000
B158: National Health Information Systems | C158: 3458000
B159: Subtotal | C159: =SUM(C157:C158) -> 4000000
A160: Carried forward from 2016/17 reflecting the timing of expenditure for Orthopaedic and General Surgery initiative | C160: 4628000
A161: Carried forward from 2016/17 reflecting the timing of expenditure for work on the Ophthalmology Electives programme | C161: 1000000
B162: Total | C162: =SUM(C159:C161) -> 9628000
A164: Relief for | B164: Deficit Support for DHBs | C164: 50000000
A165: Carry forward from 2016/17 | C165: 36924000
B166: Total | C166: =SUM(C164:C165) -> 86924000
A170: Movement | B170: Supporting Equitable Pay for Care and Support Workers | C170: 279000000
A171: From the Pay Equity contingency fund, established in Budget 2017, to fund increased annual leave liability payable to care and support workers. | C171: 22800000
A172: Less transfer to | B172: Managing the Purchase of Services | C172: -2500000
B173: Total | C173: =SUM(C170:C172) -> 299300000
B174: So addition to Supporting Equitable Pay for Care and Support Workers | C174: =C171+C172 -> 20300000
B176: Equity for Capital Projects for DHBs and Health Sector Crown Agencies | C176: 303388000
A177: Mainly sums carried forward less sums brought forward from 2016/17 | C177: -182749000
B178: Total | C178: =SUM(C174:C177) -> 140939000

Sheet Multiyear
Q1: Estimated needs ($000)
Q2: This estimates funding needs and compares to actual funding from the year ended June 2010. It uses a simplified version of the annual year-to-year estimate. Because of opaque transfers of responsibilities between appropriations from year to year and initiatives are added to grand totals, estimates for the individual appropriations are not necessarily meaningful. It is totals that count, and they do not necessarily coincide exactly with annual year-on-year calculations.
A4: Vote | B4: Health
C5: Actuals
A6: Sum of Amount $000 | L6: Estimated | M6: Forecast
A7: Appropriation or Category Type | B7: Appropriation Name | C7: 2009 | D7: 2010 | E7: 2011 | F7: 2012 | G7: 2013 | H7: 2014 | I7: 2015 | J7: 2016 | K7: 2017 | L7: 2018 | M7: 2019 | Q7: 2010 | R7: 2011 | S7: 2012 | T7: 2013 | U7: 2014 | V7: 2015 | W7: 2016 | X7: 2017 | Y7: 2018 | Z7: 2019
A8: Departmental Output Expenses | B8: Administration of Funding and Purchasing of Health and Disability Support Services | C8: 27325 | D8: 26148
B9: Administration of Legislation and Regulations | C9: 33171 | D9: 34453
B10: Funding and Performance of Crown Entities | C10: 8061 | D10: 7702
B11: Health and Disability System Leadership and Planning | E11: 24212
B12: Health and Disability System Performance Monitoring and Service Delivery | E12: 26950
B13: Health Sector Information Systems | E13: 59991 | I13: 50338 | J13: 50109 | K13: 53501 | L13: 52306 | M13: 55618
B14: Information and Payment Services | F14: 74897 | G14: 74697 | H14: 69417
B15: Information Services | C15: 61329 | D15: 67518
B16: Managing the Purchase of Services | F16: 33859 | G16: 26310 | H16: 28626 | I16: 31252 | J16: 31790 | K16: 34054 | L16: 42523 | M16: 41974
B17: Payment Services | C17: 17908 | D17: 17907 | E17: 18377 | F17: 16440 | G17: 17340 | I17: 17908 | J17: 17907 | K17: 18377 | L17: 16440 | M17: 17340
B18: Policy Advice | F18: 14065
B19: Policy Advice and Ministerial Servicing | G19: 15750 | H19: 20036 | I19: 20878 | J19: 20705 | K19: 20521 | L19: 19791 | M19: 20991
B20: Regulatory and Enforcement Services | E20: 30988 | F20: 22518 | G20: 23102 | H20: 23980 | I20: 22910 | J20: 22739 | K20: 22042 | L20: 24111 | M20: 24111
B21: Responding to National and International Health Emergencies | E21: 1923
B22: Sector Planning and Performance | F22: 44107 | G22: 36521 | H22: 46456 | I22: 49900 | J22: 47050 | K22: 48010 | L22: 47474 | M22: 47426
B23: Servicing of Ministers and Ministerial Committees | C23: 13865 | D23: 13303
B24: Strategy, Policy and System Performance | C24: 47784 | D24: 48007 | E24: 40936
B25: Supporting Ministerial Committees | E25: 3977
A26: Departmental Output Expenses Total | C26: =SUM(C8:C25) -> 209443 | D26: 215038 | E26: 207354 | F26: 205886 | G26: 193720 | H26: 188515 | I26: 193186 | J26: 190300 | K26: 196505 | L26: 202645 | M26: 207460 | Q26: =D26 -> 215038 | R26: =Q26*(R$113*(1+R$136)+(1-R$113)*(1+R$138)) -> 223241.8892 | S26: 227310.4484 | T26: 226853.7807 | U26: 231166.1701 | V26: 235254.6659 | W26: 236611.1489 | X26: 241762.3278 | Y26: 251033.7149 | Z26: 260562.3288
A27: Non-Departmental Output Expenses | B27: Health and Disability Support Services - Auckland DHB | C27: 881089 | D27: 929801 | E27: 961356 | F27: 992268 | G27: 1051151 | H27: 1081812 | I27: 1092298 | J27: 1118297 | K27: 1195265 | L27: 1252081 | M27: 1320417 | Q27: 929801 | R27: =Q27*(R$114*(R$113*(1+R$134)+(1-R$113)*(1+R$138))+(1-R$114)*(R$113*(1+R$135)+(1-R$113)*(1+R$140)))*(1+R$125) -> 973276.2103 | S27: 1006928.874 | T27: 1029487.207 | U27: 1065751.383 | V27: 1103901.083 | W27: 1146829.623 | X27: 1200971.538 | Y27: 1264182.903 | Z27: =Y27*(Z$114*(Z$113*(1+Z$134)+(1-Z$113)*(1+Z$138))+(1-Z$114)*(Z$113*(1+Z$135)+(1-Z$113)*(1+Z$140)))*(1+Z$125) -> 1328401.173
B28: Health and Disability Support Services - Bay of Plenty DHB | C28: 491063 | D28: 523202 | E28: 544162 | F28: 567609 | G28: 584772 | H28: 594254 | I28: 614392 | J28: 638060 | K28: 664889 | L28: 694749 | M28: 724436 | Q28: 523202 | R28: 547665.6401 | S28: 566602.1014 | T28: 579295.7476 | U28: 599701.7156 | V28: 621168.6741 | W28: 645324.7011 | X28: 675790.5301 | Y28: 711359.7678 | Z28: 747495.5939
B29: Health and Disability Support Services - Canterbury DHB | C29: 1026481 | D29: 1078987 | E29: 1128270 | F29: 1178937 | G29: 1221996 | H29: 1252765 | I29: 1268439 | J29: 1314527 | K29: 1330249 | L29: 1379508 | M29: 1421052 | Q29: 1078987 | R29: 1129437.781 | S29: 1168489.993 | T29: 1194667.797 | U29: 1236750.538 | V29: 1281021.334 | W29: 1330837.732 | X29: 1393666.685 | Y29: 1467020.275 | Z29: 1541542.327
B30: Health and Disability Support Services - Capital and Coast DHB | C30: 536365 | D30: 569196 | E30: 597437 | F30: 623437 | G30: 643506 | H30: 672682 | I30: 678807 | J30: 690915 | K30: 702654 | L30: 735633 | M30: 765489 | Q30: 569196 | R30: 595810.2065 | S30: 616411.3472 | T30: 630220.8752 | U30: 652420.705 | V30: 675774.7956 | W30: 702054.3473 | X30: 735198.3872 | Y30: 773894.4698 | Z30: 813206.9489
B31: Health and Disability Support Services - Counties-Manukau DHB | C31: 931177 | D31: 1004832 | E31: 1058245 | F31: 1121978 | G31: 1174745 | H31: 1208599 | I31: 1246364 | J31: 1274349 | K31: 1321733 | L31: 1375692 | M31: 1439807 | Q31: 1004832 | R31: 1051815.476 | S31: 1088183.766 | T31: 1112562.461 | U31: 1151753.002 | V31: 1192981.222 | W31: 1239373.913 | X31: 1297884.851 | Y31: 1366197.106 | Z31: 1435597.518
B32: Health and Disability Support Services - Hawkes Bay DHB | C32: 357786 | D32: 378247 | E32: 392959 | F32: 401785 | G32: 419205 | H32: 426971 | I32: 435492 | J32: 457148 | K32: 470211 | L32: 482426 | M32: 497215 | Q32: 378247 | R32: 395932.9004 | S32: 409622.9469 | T32: 418799.7726 | U32: 433552.1936 | V32: 449071.6539 | W32: 466535.1666 | X32: 488560.3278 | Y32: 514274.98 | Z32: 540399.2452
B33: Health and Disability Support Services - Hutt DHB | C33: 286986 | D33: 308597 | E33: 320061 | F33: 333279 | G33: 342306 | H33: 350076 | I33: 357834 | J33: 365331 | K33: 372954 | L33: 384880 | M33: 397128 | Q33: 308597 | R33: 323026.2375 | S33: 334195.4134 | T33: 341682.4282 | U33: 353718.3541 | V33: 366380.0775 | W33: 380627.8776 | X33: 398597.349 | Y33: 419576.9325 | Z33: 440890.7034
B34: Health and Disability Support Services - Lakes DHB | C34: 234112 | D34: 244578 | E34: 251977 | F34: 259791 | G34: 268494 | H34: 273225 | I34: 278253 | J34: 284778 | K34: 298534 | L34: 314712 | M34: 326173 | Q34: 244578 | R34: 256013.8664 | S34: 264865.9767 | T34: 270799.7969 | U34: 280338.8485 | V34: 290373.8747 | W34: 301665.9431 | X34: 315907.6155 | Y34: 332534.9469 | Z34: 349427.1378
B35: Health and Disability Support Services - MidCentral DHB | C35: 372802 | D35: 396915 | E35: 409407 | F35: 424655 | G35: 440480 | H35: 448449 | I35: 458021 | J35: 467256 | K35: 482762 | L35: 494253 | M35: 511676 | Q35: 396915 | R35: 415473.7702 | S35: 429839.4751 | T35: 439469.2139 | U35: 454949.7258 | V35: 471235.1334 | W35: 489560.5402 | X35: 512672.7311 | Y35: 539656.504 | Z35: 567070.1061
B36: Health and Disability Support Services - Nelson-Marlborough DHB | C36: 309489 | D36: 324101 | E36: 333921 | F36: 345821 | G36: 359054 | H36: 368535 | I36: 378204 | J36: 394740 | K36: 403401 | L36: 418363 | M36: 437795 | Q36: 324101 | R36: 339255.1665 | S36: 350985.4849 | T36: 358848.6495 | U36: 371489.2637 | V36: 384787.1156 | W36: 399750.7291 | X36: 418622.9919 | Y36: 440656.5955 | Z36: 463041.1762
B37: Health and Disability Support Services - Northland DHB | C37: 389332 | D37: 418039 | E37: 430962 | F37: 447987 | G37: 465630 | H37: 476203 | I37: 487868 | J37: 511786 | K37: 536633 | L37: 564289 | M37: 599300 | Q37: 418039 | R37: 437585.4766 | S37: 452715.7309 | T37: 462857.9689 | U37: 479162.3608 | V37: 496314.4853 | W37: 515615.1787 | X37: 539957.4111 | Y37: 568377.273 | Z37: 597249.8396
B38: Health and Disability Support Services - Otago DHB | C38: 418527 | D38: 362709 | Q38: 362709
B39: Health and Disability Support Services - South Canterbury DHB | C39: 137705 | D39: 143397 | E39: 148374 | F39: 152692 | G39: 156132 | H39: 161180 | I39: 164568 | J39: 167795 | K39: 171495 | L39: 177019 | M39: 181432 | Q39: 143397 | R39: =Q39*(R$114*(R$113*(1+R$134)+(1-R$113)*(1+R$138))+(1-R$114)*(R$113*(1+R$135)+(1-R$113)*(1+R$140)))*(1+R$125) -> 150101.8914 | S39: 155291.917 | T39: 158770.938 | U39: 164363.7198 | V39: 170247.2933 | W39: 176867.8754 | X39: 185217.8215 | Y39: 194966.4883 | Z39: 204870.4433
B40: Health and Disability Support Services - Southern DHB | D40: 113580 | E40: 701674 | F40: 722810 | G40: 742987 | H40: 759117 | I40: 776461 | J40: 791729 | K40: 818588 | L40: 846386 | M40: 876351 | Q40: 113580 | R40: =Q40*(R$114*(R$113*(1+R$134)+(1-R$113)*(1+R$138))+(1-R$114)*(R$113*(1+R$135)+(1-R$113)*(1+R$140)))*(1+R$125)+Q38*(R$114*(R$113*(1+R$134)+(1-R$113)*(1+R$138))+(1-R$114)*(R$113*(1+R$135)+(1-R$113)*(1+R$140)))*(1+R$125)+Q41*(R$114*(R$113*(1+R$134)+(1-R$113)*(1+R$138))+(1-R$114)*(R$113*(1+R$135)+(1-R$113)*(1+R$140)))*(1+R$125) -> 713345.3772 | S40: =R40*(S$114*(S$113*(1+S$134)+(1-S$113)*(1+S$138))+(1-S$114)*(S$113*(1+S$135)+(1-S$113)*(1+S$140)))*(1+S$125) -> 738010.4943 | T40: 754544.2207 | U40: 781123.3995 | V40: 809084.5394 | W40: 840548.2446 | X40: 880230.5921 | Y40: 926560.2309 | Z40: 973627.8623
B41: Health and Disability Support Services - Southland DHB | C41: 234601 | D41: 205192 | Q41: 205192
B42: Health and Disability Support Services - Tairawhiti DHB | C42: 115404 | D42: 124073 | E42: 128385 | F42: 133819 | G42: 137333 | H42: 141540 | I42: 144332 | J42: 147136 | K42: 154031 | L42: 160655 | M42: 165267 | Q42: 124073 | R42: =Q42*(R$114*(R$113*(1+R$134)+(1-R$113)*(1+R$138))+(1-R$114)*(R$113*(1+R$135)+(1-R$113)*(1+R$140)))*(1+R$125) -> 129874.3486 | S42: 134364.9729 | T42: 137375.1654 | U42: 142214.2709 | V42: 147304.9814 | W42: 153033.3822 | X42: 160258.1 | Y42: 168693.0487 | Z42: 177262.3591
B43: Health and Disability Support Services - Taranaki DHB | C43: 257639 | D43: 266194 | E43: 275360 | F43: 282559 | G43: 290877 | H43: 297728 | I43: 304188 | J43: 318643 | K43: 324724 | L43: 335663 | M43: 345188 | Q43: =D43 -> 266194 | R43: 278640.5774 | S43: 288275.0444 | T43: 294733.3004 | U43: 305115.421 | V43: 316037.3508 | W43: 328327.4213 | X43: 343827.7842 | Y43: 361924.6525 | Z43: 380309.7888
B44: Health and Disability Support Services - Waikato DHB | C44: 781121 | D44: 840495 | E44: 872148 | F44: 918893 | G44: 948108 | H44: 981493 | I44: 1002406 | J44: 1042740 | K44: 1088798 | L44: 1150497 | M44: 1197666 | Q44: 840495 | R44: 879794.4812 | S44: 910214.8562 | T44: 930606.495 | U44: 963387.551 | V44: 997873.0294 | W44: 1036678.347 | X44: 1085620.012 | Y44: 1142760.02 | Z44: 1200810.221
B45: Health and Disability Support Services - Wairarapa DHB | C45: 99868 | D45: 105025 | E45: 108153 | F45: 112592 | G45: 115965 | H45: 119820 | I45: 122511 | J45: 128179 | K45: 130946 | L45: 135250 | M45: 140030 | Q45: 105025 | R45: 109935.711 | S45: 113736.9232 | T45: 116284.9834 | U45: 120381.1772 | V45: 124690.349 | W45: 129539.3113 | X45: 135654.8722 | Y45: 142794.8662 | Z45: 150048.5945
B46: Health and Disability Support Services - Waitemata DHB | C46: 1012346 | D46: 1074747 | E46: 1124558 | F46: 1173790 | G46: 1217875 | H46: 1258963 | I46: 1311848 | J46: 1349320 | K46: 1391674 | L46: 1464458 | M46: 1531538 | Q46: 1074747 | R46: 1124999.529 | S46: 1163898.281 | T46: 1189973.217 | U46: 1231890.589 | V46: 1275987.418 | W46: 1325608.057 | X46: 1388190.116 | Y46: 1461255.455 | Z46: 1535484.664
B47: Health and Disability Support Services - West Coast DHB | C47: 101682 | D47: 106821 | E47: 109818 | F47: 112998 | G47: 114610 | H47: 117472 | I47: 119604 | J47: 121928 | K47: 124489 | L47: 128077 | M47: 132618 | Q47: 106821 | R47: 111815.6875 | S47: 115681.9031 | T47: 118273.5369 | U47: 122439.7784 | V47: 126822.6401 | W47: 131754.5229 | X47: 137974.6641 | Y47: 145236.757 | Z47: 152614.5291
B48: Health and Disability Support Services - Whanganui DHB | C48: 171453 | D48: 180492 | E48: 185626 | F48: 191186 | G48: 195688 | H48: 198470 | I48: 202295 | J48: 206464 | K48: 210551 | L48: 218556 | M48: 225131 | Q48: 180492 | R48: 188931.3625 | S48: 195463.9823 | T48: 199842.9824 | U48: 206882.5464 | V48: 214288.1264 | W48: 222621.3699 | X48: 233131.3419 | Y48: 245401.8662 | Z48: 257867.8498
B49: Auckland Health Projects Integrated Investment Plan | L49: 185 | M49: 1000 | X49: =K49 -> 0 | Y49: =L49 -> 185 | Z49: =M49 -> 1000
B50: Crown Health Financing Agency | C50: 1751 | D50: 1700 | E50: 1800 | F50: 1900 | Q50: =D50 -> 1700 | R50: =Q50*(R$113*(1+R$136)+(1-R$113)*(1+R$140)) -> 1764.856498 | S50: =R50*(S$113*(1+S$136)+(1-S$113)*(1+S$140)) -> 1797.020816
B51: Health Sector Projects Operating Expenses | K51: 2561 | L51: 8628 | M51: 3500 | X51: =K51 -> 2561 | Y51: =L51 -> 8628 | Z51: =M51 -> 3500
B52: Health Services Funding | C52: 174858 | Q52: =D52 -> 0 | R52: =E52 -> 0 | S52: 0 | T52: 0 | U52: 0 | V52: 0 | W52: 0 | X52: 0 | Y52: 0 | Z52: =N52 -> 0
B53: Health Workforce Training and Development | C53: 117188 | D53: 117420 | E53: 126616 | F53: 155749 | G53: 166061 | H53: 169280 | I53: 176560 | J53: 176252 | K53: 184657 | L53: 186745 | M53: 186745 | Q53: 117420 | R53: =Q53*(R$113*(1+R$136)+(1-R$113)*(1+R$140)) -> 121899.6765 | S53: 124121.2849 | T53: 123871.9246 | U53: 126226.6748 | V53: 128459.1694 | W53: 129199.8675 | X53: 132012.6328 | Y53: 137075.209 | Z53: 142278.2422
B54: Meningococcal Vaccine Programme | C54: 1177 | D54: 560 | E54: 6 | Q54: 560 | R54: =E54 -> 6 | S54: 0
B55: Monitoring and Protecting Health and Disability Consumer Interests | C55: 14641 | D55: 14790 | E55: 14834 | F55: 14482 | G55: 12838 | H55: 26995 | I55: 27583 | J55: 27510 | K55: 28642 | L55: 29846 | M55: 29546 | Q55: 14790 | R55: =Q55*(R$113*(1+R$136)+(1-R$113)*(1+R$140)) -> 15354.25153 | S55: =R55*(S$113*(1+S$136)+(1-S$113)*(1+S$140)) -> 15634.0811 | T55: =S55*(T$113*(1+T$136)+(1-T$113)*(1+T$140)) -> 15602.67216 | U55: =T55*(U$113*(1+U$136)+(1-U$113)*(1+U$140))+12976 -> 28875.27202 | V55: =U55*(V$113*(1+V$136)+(1-V$113)*(1+V$140)) -> 29385.97144 | W55: =V55*(W$113*(1+W$136)+(1-W$113)*(1+W$140)) -> 29555.41152 | X55: =W55*(X$113*(1+X$136)+(1-X$113)*(1+X$140)) -> 30198.85209 | Y55: =X55*(Y$113*(1+Y$136)+(1-Y$113)*(1+Y$140)) -> 31356.95331 | Z55: =Y55*(Z$113*(1+Z$136)+(1-Z$113)*(1+Z$140)) -> 32547.18507
B56: National Advisory and Support Services | C56: 299 | D56: 337 | E56: 322 | F56: 258 | G56: 282 | H56: 230 | I56: 242 | Q56: 337 | R56: =Q56*(R$113*(1+R$136)+(1-R$113)*(1+R$138)) -> 349.856847 | S56: =R56*(S$113*(1+S$136)+(1-S$113)*(1+S$138)) -> 356.2329501 | T56: =S56*(T$113*(1+T$136)+(1-T$113)*(1+T$138)) -> 355.5172765 | U56: =T56*(U$113*(1+U$136)+(1-U$113)*(1+U$138)) -> 362.2755017 | V56: =U56*(V$113*(1+V$136)+(1-V$113)*(1+V$138)) -> 368.6828487
B57: National Child Health Services | C57: 52292 | D57: 57583 | E57: 59821 | F57: 77768 | G57: 81366 | H57: 78821 | I57: 82538 | J57: 83559 | K57: 81764 | L57: 83001 | M57: 89254 | Q57: 57583 | R57: =Q57*(R$113*(1+R$136)+(1-R$113)*(1+R$140))*(1+R$127) -> 59780.33009 | S57: 60741.15125 | T57: 60548.7194 | U57: 61873.51852 | V57: 63300.49509 | W57: 64121.58496 | X57: 66055.96867 | Y57: 68995.29285 | Z57: 71937.31181
B58: National Contracted Services - Other | C58: 115471 | D58: 143826 | E58: 150035 | F58: 92979 | G58: 114224 | H58: 22927 | I58: 21171 | J58: 24518 | K58: 25880 | L58: 25220 | M58: 28720 | Q58: 143826 | R58: =Q58*(R$113*(1+R$136)+(1-R$113)*(1+R$140))*(1+R$125) -> 151887.2108 | S58: =R58*(S$113*(1+S$136)+(1-S$113)*(1+S$140))*(1+S$125) -> 156895.523 | T58: =S58*(T$113*(1+T$136)+(1-T$113)*(1+T$140))*(1+T$125) -> 158797.4953 | U58: =T58*(U$113*(1+U$136)+(1-U$113)*(1+U$140))*(1+U$125)-71251-8854-4509-12976 -> 66724.01878 | V58: =U58*(V$113*(1+V$136)+(1-V$113)*(1+V$140))*(1+V$125) -> 69302.44121 | W58: =V58*(W$113*(1+W$136)+(1-W$113)*(1+W$140))*(1+W$125)+240 -> 71662.31814 | X58: =W58*(X$113*(1+X$136)+(1-X$113)*(1+X$140))*(1+X$125) -> 75230.56098 | Y58: =X58*(Y$113*(1+Y$136)+(1-Y$113)*(1+Y$140))*(1+Y$125) -> 80178.13123 | Z58: =Y58*(Z$113*(1+Z$136)+(1-Z$113)*(1+Z$140))*(1+Z$125) -> 85168.28479
B59: National Disability Support Services | C59: 888648 | D59: 929829 | E59: 970784 | F59: 1028966 | G59: 1027890 | H59: 1086767 | I59: 1126061 | J59: 1167483 | K59: 1187988 | L59: 1237680 | M59: 1268594 | Q59: 929829 | R59: =Q59*(R$113*(1+R$137)+(1-R$113)*(1+R$139))*(1+R$125) -> 968079.5929 | S59: =R59*(S$113*(1+S$137)+(1-S$113)*(1+S$139))*(1+S$125) -> 1004042.086 | T59: 1040941.497 | U59: 1072943.436 | V59: 1121183.422 | W59: 1173731.046 | X59: 1238508.923 | Y59: =X59*(Y$113*(1+Y$136)+(1-Y$113)*(1+Y$139))*(1+Y$125) -> 1327289.489 | Z59: =Y59*(Z$113*(1+Z$136)+(1-Z$113)*(1+Z$139))*(1+Z$125) -> 1409897.779
B60: National Elective Services | C60: 176373 | D60: 208066 | E60: 251023 | F60: 265056 | G60: 277877 | H60: 301566 | I60: 289972 | J60: 323180 | K60: 350577 | L60: 354185 | M60: 363517 | Q60: 208066 | R60: =Q60*(R$113*(1+R$134)+(1-R$113)*(1+R$138))*(1+R$125) -> 216587.3115 | S60: 224440.7216 | T60: 230378.609 | U60: 238633.2015 | V60: 246396.9916 | W60: 256880.6434 | X60: 268257.2384 | Y60: 279652.5924 | Z60: 291384.6128
B61: National Emergency Services | C61: 68539 | D61: 81300 | E61: 85179 | F61: 87481 | G61: 90274 | H61: 95490 | I61: 97105 | J61: 95540 | K61: 101033 | L61: 108118 | M61: 129597 | Q61: 81300 | R61: =Q61*(R$113*(1+R$136)+(1-R$113)*(1+R$138))*(1+R$125) -> 85856.73129 | S61: 88687.76173 | T61: 89762.88272 | U61: 92881.18787 | V61: 96470.40421 | W61: 99421.31591 | X61: 104371.7474 | Y61: 111235.8004 | Z61: 118158.9316
B62: National Health Information Systems | G62: 0 | H62: 8962 | I62: 13851 | J62: 10534 | K62: 4369 | L62: 5028 | M62: 8042 | Q62: 0 | R62: =E62 -> 0 | S62: =F62 -> 0 | T62: =G62 -> 0 | U62: =H62 -> 8962 | V62: =U62*(V$113*(1+V$136)+(1-V$113)*(1+V$140))*(1+V$128) -> 9374.571719 | W62: =V62*(W$113*(1+W$136)+(1-W$113)*(1+W$140))*(1+W$128) -> 9697.693388 | X62: =W62*(X$113*(1+X$136)+(1-X$113)*(1+X$140))*(1+X$128) -> 10195.3636 | Y62: =X62*(Y$113*(1+Y$136)+(1-Y$113)*(1+Y$140))*(1+Y$128) -> 10880.90251 | Z62: =Y62*(Z$113*(1+Z$136)+(1-Z$113)*(1+Z$140))*(1+Z$128) -> 11603.09603
B63: National Maori Health Services | C63: 6858 | D63: 7371 | E63: 8211 | F63: 4045 | G63: 5285 | H63: 4697 | I63: 4195 | J63: 4066 | K63: 3010 | L63: 2750 | M63: 6828 | Q63: 7371 | R63: =Q63*(R$113*(1+R$136)+(1-R$113)*(1+R$140))*(1+R$125) -> 7784.132428 | S63: =R63*(S$113*(1+S$136)+(1-S$113)*(1+S$140))*(1+S$125) -> 8040.805556 | T63: =S63*(T$113*(1+T$136)+(1-T$113)*(1+T$140))*(1+T$125) -> 8138.280548 | U63: =T63*(U$113*(1+U$136)+(1-U$113)*(1+U$140))*(1+U$125) -> 8420.99921 | V63: =U63*(V$113*(1+V$136)+(1-V$113)*(1+V$140))*(1+V$125) -> 8746.412662 | W63: =V63*(W$113*(1+W$136)+(1-W$113)*(1+W$140))*(1+W$125)+20 -> 9033.95473 | X63: =W63*(X$113*(1+X$136)+(1-X$113)*(1+X$140))*(1+X$125) -> 9483.777525 | Y63: =X63*(Y$113*(1+Y$136)+(1-Y$113)*(1+Y$140))*(1+Y$125) -> 10107.48224 | Z63: =Y63*(Z$113*(1+Z$136)+(1-Z$113)*(1+Z$140))*(1+Z$125) -> 10736.55513
B64: National Maternity Services | C64: 130512 | D64: 132167 | E64: 137415 | F64: 136408 | G64: 143998 | H64: 141096 | I64: 143848 | J64: 144589 | K64: 154047 | L64: 166667 | M64: 181067 | Q64: 132167 | R64: =Q64*(R$113*(1+R$136)+(1-R$113)*(1+R$138))*(1+R$126) -> 134021.4875 | S64: 132919.4947 | T64: 130093.3516 | U64: 129753.9543 | V64: 134239.1218 | W64: 133580.5753 | X64: 134962.8107 | Y64: 143386.2218 | Z64: 152053.4293
B65: National Mental Health Services | C65: 49044 | D65: 54775 | E65: 56839 | F65: 40924 | G65: 29262 | H65: 47590 | I65: 45626 | J65: 53114 | K65: 64848 | L65: 64556 | M65: 68094 | Q65: 54775 | R65: =Q65*(R$113*(1+R$134)+(1-R$113)*(1+R$138))*(1+R$129) -> 61364.14307 | S65: =R65*(S$113*(1+S$134)+(1-S$113)*(1+S$138))*(1+S$129) -> 65849.75721 | T65: =S65*(T$113*(1+T$134)+(1-T$113)*(1+T$138))*(1+T$129) -> 72378.73428 | U65: =T65*(U$113*(1+U$134)+(1-U$113)*(1+U$138))*(1+U$129)+4509 -> 80576.26254 | V65: =U65*(V$113*(1+V$134)+(1-V$113)*(1+V$138))*(1+V$129) -> 81640.35025 | W65: =V65*(W$113*(1+W$134)+(1-W$113)*(1+W$138))*(1+W$129) -> 87864.41816 | X65: =W65*(X$113*(1+X$134)+(1-X$113)*(1+X$138))*(1+X$129) -> 93771.828 | Y65: =X65*(Y$113*(1+Y$134)+(1-Y$113)*(1+Y$138))*(1+Y$129) -> 100002.5044 | Z65: =Y65*(Z$113*(1+Z$134)+(1-Z$113)*(1+Z$138))*(1+Z$129) -> 106906.8523
B66: National Personal Health Services | G66: 0 | H66: 85233 | I66: 84748 | J66: 105563 | K66: 82027 | L66: 82707 | M66: 78151 | Q66: 0 | R66: =E66 -> 0 | S66: =F66 -> 0 | T66: =G66 -> 0 | U66: =H66 -> 85233 | V66: =U66*(V$113*(1+V$134)+(1-V$113)*(1+V$138))*(1+V$125) -> 88006.00527 | W66: =V66*(W$113*(1+W$134)+(1-W$113)*(1+W$138))*(1+W$125) -> 91750.46785 | X66: =W66*(X$113*(1+X$134)+(1-X$113)*(1+X$138))*(1+X$125) -> 95813.86439 | Y66: =X66*(Y$113*(1+Y$134)+(1-Y$113)*(1+Y$138))*(1+Y$125) -> 99883.96107 | Z66: =Y66*(Z$113*(1+Z$134)+(1-Z$113)*(1+Z$138))*(1+Z$125) -> 104074.3055
B67: Primary Health Care Strategy | D67: 168133 | E67: 174789 | F67: 171536 | G67: 172752 | H67: 161290 | I67: 154935 | J67: 179615 | K67: 185360 | L67: 193405 | M67: 266396 | Q67: 168133 | R67: =Q67*(R$113*(1+R$136)+(1-R$113)*(1+R$140))*(1+R$125) -> 177556.5781 | S67: 183411.3093 | T67: 185634.7203 | U67: 192083.5518 | V67: 199506.2542 | W67: 205608.9066 | X67: 215846.6791 | Y67: 230041.9289 | Z67: 244359.356
B68: Problem Gambling Services | C68: 16627 | D68: 17492 | E68: 16407 | F68: 17942 | G68: 17144 | H68: 17670 | I68: 15735 | J68: 18205 | K68: 14900 | L68: 14821 | M68: 20941 | Q68: 17492 | R68: 18472.39783 | S68: 19081.50465 | T68: 19312.82097 | U68: 19983.73602 | V68: 20755.96938 | W68: 21390.8691 | X68: =W68*(X$113*(1+X$136)+(1-X$113)*(1+X$140))*(1+X$125) -> 22455.97301 | Y68: 23932.79975 | Z68: 25422.33741
B69: Public Health Service Purchasing | C69: 426904 | D69: 477081 | E69: 426738 | F69: 436751 | G69: 374063 | H69: 396050 | I69: 396571 | J69: 372112 | K69: 386087 | L69: 365340 | M69: 423424 | Q69: 477081 | R69: =Q69*(R$113*(1+R$136)+(1-R$113)*(1+R$140))*(1+R$125) -> 503820.6054 | S69: =R69*(S$113*(1+S$136)+(1-S$113)*(1+S$140))*(1+S$125) -> 520433.5308 | T69: =S69*(T$113*(1+T$136)+(1-T$113)*(1+T$140))*(1+T$125) -> 526742.5074 | U69: =T69*(U$113*(1+U$136)+(1-U$113)*(1+U$140))*(1+U$125)+8854 -> 553895.2053 | V69: =U69*(V$113*(1+V$136)+(1-V$113)*(1+V$140))*(1+V$125) -> 575299.429 | W69: =V69*(W$113*(1+W$136)+(1-W$113)*(1+W$140))*(1+W$125) -> 592897.135 | X69: =W69*(X$113*(1+X$136)+(1-X$113)*(1+X$140))*(1+X$125) -> 622418.9396 | Y69: =X69*(Y$113*(1+Y$136)+(1-Y$113)*(1+Y$140))*(1+Y$125) -> 663352.5894 | Z69: =Y69*(Z$113*(1+Z$136)+(1-Z$113)*(1+Z$140))*(1+Z$125) -> 704638.5514
B70: Supporting Equitable Pay for Care and Support Workers | L70: 299300 | M70: 348000 | X70: =K70 -> 0 | Y70: =L70 -> 299300 | Z70: =M70 -> 348000
A71: Non-Departmental Output Expenses Total | C71: =SUM(C27:C70) -> 11388210 | D71: 12111650 | E71: 12563672 | F71: 13031131 | G71: 13404230 | H71: 13834018 | I71: 14124926 | J71: 14576961 | K71: 15052331 | L71: 15941329 | M71: 16737125 | Q71: =D71 -> 12111650 | R71: =SUM(R27:R70) -> 12677316.86 | S71: 13110231.75 | T71: 13401656.49 | U71: 13884814.84 | V71: 14387780.87 | W71: 14939550.49 | X71: 15650081.88 | Y71: =SUM(Y27:Y69) -> 16513510 | Z71: =SUM(Z27:Z69) -> 17372884.91
A72: Departmental Other Expenses | B72: Earthquake/Storm Damages | F72: 256 | Q72: 0 | R72: =E72 -> 0 | S72: 256 | T72: 0 | U72: 0 | V72: 0 | W72: 0 | X72: 0 | Y72: =P72 -> 0 | Z72: =Q72 -> 0
A73: Departmental Other Expenses Total | F73: =F72 -> 256 | Q73: 0 | R73: 0 | S73: 256 | T73: 0 | U73: 0 | V73: 0 | W73: 0 | X73: 0 | Y73: =P73 -> 0 | Z73: =Q73 -> 0
A74: Non-Departmental Other Expenses | B74: International Health Organisations | C74: 1908 | D74: 2177 | E74: 2158 | F74: 1742 | G74: 1543 | H74: 1582 | I74: 1480 | J74: 1639 | K74: 1703 | L74: 1843 | M74: 2030 | Q74: 2177 | R74: =Q74*(R$113*(1+R$136)+(1-R$113)*(1+R$140)) -> 2260.054468 | S74: 2301.243716 | T74: 2296.620507 | U74: 2340.278241 | V74: 2381.669322 | W74: 2395.402074 | X74: 2447.551538 | Y74: 2541.413133 | Z74: 2637.878839
B75: Legal Expenses | C75: 1587 | D75: 474 | E75: 858 | F75: 5186 | G75: 713 | H75: 836 | I75: 607 | J75: 959 | K75: 961 | L75: 2028 | M75: 1028 | Q75: 474 | R75: 492.0835177 | S75: 501.0516865 | T75: 500.0450714 | U75: 509.5507056 | V75: 518.5628199 | W75: 521.5528632 | X75: 532.9074088 | Y75: 553.3439711 | Z75: 574.3475285
B76: Provider Development | C76: 18685 | D76: 19225 | E76: 24908 | F76: 24588 | G76: 23844 | H76: 25455 | I76: 24393 | J76: 22709 | K76: 23831 | L76: 18539 | M76: 24289 | Q76: 19225 | R76: 19958.45069 | S76: 20322.19129 | T76: 20281.36392 | U76: 20666.90362 | V76: 21032.42661 | W76: 21153.69999 | X76: 21614.22982 | Y76: 22443.11782 | Z76: 23295.00261
A77: Non-Departmental Other Expenses Total | C77: =SUM(C73:C76) -> 22180 | D77: =SUM(D73:D76) -> 21876 | E77: 27924 | F77: 31772 | G77: 26100 | H77: 27873 | I77: 26480 | J77: 25307 | K77: 26495 | L77: 22410 | M77: 27347 | Q77: 21876 | R77: =SUM(R74:R76) -> 22710.58868 | S77: 23124.48669 | T77: 23078.0295 | U77: 23516.73257 | V77: 23932.65875 | W77: 24070.65493 | X77: 24594.68877 | Y77: 25537.87492 | Z77: =SUM(Z74:Z76) -> 26507.22897
A78: Grand Total | C78: =C77+C71+C26 -> 11619833 | D78: 12348564 | E78: 12798950 | F78: 13268789 | G78: 13624050 | H78: 14050406 | I78: 14344592 | J78: 14792568 | K78: =K77+K71+K26 -> 15275331 | L78: =L77+L71+L26 -> 16166384 | M78: =M77+M71+M26 -> 16971932 | P78: Total appropriations needed for demographic, wage and price increases | Q78: 12348564 | R78: =R26+R71+R73+R77 -> 12923269.34 | S78: 13360922.69 | T78: 13651588.3 | U78: 14139497.74 | V78: 14646968.19 | W78: 15200232.3 | X78: 15916438.9 | Y78: 16790081.59 | Z78: =Z26+Z71+Z73+Z77 -> 17659954.47
P79: Less new appropriations accounted for in Net initiatives | R79: 0 | S79: 0 | T79: 0 | U79: 0 | V79: 0 | W79: 0 | X79: 0 | Y79: 0 | Z79: 0
P80: Required for demographic, wage and price increases | Q80: =Q78 -> 12348564 | R80: =R78-R79 -> 12923269.34 | S80: =S78-S79 -> 13360922.69 | T80: 13651588.3 | U80: 14139497.74 | V80: 14646968.19 | W80: 15200232.3 | X80: 15916438.9 | Y80: 16790081.59 | Z80: =Z78-Z79 -> 17659954.47
P81: Add net initiatives and additional costs to give funding needed | Q81: =Q80 -> 12348564 | R81: =(Q81*R80/Q80)+R131 -> 13024662.34 | S81: 13551305.41 | T81: 13870476.79 | U81: 14418198.33 | V81: 14969698.42 | W81: 15609127.1 | X81: 16461683.07 | Y81: 17633577.84 | Z81: =Y81*Z78/Y78+Z131 -> 18619383.2
P82: Increase in funding needed over previous year | R82: =R81-Q81 -> 676098.3373 | S82: =S81-R81 -> 526643.0753 | T82: 319171.3724 | U82: 547721.5416 | V82: 551500.0954 | W82: 639428.6819 | X82: 852555.9621 | Y82: 1171894.777 | Z82: =Z81-Y81 -> 985805.3567
P83: Funding needed less what has actually been provided in previous year | R83: =R81-$Q$84 -> 676098.3373 | S83: =S81-R84 -> 752355.4126 | T83: =T81-S84 -> 601687.785 | U83: 794148.3266 | V83: 919292.422 | W83: 1264535.104 | X83: 1669115.066 | Y83: 2358246.843 | Z83: 2452999.2
P84: Actuals (forecast for most recent two years) | Q84: =D78 -> 12348564 | R84: 12798950 | S84: 13268789 | T84: 13624050 | U84: 14050406 | V84: 14344592 | W84: 14792568 | X84: 15275331 | Y84: 16166384 | Z84: 16971932
P85: Actual increase provided | R85: =R84-Q84 -> 450386 | S85: =S84-R84 -> 469839 | T85: 355261 | U85: 426356 | V85: 294186 | W85: 447976 | X85: 482763 | Y85: 891053 | Z85: 805548
P86: Shortfall from funding needed for year | R86: =R83-R85 -> 225712.3373 | S86: 282516.4126 | T86: 246426.785 | U86: 367792.3266 | V86: 625106.422 | W86: 816559.1039 | X86: =X83-X85 -> 1186352.066 | Y86: =Y83-Y85 -> 1467193.843 | Z86: =Z83-Z85 -> 1647451.2
P87: Accumulated shortfall from funding needed | R87: =R86+Q87 -> 225712.3373 | S87: =S86+R87 -> 508228.7499 | T87: 754655.5349 | U87: 1122447.862 | V87: 1747554.284 | W87: 2564113.387 | X87: 3750465.453 | Y87: 5217659.297 | Z87: 6865110.497
P88: Implied "efficiency" gain if no service or quality deterioration
P89: Annual | R89: =((R81-Q81)-(R84-Q84))/Q81 -> 0.01827842794 | S89: =((S81-R81)-(S84-R84))/R81 -> 0.004361270479 | T89: -0.00266318458 | U89: 0.008749918513 | V89: 0.01784648051 | W89: 0.01278934796 | X89: 0.02369081625 | Y89: 0.01706033194 | Z89: 0.01022239266
P90: Since 2010 | R90: =((R81-$Q81)-(R84-$Q84))/$Q81 -> 0.01827842794 | S90: =((S81-$Q81)-(S84-$Q84))/$Q81 -> 0.02287848309 | T90: 0.01995590621 | U90: 0.02978421836 | V90: 0.05062179068 | W90: 0.06612583487 | X90: 0.09607206684 | Y90: 0.1188149362 | Z90: =((Z81-$Q81)-(Z84-$Q84))/$Q81 -> 0.1334123709
P92: Shortfall from actual for year, disregarding previous shortfalls | R92: =(Q84*R80/Q80)-R84+R131 -> 225712.3373 | S92: 49160.20773 | T92: -42235.74555 | U92: 112558.2181 | V92: 244113.9278 | W92: 167840.359 | X92: 331318.2198 | Y92: 215723.7057 | Z92: =(Y84*Z78/Y78)-Z84+Z131 -> 104243.9001
P94: Options | Q94: Select
P95: Wages series for DHB provider wage costs | Q95: DHB Provider actual
P96: Wage series for other wage costs | Q96: Health (Average wage)
P97: Price index for DHB provider non-wage costs | Q97: CPI
P98: Price index for other non-wage costs | Q98: CPI
P99: Minimum wage proportion of high MW sectors | Q99: 0.8
P101: Parameters
P102: Wage increases (QES average total hourly wage)
P103: Health Care and Social Assistance | R103: =VLOOKUP(TEXT(R$7,"0000Q2"),'Wage, price statistics'!$AC$3:$AH$49,5) -> 0.04197622585 | S103: =VLOOKUP(TEXT(S$7,"0000Q2"),'Wage, price statistics'!$AC$3:$AH$49,5) -> 0.02352941176 | T103: =VLOOKUP(TEXT(T$7,"0000Q2"),'Wage, price statistics'!$AC$3:$AH$49,5) -> -0.007314524556 | U103: =VLOOKUP(TEXT(U$7,"0000Q2"),'Wage, price statistics'!$AC$3:$AH$49,5) -> 0.02070175439 | V103: =VLOOKUP(TEXT(V$7,"0000Q2"),'Wage, price statistics'!$AC$3:$AH$49,5) -> 0.02578205569 | W103: =VLOOKUP(TEXT(W$7,"0000Q2"),'Wage, price statistics'!$AC$3:$AH$49,5) -> 0.006702412869 | X103: =VLOOKUP(TEXT(X$7,"0000Q2"),'Wage, price statistics'!$AC$3:$AH$49,5) -> 0.02430093209 | Y103: =VLOOKUP(TEXT(Y$7,"0000Q2"),'Wage, price statistics'!$AC$3:$AH$49,5) -> 0.05161484305 | Z103: =VLOOKUP(TEXT(Z$7,"0000Q2"),'Wage, price statistics'!$AC$3:$AH$49,5) -> 0.05161484305
P104: Public Administration and Safety | R104: =VLOOKUP(TEXT(R$7,"0000Q2"),'Wage, price statistics'!$AJ$3:$AM$49,3) -> 0.02730485063 | S104: =VLOOKUP(TEXT(S$7,"0000Q2"),'Wage, price statistics'!$AJ$3:$AM$49,3) -> 0.01813633521 | T104: =VLOOKUP(TEXT(T$7,"0000Q2"),'Wage, price statistics'!$AJ$3:$AM$49,3) -> 0.02457002457 | U104: =VLOOKUP(TEXT(U$7,"0000Q2"),'Wage, price statistics'!$AJ$3:$AM$49,3) -> 0.01199040767 | V104: =VLOOKUP(TEXT(V$7,"0000Q2"),'Wage, price statistics'!$AJ$3:$AM$49,3) -> 0.03702606635 | W104: =VLOOKUP(TEXT(W$7,"0000Q2"),'Wage, price statistics'!$AJ$3:$AM$49,3) -> 0.02485004284 | X104: =VLOOKUP(TEXT(X$7,"0000Q2"),'Wage, price statistics'!$AJ$3:$AM$49,3) -> 0.03344481605 | Y104: =VLOOKUP(TEXT(Y$7,"0000Q2"),'Wage, price statistics'!$AJ$3:$AM$49,3) -> 0.032 | Z104: =Z105 -> 0.027
P105: All QES industries | R105: =VLOOKUP(TEXT(R$7,"0000Q2"),'Wage, price statistics'!$AO$3:$AR$49,3) -> 0.03060023539 | S105: =VLOOKUP(TEXT(S$7,"0000Q2"),'Wage, price statistics'!$AO$3:$AR$49,3) -> 0.02778835173 | T105: =VLOOKUP(TEXT(T$7,"0000Q2"),'Wage, price statistics'!$AO$3:$AR$49,3) -> 0.02037037037 | U105: =VLOOKUP(TEXT(U$7,"0000Q2"),'Wage, price statistics'!$AO$3:$AR$49,3) -> 0.02540834846 | V105: =VLOOKUP(TEXT(V$7,"0000Q2"),'Wage, price statistics'!$AO$3:$AR$49,3) -> 0.02796460177 | W105: =VLOOKUP(TEXT(W$7,"0000Q2"),'Wage, price statistics'!$AO$3:$AR$49,3) -> 0.02169421488 | X105: =VLOOKUP(TEXT(X$7,"0000Q2"),'Wage, price statistics'!$AO$3:$AR$49,3) -> 0.01617795753 | Y105: =VLOOKUP(TEXT(Y$7,"0000Q2"),'Wage, price statistics'!$AO$3:$AR$49,3) -> 0.032 | Z105: ='Health Vote 2018-19 post-Budget'!AllIndustriesWageIncr18 -> 0.027
P106: Minimum wage | R106: =VLOOKUP(DATE(R$7-1,6,1),'Wage, price statistics'!$BK$3:$BM$49,3) -> 0.02 | S106: =VLOOKUP(DATE(S$7-1,6,1),'Wage, price statistics'!$BK$3:$BM$49,3) -> 0.01960784314 | T106: =VLOOKUP(DATE(T$7-1,6,1),'Wage, price statistics'!$BK$3:$BM$49,3) -> 0.03846153846 | U106: =VLOOKUP(DATE(U$7-1,6,1),'Wage, price statistics'!$BK$3:$BM$49,3) -> 0.01851851852 | V106: =VLOOKUP(DATE(V$7-1,6,1),'Wage, price statistics'!$BK$3:$BM$49,3) -> 0.03636363636 | W106: =VLOOKUP(DATE(W$7-1,6,1),'Wage, price statistics'!$BK$3:$BM$49,3) -> 0.0350877193 | X106: =VLOOKUP(DATE(X$7-1,6,1),'Wage, price statistics'!$BK$3:$BM$49,3) -> 0.03389830508 | Y106: =VLOOKUP(DATE(Y$7-1,6,1),'Wage, price statistics'!$BK$3:$BM$49,3) -> 0.03278688525 | Z106: =VLOOKUP(DATE(Z$7-1,6,1),'Wage, price statistics'!$BK$3:$BM$49,3) -> 0.04761904762
P107: Wage increases (LCI)
P108: Health Care and Social Assistance - Central Govt Sector | R108: =VLOOKUP(TEXT(R$7,"0000Q2"),'Wage, price statistics'!$BV$16:$CB$49,6) -> 0.01669941061 | S108: =VLOOKUP(TEXT(S$7,"0000Q2"),'Wage, price statistics'!$BV$16:$CB$49,6) -> 0.0193236715 | T108: =VLOOKUP(TEXT(T$7,"0000Q2"),'Wage, price statistics'!$BV$16:$CB$49,6) -> 0.01421800948 | U108: =VLOOKUP(TEXT(U$7,"0000Q2"),'Wage, price statistics'!$BV$16:$CB$49,6) -> 0.006542056075 | V108: =VLOOKUP(TEXT(V$7,"0000Q2"),'Wage, price statistics'!$BV$16:$CB$49,6) -> 0.004642525534 | W108: =VLOOKUP(TEXT(W$7,"0000Q2"),'Wage, price statistics'!$BV$16:$CB$49,6) -> 0.01663585952 | X108: =VLOOKUP(TEXT(X$7,"0000Q2"),'Wage, price statistics'!$BV$16:$CB$49,6) -> 0.01727272727 | Y108: =VLOOKUP(TEXT(Y$7,"0000Q2"),'Wage, price statistics'!$BV$16:$CB$49,6) -> 0.008939727932 | Z108: =Z111 -> 0.021
P109: Health Care and Social Assistance - all | R109: =VLOOKUP(DATE(R$7,6,1),'Wage, price statistics'!$DB$8:$DF$69,4) -> 0.01571709234 | S109: =VLOOKUP(DATE(S$7,6,1),'Wage, price statistics'!$DB$8:$DF$69,4) -> 0.01934235977 | T109: =VLOOKUP(DATE(T$7,6,1),'Wage, price statistics'!$DB$8:$DF$69,4) -> 0.01612903226 | U109: =VLOOKUP(DATE(U$7,6,1),'Wage, price statistics'!$DB$8:$DF$69,4) -> 0.01120448179 | V109: =VLOOKUP(DATE(V$7,6,1),'Wage, price statistics'!$DB$8:$DF$69,4) -> 0.009233610342 | W109: =VLOOKUP(DATE(W$7,6,1),'Wage, price statistics'!$DB$8:$DF$69,4) -> 0.01463860933 | X109: =VLOOKUP(DATE(X$7,6,1),'Wage, price statistics'!$DB$8:$DF$72,4) -> 0.01532912534 | Y109: =VLOOKUP(DATE(Y$7,6,1),'Wage, price statistics'!$DB$8:$DF$72,4) -> 0.03553086911 | Z109: =Y109 -> 0.03553086911
P110: Central Govt Sector | R110: =VLOOKUP(TEXT(R$7,"0000Q2"),'Wage, price statistics'!$BV$16:$CB$49,5) -> 0.006944444444 | S110: =VLOOKUP(TEXT(S$7,"0000Q2"),'Wage, price statistics'!$BV$16:$CB$49,5) -> 0.009852216749 | T110: =VLOOKUP(TEXT(T$7,"0000Q2"),'Wage, price statistics'!$BV$16:$CB$49,5) -> 0.01756097561 | U110: =VLOOKUP(TEXT(U$7,"0000Q2"),'Wage, price statistics'!$BV$16:$CB$49,5) -> 0.01054650048 | V110: =VLOOKUP(TEXT(V$7,"0000Q2"),'Wage, price statistics'!$BV$16:$CB$49,5) -> 0.01328273245 | W110: =VLOOKUP(TEXT(W$7,"0000Q2"),'Wage, price statistics'!$BV$16:$CB$49,5) -> 0.01123595506 | X110: =VLOOKUP(TEXT(X$7,"0000Q2"),'Wage, price statistics'!$BV$16:$CB$49,5) -> 0.02037037037 | Y110: =VLOOKUP(TEXT(Y$7,"0000Q2"),'Wage, price statistics'!$BV$16:$CB$49,5) -> 0.021 | Z110: =Z111 -> 0.021 | AD110: Summary
P111: All | R111: =VLOOKUP(DATE(R$7,6,1),'Wage, price statistics'!$DB$8:$DF$69,5) -> 0.0187007874 | S111: =VLOOKUP(DATE(S$7,6,1),'Wage, price statistics'!$DB$8:$DF$69,5) -> 0.02028985507 | T111: =VLOOKUP(DATE(T$7,6,1),'Wage, price statistics'!$DB$8:$DF$69,5) -> 0.01704545455 | U111: =VLOOKUP(DATE(U$7,6,1),'Wage, price statistics'!$DB$8:$DF$69,5) -> 0.01675977654 | V111: =VLOOKUP(DATE(V$7,6,1),'Wage, price statistics'!$DB$8:$DF$69,5) -> 0.01648351648 | W111: =VLOOKUP(DATE(W$7,6,1),'Wage, price statistics'!$DB$8:$DF$69,5) -> 0.01531531532 | X111: =VLOOKUP(DATE(X$7,6,1),'Wage, price statistics'!$DB$8:$DF$72,5) -> 0.01685891748 | Y111: 0.021 | Z111: 0.021
P112: DHB provider - per FTE cost | R112: ='DHB Stats'!R184 -> 0.01759857873 | S112: ='DHB Stats'!S184 -> 0.02873927374 | T112: ='DHB Stats'!T184 -> 0.01528428136 | U112: ='DHB Stats'!U184 -> 0.02241371495 | V112: ='DHB Stats'!V184 -> 0.01620790255 | W112: ='DHB Stats'!W184 -> 0.02520655998 | X112: ='DHB Stats'!X184 -> 0.01582143146 | Y112: ='DHB Stats'!Y184*12/10 -> 0.0154281206 | Z112: ='Health Vote 2018-19 post-Budget'!DHBProviderWageIncrease18 -> 0.02 | AE112: =Q7 -> 2010 | AF112: 2011 | AG112: 2012 | AH112: 2013 | AI112: 2014 | AJ112: 2015 | AK112: 2016 | AL112: 2017 | AM112: 2018 | AN112: 2019
P113: Labour proportion of expenditure | R113: =HLOOKUP(R$7,'DHB Stats'!$O$2:$Y$59,ROW('DHB Stats'!$N$59)-1) -> 0.608660395 | S113: =HLOOKUP(S$7,'DHB Stats'!$O$2:$Y$59,ROW('DHB Stats'!$N$59)-1) -> 0.6217019481 | T113: =HLOOKUP(T$7,'DHB Stats'!$O$2:$Y$59,ROW('DHB Stats'!$N$59)-1) -> 0.6254179631 | U113: =HLOOKUP(U$7,'DHB Stats'!$O$2:$Y$59,ROW('DHB Stats'!$N$59)-1) -> 0.6277027826 | V113: =HLOOKUP(V$7,'DHB Stats'!$O$2:$Y$59,ROW('DHB Stats'!$N$59)-1) -> 0.6251653444 | W113: =HLOOKUP(W$7,'DHB Stats'!$O$2:$Y$59,ROW('DHB Stats'!$N$59)-1) -> 0.6307226796 | X113: =HLOOKUP(X$7,'DHB Stats'!$O$2:$Y$59,ROW('DHB Stats'!$N$59)-1) -> 0.6318813602 | Y113: =HLOOKUP(Y$7,'DHB Stats'!$O$2:$Y$59,ROW('DHB Stats'!$N$59)-1) -> 0.626948219 | Z113: ='Health Vote 2018-19 post-Budget'!LabourProportion18 -> 0.627 | AE113: Actual | AF113: Actual | AG113: Actual | AH113: Actual | AI113: Actual | AJ113: Actual | AK113: Actual | AL113: Actual | AM113: Estimate | AN113: Budget/Est
P114: Provider proportion of DHB expenditure | R114: =HLOOKUP(R$7,'DHB Stats'!$A$2:$L$33,ROW('DHB Stats'!$A$33)-1) -> 0.5435189539 | S114: =HLOOKUP(S$7,'DHB Stats'!$A$2:$L$33,ROW('DHB Stats'!$A$33)-1) -> 0.550800354 | T114: =HLOOKUP(T$7,'DHB Stats'!$A$2:$L$33,ROW('DHB Stats'!$A$33)-1) -> 0.5468406953 | U114: =HLOOKUP(U$7,'DHB Stats'!$A$2:$L$33,ROW('DHB Stats'!$A$33)-1) -> 0.5525966341 | V114: =HLOOKUP(V$7,'DHB Stats'!$A$2:$L$33,ROW('DHB Stats'!$A$33)-1) -> 0.5584905222 | W114: =HLOOKUP(W$7,'DHB Stats'!$A$2:$L$33,ROW('DHB Stats'!$A$33)-1) -> 0.5655932351 | X114: =HLOOKUP(X$7,'DHB Stats'!$A$2:$L$33,ROW('DHB Stats'!$A$33)-1) -> 0.5653760223 | Y114: =HLOOKUP(Y$7,'DHB Stats'!$A$2:$L$33,ROW('DHB Stats'!$A$33)-1) -> 0.5639344649 | Z114: ='Health Vote 2018-19 post-Budget'!DHBProviderProportion18 -> 0.5639344649 | AD114: Actual in 2010 | AE114: =Q84 -> 12348564 | AF114: =AE114 -> 12348564 | AG114: 12348564 | AH114: 12348564 | AI114: 12348564 | AJ114: 12348564 | AK114: 12348564 | AL114: 12348564 | AM114: 12348564 | AN114: 12348564
P115: Non-labour cost increases | AD115: Total funded | AE115: =Q84 -> 12348564 | AF115: 12798950 | AG115: 13268789 | AH115: 13624050 | AI115: 14050406 | AJ115: 14344592 | AK115: 14792568 | AL115: 15275331 | AM115: 16166384 | AN115: 16971932
P116: CPI | R116: =VLOOKUP(TEXT(R$7,"0000Q2"),'Wage, price statistics'!$N$4:$S$49,6) -> 0.03220122584 | S116: =VLOOKUP(TEXT(S$7,"0000Q2"),'Wage, price statistics'!$N$4:$S$49,6) -> 0.009507346015 | T116: =VLOOKUP(TEXT(T$7,"0000Q2"),'Wage, price statistics'!$N$4:$S$49,6) -> 0.006849315615 | U116: =VLOOKUP(TEXT(U$7,"0000Q2"),'Wage, price statistics'!$N$4:$S$49,6) -> 0.01615646256 | V116: =VLOOKUP(TEXT(V$7,"0000Q2"),'Wage, price statistics'!$N$4:$S$49,6) -> 0.004184099981 | W116: =VLOOKUP(TEXT(W$7,"0000Q2"),'Wage, price statistics'!$N$4:$S$49,6) -> 0.004166667254 | X116: =VLOOKUP(TEXT(X$7,"0000Q2"),'Wage, price statistics'!$N$4:$S$49,6) -> 0.01742738549 | Y116: =VLOOKUP(TEXT(Y$7,"0000Q2"),'Wage, price statistics'!$N$4:$S$49,6) -> 0.016055 | Z116: ='Health Vote 2018-19 post-Budget'!_CPI18 -> 0.015
P117: CPI Health Group | R117: =VLOOKUP(TEXT(R$7,"0000Q2"),'Wage, price statistics'!$V$4:$AA$49,5) -> 0.04586639033 | S117: =VLOOKUP(TEXT(S$7,"0000Q2"),'Wage, price statistics'!$V$4:$AA$49,5) -> 0.02072538793 | T117: =VLOOKUP(TEXT(T$7,"0000Q2"),'Wage, price statistics'!$V$4:$AA$49,5) -> 0.03976311423 | U117: =VLOOKUP(TEXT(U$7,"0000Q2"),'Wage, price statistics'!$V$4:$AA$49,5) -> 0.01708706183 | V117: =VLOOKUP(TEXT(V$7,"0000Q2"),'Wage, price statistics'!$V$4:$AA$49,5) -> 0.01760000032 | W117: =VLOOKUP(TEXT(W$7,"0000Q2"),'Wage, price statistics'!$V$4:$AA$49,5) -> 0 | X117: =VLOOKUP(TEXT(X$7,"0000Q2"),'Wage, price statistics'!$V$4:$AA$49,5) -> 0.02751572334 | Y117: =VLOOKUP(TEXT(Y$7,"0000Q2"),'Wage, price statistics'!$V$4:$AA$49,5) -> 0.00931671797 | Z117: ='Health Vote 2018-19 post-Budget'!_CPI18 -> 0.015 | AD117: Including population increases | AE117: 12348564 | AF117: 12439929.84 | AG117: 12504644.9 | AH117: 12597407.43 | AI117: 12802423.98 | AJ117: 13055450.17 | AK117: 13365327.45 | AL117: 13719951.96 | AM117: 14078696.05 | AN117: 14395622.4
P118: Health Care and Social Assistance PPI inputs | R118: =VLOOKUP(TEXT(R$7,"0000Q2"),'Wage, price statistics'!$B$3:$D$49,3) -> 0.01345978739 | S118: =VLOOKUP(TEXT(S$7,"0000Q2"),'Wage, price statistics'!$B$3:$D$49,3) -> 0.0197044335 | T118: =VLOOKUP(TEXT(T$7,"0000Q2"),'Wage, price statistics'!$B$3:$D$49,3) -> -0.00193236715 | U118: =VLOOKUP(TEXT(U$7,"0000Q2"),'Wage, price statistics'!$B$3:$D$49,3) -> 0.00968054211 | V118: =VLOOKUP(TEXT(V$7,"0000Q2"),'Wage, price statistics'!$B$3:$D$49,3) -> 0.006711409396 | W118: =VLOOKUP(TEXT(W$7,"0000Q2"),'Wage, price statistics'!$B$3:$D$49,3) -> 0.005714285714 | X118: =VLOOKUP(TEXT(X$7,"0000Q2"),'Wage, price statistics'!$B$3:$D$49,3) -> 0.02367424242 | Y118: =VLOOKUP(TEXT(Y$7,"0000Q2"),'Wage, price statistics'!$B$3:$D$49,3) -> 0.02537593985 | Z118: ='Health Vote 2018-19 post-Budget'!_CPI18 -> 0.015 | AD118: Including aging and other social changes | AE118: 12348564 | AF118: 12552393.33 | AG118: 12725072.24 | AH118: 12897481.8 | AI118: 13109583.65 | AJ118: 13368935.03 | AK118: 13686549.25 | AL118: 14049983.19 | AM118: 14417441.32 | AN118: 14742291.9
P119: Hospitals PPI inputs | R119: =VLOOKUP(TEXT(R$7,"0000Q2"),'Wage, price statistics'!$F$3:$L$44,3) -> 0.01101101101 | S119: =VLOOKUP(TEXT(S$7,"0000Q2"),'Wage, price statistics'!$F$3:$L$44,3) -> 0.01782178218 | T119: =VLOOKUP(TEXT(T$7,"0000Q2"),'Wage, price statistics'!$F$3:$L$44,3) -> -0.01070038911 | U119: =VLOOKUP(TEXT(U$7,"0000Q2"),'Wage, price statistics'!$F$3:$L$44,3) -> 0.004916420846 | V119: =VLOOKUP(TEXT(V$7,"0000Q2"),'Wage, price statistics'!$F$3:$L$44,3) -> 0.003913894325 | W119: =VLOOKUP(TEXT(W$7,"0000Q2"),'Wage, price statistics'!$F$3:$L$44,3) -> 0.005847953216 | X119: =VLOOKUP(TEXT(X$7,"0000Q2"),'Wage, price statistics'!$F$3:$L$49,3) -> 0.02228682171 | Y119: =VLOOKUP(TEXT(Y$7,"0000Q2"),'Wage, price statistics'!$F$3:$L$49,3) -> 0.02504816956 | Z119: ='Health Vote 2018-19 post-Budget'!_CPI18 -> 0.015 | AD119: Including wage rises | AE119: 12348564 | AF119: 12768832.29 | AG119: 13148807.7 | AH119: 13399246.95 | AI119: 13799729.75 | AJ119: 14271950.9 | AK119: 14786828.02 | AL119: 15385744.2 | AM119: 16128770.03 | AN119: 16871780.86
P120: Medical and Other Health Care Services PPI inputs | R120: =VLOOKUP(TEXT(R$7,"0000Q2"),'Wage, price statistics'!$F$3:$L$44,5) -> 0.00792864222 | S120: =VLOOKUP(TEXT(S$7,"0000Q2"),'Wage, price statistics'!$F$3:$L$44,5) -> 0.01868239921 | T120: =VLOOKUP(TEXT(T$7,"0000Q2"),'Wage, price statistics'!$F$3:$L$44,5) -> 0.0009652509653 | U120: =VLOOKUP(TEXT(U$7,"0000Q2"),'Wage, price statistics'!$F$3:$L$44,5) -> 0.01446480231 | V120: =VLOOKUP(TEXT(V$7,"0000Q2"),'Wage, price statistics'!$F$3:$L$44,5) -> 0.01045627376 | W120: =VLOOKUP(TEXT(W$7,"0000Q2"),'Wage, price statistics'!$F$3:$L$44,5) -> 0.003762935089 | X120: =VLOOKUP(TEXT(X$7,"0000Q2"),'Wage, price statistics'!$F$3:$L$49,5) -> 0.02436738519 | Y120: =VLOOKUP(TEXT(Y$7,"0000Q2"),'Wage, price statistics'!$F$3:$L$49,5) -> 0.02316960148 | Z120: ='Health Vote 2018-19 post-Budget'!_CPI18 -> 0.015 | AD120: Including price rises | AE120: 12348564 | AF120: 12923269.34 | AG120: 13360922.69 | AH120: 13651588.3 | AI120: 14139497.74 | AJ120: 14646968.19 | AK120: 15200232.3 | AL120: 15916438.9 | AM120: 16790081.59 | AN120: 17659954.47
P121: Residential Care Services and Social Assistance PPI inputs | R121: =VLOOKUP(TEXT(R$7,"0000Q2"),'Wage, price statistics'!$F$3:$L$44,7) -> 0.02208835341 | S121: =VLOOKUP(TEXT(S$7,"0000Q2"),'Wage, price statistics'!$F$3:$L$44,7) -> 0.02554027505 | T121: =VLOOKUP(TEXT(T$7,"0000Q2"),'Wage, price statistics'!$F$3:$L$44,7) -> 0.01053639847 | U121: =VLOOKUP(TEXT(U$7,"0000Q2"),'Wage, price statistics'!$F$3:$L$44,7) -> 0.008530805687 | V121: =VLOOKUP(TEXT(V$7,"0000Q2"),'Wage, price statistics'!$F$3:$L$44,7) -> 0.006578947368 | W121: =VLOOKUP(TEXT(W$7,"0000Q2"),'Wage, price statistics'!$F$3:$L$44,7) -> 0.008403361345 | X121: =VLOOKUP(TEXT(X$7,"0000Q2"),'Wage, price statistics'!$F$3:$L$49,7) -> 0.01851851852 | Y121: =VLOOKUP(TEXT(Y$7,"0000Q2"),'Wage, price statistics'!$F$3:$L$49,7) -> 0.03151065802 | Z121: ='Health Vote 2018-19 post-Budget'!_CPI18 -> 0.015 | AD121: Including new initiatives (less savings) | AE121: 12348564 | AF121: 13024662.34 | AG121: 13551305.41 | AH121: 13870476.79 | AI121: 14418198.33 | AJ121: 14969698.42 | AK121: 15609127.1 | AL121: 16461683.07 | AM121: 17633577.84 | AN121: 18619383.2
P122: Population increases | AA122: Enter 1 to zero series
P123: Total population | R123: =(Demographics!DN3/Demographics!DM3-1)*(1-ZeroPop) -> 0.00765397593 | S123: =(Demographics!DO3/Demographics!DN3-1)*(1-ZeroPop) -> 0.005490444756 | T123: =(Demographics!DP3/Demographics!DO3-1)*(1-ZeroPop) -> 0.007722235456 | U123: =(Demographics!DQ3/Demographics!DP3-1)*(1-ZeroPop) -> 0.01523156892 | V123: =Demographics!Z29*(1-ZeroPop) -> 0.01719688438 | W123: =Demographics!AA29*(1-ZeroPop) -> 0.0200868317 | X123: =Demographics!AB29*(1-ZeroPop) -> 0.02136660113 | Y123: =Demographics!AC29*(1-ZeroPop) -> 0.01999618397 | Z123: =Demographics!AD29*(1-ZeroPop) -> 0.01648098388 | AD123: Baseline: 2010 actual | AE123: =AE114 -> 12348564 | AF123: =AF114 -> 12348564 | AG123: 12348564 | AH123: 12348564 | AI123: 12348564 | AJ123: 12348564 | AK123: 12348564 | AL123: 12348564 | AM123: 12348564 | AN123: =AN114 -> 12348564
P124: Ageing effect | R124: =(VLOOKUP(R$7,Demographics!$V$8:$W$35,2)-(Demographics!DN3/Demographics!DM3-1))*(1-ZeroAging) -> 0.009585786154 | S124: =(VLOOKUP(S$7,Demographics!$V$8:$W$35,2)-(Demographics!DO3/Demographics!DN3-1))*(1-ZeroAging) -> 0.008994566139 | T124: =(VLOOKUP(T$7,Demographics!$V$8:$W$35,2)-(Demographics!DP3/Demographics!DO3-1))*(1-ZeroAging) -> 0.006437757072 | U124: =(VLOOKUP(U$7,Demographics!$V$8:$W$35,2)-(Demographics!DQ3/Demographics!DP3-1))*(1-ZeroAging) -> 0.0002047983008 | V124: =Demographics!Z30*(1-ZeroPop) -> 0.003395607801 | W124: =Demographics!AA30*(1-ZeroPop) -> 0.004593618039 | X124: =Demographics!AB30*(1-ZeroPop) -> 0.006058148858 | Y124: =Demographics!AC30*(1-ZeroPop) -> 0.006407506761 | Z124: =Demographics!AD30*(1-ZeroPop) -> 0.006911910574 | AD124: Population increases | AF124: =AF117-AF114 -> 91365.83966 | AG124: 156080.8998 | AH124: 248843.4264 | AI124: 453859.975 | AJ124: 706886.1714 | AK124: 1016763.447 | AL124: 1371387.963 | AM124: 1730132.047 | AN124: =AN117-AN114 -> 2047058.397
P125: Cost-weighted demographics | R125: =SUM(R123:R124)*(1-ZeroCostWeightedDemog) -> 0.01723976208 | S125: 0.01448501089 | T125: 0.01415999253 | U125: 0.01543636722 | V125: 0.02059249219 | W125: 0.02468044974 | X125: 0.02742474999 | Y125: 0.02640369074 | Z125: 0.02339289445 | AD125: Aging population | AF125: =AF118-AF117 -> 112463.4914 | AG125: 220427.3385 | AH125: 300074.3708 | AI125: 307159.671 | AJ125: 313484.8541 | AK125: 321221.8013 | AL125: 330031.2289 | AM125: 338745.2714 | AN125: =AN118-AN117 -> 346669.5038
P126: Births | R126: =VLOOKUP(R$7,Demographics!$BC$6:$BD$30,2)*(1-ZeroBirths) -> -0.02323312114 | S126: =VLOOKUP(S$7,Demographics!$BC$6:$BD$30,2)*(1-ZeroBirths) -> -0.02597402597 | T126: =VLOOKUP(T$7,Demographics!$BC$6:$BD$30,2)*(1-ZeroBirths) -> -0.01929181929 | U126: =VLOOKUP(U$7,Demographics!$BC$6:$BD$30,2)*(1-ZeroBirths) -> -0.02121513944 | V126: =VLOOKUP(V$7,Demographics!$BC$6:$BD$30,2)*(1-ZeroBirths) -> 0.01658695431 | W126: =VLOOKUP(W$7,Demographics!$BC$6:$BD$30,2)*(1-ZeroBirths) -> -0.01061061061 | X126: =VLOOKUP(X$7,Demographics!$BC$6:$BD$30,2)*(1-ZeroBirths) -> -0.01117968434 | Y126: =VLOOKUP(Y$7,Demographics!$BC$6:$BD$30,2)*(1-ZeroBirths) -> 0.02317491175 | Z126: =VLOOKUP(Z$7,Demographics!$BC$6:$BD$30,2)*(1-ZeroBirths) -> 0.02166666667 | AD126: Wage rises | AF126: =AF119-AF118 -> 216438.9547 | AG126: 423735.4627 | AH126: 501765.1551 | AI126: 690146.1 | AJ126: 903015.8778 | AK126: 1100278.768 | AL126: 1335761.01 | AM126: 1711328.707 | AN126: =AN119-AN118 -> 2129488.963
P127: Child population (0 - 19 yrs old) | R127: =VLOOKUP(R$7,Demographics!$CI$6:$CJ$31,2)*(1-ZeroChildPop) -> 8.161599673e-06 | S127: =VLOOKUP(S$7,Demographics!$CI$6:$CJ$31,2)*(1-ZeroChildPop) -> -0.002113837063 | T127: =VLOOKUP(T$7,Demographics!$CI$6:$CJ$31,2)*(1-ZeroChildPop) -> -0.00116139269 | U127: =VLOOKUP(U$7,Demographics!$CI$6:$CJ$31,2)*(1-ZeroChildPop) -> 0.00281678608 | V127: =VLOOKUP(V$7,Demographics!$CI$6:$CJ$31,2)*(1-ZeroChildPop) -> 0.005282969568 | W127: =VLOOKUP(W$7,Demographics!$CI$6:$CJ$31,2)*(1-ZeroChildPop) -> 0.007163975438 | X127: =VLOOKUP(X$7,Demographics!$CI$6:$CJ$31,2)*(1-ZeroChildPop) -> 0.008217874482 | Y127: =VLOOKUP(Y$7,Demographics!$CI$6:$CJ$31,2)*(1-ZeroChildPop) -> 0.005921226117 | Z127: =VLOOKUP(Z$7,Demographics!$CI$6:$CJ$31,2)*(1-ZeroChildPop) -> 0.004512090496 | AD127: Price rises | AF127: =AF120-AF119 -> 154437.0515 | AG127: 212114.984 | AH127: 252341.3468 | AI127: 339767.9934 | AJ127: 375017.2909 | AK127: 413404.2797 | AL127: 530694.6945 | AM127: 661311.5607 | AN127: =AN120-AN119 -> 788173.605
P128: Maori cost-weighted population | V128: =VLOOKUP(V7,Demographics!$EF$10:$EH$28,3)*(1-ZeroMaoriPop) -> 0.02785659883 | W128: =VLOOKUP(W7,Demographics!$EF$10:$EH$28,3)*(1-ZeroMaoriPop) -> 0.02853731971 | X128: =VLOOKUP(X7,Demographics!$EF$10:$EH$28,3)*(1-ZeroMaoriPop) -> 0.02891819167 | Y128: =VLOOKUP(Y7,Demographics!$EF$10:$EH$28,3)*(1-ZeroMaoriPop) -> 0.02782405042 | Z128: =VLOOKUP(Z7,Demographics!$EF$10:$EH$28,3)*(1-ZeroMaoriPop) -> 0.02737594599 | AD128: New initiatives (less savings) | AF128: =AF121-AF120 -> 101393 | AG128: 190382.7275 | AH128: 218888.4858 | AI128: 278700.5872 | AJ128: 322730.2277 | AK128: 408894.8086 | AL128: 545244.1694 | AM128: 843496.2574 | AN128: =AN121-AN120 -> 959428.7312
P129: Mental health clients | R129: =9.47721046899237%*(1-ZeroMentalHealthClients) -> 0.09477210469 | S129: =5.05494339850168%*(1-ZeroMentalHealthClients) -> 0.05054943399 | T129: =8.59823945935476%*(1-ZeroMentalHealthClients) -> 0.08598239459 | U129: =3.02693989720824%*(1-ZeroMentalHealthClients) -> 0.03026939897 | V129: =0.148759906640339%*(1-ZeroMentalHealthClients) -> 0.001487599066 | W129: =5.77929035104305%*(1-ZeroMentalHealthClients) -> 0.05779290351 | X129: =5%*(1-ZeroMentalHealthClients) -> 0.05 | Y129: =5%*(1-ZeroMentalHealthClients) -> 0.05 | Z129: =5%*(1-ZeroMentalHealthClients) -> 0.05 | AD129: Total | AE129: =SUM(AE123:AE128) -> 12348564 | AF129: =SUM(AF123:AF128) -> 13024662.34 | AG129: 13551305.41 | AH129: 13870476.79 | AI129: 14418198.33 | AJ129: 14969698.42 | AK129: 15609127.1 | AL129: 16461683.07 | AM129: 17633577.84 | AN129: =SUM(AN123:AN128) -> 18619383.2
P130: Financial
P131: Net initiatives and additional costs ($000) | R131: =101393*(1-ZeroNetInitiatives) -> 101393 | S131: =85556*(1-ZeroNetInitiatives) -> 85556 | T131: =24364*(1-ZeroNetInitiatives) -> 24364 | U131: =51989*(1-ZeroNetInitiatives) -> 51989 | V131: =34027*(1-ZeroNetInitiatives) -> 34027 | W131: =73974*(1-ZeroNetInitiatives) -> 73974 | X131: =117083*(1-ZeroNetInitiatives) -> 117083 | Y131: =268324*(1-ZeroNetInitiatives) -> 268324 | Z131: =72232*(1-ZeroNetInitiatives) -> 72232
AD132: Increase actually funded | AF132: =AF115-AF114 -> 450386 | AG132: 920225 | AH132: 1275486 | AI132: 1701842 | AJ132: 1996028 | AK132: 2444004 | AL132: 2926767 | AM132: 3817820 | AN132: 4623368
P133: Calculated series based on options selected | AD133: Shortfall from 2010 | AF133: =SUM(AF124:AF128)-AF132 -> 225712.3373 | AG133: =SUM(AG124:AG128)-AG132 -> 282516.4126 | AH133: 246426.785 | AI133: 367792.3266 | AJ133: 625106.422 | AK133: 816559.1039 | AL133: 1186352.066 | AM133: 1467193.843 | AN133: 1647451.2
P134: DHB Provider wage | R134: =CHOOSE(MATCH(ProviderWageSector,WageSelection,0),R$112,R$103,R$104,R$105,R$108,R$109,R$110,R$111)*(1-ZeroDHBProviderWage) -> 0.01759857873 | S134: 0.02873927374 | T134: 0.01528428136 | U134: 0.02241371495 | V134: 0.01620790255 | W134: 0.02520655998 | X134: 0.01582143146 | Y134: 0.0154281206 | Z134: =CHOOSE(MATCH(ProviderWageSector,WageSelection,0),Z$112,Z$103,Z$104,Z$105,Z$108,Z$109,Z$110,Z$111)*(1-ZeroDHBProviderWage) -> 0.02
P135: DHB funder arm wage | R135: =('DHB Stats'!R7*R137+(1-'DHB Stats'!R7)*R136)*(1-ZeroDHBFunderArmWage) -> 0.03812950726 | S135: =('DHB Stats'!S7*S137+(1-'DHB Stats'!S7)*S136)*(1-ZeroDHBFunderArmWage) -> 0.022798487 | T135: =('DHB Stats'!T7*T137+(1-'DHB Stats'!T7)*T136)*(1-ZeroDHBFunderArmWage) -> 0.001182382228 | U135: =('DHB Stats'!U7*U137+(1-'DHB Stats'!U7)*U136)*(1-ZeroDHBFunderArmWage) -> 0.02029191841 | V135: =('DHB Stats'!V7*V137+(1-'DHB Stats'!V7)*V136)*(1-ZeroDHBFunderArmWage) -> 0.02778634647 | W135: =('DHB Stats'!W7*W137+(1-'DHB Stats'!W7)*W136)*(1-ZeroDHBFunderArmWage) -> 0.01217095985 | X135: =('DHB Stats'!X7*X137+(1-'DHB Stats'!X7)*X136)*(1-ZeroDHBFunderArmWage) -> 0.02617930178 | Y135: =Y136*(1-ZeroDHBFunderArmWage) -> 0.05161484305 | Z135: =Z136*(1-ZeroDHBFunderArmWage) -> 0.05161484305
P136: Funded sector wage other than DHB provider | R136: =CHOOSE(MATCH(NonProviderWageSector,WageSelection,0),R$112,R$103,R$104,R$105,R$108,R$109,R$110,R$111)*(1-ZeroNonDHBProviderWage) -> 0.04197622585 | S136: 0.02352941176 | T136: -0.007314524556 | U136: 0.02070175439 | V136: 0.02578205569 | W136: 0.006702412869 | X136: 0.02430093209 | Y136: 0.05161484305 | Z136: 0.05161484305
P137: Wage in high Minimum Wage sectors | R137: =(MinWageProportion*R$106+(1-MinWageProportion)*R136)*(1-ZeroWageInHighMinWageSectors) -> 0.02439524517 | S137: 0.02039215686 | T137: 0.02930632586 | U137: 0.01895516569 | V137: 0.03424732023 | W137: 0.02941065801 | X137: 0.03197883049 | Y137: 0.03655247681 | Z137: =(MinWageProportion*Z$106+(1-MinWageProportion)*Z136)*(1-ZeroWageInHighMinWageSectors) -> 0.0484182067
P138: Price index for DHB provider non-wage costs | R138: =CHOOSE(MATCH(ProviderPriceIndex,PriceIndexSelection,0),R$116,R$117,R$118,R$119,R$120,R$121)*(1-ZeroProviderPrices) -> 0.03220122584 | S138: 0.009507346015 | T138: 0.006849315615 | U138: 0.01615646256 | V138: 0.004184099981 | W138: 0.004166667254 | X138: 0.01742738549 | Y138: 0.016055 | Z138: 0.015
P139: Price index for Residential Care Services and Social Assistance | R139: =R121*(1-ZeroResidentialCarePrices) -> 0.02208835341 | S139: 0.02554027505 | T139: 0.01053639847 | U139: 0.008530805687 | V139: 0.006578947368 | W139: 0.008403361345 | X139: 0.01851851852 | Y139: 0.03151065802 | Z139: =Z121*(1-ZeroResidentialCarePrices) -> 0.015
P140: Price index for other non-wage costs | R140: =CHOOSE(MATCH(NonProviderPriceIndex,PriceIndexSelection,0),R$116,R$117,R$118,R$119,R$120,R$121)*(1-ZeroNonProviderPrices) -> 0.03220122584 | S140: 0.009507346015 | T140: 0.006849315615 | U140: 0.01615646256 | V140: 0.004184099981 | W140: 0.004166667254 | X140: 0.01742738549 | Y140: 0.016055 | Z140: 0.015
P143: Drop-down list values
P144: DHB Provider actual
P145: Health (Average wage)
P146: Public (Average wage)
P147: Total (Average wage)
P148: Health, public (LCI)
P149: Health, all (LCI)
P150: Public (LCI)
P151: Total (LCI)
P152: CPI
P153: CPI Health Group
P154: Health Care and Social Assistance PPI inputs
P155: Hospitals PPI inputs
P156: Medical and Other Health Care Services PPI inputs
P157: Residential Care Services and Social Assistance PPI inputs

Sheet Compared to Total Exp, GDP
B1: Actual | C1: Actual | D1: Actual | E1: Actual | F1: Actual | G1: Actual | H1: Actual | I1: Actual | J1: Actual | K1: Actual | L1: Actual | M1: Actual | N1: Actual | O1: Actual | P1: Actual | Q1: Actual | R1: Actual | S1: Forecast | T1: Forecast | U1: Forecast | V1: Forecast | W1: Forecast | Z1: Actual | AA1: Actual | AB1: Actual | AC1: Actual | AD1: Actual | AE1: Actual | AF1: Actual | AG1: Actual | AH1: Actual | AI1: Forecast
A2: Year ended June | B2: 2001 | C2: 2002 | D2: 2003 | E2: 2004 | F2: 2005 | G2: 2006 | H2: 2007 | I2: 2008 | J2: 2009 | K2: 2010 | L2: 2011 | M2: 2012 | N2: 2013 | O2: 2014 | P2: 2015 | Q2: 2016 | R2: 2017 | S2: 2018 | T2: 2019 | U2: 2020 | V2: 2021 | W2: 2022 | Y2: Rolling 3 years to June | Z2: 2009 | AA2: 2010 | AB2: 2011 | AC2: 2012 | AD2: 2013 | AE2: 2014 | AF2: 2015 | AG2: 2016 | AH2: 2017 | AI2: 2018
A3: Core Crown Health expenses | B3: 6.66 | C3: 7.032 | D3: 7.501 | E3: 8.111 | F3: 8.813 | G3: 9.547 | H3: 10.355 | I3: 11.297 | J3: 12.368 | K3: 13.128 | L3: 13.753 | M3: 14.16 | N3: 14.498 | O3: 14.898 | P3: 15.058 | Q3: 15.626 | R3: 16.223 | S3: 17.185 | T3: 18.071 | U3: 18.081 | V3: 17.988 | W3: 18.092 | Y3: Core Crown Health expenses | Z3: =AVERAGE(H3:J3) -> 11.34 | AA3: =AVERAGE(I3:K3) -> 12.26433333 | AB3: 13.083 | AC3: 13.68033333 | AD3: 14.137 | AE3: 14.51866667 | AF3: 14.818 | AG3: 15.194 | AH3: 15.63566667 | AI3: 16.34466667
A4: Core Crown total expenses | B4: 36.559 | C4: 37.513 | D4: 39.897 | E4: 41.882 | F4: 44.895 | G4: 49.084 | H4: 53.764 | I4: 56.753 | J4: 63.711 | K4: 63.554 | L4: 70.099 | M4: 68.939 | N4: 69.962 | O4: 71.174 | P4: 72.363 | Q4: 73.929 | R4: 76.339 | S4: 81.72 | T4: 86.72 | U4: 90.075 | V4: 94.715 | W4: 98.108 | Y4: Core Crown total expenses | Z4: =AVERAGE(H4:J4) -> 58.076 | AA4: 61.33933333 | AB4: 65.788 | AC4: 67.53066667 | AD4: 69.66666667 | AE4: 70.025 | AF4: 71.16633333 | AG4: 72.48866667 | AH4: 74.21033333 | AI4: 77.32933333
A5: GDP (Nominal) | B5: 122.211 | C5: 130.004 | D5: 137.146 | E5: 147.586 | F5: 156.795 | G5: 164.617 | H5: 175.541 | I5: 189.051 | J5: 189.553 | K5: 196.733 | L5: 205.831 | M5: 215.12 | N5: 218.757 | O5: 236.729 | P5: 245.014 | Q5: 257.716 | R5: 274.29 | S5: 291.02 | T5: 304.591 | U5: 319.971 | V5: 334.721 | W5: 349.792 | Y5: GDP (Nominal) | Z5: =AVERAGE(H5:J5) -> 184.715 | AA5: 191.779 | AB5: 197.3723333 | AC5: 205.8946667 | AD5: 213.236 | AE5: 223.5353333 | AF5: 233.5 | AG5: 246.4863333 | AH5: 259.0066667 | AI5: 274.342
A6: Crown as % GDP | B6: =B4/B5 -> 0.299146558 | C6: 0.2885526599 | D6: 0.2909089583 | E6: 0.2837803044 | F6: 0.2863292835 | G6: 0.2981709058 | H6: =H4/H5 -> 0.3062760267 | I6: =I4/I5 -> 0.3001994171 | J6: 0.3361117999 | K6: 0.3230469723 | L6: 0.340565804 | M6: 0.320467646 | N6: 0.3198160516 | O6: 0.3006560244 | P6: 0.295342307 | Q6: =Q4/Q5 -> 0.2868622825 | R6: 0.2783149222 | S6: 0.2808054429 | T6: 0.2847096598 | U6: 0.2815098868 | V6: 0.2829670083 | W6: =W4/W5 -> 0.2804752539 | Y6: Crown as % GDP | Z6: =Z4/Z5 -> 0.3144086836 | AA6: =AA4/AA5 -> 0.319843848 | AB6: 0.3333192595 | AC6: 0.3279864785 | AD6: 0.3267115622 | AE6: 0.3132614382 | AF6: 0.3047808708 | AG6: 0.2940879751 | AH6: 0.2865190085 | AI6: 0.2818720186
A7: Health as % Crown | B7: =B3/B4 -> 0.1821712848 | C7: 0.1874550156 | D7: 0.1880091235 | E7: 0.1936631488 | F7: 0.1963024836 | G7: 0.1945033005 | H7: =H3/H4 -> 0.1926009969 | I7: 0.1990555565 | J7: 0.1941266029 | K7: 0.2065644963 | L7: 0.1961939543 | M7: 0.2053989759 | N7: 0.2072267803 | O7: 0.2093180094 | P7: =P3/P4 -> 0.2080897696 | Q7: 0.2113649583 | R7: 0.2125126082 | S7: 0.2102912384 | T7: 0.2083833026 | U7: 0.2007327227 | V7: 0.1899171198 | W7: =W3/W4 -> 0.1844090186 | Y7: Health as % Crown | Z7: =Z3/Z4 -> 0.1952613816 | AA7: 0.1999423969 | AB7: 0.1988660546 | AC7: 0.2025795688 | AD7: 0.202923445 | AE7: 0.2073354754 | AF7: 0.2082164319 | AG7: 0.2096051797 | AH7: 0.2106939285 | AI7: 0.2113643809
A8: Health as % GDP | B8: =B3/B5 -> 0.05449591281 | C8: 0.05409064336 | D8: 0.05469353827 | E8: 0.05495778732 | F8: 0.05620714946 | G8: 0.05799522528 | H8: =H3/H5 -> 0.05898906808 | I8: 0.05975636204 | J8: 0.06524824192 | K8: 0.06673003512 | L8: 0.06681695177 | M8: 0.06582372629 | N8: 0.06627445065 | O8: 0.06293272054 | P8: =P3/P5 -> 0.06145771262 | Q8: 0.06063263437 | R8: 0.05914543002 | S8: 0.05905092434 | T8: 0.05932873919 | U8: 0.05650824606 | V8: 0.05374027922 | W8: =W3/W5 -> 0.05172216632 | Y8: Health as % GDP | Z8: =Z3/Z5 -> 0.06139187397 | AA8: 0.06395034562 | AB8: 0.06628588607 | AC8: 0.06644335939 | AD8: 0.06629743571 | AE8: 0.06495020921 | AF8: 0.06346038544 | AG8: 0.06164236286 | AH8: 0.0603678155 | AI8: 0.05957770471
A9: Shortfall from 2009/10 % of GDP ($bn) | L9: =$K8*L5-L3 -> -0.01789014044 | M9: 0.1949651558 | N9: 0.09966229357 | O9: 0.8989344848 | P9: 1.291792826 | Q9: 1.571397732 | R9: =$K8*R5-R3 -> 2.080381334 | S9: 2.234774822 | T9: 2.254368128 | U9: 3.270676069 | V9: 4.347944087 | W9: 5.249632446
K10: =K6-S6 -> 0.04224152937
A11: Year ended June | B11: 2001 | C11: 2002 | D11: 2003 | E11: 2004 | F11: 2005 | G11: 2006 | H11: 2007 | I11: 2008 | J11: 2009 | K11: 2010 | L11: 2011 | M11: 2012 | N11: 2013 | O11: 2014 | P11: 2015 | Q11: 2016 | R11: 2017 | S11: 2018 | T11: 2019 | U11: 2020 | V11: 2021 | W11: 2022 | Y11: Year ended June | Z11: 2009 | AA11: 2010 | AB11: 2011 | AC11: 2012 | AD11: 2013 | AE11: 2014 | AF11: 2015 | AG11: 2016 | AH11: 2017 | AI11: 2018
A12: Vote Health expenses | B12: 7.125754 | C12: 7.293521 | D12: 7.802353 | E12: 8.570691 | F12: 9.366348 | G12: 9.099603 | H12: 9.857598 | I12: 10.772336 | J12: =Multiyear!C78/1000000 -> 11.619833 | K12: =Multiyear!D78/1000000 -> 12.348564 | L12: =Multiyear!E78/1000000 -> 12.79895 | M12: =Multiyear!F78/1000000 -> 13.268789 | N12: =Multiyear!G78/1000000 -> 13.62405 | O12: =Multiyear!H78/1000000 -> 14.050406 | P12: =Multiyear!I78/1000000 -> 14.344592 | Q12: =Multiyear!J78/1000000 -> 14.792568 | R12: =Multiyear!K78/1000000 -> 15.275331 | S12: =Multiyear!L78/1000000 -> 16.166384 | T12: ='Health Vote 2018-19 post-Budget'!AE69/1000000 -> 16.971932 | U12: ='2018 Health appropriations'!V23/1000000 -> 16.986765 | V12: ='2018 Health appropriations'!W23/1000000 -> 16.911012 | W12: ='2018 Health appropriations'!X23/1000000 -> 17.010271 | Y12: Vote Health expenses | Z12: =AVERAGE(H12:J12) -> 10.74992233 | AA12: =AVERAGE(I12:K12) -> 11.58024433 | AB12: 12.25578233 | AC12: 12.80543433 | AD12: 13.23059633 | AE12: 13.64774833 | AF12: 14.00634933 | AG12: 14.39585533 | AH12: 14.80416367 | AI12: 15.41142767
A13: Vote Health as % Crown | B13: =B12/B4 -> 0.1949110752 | C13: 0.1944264921 | D13: 0.1955623982 | E13: 0.2046390096 | F13: 0.208627865 | G13: 0.185388375 | H13: 0.183349416 | I13: =I12/I4 -> 0.1898108646 | J13: =J12/J4 -> 0.182383466 | K13: 0.194300343 | L13: 0.182583917 | M13: 0.1924714458 | N13: 0.194734999 | O13: 0.1974092506 | P13: 0.1982310297 | Q13: =Q12/Q4 -> 0.2000915473 | R13: 0.2000986521 | S13: 0.1978265296 | T13: 0.195709548 | U13: 0.1885846794 | V13: 0.1785462915 | W13: =W12/W4 -> 0.1733831186 | Y13: Vote Health as % Crown | Z13: =Z12/Z4 -> 0.1851009424 | AA13: =AA12/AA4 -> 0.1887898629 | AB13: 0.1862920644 | AC13: 0.1896239881 | AD13: 0.189912866 | AE13: 0.1948982268 | AF13: 0.1968114511 | AG13: 0.1985945665 | AH13: 0.199489249 | AI13: 0.199296011
A14: Vote Health as % GDP | B14: =B12/B5 -> 0.05830697728 | C14: 0.05610228147 | D14: 0.05689085354 | E14: 0.05807252043 | F14: 0.0597362671 | G14: 0.05527741971 | H14: 0.05615553062 | I14: =I12/I5 -> 0.05698111092 | J14: =J12/J5 -> 0.06130123501 | K14: 0.06276813753 | L14: 0.0621818385 | M14: 0.06168087114 | N14: 0.06227937849 | O14: 0.05935228046 | P14: 0.05854600962 | Q14: =Q12/Q5 -> 0.05739871797 | R14: 0.05569044077 | S14: 0.05555076627 | T14: 0.05572039883 | U14: 0.05308845177 | V14: 0.05052270996 | W14: =W12/W5 -> 0.04862967421 | Y14: Vote Health as % GDP | Z14: =Z12/Z5 -> 0.05819734366 | AA14: =AA12/AA5 -> 0.06038327624 | AB14: 0.06209473297 | AC14: 0.06219410411 | AD14: 0.06204672913 | AE14: 0.06105409883 | AF14: 0.05998436545 | AG14: 0.05840427394 | AH14: 0.05715746184 | AI14: 0.05617596892
A15: Shortfall from 2009/10 % of GDP ($bn) | L15: =$K14*L5-L12 -> 0.1206785152 | M15: 0.2338927447 | N15: 0.1069194609 | O15: 0.8086324285 | P15: 1.034480448 | Q15: 1.383785331 | R15: 1.941341442 | S15: =$K14*S5-S12 -> 2.100399383 | T15: =$K14*T5-T12 -> 2.146677777 | U15: =$K14*U5-U12 -> 3.097218732 | V15: =$K14*V5-V12 -> 4.098801761 | W15: =$K14*W5-W12 -> 4.945521362 | Y15: Shortfall from 2009/10 % of GDP ($bn)
A17: Vote Health (expenses and capital) | B17: =B12+B78 -> 7.188443 | C17: 7.543728 | D17: 8.297352 | E17: 9.43945 | F17: 9.591273 | G17: 9.591814 | H17: 10.175786 | I17: 11.041305 | J17: 11.805066 | K17: 12.599529 | L17: 13.160468 | M17: 13.565689 | N17: 13.883632 | O17: 14.386838 | P17: 15.033728 | Q17: 15.27984 | R17: 15.904029 | S17: =S12+S78 -> 16.544093 | T17: 18.225363 | U17: =U12+U78 -> 17.048976 | V17: =V12+V78 -> 16.973223 | W17: =W12+W78 -> 18.072482 | Y17: Vote Health (expenses and capital) | Z17: =AVERAGE(H17:J17) -> 11.00738567 | AA17: =AVERAGE(I17:K17) -> 11.8153 | AB17: 12.52168767 | AC17: 13.108562 | AD17: 13.53659633 | AE17: 13.94538633 | AF17: 14.43473267 | AG17: 14.90013533 | AH17: 15.40586567 | AI17: 15.90932067
A18: Vote Health (expenses and capital) as % GDP | B18: =B17/B5 -> 0.05881993438 | C18: =C17/C5 -> 0.05802689148 | D18: 0.06050013854 | E18: 0.06395897985 | F18: 0.06117078351 | G18: 0.05826745719 | H18: 0.05796814419 | I18: 0.05840384341 | J18: 0.06227844455 | K18: 0.06404380048 | L18: 0.06393822116 | M18: 0.06306103105 | N18: 0.06346600109 | O18: 0.06077344981 | P18: 0.06135864889 | Q18: 0.0592894504 | R18: 0.05798253309 | S18: 0.05684864614 | T18: 0.05983552699 | U18: 0.05328287876 | V18: =V17/V5 -> 0.05070856923 | W18: =W17/W5 -> 0.05166636744 | Y18: Vote Health (expenses and capital) as % GDP | Z18: =Z17/Z5 -> 0.05959118462 | AA18: =AA17/AA5 -> 0.06160893528 | AB18: 0.06344195995 | AC18: 0.06366635043 | AD18: 0.06348175886 | AE18: 0.06238560198 | AF18: 0.06181898358 | AG18: 0.06045014801 | AH18: 0.05948057579 | AI18: 0.0579908314
A20: Annual increase | C20: 2002 | D20: 2003 | E20: 2004 | F20: 2005 | G20: 2006 | H20: 2007 | I20: 2008 | J20: 2009 | K20: 2010 | L20: 2011 | M20: 2012 | N20: 2013 | O20: 2014 | P20: 2015 | Q20: 2016 | R20: 2017 | S20: 2018 | T20: 2019 | U20: 2020 | V20: 2021 | W20: 2022 | Y20: Annual increase | AA20: 2010 | AB20: 2011 | AC20: 2012 | AD20: 2013 | AE20: 2014 | AF20: 2015 | AG20: 2016 | AH20: 2017 | AI20: 2018
A21: Vote Health expenses | C21: =C12/B12-1 -> 0.02354375411 | D21: =D12/C12-1 -> 0.06976493247 | E21: 0.09847516512 | F21: 0.09283463842 | G21: -0.02847908278 | H21: 0.08329978791 | I21: 0.09279522253 | J21: 0.07867346507 | K21: 0.0627144125 | L21: 0.0364727429 | M21: 0.03670918318 | N21: 0.02677418414 | O21: 0.03129436548 | P21: 0.0209379003 | Q21: 0.03122960904 | R21: 0.03263550994 | S21: 0.05833281125 | T21: 0.04982858257 | U21: 0.0008739723916 | V21: -0.004459530699 | W21: 0.005869489064 | Y21: Vote Health expenses | AA21: =AA12/Z12-1 -> 0.07723981386 | AB21: =AB12/AA12-1 -> 0.058335384 | AC21: 0.04484838136 | AD21: 0.03320168523 | AE21: 0.03152934225 | AF21: 0.02627546986 | AG21: 0.02780924499 | AH21: 0.0283629089 | AI21: 0.0410198113
A22: Core Crown Health expenses | C22: =C3/B3-1 -> 0.05585585586 | D22: 0.06669510808 | E22: 0.08132249033 | F22: 0.08654913081 | G22: 0.08328605469 | H22: 0.08463391641 | I22: 0.09097054563 | J22: 0.09480393025 | K22: 0.06144890039 | L22: 0.04760816575 | M22: 0.02959354323 | N22: 0.0238700565 | O22: 0.02759001242 | P22: 0.0107396966 | Q22: 0.03772081286 | R22: =R3/Q3-1 -> 0.03820555484 | S22: 0.05929852678 | T22: 0.05155659005 | U22: 0.0005533728073 | V22: -0.005143520823 | W22: 0.005781632199 | Y22: Core Crown Health expenses | AA22: =AA3/Z3-1 -> 0.08151087596 | AB22: =AB3/AA3-1 -> 0.06675182779 | AC22: 0.0456572142 | AD22: 0.03338125289 | AE22: 0.02699771286 | AF22: 0.02061713656 | AG22: 0.02537454447 | AH22: 0.02906849195 | AI22: 0.04534504445
A23: Core Crown total expenses | C23: =C4/B4-1 -> 0.02609480566 | D23: 0.06355130222 | E23: 0.04975311427 | F23: 0.07194021298 | G23: 0.0933066043 | H23: 0.09534675251 | I23: 0.05559482181 | J23: 0.1226014484 | K23: -0.002464252641 | L23: 0.1029832898 | M23: -0.01654802494 | N23: 0.01483920567 | O23: 0.01732369 | P23: 0.01670553854 | Q23: 0.02164089383 | R23: 0.03259884484 | S23: 0.07048821703 | T23: 0.06118453255 | U23: 0.03868773063 | V23: 0.05151262837 | W23: 0.03582325925 | Y23: Core Crown total expenses | AA23: =AA4/Z4-1 -> 0.05619073857 | AB23: 0.07252551381 | AC23: =AC4/AB4-1 -> 0.02648912669 | AD23: 0.03163007424 | AE23: 0.00514354067 | AF23: 0.01629894085 | AG23: 0.01858088328 | AH23: 0.02375083921 | AI23: 0.04202918731
A24: GDP (Nominal) | C24: =C5/B5-1 -> 0.06376676404 | D24: 0.05493677118 | E24: 0.07612325551 | F24: 0.06239751738 | G24: 0.04988679486 | H24: 0.06636009647 | I24: 0.07696207724 | J24: 0.002655368128 | K24: 0.03787858805 | L24: 0.04624541892 | M24: 0.04512925653 | N24: 0.01690684269 | O24: 0.08215508532 | P24: 0.03499782452 | Q24: 0.05184193556 | R24: 0.06431110214 | S24: 0.06099383864 | T24: 0.04663253385 | U24: 0.05049394106 | V24: 0.04609792762 | W24: 0.0450255586 | Y24: GDP (Nominal) | AA24: 0.03824269821 | AB24: 0.02916551517 | AC24: 0.04317896632 | AD24: 0.03565577221 | AE24: 0.04830016195 | AF24: 0.04457759101 | AG24: 0.05561598858 | AH24: 0.05079524355 | AI24: 0.05920825719
Z49: 2018 Forecast | AA49: 2019 Forecast | AB49: 2020 Forecast
Z50: 185 | AA50: 185 | AB50: 185
Z51: 14261 | AA51: 14249 | AB51: 14247
Z52: 354 | AA52: 367 | AB52: 367
Z53: 838 | AA53: 905 | AB53: 905
Z54: 30 | AA54: 29 | AB54: 29
Z55: 15668 | AA55: 15735 | AB55: 15733
B66: Year ended June
B67: Actual | C67: Actual | D67: Actual | E67: Actual | F67: Actual | G67: Actual | H67: Actual | I67: Actual | J67: Actual | K67: Actual | L67: Actual | M67: Actual | N67: Actual | O67: Actual | P67: Actual | Q67: Actual | R67: Actual | S67: Forecast | T67: Forecast | U67: Forecast | V67: Forecast | W67: Forecast
B68: 2001 | C68: 2002 | D68: 2003 | E68: 2004 | F68: 2005 | G68: 2006 | H68: 2007 | I68: 2008 | J68: 2009 | K68: 2010 | L68: 2011 | M68: 2012 | N68: 2013 | O68: 2014 | P68: 2015 | Q68: 2016 | R68: 2017 | S68: 2018 | T68: 2019 | U68: 2020 | V68: 2021 | W68: 2022
A69: Core Crown Health expenses | B69: =B3 -> 6.66 | C69: 7.032 | D69: 7.501 | E69: 8.111 | F69: 8.813 | G69: 9.547 | H69: 10.355 | I69: 11.297 | J69: 12.368 | K69: 13.128 | L69: 13.753 | M69: 14.16 | N69: 14.498 | O69: 14.898 | P69: 15.058 | Q69: 15.626 | R69: =R3 -> 16.223 | S69: 17.185 | T69: 18.071 | U69: 18.081 | V69: 17.988 | W69: 18.092
A70: Health as % GDP | B70: =B69/B$75 -> 0.05449591281 | C70: 0.05409064336 | D70: 0.05469353827 | E70: 0.05495778732 | F70: 0.05620714946 | G70: 0.05799522528 | H70: =H69/H$75 -> 0.05898906808 | I70: 0.05975636204 | J70: 0.06524824192 | K70: 0.06673003512 | L70: 0.06681695177 | M70: 0.06582372629 | N70: 0.06627445065 | O70: 0.06293272054 | P70: 0.06145771262 | Q70: 0.06063263437 | R70: 0.05914543002 | S70: 0.05905092434 | T70: 0.05932873919 | U70: 0.05650824606 | V70: 0.05374027922 | W70: =W69/W$75 -> 0.05172216632
A71: Shortfall from 2009/10 % of GDP ($bn) | L71: =$K70*L$75-L69 -> -0.01789014044 | M71: 0.1949651558 | N71: 0.09966229357 | O71: 0.8989344848 | P71: 1.291792826 | Q71: 1.571397732 | R71: 2.080381334 | S71: 2.234774822 | T71: 2.254368128 | U71: 3.270676069 | V71: 4.347944087 | W71: =$K70*W$75-W69 -> 5.249632446
A72: Payments to District Health Boards | B72: 4.476 | C72: 4.936 | D72: 5.328 | E72: 6.441 | F72: 7.262 | G72: 7.814 | H72: 8.547 | I72: 9.132 | J72: =10.038 -> 10.038 | K72: 10.67 | L72: 11.133 | M72: 11.542 | N72: 11.946 | O72: 12.165 | P72: 12.414 | Q72: 12.822 | R72: 13.281 | S72: 13.833 | T72: 14.488 | U72: 14.523 | V72: 14.487 | W72: 14.488
A73: DHB funding as % GDP | B73: =B72/B$75 -> 0.03662518104 | C73: 0.03796806252 | D73: 0.03884910971 | E73: 0.0436423509 | F73: 0.0463152524 | G73: 0.04746775849 | H73: =H72/H$75 -> 0.04868947995 | I73: 0.04830442579 | J73: 0.05295616529 | K73: 0.05423594415 | L73: 0.05408806254 | M73: 0.05365377464 | N73: 0.05460853824 | O73: 0.0513878739 | P73: 0.05066649253 | Q73: 0.04975244067 | R73: 0.04841955594 | S73: 0.04753281561 | T73: 0.0475654238 | U73: 0.04538848833 | V73: 0.04328082194 | W73: =W72/W$75 -> 0.04141890038
A74: Shortfall from 2009/10 % of GDP ($bn) | L74: =$K73*L$75-L72 -> 0.03043861986 | M74: 0.125236305 | N74: -0.08150756609 | O74: 0.6742208221 | P74: 0.8745656194 | Q74: 1.155470582 | R74: 1.59537712 | S74: 1.950744466 | T74: 2.031780464 | U74: 2.830929285 | V74: 3.666909461 | W74: =$K73*W$75-W72 -> 4.483299375
A75: GDP (Nominal) | B75: =B5 -> 122.211 | C75: 130.004 | D75: 137.146 | E75: 147.586 | F75: 156.795 | G75: 164.617 | H75: 175.541 | I75: 189.051 | J75: 189.553 | K75: 196.733 | L75: 205.831 | M75: 215.12 | N75: 218.757 | O75: 236.729 | P75: 245.014 | Q75: 257.716 | R75: 274.29 | S75: 291.02 | T75: 304.591 | U75: 319.971 | V75: 334.721 | W75: =W5 -> 349.792
A76: Annual increase in GDP | C76: =C75/B75-1 -> 0.06376676404 | D76: 0.05493677118 | E76: 0.07612325551 | F76: 0.06239751738 | G76: 0.04988679486 | H76: 0.06636009647 | I76: =I75/H75-1 -> 0.07696207724 | J76: =J75/I75-1 -> 0.002655368128 | K76: 0.03787858805 | L76: 0.04624541892 | M76: 0.04512925653 | N76: 0.01690684269 | O76: 0.08215508532 | P76: 0.03499782452 | Q76: 0.05184193556 | R76: =R75/Q75-1 -> 0.06431110214 | S76: 0.06099383864 | T76: 0.04663253385 | U76: 0.05049394106 | V76: 0.04609792762 | W76: 0.0450255586
A78: Capital expenditure | B78: 0.062689 | C78: 0.250207 | D78: 0.494999 | E78: 0.868759 | F78: 0.224925 | G78: 0.492211 | H78: 0.318188 | I78: 0.268969 | J78: 0.185233 | K78: 0.250965 | L78: 0.361518 | M78: 0.2969 | N78: 0.259582 | O78: 0.336432 | P78: 0.689136 | Q78: 0.487272 | R78: =(R79-2415000)/1000000 -> 0.628698 | S78: 0.377709 | T78: 1.253431 | U78: 0.062211 | V78: 0.062211 | W78: 1.062211
A79: From Health appropriations | O79: ='2018 Health appropriations'!M9 -> 336432 | P79: ='2018 Health appropriations'!N9 -> 689136 | Q79: ='2018 Health appropriations'!O9 -> 487272 | R79: ='2018 Health appropriations'!P9 -> 3043698 | S79: ='2018 Health appropriations'!R9 -> 377709 | T79: ='2018 Health appropriations'!U9 -> 1253431 | U79: ='2018 Health appropriations'!V9 -> 129434 | V79: ='2018 Health appropriations'!W9 -> 72895 | W79: ='2018 Health appropriations'!X9 -> 62550

Sheet DHB Stats
A1: Source: DHB consolidated financial reports (provided by Ministry of Health) and monthly financial reports available at | G1: http://www.health.govt.nz/new-zealand-health-system/key-health-sector-organisations-and-people/district-health-boards/accountability-and-funding/summary-financial-reports
B2: 2008 | C2: 2009 | D2: 2010 | E2: 2011 | F2: 2012 | G2: 2013 | H2: 2014 | I2: 2015 | J2: 2016 | K2: 2017 | L2: 2018 | O2: 2008 | P2: 2009 | Q2: 2010 | R2: 2011 | S2: 2012 | T2: 2013 | U2: 2014 | V2: 2015 | W2: 2016 | X2: 2017 | Y2: 2018
A3: Funder Arm payments to providers ($000000) | L3: (est) | N3: Funder Arm payments to providers proportion of total | Y3: (est)
A4: MoH - Personal Health | B4: =[1]CStatement!B19/1000 -> 3169.352268 | C4: =[1]CStatement!I19/1000 -> 3412.258055 | D4: =[1]CStatement!P19/1000 -> 3608.898842 | E4: =-[1]CStatement!W18 -> 3757.173814 | F4: =-[1]CStatement!AD18 -> 3744.469902 | G4: =-[1]CStatement!AK18 -> 3952.965295 | H4: =-[1]CStatement!AR18 -> 3964.370258 | I4: =-[1]CStatement!AY18 -> 4009.598056 | J4: =-[1]CStatement!BF18 -> 4059 | K4: =-[2]CStatement!BN18 -> 4139 | L4: =-[2]CStatement!CA18 -> 4288 | N4: MoH - Personal Health | O4: =B4/SUM(B$4:B$8) -> 0.6896269914 | P4: 0.689706841 | Q4: 0.6903667932 | R4: 0.6906813117 | S4: 0.6790534068 | T4: 0.6837558129 | U4: 0.6805347507 | V4: 0.6798857214 | W4: 0.6745886654 | X4: 0.6714795587 | Y4: 0.6538578835
A5: MoH - Mental Health | B5: =[1]CStatement!B20/1000 -> 369.3308266 | C5: =[1]CStatement!I20/1000 -> 398.9549702 | D5: =[1]CStatement!P20/1000 -> 409.1196648 | E5: =-[1]CStatement!W19 -> 433.3192827 | F5: =-[1]CStatement!AD19 -> 424.965066 | G5: =-[1]CStatement!AK19 -> 425.046626 | H5: =-[1]CStatement!AR19 -> 430.4770327 | I5: =-[1]CStatement!AY19 -> 427.9899615 | J5: =-[1]CStatement!BF19 -> 440 | K5: =-[2]CStatement!BN19 -> 442 | L5: =-[2]CStatement!CA19 -> 473 | N5: MoH - Mental Health | O5: 0.08036358387 | P5: 0.08063926225 | Q5: 0.07826282846 | R5: 0.07965708945 | S5: 0.07706670994 | T5: 0.07352154132 | U5: 0.07389687669 | V5: 0.07257192857 | W5: 0.0731261426 | X5: 0.07170668397 | Y5: 0.07212564806
A6: MoH - Public Health | B6: =[1]CStatement!B21/1000 -> 9.8631648 | C6: =[1]CStatement!I21/1000 -> 19.6261657 | D6: =[1]CStatement!P21/1000 -> 19.8044981 | E6: =-[1]CStatement!W20 -> 16.7171238 | F6: =-[1]CStatement!AD20 -> 17.08707375 | G6: =-[1]CStatement!AK20 -> 17.77287549 | H6: =-[1]CStatement!AR20 -> 19.10288346 | I6: =-[1]CStatement!AY20 -> 19.4149622 | J6: =-[1]CStatement!BF20 -> 26 | K6: =-[2]CStatement!BN20 -> 30 | L6: =-[2]CStatement!CA20 -> 30 | N6: MoH - Public Health | O6: 0.002146149778 | P6: 0.003966962793 | Q6: 0.003788515124 | R6: 0.003073109089 | S6: 0.003098712487 | T6: 0.003074225555 | U6: 0.003279253749 | V6: 0.003292089481 | W6: 0.004321090244 | X6: 0.0048669695 | Y6: 0.004574565416
A7: MoH - Disability Support Services | B7: =[1]CStatement!B22/1000 -> 1010.285537 | C7: =[1]CStatement!I22/1000 -> 1074.310543 | D7: =[1]CStatement!P22/1000 -> 1146.586024 | E7: =-[1]CStatement!W21 -> 1190.230026 | F7: =-[1]CStatement!AD21 -> 1284.722363 | G7: =-[1]CStatement!AK21 -> 1341.387944 | H7: =-[1]CStatement!AR21 -> 1366.920756 | I7: =-[1]CStatement!AY21 -> 1396.320492 | J7: =-[1]CStatement!BF21 -> 1449 | K7: =-[2]CStatement!BN21 -> 1508 | L7: =-[2]CStatement!CA21 -> 1720 | N7: MoH - Disability Support Services | O7: 0.2198304626 | P7: 0.2171463349 | Q7: 0.2193369643 | R7: 0.2188000014 | S7: 0.2329822699 | T7: 0.232023743 | U7: 0.2346493933 | V7: 0.2367664668 | W7: 0.2408176832 | X7: 0.2446463335 | Y7: 0.2622750839
A8: MoH - Maori Health | B8: =[1]CStatement!B23/1000 -> 36.916786 | C8: =[1]CStatement!I23/1000 -> 42.2537899 | D8: =[1]CStatement!P23/1000 -> 43.1002855 | E8: =-[1]CStatement!W22 -> 42.367882 | F8: =-[1]CStatement!AD22 -> 43.00508549 | G8: =-[1]CStatement!AK22 -> 44.08018793 | H8: =-[1]CStatement!AR22 -> 44.50426783 | I8: =-[1]CStatement!AY22 -> 44.13536548 | J8: =-[1]CStatement!BF22 -> 43 | K8: =-[2]CStatement!BN22 -> 45 | L8: =-[2]CStatement!CA22 -> 47 | N8: MoH - Maori Health | O8: 0.008032812358 | P8: 0.008540599063 | Q8: 0.008244898843 | R8: 0.007788488307 | S8: 0.007798900933 | T8: 0.007624677293 | U8: 0.007639725565 | V8: 0.007483793733 | W8: 0.007146418481 | X8: 0.00730045425 | Y8: 0.007166819152
A10: Provider and Governance proportion of DHB Expenditure
A11: Auckland DHB | B11: =VLOOKUP($A11,'[1]Funder Arm Rev'!A$19:L$42,6,FALSE)/(VLOOKUP($A11,'[1]Funder Arm Rev'!A$19:L$42,6,FALSE)+VLOOKUP($A11,'[1]Funder Arm Rev'!A$19:L$42,10,FALSE)) -> 0.6374242513 | C11: =VLOOKUP($A11,'[1]Funder Arm Rev'!$N$19:$Y$42,6,FALSE)/(VLOOKUP($A11,'[1]Funder Arm Rev'!$N$19:$Y$42,6,FALSE)+VLOOKUP($A11,'[1]Funder Arm Rev'!$N$19:$Y$42,10,FALSE)) -> 0.6335237284 | D11: =VLOOKUP($A11,'[1]Funder Arm Rev'!$AA$19:$AL$41,6,FALSE)/(VLOOKUP($A11,'[1]Funder Arm Rev'!$AA$19:$AL$41,6,FALSE)+VLOOKUP($A11,'[1]Funder Arm Rev'!$AA$19:$AL$41,10,FALSE)) -> 0.6421705053 | E11: =VLOOKUP($A11,'[1]Funder Arm Rev'!$AN$19:$AY$41,6,FALSE)/(VLOOKUP($A11,'[1]Funder Arm Rev'!$AN$19:$AY$41,6,FALSE)+VLOOKUP($A11,'[1]Funder Arm Rev'!$AN$19:$AY$41,10,FALSE)) -> 0.6214099237 | F11: =VLOOKUP($A11,'[1]Funder Arm Rev'!$A$99:$L$127,6,FALSE)/(VLOOKUP($A11,'[1]Funder Arm Rev'!$A$99:$L$127,6,FALSE)+VLOOKUP($A11,'[1]Funder Arm Rev'!$A$99:$L$127,10,FALSE)) -> 0.6583331852 | G11: =VLOOKUP($A11,'[1]Funder Arm Rev'!$N$132:$Y$160,6,FALSE) -> 0.6073219886 | H11: =VLOOKUP($A11,'[1]Funder Arm Rev'!$AA$132:$AL$160,6,FALSE) -> 0.6147041428 | I11: =VLOOKUP($A11,'[1]Funder Arm Rev'!$AN$132:$AY$160,6,FALSE) -> 0.6229079118 | J11: =VLOOKUP($A11,'[1]Funder Arm Rev'!$A$231:$L$259,6,FALSE) -> 0.6751672356 | K11: =VLOOKUP($A11,'[2]Funder Arm Rev'!$N$231:$X$259,6,FALSE) -> 0.6806636246 | L11: =VLOOKUP($A11,'[2]Funder Arm Rev'!$AA$231:$AK$259,6,FALSE) -> 0.680860071
A12: Bay of Plenty DHB | B12: =VLOOKUP($A12,'[1]Funder Arm Rev'!A$19:L$42,6,FALSE)/(VLOOKUP($A12,'[1]Funder Arm Rev'!A$19:L$42,6,FALSE)+VLOOKUP($A12,'[1]Funder Arm Rev'!A$19:L$42,10,FALSE)) -> 0.4955693844 | C12: =VLOOKUP($A12,'[1]Funder Arm Rev'!$N$19:$Y$42,6,FALSE)/(VLOOKUP($A12,'[1]Funder Arm Rev'!$N$19:$Y$42,6,FALSE)+VLOOKUP($A12,'[1]Funder Arm Rev'!$N$19:$Y$42,10,FALSE)) -> 0.4980135203 | D12: =VLOOKUP($A12,'[1]Funder Arm Rev'!$AA$19:$AL$41,6,FALSE)/(VLOOKUP($A12,'[1]Funder Arm Rev'!$AA$19:$AL$41,6,FALSE)+VLOOKUP($A12,'[1]Funder Arm Rev'!$AA$19:$AL$41,10,FALSE)) -> 0.4935817132 | E12: =VLOOKUP($A12,'[1]Funder Arm Rev'!$AN$19:$AY$41,6,FALSE)/(VLOOKUP($A12,'[1]Funder Arm Rev'!$AN$19:$AY$41,6,FALSE)+VLOOKUP($A12,'[1]Funder Arm Rev'!$AN$19:$AY$41,10,FALSE)) -> 0.4856748761 | F12: =VLOOKUP($A12,'[1]Funder Arm Rev'!$A$99:$L$127,6,FALSE)/(VLOOKUP($A12,'[1]Funder Arm Rev'!$A$99:$L$127,6,FALSE)+VLOOKUP($A12,'[1]Funder Arm Rev'!$A$99:$L$127,10,FALSE)) -> 0.4904321637 | G12: =VLOOKUP($A12,'[1]Funder Arm Rev'!$N$132:$Y$160,6,FALSE) -> 0.489684735 | H12: =VLOOKUP($A12,'[1]Funder Arm Rev'!$AA$132:$AL$160,6,FALSE) -> 0.4964790697 | I12: =VLOOKUP($A12,'[1]Funder Arm Rev'!$AN$132:$AY$160,6,FALSE) -> 0.4995686145 | J12: =VLOOKUP($A12,'[1]Funder Arm Rev'!$A$231:$L$259,6,FALSE) -> 0.5071898363 | K12: =VLOOKUP($A12,'[2]Funder Arm Rev'!$N$231:$X$259,6,FALSE) -> 0.4996468688 | L12: =VLOOKUP($A12,'[2]Funder Arm Rev'!$AA$231:$AK$259,6,FALSE) -> 0.4937739211
A13: Canterbury DHB | B13: =VLOOKUP($A13,'[1]Funder Arm Rev'!A$19:L$42,6,FALSE)/(VLOOKUP($A13,'[1]Funder Arm Rev'!A$19:L$42,6,FALSE)+VLOOKUP($A13,'[1]Funder Arm Rev'!A$19:L$42,10,FALSE)) -> 0.5555197172 | C13: =VLOOKUP($A13,'[1]Funder Arm Rev'!$N$19:$Y$42,6,FALSE)/(VLOOKUP($A13,'[1]Funder Arm Rev'!$N$19:$Y$42,6,FALSE)+VLOOKUP($A13,'[1]Funder Arm Rev'!$N$19:$Y$42,10,FALSE)) -> 0.5464873262 | D13: =VLOOKUP($A13,'[1]Funder Arm Rev'!$AA$19:$AL$41,6,FALSE)/(VLOOKUP($A13,'[1]Funder Arm Rev'!$AA$19:$AL$41,6,FALSE)+VLOOKUP($A13,'[1]Funder Arm Rev'!$AA$19:$AL$41,10,FALSE)) -> 0.55872433 | E13: =VLOOKUP($A13,'[1]Funder Arm Rev'!$AN$19:$AY$41,6,FALSE)/(VLOOKUP($A13,'[1]Funder Arm Rev'!$AN$19:$AY$41,6,FALSE)+VLOOKUP($A13,'[1]Funder Arm Rev'!$AN$19:$AY$41,10,FALSE)) -> 0.557236551 | F13: =VLOOKUP($A13,'[1]Funder Arm Rev'!$A$99:$L$127,6,FALSE)/(VLOOKUP($A13,'[1]Funder Arm Rev'!$A$99:$L$127,6,FALSE)+VLOOKUP($A13,'[1]Funder Arm Rev'!$A$99:$L$127,10,FALSE)) -> 0.561226447 | G13: =VLOOKUP($A13,'[1]Funder Arm Rev'!$N$132:$Y$160,6,FALSE) -> 0.5642090063 | H13: =VLOOKUP($A13,'[1]Funder Arm Rev'!$AA$132:$AL$160,6,FALSE) -> 0.5723345912 | I13: =VLOOKUP($A13,'[1]Funder Arm Rev'!$AN$132:$AY$160,6,FALSE) -> 0.5865048437 | J13: =VLOOKUP($A13,'[1]Funder Arm Rev'!$A$231:$L$259,6,FALSE) -> 0.5836608023 | K13: =VLOOKUP($A13,'[2]Funder Arm Rev'!$N$231:$X$259,6,FALSE) -> 0.5769772873 | L13: =VLOOKUP($A13,'[2]Funder Arm Rev'!$AA$231:$AK$259,6,FALSE) -> 0.5783496994
A14: Capital & Coast DHB | B14: =VLOOKUP($A14,'[1]Funder Arm Rev'!A$19:L$42,6,FALSE)/(VLOOKUP($A14,'[1]Funder Arm Rev'!A$19:L$42,6,FALSE)+VLOOKUP($A14,'[1]Funder Arm Rev'!A$19:L$42,10,FALSE)) -> 0.5859858308 | C14: =VLOOKUP($A14,'[1]Funder Arm Rev'!$N$19:$Y$42,6,FALSE)/(VLOOKUP($A14,'[1]Funder Arm Rev'!$N$19:$Y$42,6,FALSE)+VLOOKUP($A14,'[1]Funder Arm Rev'!$N$19:$Y$42,10,FALSE)) -> 0.5913793439 | D14: =VLOOKUP($A14,'[1]Funder Arm Rev'!$AA$19:$AL$41,6,FALSE)/(VLOOKUP($A14,'[1]Funder Arm Rev'!$AA$19:$AL$41,6,FALSE)+VLOOKUP($A14,'[1]Funder Arm Rev'!$AA$19:$AL$41,10,FALSE)) -> 0.6020840567 | E14: =VLOOKUP($A14,'[1]Funder Arm Rev'!$AN$19:$AY$41,6,FALSE)/(VLOOKUP($A14,'[1]Funder Arm Rev'!$AN$19:$AY$41,6,FALSE)+VLOOKUP($A14,'[1]Funder Arm Rev'!$AN$19:$AY$41,10,FALSE)) -> 0.6107196295 | F14: =VLOOKUP($A14,'[1]Funder Arm Rev'!$A$99:$L$127,6,FALSE)/(VLOOKUP($A14,'[1]Funder Arm Rev'!$A$99:$L$127,6,FALSE)+VLOOKUP($A14,'[1]Funder Arm Rev'!$A$99:$L$127,10,FALSE)) -> 0.6275927386 | G14: =VLOOKUP($A14,'[1]Funder Arm Rev'!$N$132:$Y$160,6,FALSE) -> 0.6372881784 | H14: =VLOOKUP($A14,'[1]Funder Arm Rev'!$AA$132:$AL$160,6,FALSE) -> 0.635116628 | I14: =VLOOKUP($A14,'[1]Funder Arm Rev'!$AN$132:$AY$160,6,FALSE) -> 0.6315123071 | J14: =VLOOKUP($A14,'[1]Funder Arm Rev'!$A$231:$L$259,6,FALSE) -> 0.6313541111 | K14: =VLOOKUP($A14,'[2]Funder Arm Rev'!$N$231:$X$259,6,FALSE) -> 0.6243074333 | L14: =VLOOKUP($A14,'[2]Funder Arm Rev'!$AA$231:$AK$259,6,FALSE) -> 0.6287185857
A15: Counties Manukau DHB | B15: =VLOOKUP($A15,'[1]Funder Arm Rev'!A$19:L$42,6,FALSE)/(VLOOKUP($A15,'[1]Funder Arm Rev'!A$19:L$42,6,FALSE)+VLOOKUP($A15,'[1]Funder Arm Rev'!A$19:L$42,10,FALSE)) -> 0.4998507116 | C15: =VLOOKUP($A15,'[1]Funder Arm Rev'!$N$19:$Y$42,6,FALSE)/(VLOOKUP($A15,'[1]Funder Arm Rev'!$N$19:$Y$42,6,FALSE)+VLOOKUP($A15,'[1]Funder Arm Rev'!$N$19:$Y$42,10,FALSE)) -> 0.5113720094 | D15: =VLOOKUP($A15,'[1]Funder Arm Rev'!$AA$19:$AL$41,6,FALSE)/(VLOOKUP($A15,'[1]Funder Arm Rev'!$AA$19:$AL$41,6,FALSE)+VLOOKUP($A15,'[1]Funder Arm Rev'!$AA$19:$AL$41,10,FALSE)) -> 0.522255756 | E15: =VLOOKUP($A15,'[1]Funder Arm Rev'!$AN$19:$AY$41,6,FALSE)/(VLOOKUP($A15,'[1]Funder Arm Rev'!$AN$19:$AY$41,6,FALSE)+VLOOKUP($A15,'[1]Funder Arm Rev'!$AN$19:$AY$41,10,FALSE)) -> 0.5208698499 | F15: =VLOOKUP($A15,'[1]Funder Arm Rev'!$A$99:$L$127,6,FALSE)/(VLOOKUP($A15,'[1]Funder Arm Rev'!$A$99:$L$127,6,FALSE)+VLOOKUP($A15,'[1]Funder Arm Rev'!$A$99:$L$127,10,FALSE)) -> 0.5101128925 | G15: =VLOOKUP($A15,'[1]Funder Arm Rev'!$N$132:$Y$160,6,FALSE) -> 0.5156636386 | H15: =VLOOKUP($A15,'[1]Funder Arm Rev'!$AA$132:$AL$160,6,FALSE) -> 0.5304421206 | I15: =VLOOKUP($A15,'[1]Funder Arm Rev'!$AN$132:$AY$160,6,FALSE) -> 0.5379365679 | J15: =VLOOKUP($A15,'[1]Funder Arm Rev'!$A$231:$L$259,6,FALSE) -> 0.5449778274 | K15: =VLOOKUP($A15,'[2]Funder Arm Rev'!$N$231:$X$259,6,FALSE) -> 0.5443354511 | L15: =VLOOKUP($A15,'[2]Funder Arm Rev'!$AA$231:$AK$259,6,FALSE) -> 0.5396448101
A16: Hawke's Bay DHB | B16: =VLOOKUP($A16,'[1]Funder Arm Rev'!A$19:L$42,6,FALSE)/(VLOOKUP($A16,'[1]Funder Arm Rev'!A$19:L$42,6,FALSE)+VLOOKUP($A16,'[1]Funder Arm Rev'!A$19:L$42,10,FALSE)) -> 0.5173487224 | C16: =VLOOKUP($A16,'[1]Funder Arm Rev'!$N$19:$Y$42,6,FALSE)/(VLOOKUP($A16,'[1]Funder Arm Rev'!$N$19:$Y$42,6,FALSE)+VLOOKUP($A16,'[1]Funder Arm Rev'!$N$19:$Y$42,10,FALSE)) -> 0.5129479102 | D16: =VLOOKUP($A16,'[1]Funder Arm Rev'!$AA$19:$AL$41,6,FALSE)/(VLOOKUP($A16,'[1]Funder Arm Rev'!$AA$19:$AL$41,6,FALSE)+VLOOKUP($A16,'[1]Funder Arm Rev'!$AA$19:$AL$41,10,FALSE)) -> 0.515850386 | E16: =VLOOKUP($A16,'[1]Funder Arm Rev'!$AN$19:$AY$41,6,FALSE)/(VLOOKUP($A16,'[1]Funder Arm Rev'!$AN$19:$AY$41,6,FALSE)+VLOOKUP($A16,'[1]Funder Arm Rev'!$AN$19:$AY$41,10,FALSE)) -> 0.521836368 | F16: =VLOOKUP($A16,'[1]Funder Arm Rev'!$A$99:$L$127,6,FALSE)/(VLOOKUP($A16,'[1]Funder Arm Rev'!$A$99:$L$127,6,FALSE)+VLOOKUP($A16,'[1]Funder Arm Rev'!$A$99:$L$127,10,FALSE)) -> 0.5190564703 | G16: =VLOOKUP($A16,'[1]Funder Arm Rev'!$N$132:$Y$160,6,FALSE) -> 0.5220150538 | H16: =VLOOKUP($A16,'[1]Funder Arm Rev'!$AA$132:$AL$160,6,FALSE) -> 0.5321996118 | I16: =VLOOKUP($A16,'[1]Funder Arm Rev'!$AN$132:$AY$160,6,FALSE) -> 0.5384155337 | J16: =VLOOKUP($A16,'[1]Funder Arm Rev'!$A$231:$L$259,6,FALSE) -> 0.5482228668 | K16: =VLOOKUP($A16,'[2]Funder Arm Rev'!$N$231:$X$259,6,FALSE) -> 0.5571718759 | L16: =VLOOKUP($A16,'[2]Funder Arm Rev'!$AA$231:$AK$259,6,FALSE) -> 0.5434533614
A17: Hutt Valley DHB | B17: =VLOOKUP($A17,'[1]Funder Arm Rev'!A$19:L$42,6,FALSE)/(VLOOKUP($A17,'[1]Funder Arm Rev'!A$19:L$42,6,FALSE)+VLOOKUP($A17,'[1]Funder Arm Rev'!A$19:L$42,10,FALSE)) -> 0.417360001 | C17: =VLOOKUP($A17,'[1]Funder Arm Rev'!$N$19:$Y$42,6,FALSE)/(VLOOKUP($A17,'[1]Funder Arm Rev'!$N$19:$Y$42,6,FALSE)+VLOOKUP($A17,'[1]Funder Arm Rev'!$N$19:$Y$42,10,FALSE)) -> 0.4310534109 | D17: =VLOOKUP($A17,'[1]Funder Arm Rev'!$AA$19:$AL$41,6,FALSE)/(VLOOKUP($A17,'[1]Funder Arm Rev'!$AA$19:$AL$41,6,FALSE)+VLOOKUP($A17,'[1]Funder Arm Rev'!$AA$19:$AL$41,10,FALSE)) -> 0.4386645238 | E17: =VLOOKUP($A17,'[1]Funder Arm Rev'!$AN$19:$AY$41,6,FALSE)/(VLOOKUP($A17,'[1]Funder Arm Rev'!$AN$19:$AY$41,6,FALSE)+VLOOKUP($A17,'[1]Funder Arm Rev'!$AN$19:$AY$41,10,FALSE)) -> 0.4588791686 | F17: =VLOOKUP($A17,'[1]Funder Arm Rev'!$A$99:$L$127,6,FALSE)/(VLOOKUP($A17,'[1]Funder Arm Rev'!$A$99:$L$127,6,FALSE)+VLOOKUP($A17,'[1]Funder Arm Rev'!$A$99:$L$127,10,FALSE)) -> 0.4464043419 | G17: =VLOOKUP($A17,'[1]Funder Arm Rev'!$N$132:$Y$160,6,FALSE) -> 0.446291859 | H17: =VLOOKUP($A17,'[1]Funder Arm Rev'!$AA$132:$AL$160,6,FALSE) -> 0.4494688852 | I17: =VLOOKUP($A17,'[1]Funder Arm Rev'!$AN$132:$AY$160,6,FALSE) -> 0.4449352424 | J17: =VLOOKUP($A17,'[1]Funder Arm Rev'!$A$231:$L$259,6,FALSE) -> 0.4299605483 | K17: =VLOOKUP($A17,'[2]Funder Arm Rev'!$N$231:$X$259,6,FALSE) -> 0.420392714 | L17: =VLOOKUP($A17,'[2]Funder Arm Rev'!$AA$231:$AK$259,6,FALSE) -> 0.4193807677
A18: Lakes DHB | B18: =VLOOKUP($A18,'[1]Funder Arm Rev'!A$19:L$42,6,FALSE)/(VLOOKUP($A18,'[1]Funder Arm Rev'!A$19:L$42,6,FALSE)+VLOOKUP($A18,'[1]Funder Arm Rev'!A$19:L$42,10,FALSE)) -> 0.4823777937 | C18: =VLOOKUP($A18,'[1]Funder Arm Rev'!$N$19:$Y$42,6,FALSE)/(VLOOKUP($A18,'[1]Funder Arm Rev'!$N$19:$Y$42,6,FALSE)+VLOOKUP($A18,'[1]Funder Arm Rev'!$N$19:$Y$42,10,FALSE)) -> 0.4741608805 | D18: =VLOOKUP($A18,'[1]Funder Arm Rev'!$AA$19:$AL$41,6,FALSE)/(VLOOKUP($A18,'[1]Funder Arm Rev'!$AA$19:$AL$41,6,FALSE)+VLOOKUP($A18,'[1]Funder Arm Rev'!$AA$19:$AL$41,10,FALSE)) -> 0.4815928205 | E18: =VLOOKUP($A18,'[1]Funder Arm Rev'!$AN$19:$AY$41,6,FALSE)/(VLOOKUP($A18,'[1]Funder Arm Rev'!$AN$19:$AY$41,6,FALSE)+VLOOKUP($A18,'[1]Funder Arm Rev'!$AN$19:$AY$41,10,FALSE)) -> 0.469397334 | F18: =VLOOKUP($A18,'[1]Funder Arm Rev'!$A$99:$L$127,6,FALSE)/(VLOOKUP($A18,'[1]Funder Arm Rev'!$A$99:$L$127,6,FALSE)+VLOOKUP($A18,'[1]Funder Arm Rev'!$A$99:$L$127,10,FALSE)) -> 0.4884744724 | G18: =VLOOKUP($A18,'[1]Funder Arm Rev'!$N$132:$Y$160,6,FALSE) -> 0.484015172 | H18: =VLOOKUP($A18,'[1]Funder Arm Rev'!$AA$132:$AL$160,6,FALSE) -> 0.4947789329 | I18: =VLOOKUP($A18,'[1]Funder Arm Rev'!$AN$132:$AY$160,6,FALSE) -> 0.4961697601 | J18: =VLOOKUP($A18,'[1]Funder Arm Rev'!$A$231:$L$259,6,FALSE) -> 0.4950240711 | K18: =VLOOKUP($A18,'[2]Funder Arm Rev'!$N$231:$X$259,6,FALSE) -> 0.4860556698 | L18: =VLOOKUP($A18,'[2]Funder Arm Rev'!$AA$231:$AK$259,6,FALSE) -> 0.5001270218
A19: MidCentral DHB | B19: =VLOOKUP($A19,'[1]Funder Arm Rev'!A$19:L$42,6,FALSE)/(VLOOKUP($A19,'[1]Funder Arm Rev'!A$19:L$42,6,FALSE)+VLOOKUP($A19,'[1]Funder Arm Rev'!A$19:L$42,10,FALSE)) -> 0.5364747177 | C19: =VLOOKUP($A19,'[1]Funder Arm Rev'!$N$19:$Y$42,6,FALSE)/(VLOOKUP($A19,'[1]Funder Arm Rev'!$N$19:$Y$42,6,FALSE)+VLOOKUP($A19,'[1]Funder Arm Rev'!$N$19:$Y$42,10,FALSE)) -> 0.535921816 | D19: =VLOOKUP($A19,'[1]Funder Arm Rev'!$AA$19:$AL$41,6,FALSE)/(VLOOKUP($A19,'[1]Funder Arm Rev'!$AA$19:$AL$41,6,FALSE)+VLOOKUP($A19,'[1]Funder Arm Rev'!$AA$19:$AL$41,10,FALSE)) -> 0.5310089861 | E19: =VLOOKUP($A19,'[1]Funder Arm Rev'!$AN$19:$AY$41,6,FALSE)/(VLOOKUP($A19,'[1]Funder Arm Rev'!$AN$19:$AY$41,6,FALSE)+VLOOKUP($A19,'[1]Funder Arm Rev'!$AN$19:$AY$41,10,FALSE)) -> 0.5367426092 | F19: =VLOOKUP($A19,'[1]Funder Arm Rev'!$A$99:$L$127,6,FALSE)/(VLOOKUP($A19,'[1]Funder Arm Rev'!$A$99:$L$127,6,FALSE)+VLOOKUP($A19,'[1]Funder Arm Rev'!$A$99:$L$127,10,FALSE)) -> 0.5398617406 | G19: =VLOOKUP($A19,'[1]Funder Arm Rev'!$N$132:$Y$160,6,FALSE) -> 0.536948075 | H19: =VLOOKUP($A19,'[1]Funder Arm Rev'!$AA$132:$AL$160,6,FALSE) -> 0.5400298593 | I19: =VLOOKUP($A19,'[1]Funder Arm Rev'!$AN$132:$AY$160,6,FALSE) -> 0.537376763 | J19: =VLOOKUP($A19,'[1]Funder Arm Rev'!$A$231:$L$259,6,FALSE) -> 0.533267746 | K19: =VLOOKUP($A19,'[2]Funder Arm Rev'!$N$231:$X$259,6,FALSE) -> 0.5363730005 | L19: =VLOOKUP($A19,'[2]Funder Arm Rev'!$AA$231:$AK$259,6,FALSE) -> 0.5198301479
A20: Nelson Marlborough DHB | B20: =VLOOKUP($A20,'[1]Funder Arm Rev'!A$19:L$42,6,FALSE)/(VLOOKUP($A20,'[1]Funder Arm Rev'!A$19:L$42,6,FALSE)+VLOOKUP($A20,'[1]Funder Arm Rev'!A$19:L$42,10,FALSE)) -> 0.5488483234 | C20: =VLOOKUP($A20,'[1]Funder Arm Rev'!$N$19:$Y$42,6,FALSE)/(VLOOKUP($A20,'[1]Funder Arm Rev'!$N$19:$Y$42,6,FALSE)+VLOOKUP($A20,'[1]Funder Arm Rev'!$N$19:$Y$42,10,FALSE)) -> 0.5547336667 | D20: =VLOOKUP($A20,'[1]Funder Arm Rev'!$AA$19:$AL$41,6,FALSE)/(VLOOKUP($A20,'[1]Funder Arm Rev'!$AA$19:$AL$41,6,FALSE)+VLOOKUP($A20,'[1]Funder Arm Rev'!$AA$19:$AL$41,10,FALSE)) -> 0.5429422783 | E20: =VLOOKUP($A20,'[1]Funder Arm Rev'!$AN$19:$AY$41,6,FALSE)/(VLOOKUP($A20,'[1]Funder Arm Rev'!$AN$19:$AY$41,6,FALSE)+VLOOKUP($A20,'[1]Funder Arm Rev'!$AN$19:$AY$41,10,FALSE)) -> 0.5425311844 | F20: =VLOOKUP($A20,'[1]Funder Arm Rev'!$A$99:$L$127,6,FALSE)/(VLOOKUP($A20,'[1]Funder Arm Rev'!$A$99:$L$127,6,FALSE)+VLOOKUP($A20,'[1]Funder Arm Rev'!$A$99:$L$127,10,FALSE)) -> 0.5364016262 | G20: =VLOOKUP($A20,'[1]Funder Arm Rev'!$N$132:$Y$160,6,FALSE) -> 0.5359370389 | H20: =VLOOKUP($A20,'[1]Funder Arm Rev'!$AA$132:$AL$160,6,FALSE) -> 0.5344703407 | I20: =VLOOKUP($A20,'[1]Funder Arm Rev'!$AN$132:$AY$160,6,FALSE) -> 0.535504873 | J20: =VLOOKUP($A20,'[1]Funder Arm Rev'!$A$231:$L$259,6,FALSE) -> 0.5391164937 | K20: =VLOOKUP($A20,'[2]Funder Arm Rev'!$N$231:$X$259,6,FALSE) -> 0.5351200146 | L20: =VLOOKUP($A20,'[2]Funder Arm Rev'!$AA$231:$AK$259,6,FALSE) -> 0.5409067521
A21: Northland DHB | B21: =VLOOKUP($A21,'[1]Funder Arm Rev'!A$19:L$42,6,FALSE)/(VLOOKUP($A21,'[1]Funder Arm Rev'!A$19:L$42,6,FALSE)+VLOOKUP($A21,'[1]Funder Arm Rev'!A$19:L$42,10,FALSE)) -> 0.4811260012 | C21: =VLOOKUP($A21,'[1]Funder Arm Rev'!$N$19:$Y$42,6,FALSE)/(VLOOKUP($A21,'[1]Funder Arm Rev'!$N$19:$Y$42,6,FALSE)+VLOOKUP($A21,'[1]Funder Arm Rev'!$N$19:$Y$42,10,FALSE)) -> 0.4868015343 | D21: =VLOOKUP($A21,'[1]Funder Arm Rev'!$AA$19:$AL$41,6,FALSE)/(VLOOKUP($A21,'[1]Funder Arm Rev'!$AA$19:$AL$41,6,FALSE)+VLOOKUP($A21,'[1]Funder Arm Rev'!$AA$19:$AL$41,10,FALSE)) -> 0.5077934614 | E21: =VLOOKUP($A21,'[1]Funder Arm Rev'!$AN$19:$AY$41,6,FALSE)/(VLOOKUP($A21,'[1]Funder Arm Rev'!$AN$19:$AY$41,6,FALSE)+VLOOKUP($A21,'[1]Funder Arm Rev'!$AN$19:$AY$41,10,FALSE)) -> 0.5130809222 | F21: =VLOOKUP($A21,'[1]Funder Arm Rev'!$A$99:$L$127,6,FALSE)/(VLOOKUP($A21,'[1]Funder Arm Rev'!$A$99:$L$127,6,FALSE)+VLOOKUP($A21,'[1]Funder Arm Rev'!$A$99:$L$127,10,FALSE)) -> 0.5195449573 | G21: =VLOOKUP($A21,'[1]Funder Arm Rev'!$N$132:$Y$160,6,FALSE) -> 0.5218546984 | H21: =VLOOKUP($A21,'[1]Funder Arm Rev'!$AA$132:$AL$160,6,FALSE) -> 0.5340867024 | I21: =VLOOKUP($A21,'[1]Funder Arm Rev'!$AN$132:$AY$160,6,FALSE) -> 0.531322208 | J21: =VLOOKUP($A21,'[1]Funder Arm Rev'!$A$231:$L$259,6,FALSE) -> 0.537772381 | K21: =VLOOKUP($A21,'[2]Funder Arm Rev'!$N$231:$X$259,6,FALSE) -> 0.5370463588 | L21: =VLOOKUP($A21,'[2]Funder Arm Rev'!$AA$231:$AK$259,6,FALSE) -> 0.5412277504
A22: Otago DHB | B22: =VLOOKUP($A22,'[1]Funder Arm Rev'!A$19:L$42,6,FALSE)/(VLOOKUP($A22,'[1]Funder Arm Rev'!A$19:L$42,6,FALSE)+VLOOKUP($A22,'[1]Funder Arm Rev'!A$19:L$42,10,FALSE)) -> 0.5092130448 | C22: =VLOOKUP($A22,'[1]Funder Arm Rev'!$N$19:$Y$42,6,FALSE)/(VLOOKUP($A22,'[1]Funder Arm Rev'!$N$19:$Y$42,6,FALSE)+VLOOKUP($A22,'[1]Funder Arm Rev'!$N$19:$Y$42,10,FALSE)) -> 0.5176139108
A23: South Canterbury DHB | B23: =VLOOKUP($A23,'[1]Funder Arm Rev'!A$19:L$42,6,FALSE)/(VLOOKUP($A23,'[1]Funder Arm Rev'!A$19:L$42,6,FALSE)+VLOOKUP($A23,'[1]Funder Arm Rev'!A$19:L$42,10,FALSE)) -> 0.4582651633 | C23: =VLOOKUP($A23,'[1]Funder Arm Rev'!$N$19:$Y$42,6,FALSE)/(VLOOKUP($A23,'[1]Funder Arm Rev'!$N$19:$Y$42,6,FALSE)+VLOOKUP($A23,'[1]Funder Arm Rev'!$N$19:$Y$42,10,FALSE)) -> 0.4701540803 | D23: =VLOOKUP($A23,'[1]Funder Arm Rev'!$AA$19:$AL$41,6,FALSE)/(VLOOKUP($A23,'[1]Funder Arm Rev'!$AA$19:$AL$41,6,FALSE)+VLOOKUP($A23,'[1]Funder Arm Rev'!$AA$19:$AL$41,10,FALSE)) -> 0.4689585531 | E23: =VLOOKUP($A23,'[1]Funder Arm Rev'!$AN$19:$AY$41,6,FALSE)/(VLOOKUP($A23,'[1]Funder Arm Rev'!$AN$19:$AY$41,6,FALSE)+VLOOKUP($A23,'[1]Funder Arm Rev'!$AN$19:$AY$41,10,FALSE)) -> 0.481618982 | F23: =VLOOKUP($A23,'[1]Funder Arm Rev'!$A$99:$L$127,6,FALSE)/(VLOOKUP($A23,'[1]Funder Arm Rev'!$A$99:$L$127,6,FALSE)+VLOOKUP($A23,'[1]Funder Arm Rev'!$A$99:$L$127,10,FALSE)) -> 0.4892841247 | G23: =VLOOKUP($A23,'[1]Funder Arm Rev'!$N$132:$Y$160,6,FALSE) -> 0.4890846923 | H23: =VLOOKUP($A23,'[1]Funder Arm Rev'!$AA$132:$AL$160,6,FALSE) -> 0.5029543704 | I23: =VLOOKUP($A23,'[1]Funder Arm Rev'!$AN$132:$AY$160,6,FALSE) -> 0.4899464884 | J23: =VLOOKUP($A23,'[1]Funder Arm Rev'!$A$231:$L$259,6,FALSE) -> 0.4932359522 | K23: =VLOOKUP($A23,'[2]Funder Arm Rev'!$N$231:$X$259,6,FALSE) -> 0.4796942821 | L23: =VLOOKUP($A23,'[2]Funder Arm Rev'!$AA$231:$AK$259,6,FALSE) -> 0.4719641979
A24: Southern DHB | D24: =VLOOKUP($A24,'[1]Funder Arm Rev'!$AA$19:$AL$41,6,FALSE)/(VLOOKUP($A24,'[1]Funder Arm Rev'!$AA$19:$AL$41,6,FALSE)+VLOOKUP($A24,'[1]Funder Arm Rev'!$AA$19:$AL$41,10,FALSE)) -> 0.5254751067 | E24: =VLOOKUP($A24,'[1]Funder Arm Rev'!$AN$19:$AY$41,6,FALSE)/(VLOOKUP($A24,'[1]Funder Arm Rev'!$AN$19:$AY$41,6,FALSE)+VLOOKUP($A24,'[1]Funder Arm Rev'!$AN$19:$AY$41,10,FALSE)) -> 0.5487161544 | F24: =VLOOKUP($A24,'[1]Funder Arm Rev'!$A$99:$L$127,6,FALSE)/(VLOOKUP($A24,'[1]Funder Arm Rev'!$A$99:$L$127,6,FALSE)+VLOOKUP($A24,'[1]Funder Arm Rev'!$A$99:$L$127,10,FALSE)) -> 0.5452411099 | G24: =VLOOKUP($A24,'[1]Funder Arm Rev'!$N$132:$Y$160,6,FALSE) -> 0.5419012993 | H24: =VLOOKUP($A24,'[1]Funder Arm Rev'!$AA$132:$AL$160,6,FALSE) -> 0.5377322944 | I24: =VLOOKUP($A24,'[1]Funder Arm Rev'!$AN$132:$AY$160,6,FALSE) -> 0.5502735627 | J24: =VLOOKUP($A24,'[1]Funder Arm Rev'!$A$231:$L$259,6,FALSE) -> 0.5604454551 | K24: =VLOOKUP($A24,'[2]Funder Arm Rev'!$N$231:$X$259,6,FALSE) -> 0.5589694871 | L24: =VLOOKUP($A24,'[2]Funder Arm Rev'!$AA$231:$AK$259,6,FALSE) -> 0.5532215644
A25: Southland DHB | B25: =VLOOKUP($A25,'[1]Funder Arm Rev'!A$19:L$42,6,FALSE)/(VLOOKUP($A25,'[1]Funder Arm Rev'!A$19:L$42,6,FALSE)+VLOOKUP($A25,'[1]Funder Arm Rev'!A$19:L$42,10,FALSE)) -> 0.4723732656 | C25: =VLOOKUP($A25,'[1]Funder Arm Rev'!$N$19:$Y$42,6,FALSE)/(VLOOKUP($A25,'[1]Funder Arm Rev'!$N$19:$Y$42,6,FALSE)+VLOOKUP($A25,'[1]Funder Arm Rev'!$N$19:$Y$42,10,FALSE)) -> 0.4880973999
A26: Tairawhiti DHB | B26: =VLOOKUP($A26,'[1]Funder Arm Rev'!A$19:L$42,6,FALSE)/(VLOOKUP($A26,'[1]Funder Arm Rev'!A$19:L$42,6,FALSE)+VLOOKUP($A26,'[1]Funder Arm Rev'!A$19:L$42,10,FALSE)) -> 0.5257519973 | C26: =VLOOKUP($A26,'[1]Funder Arm Rev'!$N$19:$Y$42,6,FALSE)/(VLOOKUP($A26,'[1]Funder Arm Rev'!$N$19:$Y$42,6,FALSE)+VLOOKUP($A26,'[1]Funder Arm Rev'!$N$19:$Y$42,10,FALSE)) -> 0.5148048568 | D26: =VLOOKUP($A26,'[1]Funder Arm Rev'!$AA$19:$AL$41,6,FALSE)/(VLOOKUP($A26,'[1]Funder Arm Rev'!$AA$19:$AL$41,6,FALSE)+VLOOKUP($A26,'[1]Funder Arm Rev'!$AA$19:$AL$41,10,FALSE)) -> 0.5257668747 | E26: =VLOOKUP($A26,'[1]Funder Arm Rev'!$AN$19:$AY$41,6,FALSE)/(VLOOKUP($A26,'[1]Funder Arm Rev'!$AN$19:$AY$41,6,FALSE)+VLOOKUP($A26,'[1]Funder Arm Rev'!$AN$19:$AY$41,10,FALSE)) -> 0.5256871827 | F26: =VLOOKUP($A26,'[1]Funder Arm Rev'!$A$99:$L$127,6,FALSE)/(VLOOKUP($A26,'[1]Funder Arm Rev'!$A$99:$L$127,6,FALSE)+VLOOKUP($A26,'[1]Funder Arm Rev'!$A$99:$L$127,10,FALSE)) -> 0.5412499478 | G26: =VLOOKUP($A26,'[1]Funder Arm Rev'!$N$132:$Y$160,6,FALSE) -> 0.5470023657 | H26: =VLOOKUP($A26,'[1]Funder Arm Rev'!$AA$132:$AL$160,6,FALSE) -> 0.5518007082 | I26: =VLOOKUP($A26,'[1]Funder Arm Rev'!$AN$132:$AY$160,6,FALSE) -> 0.5474564698 | J26: =VLOOKUP($A26,'[1]Funder Arm Rev'!$A$231:$L$259,6,FALSE) -> 0.5330423432 | K26: =VLOOKUP($A26,'[2]Funder Arm Rev'!$N$231:$X$259,6,FALSE) -> 0.5230530802 | L26: =VLOOKUP($A26,'[2]Funder Arm Rev'!$AA$231:$AK$259,6,FALSE) -> 0.5125302602
A27: Taranaki DHB | B27: =VLOOKUP($A27,'[1]Funder Arm Rev'!A$19:L$42,6,FALSE)/(VLOOKUP($A27,'[1]Funder Arm Rev'!A$19:L$42,6,FALSE)+VLOOKUP($A27,'[1]Funder Arm Rev'!A$19:L$42,10,FALSE)) -> 0.5376111159 | C27: =VLOOKUP($A27,'[1]Funder Arm Rev'!$N$19:$Y$42,6,FALSE)/(VLOOKUP($A27,'[1]Funder Arm Rev'!$N$19:$Y$42,6,FALSE)+VLOOKUP($A27,'[1]Funder Arm Rev'!$N$19:$Y$42,10,FALSE)) -> 0.5383112283 | D27: =VLOOKUP($A27,'[1]Funder Arm Rev'!$AA$19:$AL$41,6,FALSE)/(VLOOKUP($A27,'[1]Funder Arm Rev'!$AA$19:$AL$41,6,FALSE)+VLOOKUP($A27,'[1]Funder Arm Rev'!$AA$19:$AL$41,10,FALSE)) -> 0.5211872912 | E27: =VLOOKUP($A27,'[1]Funder Arm Rev'!$AN$19:$AY$41,6,FALSE)/(VLOOKUP($A27,'[1]Funder Arm Rev'!$AN$19:$AY$41,6,FALSE)+VLOOKUP($A27,'[1]Funder Arm Rev'!$AN$19:$AY$41,10,FALSE)) -> 0.5270673599 | F27: =VLOOKUP($A27,'[1]Funder Arm Rev'!$A$99:$L$127,6,FALSE)/(VLOOKUP($A27,'[1]Funder Arm Rev'!$A$99:$L$127,6,FALSE)+VLOOKUP($A27,'[1]Funder Arm Rev'!$A$99:$L$127,10,FALSE)) -> 0.5215571599 | G27: =VLOOKUP($A27,'[1]Funder Arm Rev'!$N$132:$Y$160,6,FALSE) -> 0.5269693364 | H27: =VLOOKUP($A27,'[1]Funder Arm Rev'!$AA$132:$AL$160,6,FALSE) -> 0.5185396203 | I27: =VLOOKUP($A27,'[1]Funder Arm Rev'!$AN$132:$AY$160,6,FALSE) -> 0.5226411279 | J27: =VLOOKUP($A27,'[1]Funder Arm Rev'!$A$231:$L$259,6,FALSE) -> 0.5273536265 | K27: =VLOOKUP($A27,'[2]Funder Arm Rev'!$N$231:$X$259,6,FALSE) -> 0.5366311321 | L27: =VLOOKUP($A27,'[2]Funder Arm Rev'!$AA$231:$AK$259,6,FALSE) -> 0.5217702493
A28: Waikato DHB | B28: =VLOOKUP($A28,'[1]Funder Arm Rev'!A$19:L$42,6,FALSE)/(VLOOKUP($A28,'[1]Funder Arm Rev'!A$19:L$42,6,FALSE)+VLOOKUP($A28,'[1]Funder Arm Rev'!A$19:L$42,10,FALSE)) -> 0.5841366485 | C28: =VLOOKUP($A28,'[1]Funder Arm Rev'!$N$19:$Y$42,6,FALSE)/(VLOOKUP($A28,'[1]Funder Arm Rev'!$N$19:$Y$42,6,FALSE)+VLOOKUP($A28,'[1]Funder Arm Rev'!$N$19:$Y$42,10,FALSE)) -> 0.5967848559 | D28: =VLOOKUP($A28,'[1]Funder Arm Rev'!$AA$19:$AL$41,6,FALSE)/(VLOOKUP($A28,'[1]Funder Arm Rev'!$AA$19:$AL$41,6,FALSE)+VLOOKUP($A28,'[1]Funder Arm Rev'!$AA$19:$AL$41,10,FALSE)) -> 0.6059545242 | E28: =VLOOKUP($A28,'[1]Funder Arm Rev'!$AN$19:$AY$41,6,FALSE)/(VLOOKUP($A28,'[1]Funder Arm Rev'!$AN$19:$AY$41,6,FALSE)+VLOOKUP($A28,'[1]Funder Arm Rev'!$AN$19:$AY$41,10,FALSE)) -> 0.5958900266 | F28: =VLOOKUP($A28,'[1]Funder Arm Rev'!$A$99:$L$127,6,FALSE)/(VLOOKUP($A28,'[1]Funder Arm Rev'!$A$99:$L$127,6,FALSE)+VLOOKUP($A28,'[1]Funder Arm Rev'!$A$99:$L$127,10,FALSE)) -> 0.6102648671 | G28: =VLOOKUP($A28,'[1]Funder Arm Rev'!$N$132:$Y$160,6,FALSE) -> 0.6103070539 | H28: =VLOOKUP($A28,'[1]Funder Arm Rev'!$AA$132:$AL$160,6,FALSE) -> 0.6111678089 | I28: =VLOOKUP($A28,'[1]Funder Arm Rev'!$AN$132:$AY$160,6,FALSE) -> 0.611145734 | J28: =VLOOKUP($A28,'[1]Funder Arm Rev'!$A$231:$L$259,6,FALSE) -> 0.6103034909 | K28: =VLOOKUP($A28,'[2]Funder Arm Rev'!$N$231:$X$259,6,FALSE) -> 0.6249095198 | L28: =VLOOKUP($A28,'[2]Funder Arm Rev'!$AA$231:$AK$259,6,FALSE) -> 0.6266555661
A29: Wairarapa DHB | B29: =VLOOKUP($A29,'[1]Funder Arm Rev'!A$19:L$42,6,FALSE)/(VLOOKUP($A29,'[1]Funder Arm Rev'!A$19:L$42,6,FALSE)+VLOOKUP($A29,'[1]Funder Arm Rev'!A$19:L$42,10,FALSE)) -> 0.4507951893 | C29: =VLOOKUP($A29,'[1]Funder Arm Rev'!$N$19:$Y$42,6,FALSE)/(VLOOKUP($A29,'[1]Funder Arm Rev'!$N$19:$Y$42,6,FALSE)+VLOOKUP($A29,'[1]Funder Arm Rev'!$N$19:$Y$42,10,FALSE)) -> 0.4495168069 | D29: =VLOOKUP($A29,'[1]Funder Arm Rev'!$AA$19:$AL$41,6,FALSE)/(VLOOKUP($A29,'[1]Funder Arm Rev'!$AA$19:$AL$41,6,FALSE)+VLOOKUP($A29,'[1]Funder Arm Rev'!$AA$19:$AL$41,10,FALSE)) -> 0.4350659848 | E29: =VLOOKUP($A29,'[1]Funder Arm Rev'!$AN$19:$AY$41,6,FALSE)/(VLOOKUP($A29,'[1]Funder Arm Rev'!$AN$19:$AY$41,6,FALSE)+VLOOKUP($A29,'[1]Funder Arm Rev'!$AN$19:$AY$41,10,FALSE)) -> 0.4297919731 | F29: =VLOOKUP($A29,'[1]Funder Arm Rev'!$A$99:$L$127,6,FALSE)/(VLOOKUP($A29,'[1]Funder Arm Rev'!$A$99:$L$127,6,FALSE)+VLOOKUP($A29,'[1]Funder Arm Rev'!$A$99:$L$127,10,FALSE)) -> 0.4307219539 | G29: =VLOOKUP($A29,'[1]Funder Arm Rev'!$N$132:$Y$160,6,FALSE) -> 0.4341722906 | H29: =VLOOKUP($A29,'[1]Funder Arm Rev'!$AA$132:$AL$160,6,FALSE) -> 0.4361103337 | I29: =VLOOKUP($A29,'[1]Funder Arm Rev'!$AN$132:$AY$160,6,FALSE) -> 0.4233165891 | J29: =VLOOKUP($A29,'[1]Funder Arm Rev'!$A$231:$L$259,6,FALSE) -> 0.418812744 | K29: =VLOOKUP($A29,'[2]Funder Arm Rev'!$N$231:$X$259,6,FALSE) -> 0.4285740568 | L29: =VLOOKUP($A29,'[2]Funder Arm Rev'!$AA$231:$AK$259,6,FALSE) -> 0.4189465712
A30: Waitemata DHB | B30: =VLOOKUP($A30,'[1]Funder Arm Rev'!A$19:L$42,6,FALSE)/(VLOOKUP($A30,'[1]Funder Arm Rev'!A$19:L$42,6,FALSE)+VLOOKUP($A30,'[1]Funder Arm Rev'!A$19:L$42,10,FALSE)) -> 0.4694600206 | C30: =VLOOKUP($A30,'[1]Funder Arm Rev'!$N$19:$Y$42,6,FALSE)/(VLOOKUP($A30,'[1]Funder Arm Rev'!$N$19:$Y$42,6,FALSE)+VLOOKUP($A30,'[1]Funder Arm Rev'!$N$19:$Y$42,10,FALSE)) -> 0.4832453338 | D30: =VLOOKUP($A30,'[1]Funder Arm Rev'!$AA$19:$AL$41,6,FALSE)/(VLOOKUP($A30,'[1]Funder Arm Rev'!$AA$19:$AL$41,6,FALSE)+VLOOKUP($A30,'[1]Funder Arm Rev'!$AA$19:$AL$41,10,FALSE)) -> 0.4812321887 | E30: =VLOOKUP($A30,'[1]Funder Arm Rev'!$AN$19:$AY$41,6,FALSE)/(VLOOKUP($A30,'[1]Funder Arm Rev'!$AN$19:$AY$41,6,FALSE)+VLOOKUP($A30,'[1]Funder Arm Rev'!$AN$19:$AY$41,10,FALSE)) -> 0.4825222821 | F30: =VLOOKUP($A30,'[1]Funder Arm Rev'!$A$99:$L$127,6,FALSE)/(VLOOKUP($A30,'[1]Funder Arm Rev'!$A$99:$L$127,6,FALSE)+VLOOKUP($A30,'[1]Funder Arm Rev'!$A$99:$L$127,10,FALSE)) -> 0.491665904 | G30: =VLOOKUP($A30,'[1]Funder Arm Rev'!$N$132:$Y$160,6,FALSE) -> 0.4977752131 | H30: =VLOOKUP($A30,'[1]Funder Arm Rev'!$AA$132:$AL$160,6,FALSE) -> 0.5059992559 | I30: =VLOOKUP($A30,'[1]Funder Arm Rev'!$AN$132:$AY$160,6,FALSE) -> 0.5279479984 | J30: =VLOOKUP($A30,'[1]Funder Arm Rev'!$A$231:$L$259,6,FALSE) -> 0.5234422697 | K30: =VLOOKUP($A30,'[2]Funder Arm Rev'!$N$231:$X$259,6,FALSE) -> 0.5235887529 | L30: =VLOOKUP($A30,'[2]Funder Arm Rev'!$AA$231:$AK$259,6,FALSE) -> 0.52376175
A31: West Coast DHB | B31: =VLOOKUP($A31,'[1]Funder Arm Rev'!A$19:L$42,6,FALSE)/(VLOOKUP($A31,'[1]Funder Arm Rev'!A$19:L$42,6,FALSE)+VLOOKUP($A31,'[1]Funder Arm Rev'!A$19:L$42,10,FALSE)) -> 0.5861212214 | C31: =VLOOKUP($A31,'[1]Funder Arm Rev'!$N$19:$Y$42,6,FALSE)/(VLOOKUP($A31,'[1]Funder Arm Rev'!$N$19:$Y$42,6,FALSE)+VLOOKUP($A31,'[1]Funder Arm Rev'!$N$19:$Y$42,10,FALSE)) -> 0.5867855059 | D31: =VLOOKUP($A31,'[1]Funder Arm Rev'!$AA$19:$AL$41,6,FALSE)/(VLOOKUP($A31,'[1]Funder Arm Rev'!$AA$19:$AL$41,6,FALSE)+VLOOKUP($A31,'[1]Funder Arm Rev'!$AA$19:$AL$41,10,FALSE)) -> 0.5838299745 | E31: =VLOOKUP($A31,'[1]Funder Arm Rev'!$AN$19:$AY$41,6,FALSE)/(VLOOKUP($A31,'[1]Funder Arm Rev'!$AN$19:$AY$41,6,FALSE)+VLOOKUP($A31,'[1]Funder Arm Rev'!$AN$19:$AY$41,10,FALSE)) -> 0.5844877599 | F31: =VLOOKUP($A31,'[1]Funder Arm Rev'!$A$99:$L$127,6,FALSE)/(VLOOKUP($A31,'[1]Funder Arm Rev'!$A$99:$L$127,6,FALSE)+VLOOKUP($A31,'[1]Funder Arm Rev'!$A$99:$L$127,10,FALSE)) -> 0.5767232452 | G31: =VLOOKUP($A31,'[1]Funder Arm Rev'!$N$132:$Y$160,6,FALSE) -> 0.5774931263 | H31: =VLOOKUP($A31,'[1]Funder Arm Rev'!$AA$132:$AL$160,6,FALSE) -> 0.5902992144 | I31: =VLOOKUP($A31,'[1]Funder Arm Rev'!$AN$132:$AY$160,6,FALSE) -> 0.5868735123 | J31: =VLOOKUP($A31,'[1]Funder Arm Rev'!$A$231:$L$259,6,FALSE) -> 0.5767288923 | K31: =VLOOKUP($A31,'[2]Funder Arm Rev'!$N$231:$X$259,6,FALSE) -> 0.5781055368 | L31: =VLOOKUP($A31,'[2]Funder Arm Rev'!$AA$231:$AK$259,6,FALSE) -> 0.5683942703
A32: Whanganui DHB | B32: =VLOOKUP($A32,'[1]Funder Arm Rev'!A$19:L$42,6,FALSE)/(VLOOKUP($A32,'[1]Funder Arm Rev'!A$19:L$42,6,FALSE)+VLOOKUP($A32,'[1]Funder Arm Rev'!A$19:L$42,10,FALSE)) -> 0.4963851843 | C32: =VLOOKUP($A32,'[1]Funder Arm Rev'!$N$19:$Y$42,6,FALSE)/(VLOOKUP($A32,'[1]Funder Arm Rev'!$N$19:$Y$42,6,FALSE)+VLOOKUP($A32,'[1]Funder Arm Rev'!$N$19:$Y$42,10,FALSE)) -> 0.4846699518 | D32: =VLOOKUP($A32,'[1]Funder Arm Rev'!$AA$19:$AL$41,6,FALSE)/(VLOOKUP($A32,'[1]Funder Arm Rev'!$AA$19:$AL$41,6,FALSE)+VLOOKUP($A32,'[1]Funder Arm Rev'!$AA$19:$AL$41,10,FALSE)) -> 0.4943378597 | E32: =VLOOKUP($A32,'[1]Funder Arm Rev'!$AN$19:$AY$41,6,FALSE)/(VLOOKUP($A32,'[1]Funder Arm Rev'!$AN$19:$AY$41,6,FALSE)+VLOOKUP($A32,'[1]Funder Arm Rev'!$AN$19:$AY$41,10,FALSE)) -> 0.4934401783 | F32: =VLOOKUP($A32,'[1]Funder Arm Rev'!$A$99:$L$127,6,FALSE)/(VLOOKUP($A32,'[1]Funder Arm Rev'!$A$99:$L$127,6,FALSE)+VLOOKUP($A32,'[1]Funder Arm Rev'!$A$99:$L$127,10,FALSE)) -> 0.5020143572 | G32: =VLOOKUP($A32,'[1]Funder Arm Rev'!$N$132:$Y$160,6,FALSE) -> 0.4994339802 | H32: =VLOOKUP($A32,'[1]Funder Arm Rev'!$AA$132:$AL$160,6,FALSE) -> 0.5099020502 | I32: =VLOOKUP($A32,'[1]Funder Arm Rev'!$AN$132:$AY$160,6,FALSE) -> 0.5041068553 | J32: =VLOOKUP($A32,'[1]Funder Arm Rev'!$A$231:$L$259,6,FALSE) -> 0.5053956519 | K32: =VLOOKUP($A32,'[2]Funder Arm Rev'!$N$231:$X$259,6,FALSE) -> 0.4961361477 | L32: =VLOOKUP($A32,'[2]Funder Arm Rev'!$AA$231:$AK$259,6,FALSE) -> 0.4992434574
A33: All DHBs | B33: =VLOOKUP($A33,'[1]Funder Arm Rev'!A$19:L$42,6,FALSE)/(VLOOKUP($A33,'[1]Funder Arm Rev'!A$19:L$42,6,FALSE)+VLOOKUP($A33,'[1]Funder Arm Rev'!A$19:L$42,10,FALSE)) -> 0.5342937714 | C33: =VLOOKUP($A33,'[1]Funder Arm Rev'!$N$19:$Y$42,6,FALSE)/(VLOOKUP($A33,'[1]Funder Arm Rev'!$N$19:$Y$42,6,FALSE)+VLOOKUP($A33,'[1]Funder Arm Rev'!$N$19:$Y$42,10,FALSE)) -> 0.5374878503 | D33: =VLOOKUP($A33,'[1]Funder Arm Rev'!$AA$19:$AL$41,6,FALSE)/(VLOOKUP($A33,'[1]Funder Arm Rev'!$AA$19:$AL$41,6,FALSE)+VLOOKUP($A33,'[1]Funder Arm Rev'!$AA$19:$AL$41,10,FALSE)) -> 0.5440310284 | E33: =VLOOKUP($A33,'[1]Funder Arm Rev'!$AN$19:$AY$41,6,FALSE)/(VLOOKUP($A33,'[1]Funder Arm Rev'!$AN$19:$AY$41,6,FALSE)+VLOOKUP($A33,'[1]Funder Arm Rev'!$AN$19:$AY$41,10,FALSE)) -> 0.5435189539 | F33: =VLOOKUP($A33,'[1]Funder Arm Rev'!$A$99:$L$127,6,FALSE)/(VLOOKUP($A33,'[1]Funder Arm Rev'!$A$99:$L$127,6,FALSE)+VLOOKUP($A33,'[1]Funder Arm Rev'!$A$99:$L$127,10,FALSE)) -> 0.550800354 | G33: =VLOOKUP($A33,'[1]Funder Arm Rev'!$N$132:$Y$160,6,FALSE) -> 0.5468406953 | H33: =VLOOKUP($A33,'[1]Funder Arm Rev'!$AA$132:$AL$160,6,FALSE) -> 0.5525966341 | I33: =VLOOKUP($A33,'[1]Funder Arm Rev'!$AN$132:$AY$160,6,FALSE) -> 0.5584905222 | J33: =VLOOKUP($A33,'[1]Funder Arm Rev'!$A$231:$L$259,6,FALSE) -> 0.5655932351 | K33: =VLOOKUP($A33,'[2]Funder Arm Rev'!$N$231:$X$259,6,FALSE) -> 0.5653760223 | L33: =VLOOKUP($A33,'[2]Funder Arm Rev'!$AA$231:$AK$259,6,FALSE) -> 0.5639344649
A35: Provider Arm | AA35: In 2017 made up of
A36: Labour ($000) | N36: Labour proportion of Provider expenditure | AA36: Medical | AB36: Nursing | AC36: Other
A37: Auckland DHB | B37: =-HLOOKUP($A37,'[1]Provider Arm'!$C$8:$Y$58,ROW('[1]Provider Arm'!$A$18)-ROW('[1]Provider Arm'!A$7),FALSE) -> 610289.951 | C37: =-HLOOKUP($A37,'[1]Provider Arm'!$C$140:$Y$190,ROW('[1]Provider Arm'!$A$150)-ROW('[1]Provider Arm'!B$139),FALSE) -> 654375.621 | D37: =-HLOOKUP($A37,'[1]Provider Arm'!$C$268:$Y$318,ROW('[1]Provider Arm'!$A$278)-ROW('[1]Provider Arm'!C$267),FALSE) -> 779807.181 | E37: =-HLOOKUP($A37,'[1]Provider Arm'!$C$394:$Y$444,ROW('[1]Provider Arm'!$A$404)-ROW('[1]Provider Arm'!D$393),FALSE) -> 714611.144 | F37: =-HLOOKUP($A37,'[1]Provider Arm'!$C$516:$AE$546,ROW('[1]Provider Arm'!$A$524)-ROW('[1]Provider Arm'!E$515),FALSE) -> 744358.113 | G37: =-HLOOKUP($A37,'[1]Provider Arm'!$C$596:$AE$626,ROW('[1]Provider Arm'!$A$604)-ROW('[1]Provider Arm'!F$595),FALSE) -> 763505.0398 | H37: =-HLOOKUP($A37,'[1]Provider Arm'!$C$676:$AE$706,ROW('[1]Provider Arm'!$A$684)-ROW('[1]Provider Arm'!G$675),FALSE) -> 801788 | I37: =-HLOOKUP($A37,'[1]Provider Arm'!$C$757:$AF$787,ROW('[1]Provider Arm'!$A$765)-ROW('[1]Provider Arm'!H$756),FALSE) -> 825625.52 | J37: =-HLOOKUP($A37,'[1]Provider Arm'!$C$838:$AF$868,ROW('[1]Provider Arm'!$A$846)-ROW('[1]Provider Arm'!I$837),FALSE) -> 863948.485 | K37: =-HLOOKUP($A37,'[2]Provider Arm'!$C$919:$AF$949,ROW('[2]Provider Arm'!$A$927)-ROW('[2]Provider Arm'!$A$918),FALSE) -> 909883.258 | L37: =-HLOOKUP($A37,'[2]Provider Arm'!$C$1000:$AF$1030,ROW('[2]Provider Arm'!$A$1008)-ROW('[2]Provider Arm'!$A$999),FALSE) -> 771490.929 | N37: Auckland DHB | O37: =B37/B112 -> 0.5950783577 | P37: 0.5935584101 | Q37: 0.6786090754 | R37: 0.5961318634 | S37: 0.6027926722 | T37: 0.6058016345 | U37: 0.6159123038 | V37: 0.6139134226 | W37: 0.6165436624 | X37: 0.6153339654 | Y37: 0.611849769 | AA37: =-HLOOKUP($A37,'[2]Provider Arm'!$C$919:$AF$949,ROW('[2]Provider Arm'!$A$922)-ROW('[2]Provider Arm'!$A$918),FALSE)/$K112 -> 0.2359146972 | AB37: =-HLOOKUP($A37,'[2]Provider Arm'!$C$919:$AF$949,ROW('[2]Provider Arm'!$A$923)-ROW('[2]Provider Arm'!$A$918),FALSE)/$K112 -> 0.2059677897 | AC37: =X37-SUM(AA37:AB37) -> 0.1734514785
A38: Bay of Plenty DHB | B38: =-HLOOKUP($A38,'[1]Provider Arm'!$C$8:$Y$58,ROW('[1]Provider Arm'!$A$18)-ROW('[1]Provider Arm'!A$7),FALSE) -> 157285 | C38: =-HLOOKUP($A38,'[1]Provider Arm'!$C$140:$Y$190,ROW('[1]Provider Arm'!$A$150)-ROW('[1]Provider Arm'!B$139),FALSE) -> 172932 | D38: =-HLOOKUP($A38,'[1]Provider Arm'!$C$268:$Y$318,ROW('[1]Provider Arm'!$A$278)-ROW('[1]Provider Arm'!C$267),FALSE) -> 184793 | E38: =-HLOOKUP($A38,'[1]Provider Arm'!$C$394:$Y$444,ROW('[1]Provider Arm'!$A$404)-ROW('[1]Provider Arm'!D$393),FALSE) -> 183779 | F38: =-HLOOKUP($A38,'[1]Provider Arm'!$C$516:$AE$546,ROW('[1]Provider Arm'!$A$524)-ROW('[1]Provider Arm'!E$515),FALSE) -> 194345 | G38: =-HLOOKUP($A38,'[1]Provider Arm'!$C$596:$AE$626,ROW('[1]Provider Arm'!$A$604)-ROW('[1]Provider Arm'!F$595),FALSE) -> 198783 | H38: =-HLOOKUP($A38,'[1]Provider Arm'!$C$676:$AE$706,ROW('[1]Provider Arm'!$A$684)-ROW('[1]Provider Arm'!G$675),FALSE) -> 207822 | I38: =-HLOOKUP($A38,'[1]Provider Arm'!$C$757:$AF$787,ROW('[1]Provider Arm'!$A$765)-ROW('[1]Provider Arm'!H$756),FALSE) -> 217150 | J38: =-HLOOKUP($A38,'[1]Provider Arm'!$C$838:$AF$868,ROW('[1]Provider Arm'!$A$846)-ROW('[1]Provider Arm'!I$837),FALSE) -> 227152.9388 | K38: =-HLOOKUP($A38,'[2]Provider Arm'!$C$919:$AF$949,ROW('[2]Provider Arm'!$A$927)-ROW('[2]Provider Arm'!$A$918),FALSE) -> 235258.5736 | L38: =-HLOOKUP($A38,'[2]Provider Arm'!$C$1000:$AF$1030,ROW('[2]Provider Arm'!$A$1008)-ROW('[2]Provider Arm'!$A$999),FALSE) -> 208015.6882 | N38: Bay of Plenty DHB | O38: =B38/B113 -> 0.606704083 | P38: =C38/C113 -> 0.6008108925 | Q38: =D38/D113 -> 0.6133779886 | R38: =E38/E113 -> 0.5971309744 | S38: =F38/F113 -> 0.5981889199 | T38: =G38/G113 -> 0.5875903778 | U38: =H38/H113 -> 0.6113166921 | V38: =I38/I113 -> 0.6013003483 | W38: =J38/J113 -> 0.5996363179 | X38: =K38/K113 -> 0.5999181123 | Y38: =L38/L113 -> 0.5855241287 | AA38: =-HLOOKUP($A38,'[2]Provider Arm'!$C$919:$AF$949,ROW('[2]Provider Arm'!$A$922)-ROW('[2]Provider Arm'!$A$918),FALSE)/$K113 -> 0.1810171595 | AB38: =-HLOOKUP($A38,'[2]Provider Arm'!$C$919:$AF$949,ROW('[2]Provider Arm'!$A$923)-ROW('[2]Provider Arm'!$A$918),FALSE)/$K113 -> 0.2402901538 | AC38: =X38-SUM(AA38:AB38) -> 0.1786107989
A39: Canterbury DHB | B39: =-HLOOKUP($A39,'[1]Provider Arm'!$C$8:$Y$58,ROW('[1]Provider Arm'!$A$18)-ROW('[1]Provider Arm'!A$7),FALSE) -> 453026 | C39: =-HLOOKUP($A39,'[1]Provider Arm'!$C$140:$Y$190,ROW('[1]Provider Arm'!$A$150)-ROW('[1]Provider Arm'!B$139),FALSE) -> 492973 | D39: =-HLOOKUP($A39,'[1]Provider Arm'!$C$268:$Y$318,ROW('[1]Provider Arm'!$A$278)-ROW('[1]Provider Arm'!C$267),FALSE) -> 525372 | E39: =-HLOOKUP($A39,'[1]Provider Arm'!$C$394:$Y$444,ROW('[1]Provider Arm'!$A$404)-ROW('[1]Provider Arm'!D$393),FALSE) -> 547514 | F39: =-HLOOKUP($A39,'[1]Provider Arm'!$C$516:$AE$546,ROW('[1]Provider Arm'!$A$524)-ROW('[1]Provider Arm'!E$515),FALSE) -> 565419 | G39: =-HLOOKUP($A39,'[1]Provider Arm'!$C$596:$AE$626,ROW('[1]Provider Arm'!$A$604)-ROW('[1]Provider Arm'!F$595),FALSE) -> 593585 | H39: =-HLOOKUP($A39,'[1]Provider Arm'!$C$676:$AE$706,ROW('[1]Provider Arm'!$A$684)-ROW('[1]Provider Arm'!G$675),FALSE) -> 614793 | I39: =-HLOOKUP($A39,'[1]Provider Arm'!$C$757:$AF$787,ROW('[1]Provider Arm'!$A$765)-ROW('[1]Provider Arm'!H$756),FALSE) -> 637642 | J39: =-HLOOKUP($A39,'[1]Provider Arm'!$C$838:$AF$868,ROW('[1]Provider Arm'!$A$846)-ROW('[1]Provider Arm'!I$837),FALSE) -> 668015 | K39: =-HLOOKUP($A39,'[2]Provider Arm'!$C$919:$AF$949,ROW('[2]Provider Arm'!$A$927)-ROW('[2]Provider Arm'!$A$918),FALSE) -> 695918 | L39: =-HLOOKUP($A39,'[2]Provider Arm'!$C$1000:$AF$1030,ROW('[2]Provider Arm'!$A$1008)-ROW('[2]Provider Arm'!$A$999),FALSE) -> 613021 | N39: Canterbury DHB | O39: 0.6353560244 | P39: 0.6443560857 | Q39: 0.6558500977 | R39: 0.6560503067 | S39: 0.6355750446 | T39: 0.6454431281 | U39: 0.6471491639 | V39: 0.6438177835 | W39: 0.6599777905 | X39: 0.6558952706 | Y39: 0.6654295673 | AA39: =-HLOOKUP($A39,'[2]Provider Arm'!$C$919:$AF$949,ROW('[2]Provider Arm'!$A$922)-ROW('[2]Provider Arm'!$A$918),FALSE)/$K114 -> 0.1898823773 | AB39: =-HLOOKUP($A39,'[2]Provider Arm'!$C$919:$AF$949,ROW('[2]Provider Arm'!$A$923)-ROW('[2]Provider Arm'!$A$918),FALSE)/$K114 -> 0.2647471301 | AC39: 0.2012657631
A40: Capital & Coast DHB | B40: =-HLOOKUP($A40,'[1]Provider Arm'!$C$8:$Y$58,ROW('[1]Provider Arm'!$A$18)-ROW('[1]Provider Arm'!A$7),FALSE) -> 285181.1206 | C40: =-HLOOKUP($A40,'[1]Provider Arm'!$C$140:$Y$190,ROW('[1]Provider Arm'!$A$150)-ROW('[1]Provider Arm'!B$139),FALSE) -> 318719.6661 | D40: =-HLOOKUP($A40,'[1]Provider Arm'!$C$268:$Y$318,ROW('[1]Provider Arm'!$A$278)-ROW('[1]Provider Arm'!C$267),FALSE) -> 346935.8619 | E40: =-HLOOKUP($A40,'[1]Provider Arm'!$C$394:$Y$444,ROW('[1]Provider Arm'!$A$404)-ROW('[1]Provider Arm'!D$393),FALSE) -> 347446.8896 | F40: =-HLOOKUP($A40,'[1]Provider Arm'!$C$516:$AE$546,ROW('[1]Provider Arm'!$A$524)-ROW('[1]Provider Arm'!E$515),FALSE) -> 366035.0532 | G40: =-HLOOKUP($A40,'[1]Provider Arm'!$C$596:$AE$626,ROW('[1]Provider Arm'!$A$604)-ROW('[1]Provider Arm'!F$595),FALSE) -> 387122.3004 | H40: =-HLOOKUP($A40,'[1]Provider Arm'!$C$676:$AE$706,ROW('[1]Provider Arm'!$A$684)-ROW('[1]Provider Arm'!G$675),FALSE) -> 403811.2265 | I40: =-HLOOKUP($A40,'[1]Provider Arm'!$C$757:$AF$787,ROW('[1]Provider Arm'!$A$765)-ROW('[1]Provider Arm'!H$756),FALSE) -> 407498.9124 | J40: =-HLOOKUP($A40,'[1]Provider Arm'!$C$838:$AF$868,ROW('[1]Provider Arm'!$A$846)-ROW('[1]Provider Arm'!I$837),FALSE) -> 428330.5533 | K40: =-HLOOKUP($A40,'[2]Provider Arm'!$C$919:$AF$949,ROW('[2]Provider Arm'!$A$927)-ROW('[2]Provider Arm'!$A$918),FALSE) -> 446899.0044 | L40: =-HLOOKUP($A40,'[2]Provider Arm'!$C$1000:$AF$1030,ROW('[2]Provider Arm'!$A$1008)-ROW('[2]Provider Arm'!$A$999),FALSE) -> 383675.7021 | N40: Capital & Coast DHB | O40: 0.5963941319 | P40: 0.6085817132 | Q40: 0.6009816282 | R40: 0.6035754835 | S40: 0.5977102127 | T40: 0.6195430746 | U40: 0.6211844077 | V40: 0.6138296012 | W40: 0.6242400865 | X40: 0.6398586252 | Y40: 0.6353136976 | AA40: =-HLOOKUP($A40,'[2]Provider Arm'!$C$919:$AF$949,ROW('[2]Provider Arm'!$A$922)-ROW('[2]Provider Arm'!$A$918),FALSE)/$K115 -> 0.212124029 | AB40: =-HLOOKUP($A40,'[2]Provider Arm'!$C$919:$AF$949,ROW('[2]Provider Arm'!$A$923)-ROW('[2]Provider Arm'!$A$918),FALSE)/$K115 -> 0.2599169681 | AC40: 0.1678176281
A41: Counties Manukau DHB | B41: =-HLOOKUP($A41,'[1]Provider Arm'!$C$8:$Y$58,ROW('[1]Provider Arm'!$A$18)-ROW('[1]Provider Arm'!A$7),FALSE) -> 339110 | C41: =-HLOOKUP($A41,'[1]Provider Arm'!$C$140:$Y$190,ROW('[1]Provider Arm'!$A$150)-ROW('[1]Provider Arm'!B$139),FALSE) -> 386917 | D41: =-HLOOKUP($A41,'[1]Provider Arm'!$C$268:$Y$318,ROW('[1]Provider Arm'!$A$278)-ROW('[1]Provider Arm'!C$267),FALSE) -> 421174 | E41: =-HLOOKUP($A41,'[1]Provider Arm'!$C$394:$Y$444,ROW('[1]Provider Arm'!$A$404)-ROW('[1]Provider Arm'!D$393),FALSE) -> 446676 | F41: =-HLOOKUP($A41,'[1]Provider Arm'!$C$516:$AE$546,ROW('[1]Provider Arm'!$A$524)-ROW('[1]Provider Arm'!E$515),FALSE) -> 476110 | G41: =-HLOOKUP($A41,'[1]Provider Arm'!$C$596:$AE$626,ROW('[1]Provider Arm'!$A$604)-ROW('[1]Provider Arm'!F$595),FALSE) -> 503484 | H41: =-HLOOKUP($A41,'[1]Provider Arm'!$C$676:$AE$706,ROW('[1]Provider Arm'!$A$684)-ROW('[1]Provider Arm'!G$675),FALSE) -> 516889 | I41: =-HLOOKUP($A41,'[1]Provider Arm'!$C$757:$AF$787,ROW('[1]Provider Arm'!$A$765)-ROW('[1]Provider Arm'!H$756),FALSE) -> 539450 | J41: =-HLOOKUP($A41,'[1]Provider Arm'!$C$838:$AF$868,ROW('[1]Provider Arm'!$A$846)-ROW('[1]Provider Arm'!I$837),FALSE) -> 554003 | K41: =-HLOOKUP($A41,'[2]Provider Arm'!$C$919:$AF$949,ROW('[2]Provider Arm'!$A$927)-ROW('[2]Provider Arm'!$A$918),FALSE) -> 580568 | L41: =-HLOOKUP($A41,'[2]Provider Arm'!$C$1000:$AF$1030,ROW('[2]Provider Arm'!$A$1008)-ROW('[2]Provider Arm'!$A$999),FALSE) -> 501039 | N41: Counties Manukau DHB | O41: 0.6054033017 | P41: 0.6251435958 | Q41: 0.6420325579 | R41: 0.5729009817 | S41: 0.645997707 | T41: 0.6587586943 | U41: 0.6476469829 | V41: 0.6461407627 | W41: 0.6443783527 | X41: 0.6467549626 | Y41: 0.6344763571 | AA41: =-HLOOKUP($A41,'[2]Provider Arm'!$C$919:$AF$949,ROW('[2]Provider Arm'!$A$922)-ROW('[2]Provider Arm'!$A$918),FALSE)/$K116 -> 0.2087921637 | AB41: =-HLOOKUP($A41,'[2]Provider Arm'!$C$919:$AF$949,ROW('[2]Provider Arm'!$A$923)-ROW('[2]Provider Arm'!$A$918),FALSE)/$K116 -> 0.2462394016 | AC41: 0.1917233973
A42: Hawke's Bay DHB | B42: =-HLOOKUP($A42,'[1]Provider Arm'!$C$8:$Y$58,ROW('[1]Provider Arm'!$A$18)-ROW('[1]Provider Arm'!A$7),FALSE) -> 137763.7881 | C42: =-HLOOKUP($A42,'[1]Provider Arm'!$C$140:$Y$190,ROW('[1]Provider Arm'!$A$150)-ROW('[1]Provider Arm'!B$139),FALSE) -> 146065.4491 | D42: =-HLOOKUP($A42,'[1]Provider Arm'!$C$268:$Y$318,ROW('[1]Provider Arm'!$A$278)-ROW('[1]Provider Arm'!C$267),FALSE) -> 152476.644 | E42: =-HLOOKUP($A42,'[1]Provider Arm'!$C$394:$Y$444,ROW('[1]Provider Arm'!$A$404)-ROW('[1]Provider Arm'!D$393),FALSE) -> 153021.8911 | F42: =-HLOOKUP($A42,'[1]Provider Arm'!$C$516:$AE$546,ROW('[1]Provider Arm'!$A$524)-ROW('[1]Provider Arm'!E$515),FALSE) -> 159889.4402 | G42: =-HLOOKUP($A42,'[1]Provider Arm'!$C$596:$AE$626,ROW('[1]Provider Arm'!$A$604)-ROW('[1]Provider Arm'!F$595),FALSE) -> 163036.8828 | H42: =-HLOOKUP($A42,'[1]Provider Arm'!$C$676:$AE$706,ROW('[1]Provider Arm'!$A$684)-ROW('[1]Provider Arm'!G$675),FALSE) -> 169920.2764 | I42: =-HLOOKUP($A42,'[1]Provider Arm'!$C$757:$AF$787,ROW('[1]Provider Arm'!$A$765)-ROW('[1]Provider Arm'!H$756),FALSE) -> 178421.9912 | J42: =-HLOOKUP($A42,'[1]Provider Arm'!$C$838:$AF$868,ROW('[1]Provider Arm'!$A$846)-ROW('[1]Provider Arm'!I$837),FALSE) -> 186575.243 | K42: =-HLOOKUP($A42,'[2]Provider Arm'!$C$919:$AF$949,ROW('[2]Provider Arm'!$A$927)-ROW('[2]Provider Arm'!$A$918),FALSE) -> 195002.0591 | L42: =-HLOOKUP($A42,'[2]Provider Arm'!$C$1000:$AF$1030,ROW('[2]Provider Arm'!$A$1008)-ROW('[2]Provider Arm'!$A$999),FALSE) -> 170391.4486 | N42: Hawke's Bay DHB | O42: 0.6303127596 | P42: 0.6181739002 | Q42: 0.6366600763 | R42: 0.6323156969 | S42: 0.6310421002 | T42: 0.6298924106 | U42: 0.6239521059 | V42: 0.6359061587 | W42: 0.6430110053 | X42: 0.6394198618 | Y42: 0.6470338502 | AA42: =-HLOOKUP($A42,'[2]Provider Arm'!$C$919:$AF$949,ROW('[2]Provider Arm'!$A$922)-ROW('[2]Provider Arm'!$A$918),FALSE)/$K117 -> 0.1763727588 | AB42: =-HLOOKUP($A42,'[2]Provider Arm'!$C$919:$AF$949,ROW('[2]Provider Arm'!$A$923)-ROW('[2]Provider Arm'!$A$918),FALSE)/$K117 -> 0.2451526917 | AC42: 0.2178944113
A43: Hutt Valley DHB | B43: =-HLOOKUP($A43,'[1]Provider Arm'!$C$8:$Y$58,ROW('[1]Provider Arm'!$A$18)-ROW('[1]Provider Arm'!A$7),FALSE) -> 120266 | C43: =-HLOOKUP($A43,'[1]Provider Arm'!$C$140:$Y$190,ROW('[1]Provider Arm'!$A$150)-ROW('[1]Provider Arm'!B$139),FALSE) -> 134819 | D43: =-HLOOKUP($A43,'[1]Provider Arm'!$C$268:$Y$318,ROW('[1]Provider Arm'!$A$278)-ROW('[1]Provider Arm'!C$267),FALSE) -> 144204 | E43: =-HLOOKUP($A43,'[1]Provider Arm'!$C$394:$Y$444,ROW('[1]Provider Arm'!$A$404)-ROW('[1]Provider Arm'!D$393),FALSE) -> 148098 | F43: =-HLOOKUP($A43,'[1]Provider Arm'!$C$516:$AE$546,ROW('[1]Provider Arm'!$A$524)-ROW('[1]Provider Arm'!E$515),FALSE) -> 151633 | G43: =-HLOOKUP($A43,'[1]Provider Arm'!$C$596:$AE$626,ROW('[1]Provider Arm'!$A$604)-ROW('[1]Provider Arm'!F$595),FALSE) -> 153214 | H43: =-HLOOKUP($A43,'[1]Provider Arm'!$C$676:$AE$706,ROW('[1]Provider Arm'!$A$684)-ROW('[1]Provider Arm'!G$675),FALSE) -> 156510 | I43: =-HLOOKUP($A43,'[1]Provider Arm'!$C$757:$AF$787,ROW('[1]Provider Arm'!$A$765)-ROW('[1]Provider Arm'!H$756),FALSE) -> 164695 | J43: =-HLOOKUP($A43,'[1]Provider Arm'!$C$838:$AF$868,ROW('[1]Provider Arm'!$A$846)-ROW('[1]Provider Arm'!I$837),FALSE) -> 165706 | K43: =-HLOOKUP($A43,'[2]Provider Arm'!$C$919:$AF$949,ROW('[2]Provider Arm'!$A$927)-ROW('[2]Provider Arm'!$A$918),FALSE) -> 168318 | L43: =-HLOOKUP($A43,'[2]Provider Arm'!$C$1000:$AF$1030,ROW('[2]Provider Arm'!$A$1008)-ROW('[2]Provider Arm'!$A$999),FALSE) -> 144212 | N43: Hutt Valley DHB | O43: 0.6770285637 | P43: 0.6841867546 | Q43: 0.6918249856 | R43: 0.6933069926 | S43: 0.6934393693 | T43: 0.6828509542 | U43: 0.6781695359 | V43: 0.6779217999 | W43: 0.665967366 | X43: 0.6827762453 | Y43: 0.6746539295 | AA43: =-HLOOKUP($A43,'[2]Provider Arm'!$C$919:$AF$949,ROW('[2]Provider Arm'!$A$922)-ROW('[2]Provider Arm'!$A$918),FALSE)/$K118 -> 0.2065390232 | AB43: =-HLOOKUP($A43,'[2]Provider Arm'!$C$919:$AF$949,ROW('[2]Provider Arm'!$A$923)-ROW('[2]Provider Arm'!$A$918),FALSE)/$K118 -> 0.2491765374 | AC43: 0.2270606847
A44: Lakes DHB | B44: =-HLOOKUP($A44,'[1]Provider Arm'!$C$8:$Y$58,ROW('[1]Provider Arm'!$A$18)-ROW('[1]Provider Arm'!A$7),FALSE) -> 74869 | C44: =-HLOOKUP($A44,'[1]Provider Arm'!$C$140:$Y$190,ROW('[1]Provider Arm'!$A$150)-ROW('[1]Provider Arm'!B$139),FALSE) -> 81768 | D44: =-HLOOKUP($A44,'[1]Provider Arm'!$C$268:$Y$318,ROW('[1]Provider Arm'!$A$278)-ROW('[1]Provider Arm'!C$267),FALSE) -> 85719.8128 | E44: =-HLOOKUP($A44,'[1]Provider Arm'!$C$394:$Y$444,ROW('[1]Provider Arm'!$A$404)-ROW('[1]Provider Arm'!D$393),FALSE) -> 89545.8811 | F44: =-HLOOKUP($A44,'[1]Provider Arm'!$C$516:$AE$546,ROW('[1]Provider Arm'!$A$524)-ROW('[1]Provider Arm'!E$515),FALSE) -> 92303 | G44: =-HLOOKUP($A44,'[1]Provider Arm'!$C$596:$AE$626,ROW('[1]Provider Arm'!$A$604)-ROW('[1]Provider Arm'!F$595),FALSE) -> 93054 | H44: =-HLOOKUP($A44,'[1]Provider Arm'!$C$676:$AE$706,ROW('[1]Provider Arm'!$A$684)-ROW('[1]Provider Arm'!G$675),FALSE) -> 96784 | I44: =-HLOOKUP($A44,'[1]Provider Arm'!$C$757:$AF$787,ROW('[1]Provider Arm'!$A$765)-ROW('[1]Provider Arm'!H$756),FALSE) -> 101615 | J44: =-HLOOKUP($A44,'[1]Provider Arm'!$C$838:$AF$868,ROW('[1]Provider Arm'!$A$846)-ROW('[1]Provider Arm'!I$837),FALSE) -> 106591 | K44: =-HLOOKUP($A44,'[2]Provider Arm'!$C$919:$AF$949,ROW('[2]Provider Arm'!$A$927)-ROW('[2]Provider Arm'!$A$918),FALSE) -> 109794 | L44: =-HLOOKUP($A44,'[2]Provider Arm'!$C$1000:$AF$1030,ROW('[2]Provider Arm'!$A$1008)-ROW('[2]Provider Arm'!$A$999),FALSE) -> 98226 | N44: Lakes DHB | O44: 0.6103782814 | P44: 0.6193935446 | Q44: 0.6102192622 | R44: 0.6178011671 | S44: 0.6013107236 | T44: 0.5960720508 | U44: 0.6056722321 | V44: 0.5974014521 | W44: 0.612218993 | X44: 0.6120101004 | Y44: 0.5952621915 | AA44: =-HLOOKUP($A44,'[2]Provider Arm'!$C$919:$AF$949,ROW('[2]Provider Arm'!$A$922)-ROW('[2]Provider Arm'!$A$918),FALSE)/$K119 -> 0.188228474 | AB44: =-HLOOKUP($A44,'[2]Provider Arm'!$C$919:$AF$949,ROW('[2]Provider Arm'!$A$923)-ROW('[2]Provider Arm'!$A$918),FALSE)/$K119 -> 0.2394049019 | AC44: 0.1843767245
A45: MidCentral DHB | B45: =-HLOOKUP($A45,'[1]Provider Arm'!$C$8:$Y$58,ROW('[1]Provider Arm'!$A$18)-ROW('[1]Provider Arm'!A$7),FALSE) -> 139178 | C45: =-HLOOKUP($A45,'[1]Provider Arm'!$C$140:$Y$190,ROW('[1]Provider Arm'!$A$150)-ROW('[1]Provider Arm'!B$139),FALSE) -> 151479 | D45: =-HLOOKUP($A45,'[1]Provider Arm'!$C$268:$Y$318,ROW('[1]Provider Arm'!$A$278)-ROW('[1]Provider Arm'!C$267),FALSE) -> 162716 | E45: =-HLOOKUP($A45,'[1]Provider Arm'!$C$394:$Y$444,ROW('[1]Provider Arm'!$A$404)-ROW('[1]Provider Arm'!D$393),FALSE) -> 162082 | F45: =-HLOOKUP($A45,'[1]Provider Arm'!$C$516:$AE$546,ROW('[1]Provider Arm'!$A$524)-ROW('[1]Provider Arm'!E$515),FALSE) -> 169104 | G45: =-HLOOKUP($A45,'[1]Provider Arm'!$C$596:$AE$626,ROW('[1]Provider Arm'!$A$604)-ROW('[1]Provider Arm'!F$595),FALSE) -> 176846 | H45: =-HLOOKUP($A45,'[1]Provider Arm'!$C$676:$AE$706,ROW('[1]Provider Arm'!$A$684)-ROW('[1]Provider Arm'!G$675),FALSE) -> 183965 | I45: =-HLOOKUP($A45,'[1]Provider Arm'!$C$757:$AF$787,ROW('[1]Provider Arm'!$A$765)-ROW('[1]Provider Arm'!H$756),FALSE) -> 188706 | J45: =-HLOOKUP($A45,'[1]Provider Arm'!$C$838:$AF$868,ROW('[1]Provider Arm'!$A$846)-ROW('[1]Provider Arm'!I$837),FALSE) -> 193467 | K45: =-HLOOKUP($A45,'[2]Provider Arm'!$C$919:$AF$949,ROW('[2]Provider Arm'!$A$927)-ROW('[2]Provider Arm'!$A$918),FALSE) -> 197932 | L45: =-HLOOKUP($A45,'[2]Provider Arm'!$C$1000:$AF$1030,ROW('[2]Provider Arm'!$A$1008)-ROW('[2]Provider Arm'!$A$999),FALSE) -> 169474.0057 | N45: MidCentral DHB | O45: 0.5206068722 | P45: 0.525851894 | Q45: 0.5384203038 | R45: 0.5375033991 | S45: 0.528810252 | T45: 0.5244885491 | U45: 0.5247147747 | V45: 0.5313027907 | W45: 0.5444866599 | X45: 0.5419438923 | Y45: 0.5434099195 | AA45: =-HLOOKUP($A45,'[2]Provider Arm'!$C$919:$AF$949,ROW('[2]Provider Arm'!$A$922)-ROW('[2]Provider Arm'!$A$918),FALSE)/$K120 -> 0.1761073965 | AB45: =-HLOOKUP($A45,'[2]Provider Arm'!$C$919:$AF$949,ROW('[2]Provider Arm'!$A$923)-ROW('[2]Provider Arm'!$A$918),FALSE)/$K120 -> 0.2217558443 | AC45: 0.1440806514
A46: Nelson Marlborough DHB | B46: =-HLOOKUP($A46,'[1]Provider Arm'!$C$8:$Y$58,ROW('[1]Provider Arm'!$A$18)-ROW('[1]Provider Arm'!A$7),FALSE) -> 122299.01 | C46: =-HLOOKUP($A46,'[1]Provider Arm'!$C$140:$Y$190,ROW('[1]Provider Arm'!$A$150)-ROW('[1]Provider Arm'!B$139),FALSE) -> 138016 | D46: =-HLOOKUP($A46,'[1]Provider Arm'!$C$268:$Y$318,ROW('[1]Provider Arm'!$A$278)-ROW('[1]Provider Arm'!C$267),FALSE) -> 140306.3379 | E46: =-HLOOKUP($A46,'[1]Provider Arm'!$C$394:$Y$444,ROW('[1]Provider Arm'!$A$404)-ROW('[1]Provider Arm'!D$393),FALSE) -> 142441.536 | F46: =-HLOOKUP($A46,'[1]Provider Arm'!$C$516:$AE$546,ROW('[1]Provider Arm'!$A$524)-ROW('[1]Provider Arm'!E$515),FALSE) -> 151309.126 | G46: =-HLOOKUP($A46,'[1]Provider Arm'!$C$596:$AE$626,ROW('[1]Provider Arm'!$A$604)-ROW('[1]Provider Arm'!F$595),FALSE) -> 152395.4298 | H46: =-HLOOKUP($A46,'[1]Provider Arm'!$C$676:$AE$706,ROW('[1]Provider Arm'!$A$684)-ROW('[1]Provider Arm'!G$675),FALSE) -> 155269.584 | I46: =-HLOOKUP($A46,'[1]Provider Arm'!$C$757:$AF$787,ROW('[1]Provider Arm'!$A$765)-ROW('[1]Provider Arm'!H$756),FALSE) -> 158867.4765 | J46: =-HLOOKUP($A46,'[1]Provider Arm'!$C$838:$AF$868,ROW('[1]Provider Arm'!$A$846)-ROW('[1]Provider Arm'!I$837),FALSE) -> 166701.351 | K46: =-HLOOKUP($A46,'[2]Provider Arm'!$C$919:$AF$949,ROW('[2]Provider Arm'!$A$927)-ROW('[2]Provider Arm'!$A$918),FALSE) -> 170524.645 | L46: =-HLOOKUP($A46,'[2]Provider Arm'!$C$1000:$AF$1030,ROW('[2]Provider Arm'!$A$1008)-ROW('[2]Provider Arm'!$A$999),FALSE) -> 149912.2564 | N46: Nelson Marlborough DHB | O46: 0.6139323307 | P46: 0.6244248492 | Q46: 0.6341804727 | R46: 0.6299754332 | S46: 0.6425725296 | T46: 0.6413310793 | U46: 0.6395370376 | V46: 0.6338947193 | W46: 0.6387404549 | X46: 0.6464161747 | Y46: 0.6290518235 | AA46: =-HLOOKUP($A46,'[2]Provider Arm'!$C$919:$AF$949,ROW('[2]Provider Arm'!$A$922)-ROW('[2]Provider Arm'!$A$918),FALSE)/$K121 -> 0.1840692317 | AB46: =-HLOOKUP($A46,'[2]Provider Arm'!$C$919:$AF$949,ROW('[2]Provider Arm'!$A$923)-ROW('[2]Provider Arm'!$A$918),FALSE)/$K121 -> 0.2151941067 | AC46: 0.2471528362
A47: Northland DHB | B47: =-HLOOKUP($A47,'[1]Provider Arm'!$C$8:$Y$58,ROW('[1]Provider Arm'!$A$18)-ROW('[1]Provider Arm'!A$7),FALSE) -> 133397.8424 | C47: =-HLOOKUP($A47,'[1]Provider Arm'!$C$140:$Y$190,ROW('[1]Provider Arm'!$A$150)-ROW('[1]Provider Arm'!B$139),FALSE) -> 143920.9965 | D47: =-HLOOKUP($A47,'[1]Provider Arm'!$C$268:$Y$318,ROW('[1]Provider Arm'!$A$278)-ROW('[1]Provider Arm'!C$267),FALSE) -> 161546.9025 | E47: =-HLOOKUP($A47,'[1]Provider Arm'!$C$394:$Y$444,ROW('[1]Provider Arm'!$A$404)-ROW('[1]Provider Arm'!D$393),FALSE) -> 164467.8692 | F47: =-HLOOKUP($A47,'[1]Provider Arm'!$C$516:$AE$546,ROW('[1]Provider Arm'!$A$524)-ROW('[1]Provider Arm'!E$515),FALSE) -> 173761.6176 | G47: =-HLOOKUP($A47,'[1]Provider Arm'!$C$596:$AE$626,ROW('[1]Provider Arm'!$A$604)-ROW('[1]Provider Arm'!F$595),FALSE) -> 177681.1808 | H47: =-HLOOKUP($A47,'[1]Provider Arm'!$C$676:$AE$706,ROW('[1]Provider Arm'!$A$684)-ROW('[1]Provider Arm'!G$675),FALSE) -> 186371.467 | I47: =-HLOOKUP($A47,'[1]Provider Arm'!$C$757:$AF$787,ROW('[1]Provider Arm'!$A$765)-ROW('[1]Provider Arm'!H$756),FALSE) -> 196698.483 | J47: =-HLOOKUP($A47,'[1]Provider Arm'!$C$838:$AF$868,ROW('[1]Provider Arm'!$A$846)-ROW('[1]Provider Arm'!I$837),FALSE) -> 206789.0469 | K47: =-HLOOKUP($A47,'[2]Provider Arm'!$C$919:$AF$949,ROW('[2]Provider Arm'!$A$927)-ROW('[2]Provider Arm'!$A$918),FALSE) -> 215491.9406 | L47: =-HLOOKUP($A47,'[2]Provider Arm'!$C$1000:$AF$1030,ROW('[2]Provider Arm'!$A$1008)-ROW('[2]Provider Arm'!$A$999),FALSE) -> 193610.1558 | N47: Northland DHB | O47: 0.6494026265 | P47: 0.6309441015 | Q47: 0.6463757741 | R47: 0.6302475043 | S47: 0.6398010248 | T47: 0.6279330482 | U47: 0.6330684879 | V47: 0.6422080046 | W47: 0.6398985106 | X47: 0.6397796428 | Y47: 0.6372886074 | AA47: =-HLOOKUP($A47,'[2]Provider Arm'!$C$919:$AF$949,ROW('[2]Provider Arm'!$A$922)-ROW('[2]Provider Arm'!$A$918),FALSE)/$K122 -> 0.1827497879 | AB47: =-HLOOKUP($A47,'[2]Provider Arm'!$C$919:$AF$949,ROW('[2]Provider Arm'!$A$923)-ROW('[2]Provider Arm'!$A$918),FALSE)/$K122 -> 0.2479486962 | AC47: 0.2090811587
A48: Otago DHB | B48: =-HLOOKUP($A48,'[1]Provider Arm'!$C$8:$Y$58,ROW('[1]Provider Arm'!$A$18)-ROW('[1]Provider Arm'!A$7),FALSE) -> 179185.18 | C48: =-HLOOKUP($A48,'[1]Provider Arm'!$C$140:$Y$190,ROW('[1]Provider Arm'!$A$150)-ROW('[1]Provider Arm'!B$139),FALSE) -> 185950.6 | N48: Otago DHB | O48: 0.6470558582 | P48: 0.6437432718
A49: South Canterbury DHB | B49: =-HLOOKUP($A49,'[1]Provider Arm'!$C$8:$Y$58,ROW('[1]Provider Arm'!$A$18)-ROW('[1]Provider Arm'!A$7),FALSE) -> 44066 | C49: =-HLOOKUP($A49,'[1]Provider Arm'!$C$140:$Y$190,ROW('[1]Provider Arm'!$A$150)-ROW('[1]Provider Arm'!B$139),FALSE) -> 47744 | D49: =-HLOOKUP($A49,'[1]Provider Arm'!$C$268:$Y$318,ROW('[1]Provider Arm'!$A$278)-ROW('[1]Provider Arm'!C$267),FALSE) -> 49032 | E49: =-HLOOKUP($A49,'[1]Provider Arm'!$C$394:$Y$444,ROW('[1]Provider Arm'!$A$404)-ROW('[1]Provider Arm'!D$393),FALSE) -> 53266 | F49: =-HLOOKUP($A49,'[1]Provider Arm'!$C$516:$AE$546,ROW('[1]Provider Arm'!$A$524)-ROW('[1]Provider Arm'!E$515),FALSE) -> 56059 | G49: =-HLOOKUP($A49,'[1]Provider Arm'!$C$596:$AE$626,ROW('[1]Provider Arm'!$A$604)-ROW('[1]Provider Arm'!F$595),FALSE) -> 56442 | H49: =-HLOOKUP($A49,'[1]Provider Arm'!$C$676:$AE$706,ROW('[1]Provider Arm'!$A$684)-ROW('[1]Provider Arm'!G$675),FALSE) -> 59550 | I49: =-HLOOKUP($A49,'[1]Provider Arm'!$C$757:$AF$787,ROW('[1]Provider Arm'!$A$765)-ROW('[1]Provider Arm'!H$756),FALSE) -> 61867 | J49: =-HLOOKUP($A49,'[1]Provider Arm'!$C$838:$AF$868,ROW('[1]Provider Arm'!$A$846)-ROW('[1]Provider Arm'!I$837),FALSE) -> 59838 | K49: =-HLOOKUP($A49,'[2]Provider Arm'!$C$919:$AF$949,ROW('[2]Provider Arm'!$A$927)-ROW('[2]Provider Arm'!$A$918),FALSE) -> 59264 | L49: =-HLOOKUP($A49,'[2]Provider Arm'!$C$1000:$AF$1030,ROW('[2]Provider Arm'!$A$1008)-ROW('[2]Provider Arm'!$A$999),FALSE) -> 50438 | N49: South Canterbury DHB | O49: 0.6079242888 | P49: 0.6091660712 | Q49: 0.6115850921 | R49: 0.6297334043 | S49: 0.6426720778 | T49: 0.6379861873 | U49: 0.635376211 | V49: 0.6368914648 | W49: =J49/J124 -> 0.6223983524 | X49: 0.6228743195 | Y49: 0.621839208 | AA49: =-HLOOKUP($A49,'[2]Provider Arm'!$C$919:$AF$949,ROW('[2]Provider Arm'!$A$922)-ROW('[2]Provider Arm'!$A$918),FALSE)/$K124 -> 0.1711159691 | AB49: =-HLOOKUP($A49,'[2]Provider Arm'!$C$919:$AF$949,ROW('[2]Provider Arm'!$A$923)-ROW('[2]Provider Arm'!$A$918),FALSE)/$K124 -> 0.2752401572 | AC49: 0.1765181931
A50: Southern DHB | B50: =B48+B51 -> 253336.899 | C50: =C48+C51 -> 265765.7779 | D50: =-HLOOKUP($A50,'[1]Provider Arm'!$C$268:$Y$318,ROW('[1]Provider Arm'!$A$278)-ROW('[1]Provider Arm'!C$267),FALSE) -> 286825.7399 | E50: =-HLOOKUP($A50,'[1]Provider Arm'!$C$394:$Y$444,ROW('[1]Provider Arm'!$A$404)-ROW('[1]Provider Arm'!D$393),FALSE) -> 294665.8544 | F50: =-HLOOKUP($A50,'[1]Provider Arm'!$C$516:$AE$546,ROW('[1]Provider Arm'!$A$524)-ROW('[1]Provider Arm'!E$515),FALSE) -> 313512.6071 | G50: =-HLOOKUP($A50,'[1]Provider Arm'!$C$596:$AE$626,ROW('[1]Provider Arm'!$A$604)-ROW('[1]Provider Arm'!F$595),FALSE) -> 320332.9192 | H50: =-HLOOKUP($A50,'[1]Provider Arm'!$C$676:$AE$706,ROW('[1]Provider Arm'!$A$684)-ROW('[1]Provider Arm'!G$675),FALSE) -> 333081.871 | I50: =-HLOOKUP($A50,'[1]Provider Arm'!$C$757:$AF$787,ROW('[1]Provider Arm'!$A$765)-ROW('[1]Provider Arm'!H$756),FALSE) -> 340088.3693 | J50: =-HLOOKUP($A50,'[1]Provider Arm'!$C$838:$AF$868,ROW('[1]Provider Arm'!$A$846)-ROW('[1]Provider Arm'!I$837),FALSE) -> 349504.1063 | K50: =-HLOOKUP($A50,'[2]Provider Arm'!$C$919:$AF$949,ROW('[2]Provider Arm'!$A$927)-ROW('[2]Provider Arm'!$A$918),FALSE) -> 357415.7145 | L50: =-HLOOKUP($A50,'[2]Provider Arm'!$C$1000:$AF$1030,ROW('[2]Provider Arm'!$A$1008)-ROW('[2]Provider Arm'!$A$999),FALSE) -> 304753.4696 | N50: Southern DHB | O50: 0.6337040307 | P50: 0.6227509678 | Q50: 0.6375777737 | R50: 0.6448657244 | S50: 0.6493229275 | T50: 0.6640774607 | U50: 0.6667585747 | V50: 0.6480726038 | W50: 0.642117416 | X50: 0.6464520245 | Y50: 0.6418275352 | AA50: =-HLOOKUP($A50,'[2]Provider Arm'!$C$919:$AF$949,ROW('[2]Provider Arm'!$A$922)-ROW('[2]Provider Arm'!$A$918),FALSE)/$K125 -> 0.2216332638 | AB50: =-HLOOKUP($A50,'[2]Provider Arm'!$C$919:$AF$949,ROW('[2]Provider Arm'!$A$923)-ROW('[2]Provider Arm'!$A$918),FALSE)/$K125 -> 0.2483850117 | AC50: 0.1764337491
A51: Southland DHB | B51: =-HLOOKUP($A51,'[1]Provider Arm'!$C$8:$Y$58,ROW('[1]Provider Arm'!$A$18)-ROW('[1]Provider Arm'!A$7),FALSE) -> 74151.719 | C51: =-HLOOKUP($A51,'[1]Provider Arm'!$C$140:$Y$190,ROW('[1]Provider Arm'!$A$150)-ROW('[1]Provider Arm'!B$139),FALSE) -> 79815.1779 | N51: Southland DHB | O51: 0.6036063123 | P51: 0.5787793421
A52: Tairawhiti DHB | B52: =-HLOOKUP($A52,'[1]Provider Arm'!$C$8:$Y$58,ROW('[1]Provider Arm'!$A$18)-ROW('[1]Provider Arm'!A$7),FALSE) -> 39888.1015 | C52: =-HLOOKUP($A52,'[1]Provider Arm'!$C$140:$Y$190,ROW('[1]Provider Arm'!$A$150)-ROW('[1]Provider Arm'!B$139),FALSE) -> 48337.428 | D52: =-HLOOKUP($A52,'[1]Provider Arm'!$C$268:$Y$318,ROW('[1]Provider Arm'!$A$278)-ROW('[1]Provider Arm'!C$267),FALSE) -> 52012.398 | E52: =-HLOOKUP($A52,'[1]Provider Arm'!$C$394:$Y$444,ROW('[1]Provider Arm'!$A$404)-ROW('[1]Provider Arm'!D$393),FALSE) -> 53036.55 | F52: =-HLOOKUP($A52,'[1]Provider Arm'!$C$516:$AE$546,ROW('[1]Provider Arm'!$A$524)-ROW('[1]Provider Arm'!E$515),FALSE) -> 55300 | G52: =-HLOOKUP($A52,'[1]Provider Arm'!$C$596:$AE$626,ROW('[1]Provider Arm'!$A$604)-ROW('[1]Provider Arm'!F$595),FALSE) -> 57277 | H52: =-HLOOKUP($A52,'[1]Provider Arm'!$C$676:$AE$706,ROW('[1]Provider Arm'!$A$684)-ROW('[1]Provider Arm'!G$675),FALSE) -> 58156 | I52: =-HLOOKUP($A52,'[1]Provider Arm'!$C$757:$AF$787,ROW('[1]Provider Arm'!$A$765)-ROW('[1]Provider Arm'!H$756),FALSE) -> 59653 | J52: =-HLOOKUP($A52,'[1]Provider Arm'!$C$838:$AF$868,ROW('[1]Provider Arm'!$A$846)-ROW('[1]Provider Arm'!I$837),FALSE) -> 63494.089 | K52: =-HLOOKUP($A52,'[2]Provider Arm'!$C$919:$AF$949,ROW('[2]Provider Arm'!$A$927)-ROW('[2]Provider Arm'!$A$918),FALSE) -> 64500 | L52: =-HLOOKUP($A52,'[2]Provider Arm'!$C$1000:$AF$1030,ROW('[2]Provider Arm'!$A$1008)-ROW('[2]Provider Arm'!$A$999),FALSE) -> 56383 | N52: Tairawhiti DHB | O52: 0.6011568321 | P52: 0.6208099664 | Q52: 0.63234534 | R52: 0.6242069796 | S52: 0.6389222664 | T52: 0.6283335345 | U52: 0.6344821567 | V52: 0.6203773035 | W52: =J52/J127 -> 0.6486698247 | X52: 0.6441111266 | Y52: 0.643443231 | AA52: =-HLOOKUP($A52,'[2]Provider Arm'!$C$919:$AF$949,ROW('[2]Provider Arm'!$A$922)-ROW('[2]Provider Arm'!$A$918),FALSE)/$K127 -> 0.2034292676 | AB52: =-HLOOKUP($A52,'[2]Provider Arm'!$C$919:$AF$949,ROW('[2]Provider Arm'!$A$923)-ROW('[2]Provider Arm'!$A$918),FALSE)/$K127 -> 0.2434440472 | AC52: 0.1972378118
A53: Taranaki DHB | B53: =-HLOOKUP($A53,'[1]Provider Arm'!$C$8:$Y$58,ROW('[1]Provider Arm'!$A$18)-ROW('[1]Provider Arm'!A$7),FALSE) -> 85550 | C53: =-HLOOKUP($A53,'[1]Provider Arm'!$C$140:$Y$190,ROW('[1]Provider Arm'!$A$150)-ROW('[1]Provider Arm'!B$139),FALSE) -> 91407 | D53: =-HLOOKUP($A53,'[1]Provider Arm'!$C$268:$Y$318,ROW('[1]Provider Arm'!$A$278)-ROW('[1]Provider Arm'!C$267),FALSE) -> 98707 | E53: =-HLOOKUP($A53,'[1]Provider Arm'!$C$394:$Y$444,ROW('[1]Provider Arm'!$A$404)-ROW('[1]Provider Arm'!D$393),FALSE) -> 100618 | F53: =-HLOOKUP($A53,'[1]Provider Arm'!$C$516:$AE$546,ROW('[1]Provider Arm'!$A$524)-ROW('[1]Provider Arm'!E$515),FALSE) -> 105393 | G53: =-HLOOKUP($A53,'[1]Provider Arm'!$C$596:$AE$626,ROW('[1]Provider Arm'!$A$604)-ROW('[1]Provider Arm'!F$595),FALSE) -> 109849 | H53: =-HLOOKUP($A53,'[1]Provider Arm'!$C$676:$AE$706,ROW('[1]Provider Arm'!$A$684)-ROW('[1]Provider Arm'!G$675),FALSE) -> 110021 | I53: =-HLOOKUP($A53,'[1]Provider Arm'!$C$757:$AF$787,ROW('[1]Provider Arm'!$A$765)-ROW('[1]Provider Arm'!H$756),FALSE) -> 113704 | J53: =-HLOOKUP($A53,'[1]Provider Arm'!$C$838:$AF$868,ROW('[1]Provider Arm'!$A$846)-ROW('[1]Provider Arm'!I$837),FALSE) -> 121904 | K53: =-HLOOKUP($A53,'[2]Provider Arm'!$C$919:$AF$949,ROW('[2]Provider Arm'!$A$927)-ROW('[2]Provider Arm'!$A$918),FALSE) -> 129885 | L53: =-HLOOKUP($A53,'[2]Provider Arm'!$C$1000:$AF$1030,ROW('[2]Provider Arm'!$A$1008)-ROW('[2]Provider Arm'!$A$999),FALSE) -> 115048 | N53: Taranaki DHB | O53: 0.5436889502 | P53: 0.5485659759 | Q53: 0.5704749575 | R53: 0.5804192577 | S53: 0.5950507012 | T53: 0.6027148477 | U53: 0.5858319622 | V53: 0.5809375399 | W53: 0.5973899961 | X53: 0.615221747 | Y53: 0.6200678017 | AA53: =-HLOOKUP($A53,'[2]Provider Arm'!$C$919:$AF$949,ROW('[2]Provider Arm'!$A$922)-ROW('[2]Provider Arm'!$A$918),FALSE)/$K128 -> 0.1705767837 | AB53: =-HLOOKUP($A53,'[2]Provider Arm'!$C$919:$AF$949,ROW('[2]Provider Arm'!$A$923)-ROW('[2]Provider Arm'!$A$918),FALSE)/$K128 -> 0.235435939 | AC53: 0.2092090243
A54: Waikato DHB | B54: =-HLOOKUP($A54,'[1]Provider Arm'!$C$8:$Y$58,ROW('[1]Provider Arm'!$A$18)-ROW('[1]Provider Arm'!A$7),FALSE) -> 339760.077 | C54: =-HLOOKUP($A54,'[1]Provider Arm'!$C$140:$Y$190,ROW('[1]Provider Arm'!$A$150)-ROW('[1]Provider Arm'!B$139),FALSE) -> 376573 | D54: =-HLOOKUP($A54,'[1]Provider Arm'!$C$268:$Y$318,ROW('[1]Provider Arm'!$A$278)-ROW('[1]Provider Arm'!C$267),FALSE) -> 405970 | E54: =-HLOOKUP($A54,'[1]Provider Arm'!$C$394:$Y$444,ROW('[1]Provider Arm'!$A$404)-ROW('[1]Provider Arm'!D$393),FALSE) -> 424419 | F54: =-HLOOKUP($A54,'[1]Provider Arm'!$C$516:$AE$546,ROW('[1]Provider Arm'!$A$524)-ROW('[1]Provider Arm'!E$515),FALSE) -> 444961 | G54: =-HLOOKUP($A54,'[1]Provider Arm'!$C$596:$AE$626,ROW('[1]Provider Arm'!$A$604)-ROW('[1]Provider Arm'!F$595),FALSE) -> 457192 | H54: =-HLOOKUP($A54,'[1]Provider Arm'!$C$676:$AE$706,ROW('[1]Provider Arm'!$A$684)-ROW('[1]Provider Arm'!G$675),FALSE) -> 481160.2 | I54: =-HLOOKUP($A54,'[1]Provider Arm'!$C$757:$AF$787,ROW('[1]Provider Arm'!$A$765)-ROW('[1]Provider Arm'!H$756),FALSE) -> 496013.0663 | J54: =-HLOOKUP($A54,'[1]Provider Arm'!$C$838:$AF$868,ROW('[1]Provider Arm'!$A$846)-ROW('[1]Provider Arm'!I$837),FALSE) -> 514108.3018 | K54: =-HLOOKUP($A54,'[2]Provider Arm'!$C$919:$AF$949,ROW('[2]Provider Arm'!$A$927)-ROW('[2]Provider Arm'!$A$918),FALSE) -> 535122.3338 | L54: =-HLOOKUP($A54,'[2]Provider Arm'!$C$1000:$AF$1030,ROW('[2]Provider Arm'!$A$1008)-ROW('[2]Provider Arm'!$A$999),FALSE) -> 469965.8563 | N54: Waikato DHB | O54: 0.6174280378 | P54: 0.5913660027 | Q54: 0.6039925968 | R54: 0.5445898244 | S54: 0.6070989044 | T54: 0.5989221309 | U54: 0.6076971488 | V54: 0.603253021 | W54: 0.6136640944 | X54: 0.6024758216 | Y54: 0.5854801722 | AA54: =-HLOOKUP($A54,'[2]Provider Arm'!$C$919:$AF$949,ROW('[2]Provider Arm'!$A$922)-ROW('[2]Provider Arm'!$A$918),FALSE)/$K129 -> 0.1821561668 | AB54: =-HLOOKUP($A54,'[2]Provider Arm'!$C$919:$AF$949,ROW('[2]Provider Arm'!$A$923)-ROW('[2]Provider Arm'!$A$918),FALSE)/$K129 -> 0.2337110506 | AC54: 0.1866086042
A55: Wairarapa DHB | B55: =-HLOOKUP($A55,'[1]Provider Arm'!$C$8:$Y$58,ROW('[1]Provider Arm'!$A$18)-ROW('[1]Provider Arm'!A$7),FALSE) -> 30014 | C55: =-HLOOKUP($A55,'[1]Provider Arm'!$C$140:$Y$190,ROW('[1]Provider Arm'!$A$150)-ROW('[1]Provider Arm'!B$139),FALSE) -> 32724 | D55: =-HLOOKUP($A55,'[1]Provider Arm'!$C$268:$Y$318,ROW('[1]Provider Arm'!$A$278)-ROW('[1]Provider Arm'!C$267),FALSE) -> 32714 | E55: =-HLOOKUP($A55,'[1]Provider Arm'!$C$394:$Y$444,ROW('[1]Provider Arm'!$A$404)-ROW('[1]Provider Arm'!D$393),FALSE) -> 33384 | F55: =-HLOOKUP($A55,'[1]Provider Arm'!$C$516:$AE$546,ROW('[1]Provider Arm'!$A$524)-ROW('[1]Provider Arm'!E$515),FALSE) -> 33449 | G55: =-HLOOKUP($A55,'[1]Provider Arm'!$C$596:$AE$626,ROW('[1]Provider Arm'!$A$604)-ROW('[1]Provider Arm'!F$595),FALSE) -> 34189 | H55: =-HLOOKUP($A55,'[1]Provider Arm'!$C$676:$AE$706,ROW('[1]Provider Arm'!$A$684)-ROW('[1]Provider Arm'!G$675),FALSE) -> 34364 | I55: =-HLOOKUP($A55,'[1]Provider Arm'!$C$757:$AF$787,ROW('[1]Provider Arm'!$A$765)-ROW('[1]Provider Arm'!H$756),FALSE) -> 36718 | J55: =-HLOOKUP($A55,'[1]Provider Arm'!$C$838:$AF$868,ROW('[1]Provider Arm'!$A$846)-ROW('[1]Provider Arm'!I$837),FALSE) -> 40011.41323 | K55: =-HLOOKUP($A55,'[2]Provider Arm'!$C$919:$AF$949,ROW('[2]Provider Arm'!$A$927)-ROW('[2]Provider Arm'!$A$918),FALSE) -> 40273.30068 | L55: =-HLOOKUP($A55,'[2]Provider Arm'!$C$1000:$AF$1030,ROW('[2]Provider Arm'!$A$1008)-ROW('[2]Provider Arm'!$A$999),FALSE) -> 35516.78374 | N55: Wairarapa DHB | O55: 0.5649109269 | P55: 0.5507514684 | Q55: 0.5637623216 | R55: 0.5600496569 | S55: 0.5432060672 | T55: 0.5600714239 | U55: 0.5446735668 | V55: 0.566994549 | W55: 0.5804971047 | X55: 0.5785876313 | Y55: 0.5958550519 | AA55: =-HLOOKUP($A55,'[2]Provider Arm'!$C$919:$AF$949,ROW('[2]Provider Arm'!$A$922)-ROW('[2]Provider Arm'!$A$918),FALSE)/$K130 -> 0.1489879532 | AB55: =-HLOOKUP($A55,'[2]Provider Arm'!$C$919:$AF$949,ROW('[2]Provider Arm'!$A$923)-ROW('[2]Provider Arm'!$A$918),FALSE)/$K130 -> 0.2791937668 | AC55: 0.1504059113
A56: Waitemata DHB | B56: =-HLOOKUP($A56,'[1]Provider Arm'!$C$8:$Y$58,ROW('[1]Provider Arm'!$A$18)-ROW('[1]Provider Arm'!A$7),FALSE) -> 366512 | C56: =-HLOOKUP($A56,'[1]Provider Arm'!$C$140:$Y$190,ROW('[1]Provider Arm'!$A$150)-ROW('[1]Provider Arm'!B$139),FALSE) -> 410008 | D56: =-HLOOKUP($A56,'[1]Provider Arm'!$C$268:$Y$318,ROW('[1]Provider Arm'!$A$278)-ROW('[1]Provider Arm'!C$267),FALSE) -> 429882 | E56: =-HLOOKUP($A56,'[1]Provider Arm'!$C$394:$Y$444,ROW('[1]Provider Arm'!$A$404)-ROW('[1]Provider Arm'!D$393),FALSE) -> 441640 | F56: =-HLOOKUP($A56,'[1]Provider Arm'!$C$516:$AE$546,ROW('[1]Provider Arm'!$A$524)-ROW('[1]Provider Arm'!E$515),FALSE) -> 472055 | G56: =-HLOOKUP($A56,'[1]Provider Arm'!$C$596:$AE$626,ROW('[1]Provider Arm'!$A$604)-ROW('[1]Provider Arm'!F$595),FALSE) -> 492225 | H56: =-HLOOKUP($A56,'[1]Provider Arm'!$C$676:$AE$706,ROW('[1]Provider Arm'!$A$684)-ROW('[1]Provider Arm'!G$675),FALSE) -> 516974 | I56: =-HLOOKUP($A56,'[1]Provider Arm'!$C$757:$AF$787,ROW('[1]Provider Arm'!$A$765)-ROW('[1]Provider Arm'!H$756),FALSE) -> 559707 | J56: =-HLOOKUP($A56,'[1]Provider Arm'!$C$838:$AF$868,ROW('[1]Provider Arm'!$A$846)-ROW('[1]Provider Arm'!I$837),FALSE) -> 572664 | K56: =-HLOOKUP($A56,'[2]Provider Arm'!$C$919:$AF$949,ROW('[2]Provider Arm'!$A$927)-ROW('[2]Provider Arm'!$A$918),FALSE) -> 593842 | L56: =-HLOOKUP($A56,'[2]Provider Arm'!$C$1000:$AF$1030,ROW('[2]Provider Arm'!$A$1008)-ROW('[2]Provider Arm'!$A$999),FALSE) -> 514453 | N56: Waitemata DHB | O56: 0.6488855998 | P56: 0.653130665 | Q56: 0.6639176022 | R56: 0.6710620084 | S56: 0.6692863148 | T56: 0.6698570128 | U56: 0.6651715637 | V56: 0.6622419158 | W56: 0.6681874029 | X56: 0.6712794554 | Y56: 0.6644267391 | AA56: =-HLOOKUP($A56,'[2]Provider Arm'!$C$919:$AF$949,ROW('[2]Provider Arm'!$A$922)-ROW('[2]Provider Arm'!$A$918),FALSE)/$K131 -> 0.1926530732 | AB56: =-HLOOKUP($A56,'[2]Provider Arm'!$C$919:$AF$949,ROW('[2]Provider Arm'!$A$923)-ROW('[2]Provider Arm'!$A$918),FALSE)/$K131 -> 0.2625593178 | AC56: 0.2160670644
A57: West Coast DHB | B57: =-HLOOKUP($A57,'[1]Provider Arm'!$C$8:$Y$58,ROW('[1]Provider Arm'!$A$18)-ROW('[1]Provider Arm'!A$7),FALSE) -> 45129 | C57: =-HLOOKUP($A57,'[1]Provider Arm'!$C$140:$Y$190,ROW('[1]Provider Arm'!$A$150)-ROW('[1]Provider Arm'!B$139),FALSE) -> 46782 | D57: =-HLOOKUP($A57,'[1]Provider Arm'!$C$268:$Y$318,ROW('[1]Provider Arm'!$A$278)-ROW('[1]Provider Arm'!C$267),FALSE) -> 50836.168 | E57: =-HLOOKUP($A57,'[1]Provider Arm'!$C$394:$Y$444,ROW('[1]Provider Arm'!$A$404)-ROW('[1]Provider Arm'!D$393),FALSE) -> 51644 | F57: =-HLOOKUP($A57,'[1]Provider Arm'!$C$516:$AE$546,ROW('[1]Provider Arm'!$A$524)-ROW('[1]Provider Arm'!E$515),FALSE) -> 52934 | G57: =-HLOOKUP($A57,'[1]Provider Arm'!$C$596:$AE$626,ROW('[1]Provider Arm'!$A$604)-ROW('[1]Provider Arm'!F$595),FALSE) -> 55156.963 | H57: =-HLOOKUP($A57,'[1]Provider Arm'!$C$676:$AE$706,ROW('[1]Provider Arm'!$A$684)-ROW('[1]Provider Arm'!G$675),FALSE) -> 54879 | I57: =-HLOOKUP($A57,'[1]Provider Arm'!$C$757:$AF$787,ROW('[1]Provider Arm'!$A$765)-ROW('[1]Provider Arm'!H$756),FALSE) -> 56555 | J57: =-HLOOKUP($A57,'[1]Provider Arm'!$C$838:$AF$868,ROW('[1]Provider Arm'!$A$846)-ROW('[1]Provider Arm'!I$837),FALSE) -> 55741 | K57: =-HLOOKUP($A57,'[2]Provider Arm'!$C$919:$AF$949,ROW('[2]Provider Arm'!$A$927)-ROW('[2]Provider Arm'!$A$918),FALSE) -> 56488.81802 | L57: =-HLOOKUP($A57,'[2]Provider Arm'!$C$1000:$AF$1030,ROW('[2]Provider Arm'!$A$1008)-ROW('[2]Provider Arm'!$A$999),FALSE) -> 49166.12 | N57: West Coast DHB | O57: 0.5775920546 | P57: 0.5561605402 | Q57: 0.575413668 | R57: 0.5723658691 | S57: 0.5803530315 | T57: 0.6014598461 | U57: 0.619793549 | V57: 0.6281306574 | W57: 0.6288683056 | X57: 0.63016462 | Y57: 0.6371581577 | AA57: =-HLOOKUP($A57,'[2]Provider Arm'!$C$919:$AF$949,ROW('[2]Provider Arm'!$A$922)-ROW('[2]Provider Arm'!$A$918),FALSE)/$K132 -> 0.1203136663 | AB57: =-HLOOKUP($A57,'[2]Provider Arm'!$C$919:$AF$949,ROW('[2]Provider Arm'!$A$923)-ROW('[2]Provider Arm'!$A$918),FALSE)/$K132 -> 0.3077793667 | AC57: 0.2020715871
A58: Whanganui DHB | B58: =-HLOOKUP($A58,'[1]Provider Arm'!$C$8:$Y$58,ROW('[1]Provider Arm'!$A$18)-ROW('[1]Provider Arm'!A$7),FALSE) -> 57533 | C58: =-HLOOKUP($A58,'[1]Provider Arm'!$C$140:$Y$190,ROW('[1]Provider Arm'!$A$150)-ROW('[1]Provider Arm'!B$139),FALSE) -> 61583 | D58: =-HLOOKUP($A58,'[1]Provider Arm'!$C$268:$Y$318,ROW('[1]Provider Arm'!$A$278)-ROW('[1]Provider Arm'!C$267),FALSE) -> 62323 | E58: =-HLOOKUP($A58,'[1]Provider Arm'!$C$394:$Y$444,ROW('[1]Provider Arm'!$A$404)-ROW('[1]Provider Arm'!D$393),FALSE) -> 63655 | F58: =-HLOOKUP($A58,'[1]Provider Arm'!$C$516:$AE$546,ROW('[1]Provider Arm'!$A$524)-ROW('[1]Provider Arm'!E$515),FALSE) -> 64964 | G58: =-HLOOKUP($A58,'[1]Provider Arm'!$C$596:$AE$626,ROW('[1]Provider Arm'!$A$604)-ROW('[1]Provider Arm'!F$595),FALSE) -> 67840 | H58: =-HLOOKUP($A58,'[1]Provider Arm'!$C$676:$AE$706,ROW('[1]Provider Arm'!$A$684)-ROW('[1]Provider Arm'!G$675),FALSE) -> 69096 | I58: =-HLOOKUP($A58,'[1]Provider Arm'!$C$757:$AF$787,ROW('[1]Provider Arm'!$A$765)-ROW('[1]Provider Arm'!H$756),FALSE) -> 70771 | J58: =-HLOOKUP($A58,'[1]Provider Arm'!$C$838:$AF$868,ROW('[1]Provider Arm'!$A$846)-ROW('[1]Provider Arm'!I$837),FALSE) -> 73118 | K58: =-HLOOKUP($A58,'[2]Provider Arm'!$C$919:$AF$949,ROW('[2]Provider Arm'!$A$927)-ROW('[2]Provider Arm'!$A$918),FALSE) -> 76203 | L58: =-HLOOKUP($A58,'[2]Provider Arm'!$C$1000:$AF$1030,ROW('[2]Provider Arm'!$A$1008)-ROW('[2]Provider Arm'!$A$999),FALSE) -> 66816 | N58: Whanganui DHB | O58: 0.5763385925 | P58: 0.5674492748 | Q58: 0.5687910122 | R58: 0.5725400252 | S58: 0.5707157227 | T58: 0.5843842602 | U58: 0.5852270321 | V58: 0.5937114622 | W58: 0.6031942451 | X58: 0.6148923981 | Y58: 0.6084857978 | AA58: =-HLOOKUP($A58,'[2]Provider Arm'!$C$919:$AF$949,ROW('[2]Provider Arm'!$A$922)-ROW('[2]Provider Arm'!$A$918),FALSE)/$K133 -> 0.1699682883 | AB58: =-HLOOKUP($A58,'[2]Provider Arm'!$C$919:$AF$949,ROW('[2]Provider Arm'!$A$923)-ROW('[2]Provider Arm'!$A$918),FALSE)/$K133 -> 0.2731806115 | AC58: 0.1717434983
A59: All DHBs | B59: =-HLOOKUP($A59,'[1]Provider Arm'!$C$8:$Y$58,ROW('[1]Provider Arm'!$A$18)-ROW('[1]Provider Arm'!A$7),FALSE) -> 3834454.79 | C59: =-HLOOKUP($A59,'[1]Provider Arm'!$C$140:$Y$190,ROW('[1]Provider Arm'!$A$150)-ROW('[1]Provider Arm'!B$139),FALSE) -> 4202909.939 | D59: =-HLOOKUP($A59,'[1]Provider Arm'!$C$268:$Y$318,ROW('[1]Provider Arm'!$A$278)-ROW('[1]Provider Arm'!C$267),FALSE) -> 4573354.046 | E59: =-HLOOKUP($A59,'[1]Provider Arm'!$C$394:$Y$444,ROW('[1]Provider Arm'!$A$404)-ROW('[1]Provider Arm'!D$393),FALSE) -> 4616012.615 | F59: =-HLOOKUP($A59,'[1]Provider Arm'!$C$516:$AE$546,ROW('[1]Provider Arm'!$A$524)-ROW('[1]Provider Arm'!E$515),FALSE) -> 4842894.957 | G59: =-HLOOKUP($A59,'[1]Provider Arm'!$C$596:$AE$626,ROW('[1]Provider Arm'!$A$604)-ROW('[1]Provider Arm'!F$595),FALSE) -> 5013210.716 | H59: =-HLOOKUP($A59,'[1]Provider Arm'!$C$676:$AE$706,ROW('[1]Provider Arm'!$A$684)-ROW('[1]Provider Arm'!G$675),FALSE) -> 5211205.625 | I59: =-HLOOKUP($A59,'[1]Provider Arm'!$C$757:$AF$787,ROW('[1]Provider Arm'!$A$765)-ROW('[1]Provider Arm'!H$756),FALSE) -> 5411446.819 | J59: =-HLOOKUP($A59,'[1]Provider Arm'!$C$838:$AF$868,ROW('[1]Provider Arm'!$A$846)-ROW('[1]Provider Arm'!I$837),FALSE) -> 5617662.528 | K59: =-HLOOKUP($A59,'[2]Provider Arm'!$C$919:$AF$949,ROW('[2]Provider Arm'!$A$927)-ROW('[2]Provider Arm'!$A$918),FALSE) -> 5838583.648 | L59: =-HLOOKUP($A59,'[2]Provider Arm'!$C$1000:$AF$1030,ROW('[2]Provider Arm'!$A$1008)-ROW('[2]Provider Arm'!$A$999),FALSE) -> 5065608.415 | N59: All DHBs | O59: 0.6116400119 | P59: 0.612065469 | Q59: 0.6345338823 | R59: 0.608660395 | S59: 0.6217019481 | T59: 0.6254179631 | U59: 0.6277027826 | V59: 0.6251653444 | W59: 0.6307226796 | X59: 0.6318813602 | Y59: 0.626948219 | AA59: =-HLOOKUP($A59,'[2]Provider Arm'!$C$919:$AF$949,ROW('[2]Provider Arm'!$A$922)-ROW('[2]Provider Arm'!$A$918),FALSE)/$K134 -> 0.1990717772 | AB59: =-HLOOKUP($A59,'[2]Provider Arm'!$C$919:$AF$949,ROW('[2]Provider Arm'!$A$923)-ROW('[2]Provider Arm'!$A$918),FALSE)/$K134 -> 0.2425339975 | AC59: 0.1902755855
A61: Outsourcing ($000) | N61: Outsourcing proportion of Provider expenditure
A62: Auckland DHB | B62: =-HLOOKUP($A62,'[1]Provider Arm'!$C$8:$Y$58,ROW('[1]Provider Arm'!$A$26)-ROW('[1]Provider Arm'!A$7),FALSE) -> 39649.58 | C62: =-HLOOKUP($A62,'[1]Provider Arm'!$C$140:$Y$190,ROW('[1]Provider Arm'!$A$158)-ROW('[1]Provider Arm'!B$139),FALSE) -> 44063.06 | D62: =-HLOOKUP($A62,'[1]Provider Arm'!$C$268:$Y$318,ROW('[1]Provider Arm'!$A$286)-ROW('[1]Provider Arm'!C$267),FALSE) -> 38838.329 | E62: =-HLOOKUP($A62,'[1]Provider Arm'!$C$394:$Y$444,ROW('[1]Provider Arm'!$A$412)-ROW('[1]Provider Arm'!D$393),FALSE) -> 53803.279 | F62: =-HLOOKUP($A62,'[1]Provider Arm'!$C$516:$AE$546,ROW('[1]Provider Arm'!$A$526)-ROW('[1]Provider Arm'!E$515),FALSE) -> 88313.49 | G62: =-HLOOKUP($A62,'[1]Provider Arm'!$C$596:$AE$626,ROW('[1]Provider Arm'!$A$606)-ROW('[1]Provider Arm'!F$595),FALSE) -> 87522.724 | H62: =-HLOOKUP($A62,'[1]Provider Arm'!$C$676:$AE$706,ROW('[1]Provider Arm'!$A$686)-ROW('[1]Provider Arm'!G$675),FALSE) -> 84765.996 | I62: =-HLOOKUP($A62,'[1]Provider Arm'!$C$757:$AF$787,ROW('[1]Provider Arm'!$A$767)-ROW('[1]Provider Arm'!H$756),FALSE) -> 93592.484 | J62: =-HLOOKUP($A62,'[1]Provider Arm'!$C$838:$AF$868,ROW('[1]Provider Arm'!$A$848)-ROW('[1]Provider Arm'!I$837),FALSE) -> 97713.678 | K62: =-HLOOKUP($A62,'[2]Provider Arm'!$C$919:$AF$949,ROW('[2]Provider Arm'!$A$929)-ROW('[2]Provider Arm'!$A$918),FALSE) -> 102671.531 | L62: =-HLOOKUP($A62,'[2]Provider Arm'!$C$1000:$AF$1030,ROW('[2]Provider Arm'!$A$1010)-ROW('[2]Provider Arm'!$A$999),FALSE) -> 93253.161 | N62: Auckland DHB | O62: =B62/B112 -> 0.03866130667 | P62: =C62/C112 -> 0.03996787013 | Q62: 0.03379815315 | R62: 0.04488293982 | S62: 0.07151762532 | T62: 0.06944474037 | U62: 0.06511499284 | V62: 0.0695929096 | W62: 0.06973187631 | X62: 0.06943449036 | Y62: 0.07395670237
A63: Bay of Plenty DHB | B63: =-HLOOKUP($A63,'[1]Provider Arm'!$C$8:$Y$58,ROW('[1]Provider Arm'!$A$26)-ROW('[1]Provider Arm'!A$7),FALSE) -> 26895 | C63: =-HLOOKUP($A63,'[1]Provider Arm'!$C$140:$Y$190,ROW('[1]Provider Arm'!$A$158)-ROW('[1]Provider Arm'!B$139),FALSE) -> 26035 | D63: =-HLOOKUP($A63,'[1]Provider Arm'!$C$268:$Y$318,ROW('[1]Provider Arm'!$A$286)-ROW('[1]Provider Arm'!C$267),FALSE) -> 24694 | E63: =-HLOOKUP($A63,'[1]Provider Arm'!$C$394:$Y$444,ROW('[1]Provider Arm'!$A$412)-ROW('[1]Provider Arm'!D$393),FALSE) -> 23527 | F63: =-HLOOKUP($A63,'[1]Provider Arm'!$C$516:$AE$546,ROW('[1]Provider Arm'!$A$526)-ROW('[1]Provider Arm'!E$515),FALSE) -> 22228 | G63: =-HLOOKUP($A63,'[1]Provider Arm'!$C$596:$AE$626,ROW('[1]Provider Arm'!$A$606)-ROW('[1]Provider Arm'!F$595),FALSE) -> 21862 | H63: =-HLOOKUP($A63,'[1]Provider Arm'!$C$676:$AE$706,ROW('[1]Provider Arm'!$A$686)-ROW('[1]Provider Arm'!G$675),FALSE) -> 23476 | I63: =-HLOOKUP($A63,'[1]Provider Arm'!$C$757:$AF$787,ROW('[1]Provider Arm'!$A$767)-ROW('[1]Provider Arm'!H$756),FALSE) -> 29638 | J63: =-HLOOKUP($A63,'[1]Provider Arm'!$C$838:$AF$868,ROW('[1]Provider Arm'!$A$848)-ROW('[1]Provider Arm'!I$837),FALSE) -> 31428.97236 | K63: =-HLOOKUP($A63,'[2]Provider Arm'!$C$919:$AF$949,ROW('[2]Provider Arm'!$A$929)-ROW('[2]Provider Arm'!$A$918),FALSE) -> 31642.06928 | L63: =-HLOOKUP($A63,'[2]Provider Arm'!$C$1000:$AF$1030,ROW('[2]Provider Arm'!$A$1010)-ROW('[2]Provider Arm'!$A$999),FALSE) -> 32296.96836 | N63: Bay of Plenty DHB | O63: =B63/B113 -> 0.103743563 | P63: =C63/C113 -> 0.09045238352 | Q63: =D63/D113 -> 0.08196607042 | R63: =E63/E113 -> 0.07644344803 | S63: =F63/F113 -> 0.06841721326 | T63: =G63/G113 -> 0.06462273353 | U63: =H63/H113 -> 0.06905558922 | V63: =I63/I113 -> 0.08206925961 | W63: =J63/J113 -> 0.08296592315 | X63: 0.08068845347 | Y63: 0.09090975025
A64: Canterbury DHB | B64: =-HLOOKUP($A64,'[1]Provider Arm'!$C$8:$Y$58,ROW('[1]Provider Arm'!$A$26)-ROW('[1]Provider Arm'!A$7),FALSE) -> 21463 | C64: =-HLOOKUP($A64,'[1]Provider Arm'!$C$140:$Y$190,ROW('[1]Provider Arm'!$A$158)-ROW('[1]Provider Arm'!B$139),FALSE) -> 21064 | D64: =-HLOOKUP($A64,'[1]Provider Arm'!$C$268:$Y$318,ROW('[1]Provider Arm'!$A$286)-ROW('[1]Provider Arm'!C$267),FALSE) -> 18788 | E64: =-HLOOKUP($A64,'[1]Provider Arm'!$C$394:$Y$444,ROW('[1]Provider Arm'!$A$412)-ROW('[1]Provider Arm'!D$393),FALSE) -> 19801 | F64: =-HLOOKUP($A64,'[1]Provider Arm'!$C$516:$AE$546,ROW('[1]Provider Arm'!$A$526)-ROW('[1]Provider Arm'!E$515),FALSE) -> 29527 | G64: =-HLOOKUP($A64,'[1]Provider Arm'!$C$596:$AE$626,ROW('[1]Provider Arm'!$A$606)-ROW('[1]Provider Arm'!F$595),FALSE) -> 19420 | H64: =-HLOOKUP($A64,'[1]Provider Arm'!$C$676:$AE$706,ROW('[1]Provider Arm'!$A$686)-ROW('[1]Provider Arm'!G$675),FALSE) -> 20083 | I64: =-HLOOKUP($A64,'[1]Provider Arm'!$C$757:$AF$787,ROW('[1]Provider Arm'!$A$767)-ROW('[1]Provider Arm'!H$756),FALSE) -> 19750 | J64: =-HLOOKUP($A64,'[1]Provider Arm'!$C$838:$AF$868,ROW('[1]Provider Arm'!$A$848)-ROW('[1]Provider Arm'!I$837),FALSE) -> 24800 | K64: =-HLOOKUP($A64,'[2]Provider Arm'!$C$919:$AF$949,ROW('[2]Provider Arm'!$A$929)-ROW('[2]Provider Arm'!$A$918),FALSE) -> 24987 | L64: =-HLOOKUP($A64,'[2]Provider Arm'!$C$1000:$AF$1030,ROW('[2]Provider Arm'!$A$1010)-ROW('[2]Provider Arm'!$A$999),FALSE) -> 22363 | N64: Canterbury DHB | O64: 0.03010124441 | P64: 0.02753237315 | Q64: 0.02345406995 | R64: 0.02372624649 | S64: 0.03319065037 | T64: 0.02111661438 | U64: 0.02113995549 | V64: 0.01994128559 | W64: 0.02450161928 | X64: 0.02354998021 | Y64: 0.02427486401
A65: Capital & Coast DHB | B65: =-HLOOKUP($A65,'[1]Provider Arm'!$C$8:$Y$58,ROW('[1]Provider Arm'!$A$26)-ROW('[1]Provider Arm'!A$7),FALSE) -> 21496.3325 | C65: =-HLOOKUP($A65,'[1]Provider Arm'!$C$140:$Y$190,ROW('[1]Provider Arm'!$A$158)-ROW('[1]Provider Arm'!B$139),FALSE) -> 29575.4526 | D65: =-HLOOKUP($A65,'[1]Provider Arm'!$C$268:$Y$318,ROW('[1]Provider Arm'!$A$286)-ROW('[1]Provider Arm'!C$267),FALSE) -> 19389.691 | E65: =-HLOOKUP($A65,'[1]Provider Arm'!$C$394:$Y$444,ROW('[1]Provider Arm'!$A$412)-ROW('[1]Provider Arm'!D$393),FALSE) -> 21435.4011 | F65: =-HLOOKUP($A65,'[1]Provider Arm'!$C$516:$AE$546,ROW('[1]Provider Arm'!$A$526)-ROW('[1]Provider Arm'!E$515),FALSE) -> 22460.37712 | G65: =-HLOOKUP($A65,'[1]Provider Arm'!$C$596:$AE$626,ROW('[1]Provider Arm'!$A$606)-ROW('[1]Provider Arm'!F$595),FALSE) -> 20378.94034 | H65: =-HLOOKUP($A65,'[1]Provider Arm'!$C$676:$AE$706,ROW('[1]Provider Arm'!$A$686)-ROW('[1]Provider Arm'!G$675),FALSE) -> 19905.17201 | I65: =-HLOOKUP($A65,'[1]Provider Arm'!$C$757:$AF$787,ROW('[1]Provider Arm'!$A$767)-ROW('[1]Provider Arm'!H$756),FALSE) -> 28034.7808 | J65: =-HLOOKUP($A65,'[1]Provider Arm'!$C$838:$AF$868,ROW('[1]Provider Arm'!$A$848)-ROW('[1]Provider Arm'!I$837),FALSE) -> 35986.04125 | K65: =-HLOOKUP($A65,'[2]Provider Arm'!$C$919:$AF$949,ROW('[2]Provider Arm'!$A$929)-ROW('[2]Provider Arm'!$A$918),FALSE) -> 31060.15512 | L65: =-HLOOKUP($A65,'[2]Provider Arm'!$C$1000:$AF$1030,ROW('[2]Provider Arm'!$A$1010)-ROW('[2]Provider Arm'!$A$999),FALSE) -> 27533.40144 | N65: Capital & Coast DHB | O65: 0.04495489229 | P65: 0.05647307502 | Q65: 0.03358790297 | R65: 0.03723700793 | S65: 0.03667626002 | T65: 0.03261406367 | U65: 0.03062020487 | V65: 0.04222975276 | W65: 0.05244531199 | X65: 0.04447113992 | Y65: 0.04559149037
A66: Counties Manukau DHB | B66: =-HLOOKUP($A66,'[1]Provider Arm'!$C$8:$Y$58,ROW('[1]Provider Arm'!$A$26)-ROW('[1]Provider Arm'!A$7),FALSE) -> 46914 | C66: =-HLOOKUP($A66,'[1]Provider Arm'!$C$140:$Y$190,ROW('[1]Provider Arm'!$A$158)-ROW('[1]Provider Arm'!B$139),FALSE) -> 48860 | D66: =-HLOOKUP($A66,'[1]Provider Arm'!$C$268:$Y$318,ROW('[1]Provider Arm'!$A$286)-ROW('[1]Provider Arm'!C$267),FALSE) -> 49552 | E66: =-HLOOKUP($A66,'[1]Provider Arm'!$C$394:$Y$444,ROW('[1]Provider Arm'!$A$412)-ROW('[1]Provider Arm'!D$393),FALSE) -> 54151 | F66: =-HLOOKUP($A66,'[1]Provider Arm'!$C$516:$AE$546,ROW('[1]Provider Arm'!$A$526)-ROW('[1]Provider Arm'!E$515),FALSE) -> 57340 | G66: =-HLOOKUP($A66,'[1]Provider Arm'!$C$596:$AE$626,ROW('[1]Provider Arm'!$A$606)-ROW('[1]Provider Arm'!F$595),FALSE) -> 61298 | H66: =-HLOOKUP($A66,'[1]Provider Arm'!$C$676:$AE$706,ROW('[1]Provider Arm'!$A$686)-ROW('[1]Provider Arm'!G$675),FALSE) -> 64971 | I66: =-HLOOKUP($A66,'[1]Provider Arm'!$C$757:$AF$787,ROW('[1]Provider Arm'!$A$767)-ROW('[1]Provider Arm'!H$756),FALSE) -> 68120 | J66: =-HLOOKUP($A66,'[1]Provider Arm'!$C$838:$AF$868,ROW('[1]Provider Arm'!$A$848)-ROW('[1]Provider Arm'!I$837),FALSE) -> 71645 | K66: =-HLOOKUP($A66,'[2]Provider Arm'!$C$919:$AF$949,ROW('[2]Provider Arm'!$A$929)-ROW('[2]Provider Arm'!$A$918),FALSE) -> 83346 | L66: =-HLOOKUP($A66,'[2]Provider Arm'!$C$1000:$AF$1030,ROW('[2]Provider Arm'!$A$1010)-ROW('[2]Provider Arm'!$A$999),FALSE) -> 71803 | N66: Counties Manukau DHB | O66: 0.08375421101 | P66: 0.07894332916 | Q66: 0.07553647022 | R66: 0.06945338693 | S66: 0.07780031614 | T66: 0.08020233105 | U66: 0.08140678584 | V66: 0.0815925642 | W66: 0.08333255791 | X66: 0.09284776135 | Y66: 0.09092566821
A67: Hawke's Bay DHB | B67: =-HLOOKUP($A67,'[1]Provider Arm'!$C$8:$Y$58,ROW('[1]Provider Arm'!$A$26)-ROW('[1]Provider Arm'!A$7),FALSE) -> 13446.8202 | C67: =-HLOOKUP($A67,'[1]Provider Arm'!$C$140:$Y$190,ROW('[1]Provider Arm'!$A$158)-ROW('[1]Provider Arm'!B$139),FALSE) -> 13857.8892 | D67: =-HLOOKUP($A67,'[1]Provider Arm'!$C$268:$Y$318,ROW('[1]Provider Arm'!$A$286)-ROW('[1]Provider Arm'!C$267),FALSE) -> 10654.407 | E67: =-HLOOKUP($A67,'[1]Provider Arm'!$C$394:$Y$444,ROW('[1]Provider Arm'!$A$412)-ROW('[1]Provider Arm'!D$393),FALSE) -> 10837.3925 | F67: =-HLOOKUP($A67,'[1]Provider Arm'!$C$516:$AE$546,ROW('[1]Provider Arm'!$A$526)-ROW('[1]Provider Arm'!E$515),FALSE) -> 12503.1635 | G67: =-HLOOKUP($A67,'[1]Provider Arm'!$C$596:$AE$626,ROW('[1]Provider Arm'!$A$606)-ROW('[1]Provider Arm'!F$595),FALSE) -> 13182.9565 | H67: =-HLOOKUP($A67,'[1]Provider Arm'!$C$676:$AE$706,ROW('[1]Provider Arm'!$A$686)-ROW('[1]Provider Arm'!G$675),FALSE) -> 15532.70904 | I67: =-HLOOKUP($A67,'[1]Provider Arm'!$C$757:$AF$787,ROW('[1]Provider Arm'!$A$767)-ROW('[1]Provider Arm'!H$756),FALSE) -> 12818.08717 | J67: =-HLOOKUP($A67,'[1]Provider Arm'!$C$838:$AF$868,ROW('[1]Provider Arm'!$A$848)-ROW('[1]Provider Arm'!I$837),FALSE) -> 14651.52776 | K67: =-HLOOKUP($A67,'[2]Provider Arm'!$C$919:$AF$949,ROW('[2]Provider Arm'!$A$929)-ROW('[2]Provider Arm'!$A$918),FALSE) -> 17820.13643 | L67: =-HLOOKUP($A67,'[2]Provider Arm'!$C$1000:$AF$1030,ROW('[2]Provider Arm'!$A$1010)-ROW('[2]Provider Arm'!$A$999),FALSE) -> 15996.30916 | N67: Hawke's Bay DHB | O67: 0.06152344143 | P67: 0.05864895133 | Q67: 0.04448704664 | R67: 0.04478217686 | S67: 0.04934673949 | T67: 0.05093230504 | U67: 0.05703655104 | V67: 0.04568439416 | W67: 0.0504948751 | X67: 0.05843296849 | Y67: 0.06074338582
A68: Hutt Valley DHB | B68: =-HLOOKUP($A68,'[1]Provider Arm'!$C$8:$Y$58,ROW('[1]Provider Arm'!$A$26)-ROW('[1]Provider Arm'!A$7),FALSE) -> 7729 | C68: =-HLOOKUP($A68,'[1]Provider Arm'!$C$140:$Y$190,ROW('[1]Provider Arm'!$A$158)-ROW('[1]Provider Arm'!B$139),FALSE) -> 8531 | D68: =-HLOOKUP($A68,'[1]Provider Arm'!$C$268:$Y$318,ROW('[1]Provider Arm'!$A$286)-ROW('[1]Provider Arm'!C$267),FALSE) -> 6560 | E68: =-HLOOKUP($A68,'[1]Provider Arm'!$C$394:$Y$444,ROW('[1]Provider Arm'!$A$412)-ROW('[1]Provider Arm'!D$393),FALSE) -> 6286 | F68: =-HLOOKUP($A68,'[1]Provider Arm'!$C$516:$AE$546,ROW('[1]Provider Arm'!$A$526)-ROW('[1]Provider Arm'!E$515),FALSE) -> 5521 | G68: =-HLOOKUP($A68,'[1]Provider Arm'!$C$596:$AE$626,ROW('[1]Provider Arm'!$A$606)-ROW('[1]Provider Arm'!F$595),FALSE) -> 9194 | H68: =-HLOOKUP($A68,'[1]Provider Arm'!$C$676:$AE$706,ROW('[1]Provider Arm'!$A$686)-ROW('[1]Provider Arm'!G$675),FALSE) -> 11019 | I68: =-HLOOKUP($A68,'[1]Provider Arm'!$C$757:$AF$787,ROW('[1]Provider Arm'!$A$767)-ROW('[1]Provider Arm'!H$756),FALSE) -> 12545 | J68: =-HLOOKUP($A68,'[1]Provider Arm'!$C$838:$AF$868,ROW('[1]Provider Arm'!$A$848)-ROW('[1]Provider Arm'!I$837),FALSE) -> 17292 | K68: =-HLOOKUP($A68,'[2]Provider Arm'!$C$919:$AF$949,ROW('[2]Provider Arm'!$A$929)-ROW('[2]Provider Arm'!$A$918),FALSE) -> 14281 | L68: =-HLOOKUP($A68,'[2]Provider Arm'!$C$1000:$AF$1030,ROW('[2]Provider Arm'!$A$1010)-ROW('[2]Provider Arm'!$A$999),FALSE) -> 13983 | N68: Hutt Valley DHB | O68: 0.04350983461 | P68: 0.04329358031 | Q68: 0.03147188639 | R68: 0.0294273235 | S68: 0.02524832166 | T68: 0.04097622719 | U68: 0.04774615115 | V68: 0.05163805204 | W68: 0.06949602122 | X68: 0.05793039104 | Y68: 0.0654154016
A69: Lakes DHB | B69: =-HLOOKUP($A69,'[1]Provider Arm'!$C$8:$Y$58,ROW('[1]Provider Arm'!$A$26)-ROW('[1]Provider Arm'!A$7),FALSE) -> 9003 | C69: =-HLOOKUP($A69,'[1]Provider Arm'!$C$140:$Y$190,ROW('[1]Provider Arm'!$A$158)-ROW('[1]Provider Arm'!B$139),FALSE) -> 10510 | D69: =-HLOOKUP($A69,'[1]Provider Arm'!$C$268:$Y$318,ROW('[1]Provider Arm'!$A$286)-ROW('[1]Provider Arm'!C$267),FALSE) -> 11247.0582 | E69: =-HLOOKUP($A69,'[1]Provider Arm'!$C$394:$Y$444,ROW('[1]Provider Arm'!$A$412)-ROW('[1]Provider Arm'!D$393),FALSE) -> 10297 | F69: =-HLOOKUP($A69,'[1]Provider Arm'!$C$516:$AE$546,ROW('[1]Provider Arm'!$A$526)-ROW('[1]Provider Arm'!E$515),FALSE) -> 11711 | G69: =-HLOOKUP($A69,'[1]Provider Arm'!$C$596:$AE$626,ROW('[1]Provider Arm'!$A$606)-ROW('[1]Provider Arm'!F$595),FALSE) -> 10249 | H69: =-HLOOKUP($A69,'[1]Provider Arm'!$C$676:$AE$706,ROW('[1]Provider Arm'!$A$686)-ROW('[1]Provider Arm'!G$675),FALSE) -> 8698 | I69: =-HLOOKUP($A69,'[1]Provider Arm'!$C$757:$AF$787,ROW('[1]Provider Arm'!$A$767)-ROW('[1]Provider Arm'!H$756),FALSE) -> 12076 | J69: =-HLOOKUP($A69,'[1]Provider Arm'!$C$838:$AF$868,ROW('[1]Provider Arm'!$A$848)-ROW('[1]Provider Arm'!I$837),FALSE) -> 10477 | K69: =-HLOOKUP($A69,'[2]Provider Arm'!$C$919:$AF$949,ROW('[2]Provider Arm'!$A$929)-ROW('[2]Provider Arm'!$A$918),FALSE) -> 12795 | L69: =-HLOOKUP($A69,'[2]Provider Arm'!$C$1000:$AF$1030,ROW('[2]Provider Arm'!$A$1010)-ROW('[2]Provider Arm'!$A$999),FALSE) -> 13672 | N69: Lakes DHB | O69: 0.07339801076 | P69: 0.07961337141 | Q69: 0.08006517202 | R69: 0.07104177813 | S69: 0.07629166857 | T69: 0.06565158348 | U69: 0.05443190067 | V69: 0.07099562009 | W69: 0.06017598474 | X69: 0.07132146779 | Y69: 0.08285407816
A70: MidCentral DHB | B70: =-HLOOKUP($A70,'[1]Provider Arm'!$C$8:$Y$58,ROW('[1]Provider Arm'!$A$26)-ROW('[1]Provider Arm'!A$7),FALSE) -> 22432 | C70: =-HLOOKUP($A70,'[1]Provider Arm'!$C$140:$Y$190,ROW('[1]Provider Arm'!$A$158)-ROW('[1]Provider Arm'!B$139),FALSE) -> 24581 | D70: =-HLOOKUP($A70,'[1]Provider Arm'!$C$268:$Y$318,ROW('[1]Provider Arm'!$A$286)-ROW('[1]Provider Arm'!C$267),FALSE) -> 20628 | E70: =-HLOOKUP($A70,'[1]Provider Arm'!$C$394:$Y$444,ROW('[1]Provider Arm'!$A$412)-ROW('[1]Provider Arm'!D$393),FALSE) -> 18119 | F70: =-HLOOKUP($A70,'[1]Provider Arm'!$C$516:$AE$546,ROW('[1]Provider Arm'!$A$526)-ROW('[1]Provider Arm'!E$515),FALSE) -> 21159 | G70: =-HLOOKUP($A70,'[1]Provider Arm'!$C$596:$AE$626,ROW('[1]Provider Arm'!$A$606)-ROW('[1]Provider Arm'!F$595),FALSE) -> 20700 | H70: =-HLOOKUP($A70,'[1]Provider Arm'!$C$676:$AE$706,ROW('[1]Provider Arm'!$A$686)-ROW('[1]Provider Arm'!G$675),FALSE) -> 21687 | I70: =-HLOOKUP($A70,'[1]Provider Arm'!$C$757:$AF$787,ROW('[1]Provider Arm'!$A$767)-ROW('[1]Provider Arm'!H$756),FALSE) -> 22820 | J70: =-HLOOKUP($A70,'[1]Provider Arm'!$C$838:$AF$868,ROW('[1]Provider Arm'!$A$848)-ROW('[1]Provider Arm'!I$837),FALSE) -> 25403 | K70: =-HLOOKUP($A70,'[2]Provider Arm'!$C$919:$AF$949,ROW('[2]Provider Arm'!$A$929)-ROW('[2]Provider Arm'!$A$918),FALSE) -> 25697 | L70: =-HLOOKUP($A70,'[2]Provider Arm'!$C$1000:$AF$1030,ROW('[2]Provider Arm'!$A$1010)-ROW('[2]Provider Arm'!$A$999),FALSE) -> 21113.62723 | N70: MidCentral DHB | O70: 0.0839087597 | P70: 0.08533173184 | Q70: 0.06825717217 | R70: 0.06008701823 | S70: 0.06616695124 | T70: 0.06139190576 | U70: 0.06185681689 | V70: 0.0642498367 | W70: 0.07149330181 | X70: 0.07035917487 | Y70: 0.06769978928
A71: Nelson Marlborough DHB | B71: =-HLOOKUP($A71,'[1]Provider Arm'!$C$8:$Y$58,ROW('[1]Provider Arm'!$A$26)-ROW('[1]Provider Arm'!A$7),FALSE) -> 12230 | C71: =-HLOOKUP($A71,'[1]Provider Arm'!$C$140:$Y$190,ROW('[1]Provider Arm'!$A$158)-ROW('[1]Provider Arm'!B$139),FALSE) -> 14759 | D71: =-HLOOKUP($A71,'[1]Provider Arm'!$C$268:$Y$318,ROW('[1]Provider Arm'!$A$286)-ROW('[1]Provider Arm'!C$267),FALSE) -> 10980.6257 | E71: =-HLOOKUP($A71,'[1]Provider Arm'!$C$394:$Y$444,ROW('[1]Provider Arm'!$A$412)-ROW('[1]Provider Arm'!D$393),FALSE) -> 11797.077 | F71: =-HLOOKUP($A71,'[1]Provider Arm'!$C$516:$AE$546,ROW('[1]Provider Arm'!$A$526)-ROW('[1]Provider Arm'!E$515),FALSE) -> 11670.48325 | G71: =-HLOOKUP($A71,'[1]Provider Arm'!$C$596:$AE$626,ROW('[1]Provider Arm'!$A$606)-ROW('[1]Provider Arm'!F$595),FALSE) -> 11334.24225 | H71: =-HLOOKUP($A71,'[1]Provider Arm'!$C$676:$AE$706,ROW('[1]Provider Arm'!$A$686)-ROW('[1]Provider Arm'!G$675),FALSE) -> 13657.83021 | I71: =-HLOOKUP($A71,'[1]Provider Arm'!$C$757:$AF$787,ROW('[1]Provider Arm'!$A$767)-ROW('[1]Provider Arm'!H$756),FALSE) -> 13838.04006 | J71: =-HLOOKUP($A71,'[1]Provider Arm'!$C$838:$AF$868,ROW('[1]Provider Arm'!$A$848)-ROW('[1]Provider Arm'!I$837),FALSE) -> 13689.85171 | K71: =-HLOOKUP($A71,'[2]Provider Arm'!$C$919:$AF$949,ROW('[2]Provider Arm'!$A$929)-ROW('[2]Provider Arm'!$A$918),FALSE) -> 13709.42584 | L71: =-HLOOKUP($A71,'[2]Provider Arm'!$C$1000:$AF$1030,ROW('[2]Provider Arm'!$A$1010)-ROW('[2]Provider Arm'!$A$999),FALSE) -> 16346.95255 | N71: Nelson Marlborough DHB | O71: 0.06139373004 | P71: 0.06677404323 | Q71: 0.04963210145 | R71: 0.05217487049 | S71: 0.04956166322 | T71: 0.04769829268 | U71: 0.056254986 | V71: 0.0552149547 | W71: 0.05245465652 | X71: 0.05196899608 | Y71: 0.06859399329
A72: Northland DHB | B72: =-HLOOKUP($A72,'[1]Provider Arm'!$C$8:$Y$58,ROW('[1]Provider Arm'!$A$26)-ROW('[1]Provider Arm'!A$7),FALSE) -> 10077.0651 | C72: =-HLOOKUP($A72,'[1]Provider Arm'!$C$140:$Y$190,ROW('[1]Provider Arm'!$A$158)-ROW('[1]Provider Arm'!B$139),FALSE) -> 12933.0323 | D72: =-HLOOKUP($A72,'[1]Provider Arm'!$C$268:$Y$318,ROW('[1]Provider Arm'!$A$286)-ROW('[1]Provider Arm'!C$267),FALSE) -> 12200.0349 | E72: =-HLOOKUP($A72,'[1]Provider Arm'!$C$394:$Y$444,ROW('[1]Provider Arm'!$A$412)-ROW('[1]Provider Arm'!D$393),FALSE) -> 13963.4657 | F72: =-HLOOKUP($A72,'[1]Provider Arm'!$C$516:$AE$546,ROW('[1]Provider Arm'!$A$526)-ROW('[1]Provider Arm'!E$515),FALSE) -> 14658.11803 | G72: =-HLOOKUP($A72,'[1]Provider Arm'!$C$596:$AE$626,ROW('[1]Provider Arm'!$A$606)-ROW('[1]Provider Arm'!F$595),FALSE) -> 23390.00118 | H72: =-HLOOKUP($A72,'[1]Provider Arm'!$C$676:$AE$706,ROW('[1]Provider Arm'!$A$686)-ROW('[1]Provider Arm'!G$675),FALSE) -> 23520.25185 | I72: =-HLOOKUP($A72,'[1]Provider Arm'!$C$757:$AF$787,ROW('[1]Provider Arm'!$A$767)-ROW('[1]Provider Arm'!H$756),FALSE) -> 23255.5991 | J72: =-HLOOKUP($A72,'[1]Provider Arm'!$C$838:$AF$868,ROW('[1]Provider Arm'!$A$848)-ROW('[1]Provider Arm'!I$837),FALSE) -> 24330.99102 | K72: =-HLOOKUP($A72,'[2]Provider Arm'!$C$919:$AF$949,ROW('[2]Provider Arm'!$A$929)-ROW('[2]Provider Arm'!$A$918),FALSE) -> 27020.7553 | L72: =-HLOOKUP($A72,'[2]Provider Arm'!$C$1000:$AF$1030,ROW('[2]Provider Arm'!$A$1010)-ROW('[2]Provider Arm'!$A$999),FALSE) -> 28226.96137 | N72: Northland DHB | O72: 0.04905680951 | P72: 0.05669791513 | Q72: 0.04881434977 | R72: 0.05350856342 | S72: 0.05397209734 | T72: 0.08266128507 | U72: 0.07989382983 | V72: 0.07592804818 | W72: 0.07529105216 | X72: 0.08022262514 | Y72: 0.09291207286
A73: Otago DHB | B73: =-HLOOKUP($A73,'[1]Provider Arm'!$C$8:$Y$58,ROW('[1]Provider Arm'!$A$26)-ROW('[1]Provider Arm'!A$7),FALSE) -> 5995.51 | C73: =-HLOOKUP($A73,'[1]Provider Arm'!$C$140:$Y$190,ROW('[1]Provider Arm'!$A$158)-ROW('[1]Provider Arm'!B$139),FALSE) -> 6225.46 | N73: Otago DHB | O73: 0.02165039468 | P73: 0.02155194976
A74: South Canterbury DHB | B74: =-HLOOKUP($A74,'[1]Provider Arm'!$C$8:$Y$58,ROW('[1]Provider Arm'!$A$26)-ROW('[1]Provider Arm'!A$7),FALSE) -> 8233 | C74: =-HLOOKUP($A74,'[1]Provider Arm'!$C$140:$Y$190,ROW('[1]Provider Arm'!$A$158)-ROW('[1]Provider Arm'!B$139),FALSE) -> 9175 | D74: =-HLOOKUP($A74,'[1]Provider Arm'!$C$268:$Y$318,ROW('[1]Provider Arm'!$A$286)-ROW('[1]Provider Arm'!C$267),FALSE) -> 10292 | E74: =-HLOOKUP($A74,'[1]Provider Arm'!$C$394:$Y$444,ROW('[1]Provider Arm'!$A$412)-ROW('[1]Provider Arm'!D$393),FALSE) -> 9265 | F74: =-HLOOKUP($A74,'[1]Provider Arm'!$C$516:$AE$546,ROW('[1]Provider Arm'!$A$526)-ROW('[1]Provider Arm'!E$515),FALSE) -> 8975 | G74: =-HLOOKUP($A74,'[1]Provider Arm'!$C$596:$AE$626,ROW('[1]Provider Arm'!$A$606)-ROW('[1]Provider Arm'!F$595),FALSE) -> 8922 | H74: =-HLOOKUP($A74,'[1]Provider Arm'!$C$676:$AE$706,ROW('[1]Provider Arm'!$A$686)-ROW('[1]Provider Arm'!G$675),FALSE) -> 10321 | I74: =-HLOOKUP($A74,'[1]Provider Arm'!$C$757:$AF$787,ROW('[1]Provider Arm'!$A$767)-ROW('[1]Provider Arm'!H$756),FALSE) -> 10592 | J74: =-HLOOKUP($A74,'[1]Provider Arm'!$C$838:$AF$868,ROW('[1]Provider Arm'!$A$848)-ROW('[1]Provider Arm'!I$837),FALSE) -> 11335 | K74: =-HLOOKUP($A74,'[2]Provider Arm'!$C$919:$AF$949,ROW('[2]Provider Arm'!$A$929)-ROW('[2]Provider Arm'!$A$918),FALSE) -> 11712 | L74: =-HLOOKUP($A74,'[2]Provider Arm'!$C$1000:$AF$1030,ROW('[2]Provider Arm'!$A$1010)-ROW('[2]Provider Arm'!$A$999),FALSE) -> 10452 | N74: South Canterbury DHB | O74: 0.1135805535 | P74: 0.1170638971 | Q74: 0.1283739959 | R74: 0.1095347875 | S74: 0.1028912734 | T74: 0.1008488849 | U74: 0.1101212069 | V74: 0.1090396236 | W74: 0.1178997514 | X74: 0.1230950329 | Y74: 0.1288604505
A75: Southern DHB | B75: =B73+B76 -> 14673.4 | C75: =C73+C76 -> 20185.4962 | D75: =-HLOOKUP($A75,'[1]Provider Arm'!$C$268:$Y$318,ROW('[1]Provider Arm'!$A$286)-ROW('[1]Provider Arm'!C$267),FALSE) -> 22423.7305 | E75: =-HLOOKUP($A75,'[1]Provider Arm'!$C$394:$Y$444,ROW('[1]Provider Arm'!$A$412)-ROW('[1]Provider Arm'!D$393),FALSE) -> 17717.4491 | F75: =-HLOOKUP($A75,'[1]Provider Arm'!$C$516:$AE$546,ROW('[1]Provider Arm'!$A$526)-ROW('[1]Provider Arm'!E$515),FALSE) -> 21001.60459 | G75: =-HLOOKUP($A75,'[1]Provider Arm'!$C$596:$AE$626,ROW('[1]Provider Arm'!$A$606)-ROW('[1]Provider Arm'!F$595),FALSE) -> 16945.64882 | H75: =-HLOOKUP($A75,'[1]Provider Arm'!$C$676:$AE$706,ROW('[1]Provider Arm'!$A$686)-ROW('[1]Provider Arm'!G$675),FALSE) -> 15611.01312 | I75: =-HLOOKUP($A75,'[1]Provider Arm'!$C$757:$AF$787,ROW('[1]Provider Arm'!$A$767)-ROW('[1]Provider Arm'!H$756),FALSE) -> 29935.3421 | J75: =-HLOOKUP($A75,'[1]Provider Arm'!$C$838:$AF$868,ROW('[1]Provider Arm'!$A$848)-ROW('[1]Provider Arm'!I$837),FALSE) -> 32575.05536 | K75: =-HLOOKUP($A75,'[2]Provider Arm'!$C$919:$AF$949,ROW('[2]Provider Arm'!$A$929)-ROW('[2]Provider Arm'!$A$918),FALSE) -> 38954.55241 | L75: =-HLOOKUP($A75,'[2]Provider Arm'!$C$1000:$AF$1030,ROW('[2]Provider Arm'!$A$1010)-ROW('[2]Provider Arm'!$A$999),FALSE) -> 32864.43206 | N75: Southern DHB | O75: 0.03670445466 | P75: 0.04729930766 | Q75: 0.04984515049 | R75: 0.03877400614 | S75: 0.04349688996 | T75: 0.03512977519 | U75: 0.03124990509 | V75: 0.05704480615 | W75: 0.05984768132 | X75: 0.07045646916 | Y75: 0.06921429788
A76: Southland DHB | B76: =-HLOOKUP($A76,'[1]Provider Arm'!$C$8:$Y$58,ROW('[1]Provider Arm'!$A$26)-ROW('[1]Provider Arm'!A$7),FALSE) -> 8677.89 | C76: =-HLOOKUP($A76,'[1]Provider Arm'!$C$140:$Y$190,ROW('[1]Provider Arm'!$A$158)-ROW('[1]Provider Arm'!B$139),FALSE) -> 13960.0362 | N76: Southland DHB | O76: 0.07063934932 | P76: 0.101231129
A77: Tairawhiti DHB | B77: =-HLOOKUP($A77,'[1]Provider Arm'!$C$8:$Y$58,ROW('[1]Provider Arm'!$A$26)-ROW('[1]Provider Arm'!A$7),FALSE) -> 4124.534 | C77: =-HLOOKUP($A77,'[1]Provider Arm'!$C$140:$Y$190,ROW('[1]Provider Arm'!$A$158)-ROW('[1]Provider Arm'!B$139),FALSE) -> 4833.364 | D77: =-HLOOKUP($A77,'[1]Provider Arm'!$C$268:$Y$318,ROW('[1]Provider Arm'!$A$286)-ROW('[1]Provider Arm'!C$267),FALSE) -> 5728.413 | E77: =-HLOOKUP($A77,'[1]Provider Arm'!$C$394:$Y$444,ROW('[1]Provider Arm'!$A$412)-ROW('[1]Provider Arm'!D$393),FALSE) -> 5633.345 | F77: =-HLOOKUP($A77,'[1]Provider Arm'!$C$516:$AE$546,ROW('[1]Provider Arm'!$A$526)-ROW('[1]Provider Arm'!E$515),FALSE) -> 5908 | G77: =-HLOOKUP($A77,'[1]Provider Arm'!$C$596:$AE$626,ROW('[1]Provider Arm'!$A$606)-ROW('[1]Provider Arm'!F$595),FALSE) -> 5804 | H77: =-HLOOKUP($A77,'[1]Provider Arm'!$C$676:$AE$706,ROW('[1]Provider Arm'!$A$686)-ROW('[1]Provider Arm'!G$675),FALSE) -> 6076 | I77: =-HLOOKUP($A77,'[1]Provider Arm'!$C$757:$AF$787,ROW('[1]Provider Arm'!$A$767)-ROW('[1]Provider Arm'!H$756),FALSE) -> 7362 | J77: =-HLOOKUP($A77,'[1]Provider Arm'!$C$838:$AF$868,ROW('[1]Provider Arm'!$A$848)-ROW('[1]Provider Arm'!I$837),FALSE) -> 5940.738 | K77: =-HLOOKUP($A77,'[2]Provider Arm'!$C$919:$AF$949,ROW('[2]Provider Arm'!$A$929)-ROW('[2]Provider Arm'!$A$918),FALSE) -> 7071 | L77: =-HLOOKUP($A77,'[2]Provider Arm'!$C$1000:$AF$1030,ROW('[2]Provider Arm'!$A$1010)-ROW('[2]Provider Arm'!$A$999),FALSE) -> 6594 | N77: Tairawhiti DHB | O77: 0.06216118843 | P77: 0.06207613161 | Q77: 0.06964368892 | R77: 0.06630094279 | S77: 0.0682595434 | T77: 0.0636703709 | U77: 0.06628918055 | V77: 0.07656308499 | W77: 0.06069190908 | X77: 0.07061255467 | Y77: 0.07525077887
A78: Taranaki DHB | B78: =-HLOOKUP($A78,'[1]Provider Arm'!$C$8:$Y$58,ROW('[1]Provider Arm'!$A$26)-ROW('[1]Provider Arm'!A$7),FALSE) -> 22742 | C78: =-HLOOKUP($A78,'[1]Provider Arm'!$C$140:$Y$190,ROW('[1]Provider Arm'!$A$158)-ROW('[1]Provider Arm'!B$139),FALSE) -> 22893 | D78: =-HLOOKUP($A78,'[1]Provider Arm'!$C$268:$Y$318,ROW('[1]Provider Arm'!$A$286)-ROW('[1]Provider Arm'!C$267),FALSE) -> 24487 | E78: =-HLOOKUP($A78,'[1]Provider Arm'!$C$394:$Y$444,ROW('[1]Provider Arm'!$A$412)-ROW('[1]Provider Arm'!D$393),FALSE) -> 24170 | F78: =-HLOOKUP($A78,'[1]Provider Arm'!$C$516:$AE$546,ROW('[1]Provider Arm'!$A$526)-ROW('[1]Provider Arm'!E$515),FALSE) -> 22062 | G78: =-HLOOKUP($A78,'[1]Provider Arm'!$C$596:$AE$626,ROW('[1]Provider Arm'!$A$606)-ROW('[1]Provider Arm'!F$595),FALSE) -> 21617 | H78: =-HLOOKUP($A78,'[1]Provider Arm'!$C$676:$AE$706,ROW('[1]Provider Arm'!$A$686)-ROW('[1]Provider Arm'!G$675),FALSE) -> 20011 | I78: =-HLOOKUP($A78,'[1]Provider Arm'!$C$757:$AF$787,ROW('[1]Provider Arm'!$A$767)-ROW('[1]Provider Arm'!H$756),FALSE) -> 21301 | J78: =-HLOOKUP($A78,'[1]Provider Arm'!$C$838:$AF$868,ROW('[1]Provider Arm'!$A$848)-ROW('[1]Provider Arm'!I$837),FALSE) -> 18184 | K78: =-HLOOKUP($A78,'[2]Provider Arm'!$C$919:$AF$949,ROW('[2]Provider Arm'!$A$929)-ROW('[2]Provider Arm'!$A$918),FALSE) -> 16509 | L78: =-HLOOKUP($A78,'[2]Provider Arm'!$C$1000:$AF$1030,ROW('[2]Provider Arm'!$A$1010)-ROW('[2]Provider Arm'!$A$999),FALSE) -> 13256 | N78: Taranaki DHB | O78: 0.1445303811 | P78: 0.1373890499 | Q78: 0.1415220834 | R78: 0.1394256839 | S78: 0.1245624337 | T78: 0.1186072414 | U78: 0.1065531435 | V78: 0.1088312684 | W78: 0.08911060908 | X78: 0.07819760419 | Y78: 0.07144512534
A79: Waikato DHB | B79: =-HLOOKUP($A79,'[1]Provider Arm'!$C$8:$Y$58,ROW('[1]Provider Arm'!$A$26)-ROW('[1]Provider Arm'!A$7),FALSE) -> 28707 | C79: =-HLOOKUP($A79,'[1]Provider Arm'!$C$140:$Y$190,ROW('[1]Provider Arm'!$A$158)-ROW('[1]Provider Arm'!B$139),FALSE) -> 48138 | D79: =-HLOOKUP($A79,'[1]Provider Arm'!$C$268:$Y$318,ROW('[1]Provider Arm'!$A$286)-ROW('[1]Provider Arm'!C$267),FALSE) -> 49294 | E79: =-HLOOKUP($A79,'[1]Provider Arm'!$C$394:$Y$444,ROW('[1]Provider Arm'!$A$412)-ROW('[1]Provider Arm'!D$393),FALSE) -> 45914 | F79: =-HLOOKUP($A79,'[1]Provider Arm'!$C$516:$AE$546,ROW('[1]Provider Arm'!$A$526)-ROW('[1]Provider Arm'!E$515),FALSE) -> 47748 | G79: =-HLOOKUP($A79,'[1]Provider Arm'!$C$596:$AE$626,ROW('[1]Provider Arm'!$A$606)-ROW('[1]Provider Arm'!F$595),FALSE) -> 60403 | H79: =-HLOOKUP($A79,'[1]Provider Arm'!$C$676:$AE$706,ROW('[1]Provider Arm'!$A$686)-ROW('[1]Provider Arm'!G$675),FALSE) -> 52354.8 | I79: =-HLOOKUP($A79,'[1]Provider Arm'!$C$757:$AF$787,ROW('[1]Provider Arm'!$A$767)-ROW('[1]Provider Arm'!H$756),FALSE) -> 51748.32802 | J79: =-HLOOKUP($A79,'[1]Provider Arm'!$C$838:$AF$868,ROW('[1]Provider Arm'!$A$848)-ROW('[1]Provider Arm'!I$837),FALSE) -> 61500.42926 | K79: =-HLOOKUP($A79,'[2]Provider Arm'!$C$919:$AF$949,ROW('[2]Provider Arm'!$A$929)-ROW('[2]Provider Arm'!$A$918),FALSE) -> 78034.01695 | L79: =-HLOOKUP($A79,'[2]Provider Arm'!$C$1000:$AF$1030,ROW('[2]Provider Arm'!$A$1010)-ROW('[2]Provider Arm'!$A$999),FALSE) -> 74100.44771 | N79: Waikato DHB | O79: 0.05216771446 | P79: 0.07559537363 | Q79: 0.07333845128 | R79: 0.05891417962 | S79: 0.0651467398 | T79: 0.07912801071 | U79: 0.06612322193 | V79: 0.06293651786 | W79: 0.07340983426 | X79: 0.08785581447 | Y79: 0.09231381876
A80: Wairarapa DHB | B80: =-HLOOKUP($A80,'[1]Provider Arm'!$C$8:$Y$58,ROW('[1]Provider Arm'!$A$26)-ROW('[1]Provider Arm'!A$7),FALSE) -> 5134.5 | C80: =-HLOOKUP($A80,'[1]Provider Arm'!$C$140:$Y$190,ROW('[1]Provider Arm'!$A$158)-ROW('[1]Provider Arm'!B$139),FALSE) -> 5458 | D80: =-HLOOKUP($A80,'[1]Provider Arm'!$C$268:$Y$318,ROW('[1]Provider Arm'!$A$286)-ROW('[1]Provider Arm'!C$267),FALSE) -> 5259 | E80: =-HLOOKUP($A80,'[1]Provider Arm'!$C$394:$Y$444,ROW('[1]Provider Arm'!$A$412)-ROW('[1]Provider Arm'!D$393),FALSE) -> 5844 | F80: =-HLOOKUP($A80,'[1]Provider Arm'!$C$516:$AE$546,ROW('[1]Provider Arm'!$A$526)-ROW('[1]Provider Arm'!E$515),FALSE) -> 6333 | G80: =-HLOOKUP($A80,'[1]Provider Arm'!$C$596:$AE$626,ROW('[1]Provider Arm'!$A$606)-ROW('[1]Provider Arm'!F$595),FALSE) -> 7398 | H80: =-HLOOKUP($A80,'[1]Provider Arm'!$C$676:$AE$706,ROW('[1]Provider Arm'!$A$686)-ROW('[1]Provider Arm'!G$675),FALSE) -> 9340 | I80: =-HLOOKUP($A80,'[1]Provider Arm'!$C$757:$AF$787,ROW('[1]Provider Arm'!$A$767)-ROW('[1]Provider Arm'!H$756),FALSE) -> 7628.1 | J80: =-HLOOKUP($A80,'[1]Provider Arm'!$C$838:$AF$868,ROW('[1]Provider Arm'!$A$848)-ROW('[1]Provider Arm'!I$837),FALSE) -> 7114.35694 | K80: =-HLOOKUP($A80,'[2]Provider Arm'!$C$919:$AF$949,ROW('[2]Provider Arm'!$A$929)-ROW('[2]Provider Arm'!$A$918),FALSE) -> 8004.97941 | L80: =-HLOOKUP($A80,'[2]Provider Arm'!$C$1000:$AF$1030,ROW('[2]Provider Arm'!$A$1010)-ROW('[2]Provider Arm'!$A$999),FALSE) -> 5766.20143 | N80: Wairarapa DHB | O80: 0.09663940674 | P80: 0.09185923221 | Q80: 0.09062866203 | R80: 0.09803888675 | S80: 0.1028468422 | T80: 0.1211912719 | U80: 0.1480401325 | V80: 0.1177921216 | W80: 0.1032171391 | X80: 0.1150037866 | Y80: 0.09673793318
A81: Waitemata DHB | B81: =-HLOOKUP($A81,'[1]Provider Arm'!$C$8:$Y$58,ROW('[1]Provider Arm'!$A$26)-ROW('[1]Provider Arm'!A$7),FALSE) -> 44308 | C81: =-HLOOKUP($A81,'[1]Provider Arm'!$C$140:$Y$190,ROW('[1]Provider Arm'!$A$158)-ROW('[1]Provider Arm'!B$139),FALSE) -> 49672 | D81: =-HLOOKUP($A81,'[1]Provider Arm'!$C$268:$Y$318,ROW('[1]Provider Arm'!$A$286)-ROW('[1]Provider Arm'!C$267),FALSE) -> 45893 | E81: =-HLOOKUP($A81,'[1]Provider Arm'!$C$394:$Y$444,ROW('[1]Provider Arm'!$A$412)-ROW('[1]Provider Arm'!D$393),FALSE) -> 40267 | F81: =-HLOOKUP($A81,'[1]Provider Arm'!$C$516:$AE$546,ROW('[1]Provider Arm'!$A$526)-ROW('[1]Provider Arm'!E$515),FALSE) -> 49785 | G81: =-HLOOKUP($A81,'[1]Provider Arm'!$C$596:$AE$626,ROW('[1]Provider Arm'!$A$606)-ROW('[1]Provider Arm'!F$595),FALSE) -> 52956 | H81: =-HLOOKUP($A81,'[1]Provider Arm'!$C$676:$AE$706,ROW('[1]Provider Arm'!$A$686)-ROW('[1]Provider Arm'!G$675),FALSE) -> 58576 | I81: =-HLOOKUP($A81,'[1]Provider Arm'!$C$757:$AF$787,ROW('[1]Provider Arm'!$A$767)-ROW('[1]Provider Arm'!H$756),FALSE) -> 65644 | J81: =-HLOOKUP($A81,'[1]Provider Arm'!$C$838:$AF$868,ROW('[1]Provider Arm'!$A$848)-ROW('[1]Provider Arm'!I$837),FALSE) -> 63947 | K81: =-HLOOKUP($A81,'[2]Provider Arm'!$C$919:$AF$949,ROW('[2]Provider Arm'!$A$929)-ROW('[2]Provider Arm'!$A$918),FALSE) -> 68894 | L81: =-HLOOKUP($A81,'[2]Provider Arm'!$C$1000:$AF$1030,ROW('[2]Provider Arm'!$A$1010)-ROW('[2]Provider Arm'!$A$999),FALSE) -> 55743 | N81: Waitemata DHB | O81: 0.07844442517 | P81: 0.07912603264 | Q81: 0.07087798633 | R81: 0.06118479732 | S81: 0.07058588339 | T81: 0.07206653049 | U81: 0.07536759976 | V81: 0.07766958127 | W81: 0.07461369993 | X81: 0.07787783081 | Y81: 0.07199324276
A82: West Coast DHB | B82: =-HLOOKUP($A82,'[1]Provider Arm'!$C$8:$Y$58,ROW('[1]Provider Arm'!$A$26)-ROW('[1]Provider Arm'!A$7),FALSE) -> 10125 | C82: =-HLOOKUP($A82,'[1]Provider Arm'!$C$140:$Y$190,ROW('[1]Provider Arm'!$A$158)-ROW('[1]Provider Arm'!B$139),FALSE) -> 13425 | D82: =-HLOOKUP($A82,'[1]Provider Arm'!$C$268:$Y$318,ROW('[1]Provider Arm'!$A$286)-ROW('[1]Provider Arm'!C$267),FALSE) -> 12087 | E82: =-HLOOKUP($A82,'[1]Provider Arm'!$C$394:$Y$444,ROW('[1]Provider Arm'!$A$412)-ROW('[1]Provider Arm'!D$393),FALSE) -> 14025 | F82: =-HLOOKUP($A82,'[1]Provider Arm'!$C$516:$AE$546,ROW('[1]Provider Arm'!$A$526)-ROW('[1]Provider Arm'!E$515),FALSE) -> 12764 | G82: =-HLOOKUP($A82,'[1]Provider Arm'!$C$596:$AE$626,ROW('[1]Provider Arm'!$A$606)-ROW('[1]Provider Arm'!F$595),FALSE) -> 10194.755 | H82: =-HLOOKUP($A82,'[1]Provider Arm'!$C$676:$AE$706,ROW('[1]Provider Arm'!$A$686)-ROW('[1]Provider Arm'!G$675),FALSE) -> 7387 | I82: =-HLOOKUP($A82,'[1]Provider Arm'!$C$757:$AF$787,ROW('[1]Provider Arm'!$A$767)-ROW('[1]Provider Arm'!H$756),FALSE) -> 6737 | J82: =-HLOOKUP($A82,'[1]Provider Arm'!$C$838:$AF$868,ROW('[1]Provider Arm'!$A$848)-ROW('[1]Provider Arm'!I$837),FALSE) -> 6884 | K82: =-HLOOKUP($A82,'[2]Provider Arm'!$C$919:$AF$949,ROW('[2]Provider Arm'!$A$929)-ROW('[2]Provider Arm'!$A$918),FALSE) -> 7986.52752 | L82: =-HLOOKUP($A82,'[2]Provider Arm'!$C$1000:$AF$1030,ROW('[2]Provider Arm'!$A$1010)-ROW('[2]Provider Arm'!$A$999),FALSE) -> 6550.708 | N82: West Coast DHB | O82: 0.1295867303 | P82: 0.1596010272 | Q82: 0.1368125348 | R82: 0.1554378304 | S82: 0.139940796 | T82: 0.1111688432 | U82: 0.0834274485 | V82: 0.07482479425 | W82: 0.07766508343 | X82: 0.08909421823 | Y82: 0.08489254472
A83: Whanganui DHB | B83: =-HLOOKUP($A83,'[1]Provider Arm'!$C$8:$Y$58,ROW('[1]Provider Arm'!$A$26)-ROW('[1]Provider Arm'!A$7),FALSE) -> 9135 | C83: =-HLOOKUP($A83,'[1]Provider Arm'!$C$140:$Y$190,ROW('[1]Provider Arm'!$A$158)-ROW('[1]Provider Arm'!B$139),FALSE) -> 11047 | D83: =-HLOOKUP($A83,'[1]Provider Arm'!$C$268:$Y$318,ROW('[1]Provider Arm'!$A$286)-ROW('[1]Provider Arm'!C$267),FALSE) -> 10759 | E83: =-HLOOKUP($A83,'[1]Provider Arm'!$C$394:$Y$444,ROW('[1]Provider Arm'!$A$412)-ROW('[1]Provider Arm'!D$393),FALSE) -> 10468 | F83: =-HLOOKUP($A83,'[1]Provider Arm'!$C$516:$AE$546,ROW('[1]Provider Arm'!$A$526)-ROW('[1]Provider Arm'!E$515),FALSE) -> 12209 | G83: =-HLOOKUP($A83,'[1]Provider Arm'!$C$596:$AE$626,ROW('[1]Provider Arm'!$A$606)-ROW('[1]Provider Arm'!F$595),FALSE) -> 12351 | H83: =-HLOOKUP($A83,'[1]Provider Arm'!$C$676:$AE$706,ROW('[1]Provider Arm'!$A$686)-ROW('[1]Provider Arm'!G$675),FALSE) -> 12595 | I83: =-HLOOKUP($A83,'[1]Provider Arm'!$C$757:$AF$787,ROW('[1]Provider Arm'!$A$767)-ROW('[1]Provider Arm'!H$756),FALSE) -> 13138 | J83: =-HLOOKUP($A83,'[1]Provider Arm'!$C$838:$AF$868,ROW('[1]Provider Arm'!$A$848)-ROW('[1]Provider Arm'!I$837),FALSE) -> 13449 | K83: =-HLOOKUP($A83,'[2]Provider Arm'!$C$919:$AF$949,ROW('[2]Provider Arm'!$A$929)-ROW('[2]Provider Arm'!$A$918),FALSE) -> 13118 | L83: =-HLOOKUP($A83,'[2]Provider Arm'!$C$1000:$AF$1030,ROW('[2]Provider Arm'!$A$1010)-ROW('[2]Provider Arm'!$A$999),FALSE) -> 11793 | N83: Whanganui DHB | O83: 0.09151014275 | P83: 0.1017912758 | Q83: 0.09819203986 | R83: 0.09415362475 | S83: 0.1072573773 | T83: 0.1063934257 | U83: 0.1066767175 | V83: 0.1102171962 | W83: 0.110948869 | X83: 0.1058509308 | Y83: 0.1073975247
A84: All DHBs | B84: =-HLOOKUP($A84,'[1]Provider Arm'!$C$8:$Y$58,ROW('[1]Provider Arm'!$A$26)-ROW('[1]Provider Arm'!A$7),FALSE) -> 378518.2318 | C84: =-HLOOKUP($A84,'[1]Provider Arm'!$C$140:$Y$190,ROW('[1]Provider Arm'!$A$158)-ROW('[1]Provider Arm'!B$139),FALSE) -> 439596.2943 | D84: =-HLOOKUP($A84,'[1]Provider Arm'!$C$268:$Y$318,ROW('[1]Provider Arm'!$A$286)-ROW('[1]Provider Arm'!C$267),FALSE) -> 409755.2893 | E84: =-HLOOKUP($A84,'[1]Provider Arm'!$C$394:$Y$444,ROW('[1]Provider Arm'!$A$412)-ROW('[1]Provider Arm'!D$393),FALSE) -> 417321.4094 | F84: =-HLOOKUP($A84,'[1]Provider Arm'!$C$516:$AE$546,ROW('[1]Provider Arm'!$A$526)-ROW('[1]Provider Arm'!E$515),FALSE) -> 483877.2365 | G84: =-HLOOKUP($A84,'[1]Provider Arm'!$C$596:$AE$626,ROW('[1]Provider Arm'!$A$606)-ROW('[1]Provider Arm'!F$595),FALSE) -> 495123.2681 | H84: =-HLOOKUP($A84,'[1]Provider Arm'!$C$676:$AE$706,ROW('[1]Provider Arm'!$A$686)-ROW('[1]Provider Arm'!G$675),FALSE) -> 499587.7722 | I84: =-HLOOKUP($A84,'[1]Provider Arm'!$C$757:$AF$787,ROW('[1]Provider Arm'!$A$767)-ROW('[1]Provider Arm'!H$756),FALSE) -> 550573.7612 | J84: =-HLOOKUP($A84,'[1]Provider Arm'!$C$838:$AF$868,ROW('[1]Provider Arm'!$A$848)-ROW('[1]Provider Arm'!I$837),FALSE) -> 588347.6417 | K84: =-HLOOKUP($A84,'[2]Provider Arm'!$C$919:$AF$949,ROW('[2]Provider Arm'!$A$929)-ROW('[2]Provider Arm'!$A$918),FALSE) -> 635314.1493 | L84: =-HLOOKUP($A84,'[2]Provider Arm'!$C$1000:$AF$1030,ROW('[2]Provider Arm'!$A$1010)-ROW('[2]Provider Arm'!$A$999),FALSE) -> 573708.1703 | N84: All DHBs | O84: 0.06037804812 | P84: 0.06401795803 | Q84: 0.05685184482 | R84: 0.05502736562 | S84: 0.06211727143 | T84: 0.06176859569 | U84: 0.06017659969 | V84: 0.06360584269 | W84: 0.06605669159 | X84: 0.06875694398 | Y84: 0.07100535337
A86: Non-Personnel ($000) | N86: Non-Personnel proportion of Provider expenditure
A87: Auckland DHB | B87: =B112-B62-B37 -> 375622.8056 | C87: =C112-C62-C37 -> 404023.368 | D87: 330480.267 | E87: 430332.344 | F87: 402177.703 | G87: 409294.0912 | H87: 415235.228 | I87: 425638.599 | J87: 439614.888 | K87: =-HLOOKUP($A87,'[2]Provider Arm'!$C$919:$AF$949,ROW('[2]Provider Arm'!$A$939)-ROW('[2]Provider Arm'!$A$918),FALSE) -> 466127.21 | L87: =-HLOOKUP($A87,'[2]Provider Arm'!$C$1000:$AF$1030,ROW('[2]Provider Arm'!$A$1020)-ROW('[2]Provider Arm'!$A$999),FALSE) -> 396171.527 | N87: Auckland DHB | O87: =B87/B112 -> 0.3662603356 | P87: =C87/C112 -> 0.3664737198 | Q87: 0.2875927715 | R87: 0.3589851967 | S87: 0.3256897024 | T87: 0.3247536251 | U87: 0.3189727034 | V87: 0.3164936678 | W87: 0.3137244613 | X87: 0.3152315443 | Y87: 0.3141935286
A88: Bay of Plenty DHB | B88: =B113-B63-B38 -> 75065 | C88: 88864 | D88: 91784 | E88: 100464 | F88: 108316 | G88: 117657 | H88: 108660 | I88: 114346 | J88: 120235.9356 | K88: =-HLOOKUP($A88,'[2]Provider Arm'!$C$919:$AF$949,ROW('[2]Provider Arm'!$A$939)-ROW('[2]Provider Arm'!$A$918),FALSE) -> 125250.5004 | L88: =-HLOOKUP($A88,'[2]Provider Arm'!$C$1000:$AF$1030,ROW('[2]Provider Arm'!$A$1020)-ROW('[2]Provider Arm'!$A$999),FALSE) -> 114951.4188 | N88: Bay of Plenty DHB | O88: =B88/B113 -> 0.289552354 | P88: =C88/C113 -> 0.308736724 | Q88: =D88/D113 -> 0.304655941 | R88: =E88/E113 -> 0.3264255775 | S88: =F88/F113 -> 0.3333938668 | T88: =G88/G113 -> 0.3477868886 | U88: =H88/H113 -> 0.3196277187 | V88: =I88/I113 -> 0.316630392 | W88: =J88/J113 -> 0.3173977589 | X88: 0.3193934343 | Y88: 0.3235661211
A89: Canterbury DHB | B89: =B114-B64-B39 -> 238538 | C89: 251026 | D89: 256895 | E89: 267246 | F89: 294672 | G89: 306650 | H89: 315126 | I89: 333015.56 | J89: 319363 | K89: =-HLOOKUP($A89,'[2]Provider Arm'!$C$919:$AF$949,ROW('[2]Provider Arm'!$A$939)-ROW('[2]Provider Arm'!$A$918),FALSE) -> 340115 | L89: =-HLOOKUP($A89,'[2]Provider Arm'!$C$1000:$AF$1030,ROW('[2]Provider Arm'!$A$1020)-ROW('[2]Provider Arm'!$A$999),FALSE) -> 285857 | N89: Canterbury DHB | O89: 0.3345427312 | P89: 0.3281115411 | Q89: 0.3206958324 | R89: 0.3202234468 | S89: 0.3312343051 | T89: 0.3334402575 | U89: 0.3317108806 | V89: 0.336240931 | W89: 0.3155205903 | X89: 0.3205547492 | Y89: 0.3102955687
A90: Capital & Coast DHB | B90: =B115-B65-B40 -> 171498.1448 | C90: 175413.792 | D90: 210956.4232 | E90: 206765.4934 | F90: 223900.0841 | G90: 217350.0671 | H90: 226350.1864 | I90: 228329.5542 | J90: 221846.5702 | K90: =-HLOOKUP($A90,'[2]Provider Arm'!$C$919:$AF$949,ROW('[2]Provider Arm'!$A$939)-ROW('[2]Provider Arm'!$A$918),FALSE) -> 220474.8176 | L90: =-HLOOKUP($A90,'[2]Provider Arm'!$C$1000:$AF$1030,ROW('[2]Provider Arm'!$A$1020)-ROW('[2]Provider Arm'!$A$999),FALSE) -> 192706.2591 | N90: Capital & Coast DHB | O90: 0.3586509758 | P90: 0.3349452118 | Q90: 0.3654304689 | R90: 0.3591875086 | S90: 0.3656135272 | T90: 0.3478428618 | U90: 0.3481953875 | V90: 0.343940646 | W90: 0.3233146015 | X90: 0.3156702349 | Y90: 0.319094812
A91: Counties Manukau DHB | B91: =B116-B66-B41 -> 174115 | C91: 183148 | D91: 185275 | E91: 278847 | F91: 203565 | G91: 199510 | H91: 216243 | I91: 227310 | J91: 234100 | K91: =-HLOOKUP($A91,'[2]Provider Arm'!$C$919:$AF$949,ROW('[2]Provider Arm'!$A$939)-ROW('[2]Provider Arm'!$A$918),FALSE) -> 233749 | L91: =-HLOOKUP($A91,'[2]Provider Arm'!$C$1000:$AF$1030,ROW('[2]Provider Arm'!$A$1020)-ROW('[2]Provider Arm'!$A$999),FALSE) -> 216847 | N91: Counties Manukau DHB | O91: 0.3108424873 | P91: 0.2959130751 | Q91: 0.2824309719 | R91: 0.3576456314 | S91: 0.2762019769 | T91: 0.2610389746 | U91: 0.2709462313 | V91: 0.2722666731 | W91: 0.2722890894 | X91: 0.260397276 | Y91: 0.2745979746
A92: Hawke's Bay DHB | B92: =B117-B67-B42 -> 67353.5664 | C92: 76362.0323 | D92: 76363.5391 | E92: 78143.0767 | F92: 80981.04627 | G92: 82613.06623 | H92: 86876.05198 | I92: 89339.04288 | J92: 88931.93798 | K92: =-HLOOKUP($A92,'[2]Provider Arm'!$C$919:$AF$949,ROW('[2]Provider Arm'!$A$939)-ROW('[2]Provider Arm'!$A$918),FALSE) -> 92144.96414 | L92: =-HLOOKUP($A92,'[2]Provider Arm'!$C$1000:$AF$1030,ROW('[2]Provider Arm'!$A$1020)-ROW('[2]Provider Arm'!$A$999),FALSE) -> 76954.64474 | N92: Hawke's Bay DHB | O92: 0.308163799 | P92: 0.3231771485 | Q92: 0.3188528771 | R92: 0.3229021263 | S92: 0.3196111603 | T92: 0.3191752843 | U92: 0.3190113431 | V92: 0.3184094471 | W92: 0.3064941196 | X92: 0.3021471697 | Y92: 0.292222764
A93: Hutt Valley DHB | B93: =B118-B68-B43 -> 49643 | C93: 53700 | D93: 57676 | E93: 59227 | F93: 61514 | G93: 61966 | H93: 63254 | I93: 65701 | J93: 65822 | K93: =-HLOOKUP($A93,'[2]Provider Arm'!$C$919:$AF$949,ROW('[2]Provider Arm'!$A$939)-ROW('[2]Provider Arm'!$A$918),FALSE) -> 63921 | L93: =-HLOOKUP($A93,'[2]Provider Arm'!$C$1000:$AF$1030,ROW('[2]Provider Arm'!$A$1020)-ROW('[2]Provider Arm'!$A$999),FALSE) -> 55562 | N93: Hutt Valley DHB | O93: 0.2794616017 | P93: 0.2725196651 | Q93: 0.276703128 | R93: 0.2772656839 | S93: 0.2813123091 | T93: 0.2761728186 | U93: 0.274084313 | V93: 0.270440148 | W93: 0.2645366128 | X93: 0.2592933636 | Y93: 0.2599306689
A94: Lakes DHB | B94: =B119-B69-B44 -> 38788 | C94: 39735 | D94: 43506.9195 | E94: 45100 | F94: 49489 | G94: 52809 | H94: 54314 | I94: 56404 | J94: 57038 | K94: =-HLOOKUP($A94,'[2]Provider Arm'!$C$919:$AF$949,ROW('[2]Provider Arm'!$A$939)-ROW('[2]Provider Arm'!$A$918),FALSE) -> 56810 | L94: =-HLOOKUP($A94,'[2]Provider Arm'!$C$1000:$AF$1030,ROW('[2]Provider Arm'!$A$1020)-ROW('[2]Provider Arm'!$A$999),FALSE) -> 53115 | N94: Lakes DHB | O94: 0.3162237078 | P94: 0.300993084 | Q94: 0.3097155658 | R94: 0.3111570548 | S94: 0.3223976079 | T94: 0.3382763657 | U94: 0.3398958672 | V94: 0.3316029278 | W94: 0.3276050222 | X94: 0.3166684318 | Y94: 0.3218837304
A95: MidCentral DHB | B95: =B120-B70-B45 -> 105728 | C95: 112004 | D95: 118866 | E95: 121345 | F95: 129519 | G95: 139632 | H95: 144948 | I95: 143650 | J95: 136450 | K95: =-HLOOKUP($A95,'[2]Provider Arm'!$C$919:$AF$949,ROW('[2]Provider Arm'!$A$939)-ROW('[2]Provider Arm'!$A$918),FALSE) -> 141597 | L95: =-HLOOKUP($A95,'[2]Provider Arm'!$C$1000:$AF$1030,ROW('[2]Provider Arm'!$A$1020)-ROW('[2]Provider Arm'!$A$999),FALSE) -> 121283.7548 | N95: MidCentral DHB | O95: 0.3954843681 | P95: 0.3888163741 | Q95: 0.3933225241 | R95: 0.4024095826 | S95: 0.4050227968 | T95: 0.4141195452 | U95: 0.4134284084 | V95: 0.4044473726 | W95: 0.3840200383 | X95: 0.3876969329 | Y95: 0.3888902912
A96: Nelson Marlborough DHB | B96: =B121-B71-B46 -> 64677 | C96: 68254 | D96: 69953.4308 | E96: 71867.8802 | F96: 72494.39411 | G96: 73893.97465 | H96: 73856.93582 | I96: 77915.71703 | J96: 80593.28595 | K96: =-HLOOKUP($A96,'[2]Provider Arm'!$C$919:$AF$949,ROW('[2]Provider Arm'!$A$939)-ROW('[2]Provider Arm'!$A$918),FALSE) -> 79566.01907 | L96: =-HLOOKUP($A96,'[2]Provider Arm'!$C$1000:$AF$1030,ROW('[2]Provider Arm'!$A$1020)-ROW('[2]Provider Arm'!$A$999),FALSE) -> 72055.42715 | N96: Nelson Marlborough DHB | O96: 0.3246739393 | P96: 0.3088011075 | Q96: 0.3161874259 | R96: 0.3178496963 | S96: 0.3078658072 | T96: 0.310970628 | U96: 0.3042079764 | V96: 0.310890326 | W96: 0.3088048886 | X96: 0.3016148292 | Y96: 0.3023541832
A97: Northland DHB | B97: =B122-B72-B47 -> 61941.3273 | C97: 71250.1664 | D97: 76180.286 | E97: 82526.2541 | F97: 83167.22788 | G97: 81890.80148 | H97: 84502.12728 | I97: 86330.61319 | J97: 92039.09351 | K97: =-HLOOKUP($A97,'[2]Provider Arm'!$C$919:$AF$949,ROW('[2]Provider Arm'!$A$939)-ROW('[2]Provider Arm'!$A$918),FALSE) -> 94309.43188 | L97: =-HLOOKUP($A97,'[2]Provider Arm'!$C$1000:$AF$1030,ROW('[2]Provider Arm'!$A$1020)-ROW('[2]Provider Arm'!$A$999),FALSE) -> 81965.82794 | N97: Northland DHB | O97: 0.301540564 | P97: 0.3123579833 | Q97: 0.3048098761 | R97: 0.3162439323 | S97: 0.3062268778 | T97: 0.2894056667 | U97: 0.2870376823 | V97: 0.2818639472 | W97: 0.2848104372 | X97: 0.279997732 | Y97: 0.2697993198
A98: Otago DHB | B98: =B123-B73-B48 -> 91743.13 | C98: =C123-C73-C48 -> 96682.26 | N98: Otago DHB | O98: 0.3312937471 | P98: 0.3347047785
A99: South Canterbury DHB | B99: =B124-B74-B49 -> 20187 | C99: 21457 | D99: 20848 | E99: 22054 | F99: 22194 | G99: 23105 | H99: 23853 | I99: 24680 | J99: 24968 | K99: =-HLOOKUP($A99,'[2]Provider Arm'!$C$919:$AF$949,ROW('[2]Provider Arm'!$A$939)-ROW('[2]Provider Arm'!$A$918),FALSE) -> 24170 | L99: =-HLOOKUP($A99,'[2]Provider Arm'!$C$1000:$AF$1030,ROW('[2]Provider Arm'!$A$1020)-ROW('[2]Provider Arm'!$A$999),FALSE) -> 20221 | N99: South Canterbury DHB | O99: 0.2784951577 | P99: 0.2737700316 | Q99: 0.260040912 | R99: 0.2607318082 | S99: 0.2544366488 | T99: 0.2611649278 | U99: 0.254502582 | V99: 0.2540689116 | W99: 0.2597018962 | X99: 0.2540306476 | Y99: 0.2493003415
A100: Southern DHB | B100: =B98+B101 -> 131761.34 | C100: =C98+C101 -> 140809.649 | D100: =D125-D75-D50 -> 140618.3759 | E100: 144558.1081 | F100: 148315.8161 | G100: 145094.2547 | H100: 150861.0529 | I100: 154745.2224 | J100: 162220.2104 | K100: =-HLOOKUP($A100,'[2]Provider Arm'!$C$919:$AF$949,ROW('[2]Provider Arm'!$A$939)-ROW('[2]Provider Arm'!$A$918),FALSE) -> 156517.9614 | L100: =-HLOOKUP($A100,'[2]Provider Arm'!$C$1000:$AF$1030,ROW('[2]Provider Arm'!$A$1020)-ROW('[2]Provider Arm'!$A$999),FALSE) -> 137203.5307 | N100: Southern DHB | O100: 0.3295915146 | P100: 0.3299497245 | Q100: 0.3125770758 | R100: 0.3163602695 | S100: 0.3071801826 | T100: 0.3007927641 | U100: 0.3019915202 | V100: 0.29488259 | W100: 0.2980349027 | X100: 0.2830915063 | Y100: 0.288958167
A101: Southland DHB | B101: =B126-B76-B51 -> 40018.21 | C101: =C126-C76-C51 -> 44127.389 | N101: Southland DHB | O101: 0.3257543384 | P101: 0.3199895289
A102: Tairawhiti DHB | B102: =B127-B77-B52 -> 22339.603 | C102: 24691.083 | D102: 24512.342 | E102: 26296.393 | F102: 25344 | G102: 28076 | H102: 27427 | I102: 29141 | J102: 28448.698 | K102: =-HLOOKUP($A102,'[2]Provider Arm'!$C$919:$AF$949,ROW('[2]Provider Arm'!$A$939)-ROW('[2]Provider Arm'!$A$918),FALSE) -> 28567 | L102: =-HLOOKUP($A102,'[2]Provider Arm'!$C$1000:$AF$1030,ROW('[2]Provider Arm'!$A$1020)-ROW('[2]Provider Arm'!$A$999),FALSE) -> 24650 | N102: Tairawhiti DHB | O102: 0.3366819795 | P102: 0.317113902 | Q102: 0.2980109711 | R102: 0.3094920776 | S102: 0.2928181902 | T102: 0.3079960946 | U102: 0.2992286628 | V102: 0.3030596115 | W102: 0.2906382662 | X102: 0.2852763187 | Y102: 0.2813059902
A103: Taranaki DHB | B103: =B128-B78-B53 -> 49059 | C103: 52329 | D103: 49832 | E103: 48566 | F103: 49661 | G103: 50791 | H103: 57771 | I103: 60720 | J103: 63973 | K103: =-HLOOKUP($A103,'[2]Provider Arm'!$C$919:$AF$949,ROW('[2]Provider Arm'!$A$939)-ROW('[2]Provider Arm'!$A$918),FALSE) -> 64725 | L103: =-HLOOKUP($A103,'[2]Provider Arm'!$C$1000:$AF$1030,ROW('[2]Provider Arm'!$A$1020)-ROW('[2]Provider Arm'!$A$999),FALSE) -> 57237 | N103: Taranaki DHB | O103: 0.3117806687 | P103: 0.3140449742 | Q103: 0.2880029591 | R103: 0.2801550584 | S103: 0.2803868651 | T103: 0.2786779109 | U103: 0.3076148943 | V103: 0.3102311917 | W103: 0.3134993948 | X103: 0.3065806488 | Y103: 0.3084870729
A104: Waikato DHB | B104: =B129-B79-B54 -> 181815.8 | C104: 212074 | D104: 216880 | E104: 309004 | F104: 240221 | G104: 245763 | H104: 258261.3 | I104: 274469.1608 | J104: 262159.5309 | K104: =-HLOOKUP($A104,'[2]Provider Arm'!$C$919:$AF$949,ROW('[2]Provider Arm'!$A$939)-ROW('[2]Provider Arm'!$A$918),FALSE) -> 275049.1416 | L104: =-HLOOKUP($A104,'[2]Provider Arm'!$C$1000:$AF$1030,ROW('[2]Provider Arm'!$A$1020)-ROW('[2]Provider Arm'!$A$999),FALSE) -> 258635.271 | N104: Waikato DHB | O104: 0.3304042477 | P104: 0.3330386237 | Q104: 0.3226689519 | R104: 0.396495996 | S104: 0.3277543558 | T104: 0.3219498584 | U104: 0.3261796293 | V104: 0.3338104612 | W104: 0.3129260713 | X104: 0.3096683639 | Y104: 0.3222060091
A105: Wairarapa DHB | B105: =B130-B80-B55 -> 17982 | C105: 21235 | D105: 20055 | E105: 20381 | F105: 21795 | G105: 19457 | H105: 19387 | I105: 20412.9 | J105: 21800.35006 | K105: =-HLOOKUP($A105,'[2]Provider Arm'!$C$919:$AF$949,ROW('[2]Provider Arm'!$A$939)-ROW('[2]Provider Arm'!$A$918),FALSE) -> 21327.94462 | L105: =-HLOOKUP($A105,'[2]Provider Arm'!$C$1000:$AF$1030,ROW('[2]Provider Arm'!$A$1020)-ROW('[2]Provider Arm'!$A$999),FALSE) -> 18323.43023 | N105: Wairarapa DHB | O105: 0.3384496664 | P105: 0.3573892994 | Q105: 0.3456090163 | R105: 0.3419114563 | S105: 0.3539470906 | T105: 0.3187373042 | U105: 0.3072863007 | V105: 0.3152133294 | W105: 0.3162857562 | X105: 0.3064085821 | Y105: 0.307407015
A106: Waitemata DHB | B106: =B131-B81-B56 -> 154013 | C106: 168078 | D106: 171718 | E106: 176214 | F106: 183471 | G106: 189640 | H106: 201654 | I106: 219819 | J106: 220430 | K106: =-HLOOKUP($A106,'[2]Provider Arm'!$C$919:$AF$949,ROW('[2]Provider Arm'!$A$939)-ROW('[2]Provider Arm'!$A$918),FALSE) -> 221906 | L106: =-HLOOKUP($A106,'[2]Provider Arm'!$C$1000:$AF$1030,ROW('[2]Provider Arm'!$A$1020)-ROW('[2]Provider Arm'!$A$999),FALSE) -> 204085 | N106: Waitemata DHB | O106: 0.272669975 | P106: 0.2677433024 | Q106: 0.2652044115 | R106: 0.2677531943 | S106: 0.2601278018 | T106: 0.2580764567 | U106: 0.2594608365 | V106: 0.2600885029 | W106: 0.2571988971 | X106: 0.2508427138 | Y106: 0.2635800181
A107: West Coast DHB | B107: =B132-B82-B57 -> 22879 | C107: 23909 | D107: 25424 | E107: 24560 | F107: 25512 | G107: 26353.428 | H107: 26278 | I107: 26745 | J107: 26012 | K107: =-HLOOKUP($A107,'[2]Provider Arm'!$C$919:$AF$949,ROW('[2]Provider Arm'!$A$939)-ROW('[2]Provider Arm'!$A$918),FALSE) -> 25166.02153 | L107: =-HLOOKUP($A107,'[2]Provider Arm'!$C$1000:$AF$1030,ROW('[2]Provider Arm'!$A$1020)-ROW('[2]Provider Arm'!$A$999),FALSE) -> 21447.875 | N107: West Coast DHB | O107: 0.2928212151 | P107: 0.2842384326 | Q107: 0.2877737971 | R107: 0.2721963005 | S107: 0.2797061726 | T107: 0.2873713107 | U107: 0.2967790025 | V107: 0.2970445484 | W107: 0.293466611 | X107: 0.2807411617 | Y107: 0.2779492976
A108: Whanganui DHB | B108: =B133-B83-B58 -> 33157 | C108: 35896 | D108: 36489 | E108: 37057 | F108: 36656 | G108: 35897 | H108: 36376 | I108: 35292 | J108: 34651 | K108: =-HLOOKUP($A108,'[2]Provider Arm'!$C$919:$AF$949,ROW('[2]Provider Arm'!$A$939)-ROW('[2]Provider Arm'!$A$918),FALSE) -> 34608 | L108: =-HLOOKUP($A108,'[2]Provider Arm'!$C$1000:$AF$1030,ROW('[2]Provider Arm'!$A$1020)-ROW('[2]Provider Arm'!$A$999),FALSE) -> 31198 | N108: Whanganui DHB | O108: 0.3321512647 | P108: 0.3307594493 | Q108: 0.3330169479 | R108: 0.3333063501 | S108: 0.3220269 | T108: 0.3092223141 | U108: 0.3080962504 | V108: 0.2960713417 | W108: 0.2858568859 | X108: 0.2792566712 | Y108: 0.2841166774
A109: All DHBs | B109: =B134-B84-B59 -> 2056163.587 | C109: 2224259.091 | D109: 2224313.583 | E109: 2550554.549 | F109: 2462965.271 | G109: 2507442.683 | H109: 2591233.882 | I109: 2694004.369 | J109: 2700697.501 | K109: =-HLOOKUP($A109,'[2]Provider Arm'!$C$919:$AF$949,ROW('[2]Provider Arm'!$A$939)-ROW('[2]Provider Arm'!$A$918),FALSE) -> 2766102.012 | L109: =-HLOOKUP($A109,'[2]Provider Arm'!$C$1000:$AF$1030,ROW('[2]Provider Arm'!$A$1020)-ROW('[2]Provider Arm'!$A$999),FALSE) -> 2440470.966 | N109: All DHBs | O109: 0.32798194 | P109: 0.3239165729 | Q109: 0.3086142729 | R109: 0.3363122394 | S109: 0.3161807805 | T109: 0.3128134412 | U109: 0.3121206177 | V109: 0.3112288129 | W109: 0.3032206288 | X109: 0.2993616958 | Y109: 0.3020464277
A111: Total expenditure ($000)
A112: Auckland DHB | B112: =-HLOOKUP($A112,'[1]Provider Arm'!$C$8:$Y$58,ROW('[1]Provider Arm'!$A$52)-ROW('[1]Provider Arm'!A$7),FALSE) -> 1025562.337 | C112: =-HLOOKUP($A112,'[1]Provider Arm'!$C$140:$Y$190,ROW('[1]Provider Arm'!$A$184)-ROW('[1]Provider Arm'!B$139),FALSE) -> 1102462.049 | D112: =-HLOOKUP($A112,'[1]Provider Arm'!$C$268:$Y$318,ROW('[1]Provider Arm'!$A$312)-ROW('[1]Provider Arm'!C$267),FALSE) -> 1149125.777 | E112: =-HLOOKUP($A112,'[1]Provider Arm'!$C$394:$Y$444,ROW('[1]Provider Arm'!$A$438)-ROW('[1]Provider Arm'!D$393),FALSE) -> 1198746.767 | F112: =-HLOOKUP($A112,'[1]Provider Arm'!$C$516:$AE$546,ROW('[1]Provider Arm'!$A$538)-ROW('[1]Provider Arm'!E$515),FALSE) -> 1234849.306 | G112: =-HLOOKUP($A112,'[1]Provider Arm'!$C$596:$AE$626,ROW('[1]Provider Arm'!$A$618)-ROW('[1]Provider Arm'!F$595),FALSE) -> 1260321.855 | H112: =-HLOOKUP($A112,'[1]Provider Arm'!$C$676:$AE$706,ROW('[1]Provider Arm'!$A$698)-ROW('[1]Provider Arm'!G$675),FALSE) -> 1301789.224 | I112: =-HLOOKUP($A112,'[1]Provider Arm'!$C$757:$AF$787,ROW('[1]Provider Arm'!$A$779)-ROW('[1]Provider Arm'!H$756),FALSE) -> 1344856.603 | J112: =-HLOOKUP($A112,'[1]Provider Arm'!$C$838:$AF$868,ROW('[1]Provider Arm'!$A$860)-ROW('[1]Provider Arm'!I$837),FALSE) -> 1401277.051 | K112: =-HLOOKUP($A112,'[2]Provider Arm'!$C$919:$AF$949,ROW('[2]Provider Arm'!$A$941)-ROW('[2]Provider Arm'!$A$918),FALSE) -> 1478681.999 | L112: =-HLOOKUP($A112,'[2]Provider Arm'!$C$1000:$AF$1030,ROW('[2]Provider Arm'!$A$1022)-ROW('[2]Provider Arm'!$A$999),FALSE) -> 1260915.617
A113: Bay of Plenty DHB | B113: =-HLOOKUP($A113,'[1]Provider Arm'!$C$8:$Y$58,ROW('[1]Provider Arm'!$A$52)-ROW('[1]Provider Arm'!A$7),FALSE) -> 259245 | C113: =-HLOOKUP($A113,'[1]Provider Arm'!$C$140:$Y$190,ROW('[1]Provider Arm'!$A$184)-ROW('[1]Provider Arm'!B$139),FALSE) -> 287831 | D113: =-HLOOKUP($A113,'[1]Provider Arm'!$C$268:$Y$318,ROW('[1]Provider Arm'!$A$312)-ROW('[1]Provider Arm'!C$267),FALSE) -> 301271 | E113: =-HLOOKUP($A113,'[1]Provider Arm'!$C$394:$Y$444,ROW('[1]Provider Arm'!$A$438)-ROW('[1]Provider Arm'!D$393),FALSE) -> 307770 | F113: =-HLOOKUP($A113,'[1]Provider Arm'!$C$516:$AE$546,ROW('[1]Provider Arm'!$A$538)-ROW('[1]Provider Arm'!E$515),FALSE) -> 324889 | G113: =-HLOOKUP($A113,'[1]Provider Arm'!$C$596:$AE$626,ROW('[1]Provider Arm'!$A$618)-ROW('[1]Provider Arm'!F$595),FALSE) -> 338302 | H113: =-HLOOKUP($A113,'[1]Provider Arm'!$C$676:$AE$706,ROW('[1]Provider Arm'!$A$698)-ROW('[1]Provider Arm'!G$675),FALSE) -> 339958 | I113: =-HLOOKUP($A113,'[1]Provider Arm'!$C$757:$AF$787,ROW('[1]Provider Arm'!$A$779)-ROW('[1]Provider Arm'!H$756),FALSE) -> 361134 | J113: =-HLOOKUP($A113,'[1]Provider Arm'!$C$838:$AF$868,ROW('[1]Provider Arm'!$A$860)-ROW('[1]Provider Arm'!I$837),FALSE) -> 378817.8467 | K113: =-HLOOKUP($A113,'[2]Provider Arm'!$C$919:$AF$949,ROW('[2]Provider Arm'!$A$941)-ROW('[2]Provider Arm'!$A$918),FALSE) -> 392151.1433 | L113: =-HLOOKUP($A113,'[2]Provider Arm'!$C$1000:$AF$1030,ROW('[2]Provider Arm'!$A$1022)-ROW('[2]Provider Arm'!$A$999),FALSE) -> 355264.0753
A114: Canterbury DHB | B114: =-HLOOKUP($A114,'[1]Provider Arm'!$C$8:$Y$58,ROW('[1]Provider Arm'!$A$52)-ROW('[1]Provider Arm'!A$7),FALSE) -> 713027 | C114: =-HLOOKUP($A114,'[1]Provider Arm'!$C$140:$Y$190,ROW('[1]Provider Arm'!$A$184)-ROW('[1]Provider Arm'!B$139),FALSE) -> 765063 | D114: =-HLOOKUP($A114,'[1]Provider Arm'!$C$268:$Y$318,ROW('[1]Provider Arm'!$A$312)-ROW('[1]Provider Arm'!C$267),FALSE) -> 801055 | E114: =-HLOOKUP($A114,'[1]Provider Arm'!$C$394:$Y$444,ROW('[1]Provider Arm'!$A$438)-ROW('[1]Provider Arm'!D$393),FALSE) -> 834561 | F114: =-HLOOKUP($A114,'[1]Provider Arm'!$C$516:$AE$546,ROW('[1]Provider Arm'!$A$538)-ROW('[1]Provider Arm'!E$515),FALSE) -> 889618 | G114: =-HLOOKUP($A114,'[1]Provider Arm'!$C$596:$AE$626,ROW('[1]Provider Arm'!$A$618)-ROW('[1]Provider Arm'!F$595),FALSE) -> 919655 | H114: =-HLOOKUP($A114,'[1]Provider Arm'!$C$676:$AE$706,ROW('[1]Provider Arm'!$A$698)-ROW('[1]Provider Arm'!G$675),FALSE) -> 950002 | I114: =-HLOOKUP($A114,'[1]Provider Arm'!$C$757:$AF$787,ROW('[1]Provider Arm'!$A$779)-ROW('[1]Provider Arm'!H$756),FALSE) -> 990407.56 | J114: =-HLOOKUP($A114,'[1]Provider Arm'!$C$838:$AF$868,ROW('[1]Provider Arm'!$A$860)-ROW('[1]Provider Arm'!I$837),FALSE) -> 1012178 | K114: =-HLOOKUP($A114,'[2]Provider Arm'!$C$919:$AF$949,ROW('[2]Provider Arm'!$A$941)-ROW('[2]Provider Arm'!$A$918),FALSE) -> 1061020 | L114: =-HLOOKUP($A114,'[2]Provider Arm'!$C$1000:$AF$1030,ROW('[2]Provider Arm'!$A$1022)-ROW('[2]Provider Arm'!$A$999),FALSE) -> 921241
A115: Capital & Coast DHB | B115: =-HLOOKUP($A115,'[1]Provider Arm'!$C$8:$Y$58,ROW('[1]Provider Arm'!$A$52)-ROW('[1]Provider Arm'!A$7),FALSE) -> 478175.5979 | C115: =-HLOOKUP($A115,'[1]Provider Arm'!$C$140:$Y$190,ROW('[1]Provider Arm'!$A$184)-ROW('[1]Provider Arm'!B$139),FALSE) -> 523708.9107 | D115: =-HLOOKUP($A115,'[1]Provider Arm'!$C$268:$Y$318,ROW('[1]Provider Arm'!$A$312)-ROW('[1]Provider Arm'!C$267),FALSE) -> 577281.9761 | E115: =-HLOOKUP($A115,'[1]Provider Arm'!$C$394:$Y$444,ROW('[1]Provider Arm'!$A$438)-ROW('[1]Provider Arm'!D$393),FALSE) -> 575647.7841 | F115: =-HLOOKUP($A115,'[1]Provider Arm'!$C$516:$AE$546,ROW('[1]Provider Arm'!$A$538)-ROW('[1]Provider Arm'!E$515),FALSE) -> 612395.5144 | G115: =-HLOOKUP($A115,'[1]Provider Arm'!$C$596:$AE$626,ROW('[1]Provider Arm'!$A$618)-ROW('[1]Provider Arm'!F$595),FALSE) -> 624851.3079 | H115: =-HLOOKUP($A115,'[1]Provider Arm'!$C$676:$AE$706,ROW('[1]Provider Arm'!$A$698)-ROW('[1]Provider Arm'!G$675),FALSE) -> 650066.5848 | I115: =-HLOOKUP($A115,'[1]Provider Arm'!$C$757:$AF$787,ROW('[1]Provider Arm'!$A$779)-ROW('[1]Provider Arm'!H$756),FALSE) -> 663863.2474 | J115: =-HLOOKUP($A115,'[1]Provider Arm'!$C$838:$AF$868,ROW('[1]Provider Arm'!$A$860)-ROW('[1]Provider Arm'!I$837),FALSE) -> 686163.1648 | K115: =-HLOOKUP($A115,'[2]Provider Arm'!$C$919:$AF$949,ROW('[2]Provider Arm'!$A$941)-ROW('[2]Provider Arm'!$A$918),FALSE) -> 698433.9772 | L115: =-HLOOKUP($A115,'[2]Provider Arm'!$C$1000:$AF$1030,ROW('[2]Provider Arm'!$A$1022)-ROW('[2]Provider Arm'!$A$999),FALSE) -> 603915.3626
A116: Counties Manukau DHB | B116: =-HLOOKUP($A116,'[1]Provider Arm'!$C$8:$Y$58,ROW('[1]Provider Arm'!$A$52)-ROW('[1]Provider Arm'!A$7),FALSE) -> 560139 | C116: =-HLOOKUP($A116,'[1]Provider Arm'!$C$140:$Y$190,ROW('[1]Provider Arm'!$A$184)-ROW('[1]Provider Arm'!B$139),FALSE) -> 618925 | D116: =-HLOOKUP($A116,'[1]Provider Arm'!$C$268:$Y$318,ROW('[1]Provider Arm'!$A$312)-ROW('[1]Provider Arm'!C$267),FALSE) -> 656001 | E116: =-HLOOKUP($A116,'[1]Provider Arm'!$C$394:$Y$444,ROW('[1]Provider Arm'!$A$438)-ROW('[1]Provider Arm'!D$393),FALSE) -> 779674 | F116: =-HLOOKUP($A116,'[1]Provider Arm'!$C$516:$AE$546,ROW('[1]Provider Arm'!$A$538)-ROW('[1]Provider Arm'!E$515),FALSE) -> 737015 | G116: =-HLOOKUP($A116,'[1]Provider Arm'!$C$596:$AE$626,ROW('[1]Provider Arm'!$A$618)-ROW('[1]Provider Arm'!F$595),FALSE) -> 764292 | H116: =-HLOOKUP($A116,'[1]Provider Arm'!$C$676:$AE$706,ROW('[1]Provider Arm'!$A$698)-ROW('[1]Provider Arm'!G$675),FALSE) -> 798103 | I116: =-HLOOKUP($A116,'[1]Provider Arm'!$C$757:$AF$787,ROW('[1]Provider Arm'!$A$779)-ROW('[1]Provider Arm'!H$756),FALSE) -> 834880 | J116: =-HLOOKUP($A116,'[1]Provider Arm'!$C$838:$AF$868,ROW('[1]Provider Arm'!$A$860)-ROW('[1]Provider Arm'!I$837),FALSE) -> 859748 | K116: =-HLOOKUP($A116,'[2]Provider Arm'!$C$919:$AF$949,ROW('[2]Provider Arm'!$A$941)-ROW('[2]Provider Arm'!$A$918),FALSE) -> 897663 | L116: =-HLOOKUP($A116,'[2]Provider Arm'!$C$1000:$AF$1030,ROW('[2]Provider Arm'!$A$1022)-ROW('[2]Provider Arm'!$A$999),FALSE) -> 789689
A117: Hawke's Bay DHB | B117: =-HLOOKUP($A117,'[1]Provider Arm'!$C$8:$Y$58,ROW('[1]Provider Arm'!$A$52)-ROW('[1]Provider Arm'!A$7),FALSE) -> 218564.1747 | C117: =-HLOOKUP($A117,'[1]Provider Arm'!$C$140:$Y$190,ROW('[1]Provider Arm'!$A$184)-ROW('[1]Provider Arm'!B$139),FALSE) -> 236285.3706 | D117: =-HLOOKUP($A117,'[1]Provider Arm'!$C$268:$Y$318,ROW('[1]Provider Arm'!$A$312)-ROW('[1]Provider Arm'!C$267),FALSE) -> 239494.5901 | E117: =-HLOOKUP($A117,'[1]Provider Arm'!$C$394:$Y$444,ROW('[1]Provider Arm'!$A$438)-ROW('[1]Provider Arm'!D$393),FALSE) -> 242002.3603 | F117: =-HLOOKUP($A117,'[1]Provider Arm'!$C$516:$AE$546,ROW('[1]Provider Arm'!$A$538)-ROW('[1]Provider Arm'!E$515),FALSE) -> 253373.65 | G117: =-HLOOKUP($A117,'[1]Provider Arm'!$C$596:$AE$626,ROW('[1]Provider Arm'!$A$618)-ROW('[1]Provider Arm'!F$595),FALSE) -> 258832.9056 | H117: =-HLOOKUP($A117,'[1]Provider Arm'!$C$676:$AE$706,ROW('[1]Provider Arm'!$A$698)-ROW('[1]Provider Arm'!G$675),FALSE) -> 272329.0374 | I117: =-HLOOKUP($A117,'[1]Provider Arm'!$C$757:$AF$787,ROW('[1]Provider Arm'!$A$779)-ROW('[1]Provider Arm'!H$756),FALSE) -> 280579.1213 | J117: =-HLOOKUP($A117,'[1]Provider Arm'!$C$838:$AF$868,ROW('[1]Provider Arm'!$A$860)-ROW('[1]Provider Arm'!I$837),FALSE) -> 290158.7088 | K117: =-HLOOKUP($A117,'[2]Provider Arm'!$C$919:$AF$949,ROW('[2]Provider Arm'!$A$941)-ROW('[2]Provider Arm'!$A$918),FALSE) -> 304967.1596 | L117: =-HLOOKUP($A117,'[2]Provider Arm'!$C$1000:$AF$1030,ROW('[2]Provider Arm'!$A$1022)-ROW('[2]Provider Arm'!$A$999),FALSE) -> 263342.4025
A118: Hutt Valley DHB | B118: =-HLOOKUP($A118,'[1]Provider Arm'!$C$8:$Y$58,ROW('[1]Provider Arm'!$A$52)-ROW('[1]Provider Arm'!A$7),FALSE) -> 177638 | C118: =-HLOOKUP($A118,'[1]Provider Arm'!$C$140:$Y$190,ROW('[1]Provider Arm'!$A$184)-ROW('[1]Provider Arm'!B$139),FALSE) -> 197050 | D118: =-HLOOKUP($A118,'[1]Provider Arm'!$C$268:$Y$318,ROW('[1]Provider Arm'!$A$312)-ROW('[1]Provider Arm'!C$267),FALSE) -> 208440 | E118: =-HLOOKUP($A118,'[1]Provider Arm'!$C$394:$Y$444,ROW('[1]Provider Arm'!$A$438)-ROW('[1]Provider Arm'!D$393),FALSE) -> 213611 | F118: =-HLOOKUP($A118,'[1]Provider Arm'!$C$516:$AE$546,ROW('[1]Provider Arm'!$A$538)-ROW('[1]Provider Arm'!E$515),FALSE) -> 218668 | G118: =-HLOOKUP($A118,'[1]Provider Arm'!$C$596:$AE$626,ROW('[1]Provider Arm'!$A$618)-ROW('[1]Provider Arm'!F$595),FALSE) -> 224374 | H118: =-HLOOKUP($A118,'[1]Provider Arm'!$C$676:$AE$706,ROW('[1]Provider Arm'!$A$698)-ROW('[1]Provider Arm'!G$675),FALSE) -> 230783 | I118: =-HLOOKUP($A118,'[1]Provider Arm'!$C$757:$AF$787,ROW('[1]Provider Arm'!$A$779)-ROW('[1]Provider Arm'!H$756),FALSE) -> 242941 | J118: =-HLOOKUP($A118,'[1]Provider Arm'!$C$838:$AF$868,ROW('[1]Provider Arm'!$A$860)-ROW('[1]Provider Arm'!I$837),FALSE) -> 248820 | K118: =-HLOOKUP($A118,'[2]Provider Arm'!$C$919:$AF$949,ROW('[2]Provider Arm'!$A$941)-ROW('[2]Provider Arm'!$A$918),FALSE) -> 246520 | L118: =-HLOOKUP($A118,'[2]Provider Arm'!$C$1000:$AF$1030,ROW('[2]Provider Arm'!$A$1022)-ROW('[2]Provider Arm'!$A$999),FALSE) -> 213757
A119: Lakes DHB | B119: =-HLOOKUP($A119,'[1]Provider Arm'!$C$8:$Y$58,ROW('[1]Provider Arm'!$A$52)-ROW('[1]Provider Arm'!A$7),FALSE) -> 122660 | C119: =-HLOOKUP($A119,'[1]Provider Arm'!$C$140:$Y$190,ROW('[1]Provider Arm'!$A$184)-ROW('[1]Provider Arm'!B$139),FALSE) -> 132013 | D119: =-HLOOKUP($A119,'[1]Provider Arm'!$C$268:$Y$318,ROW('[1]Provider Arm'!$A$312)-ROW('[1]Provider Arm'!C$267),FALSE) -> 140473.7905 | E119: =-HLOOKUP($A119,'[1]Provider Arm'!$C$394:$Y$444,ROW('[1]Provider Arm'!$A$438)-ROW('[1]Provider Arm'!D$393),FALSE) -> 144942.8811 | F119: =-HLOOKUP($A119,'[1]Provider Arm'!$C$516:$AE$546,ROW('[1]Provider Arm'!$A$538)-ROW('[1]Provider Arm'!E$515),FALSE) -> 153503 | G119: =-HLOOKUP($A119,'[1]Provider Arm'!$C$596:$AE$626,ROW('[1]Provider Arm'!$A$618)-ROW('[1]Provider Arm'!F$595),FALSE) -> 156112 | H119: =-HLOOKUP($A119,'[1]Provider Arm'!$C$676:$AE$706,ROW('[1]Provider Arm'!$A$698)-ROW('[1]Provider Arm'!G$675),FALSE) -> 159796 | I119: =-HLOOKUP($A119,'[1]Provider Arm'!$C$757:$AF$787,ROW('[1]Provider Arm'!$A$779)-ROW('[1]Provider Arm'!H$756),FALSE) -> 170095 | J119: =-HLOOKUP($A119,'[1]Provider Arm'!$C$838:$AF$868,ROW('[1]Provider Arm'!$A$860)-ROW('[1]Provider Arm'!I$837),FALSE) -> 174106 | K119: =-HLOOKUP($A119,'[2]Provider Arm'!$C$919:$AF$949,ROW('[2]Provider Arm'!$A$941)-ROW('[2]Provider Arm'!$A$918),FALSE) -> 179399 | L119: =-HLOOKUP($A119,'[2]Provider Arm'!$C$1000:$AF$1030,ROW('[2]Provider Arm'!$A$1022)-ROW('[2]Provider Arm'!$A$999),FALSE) -> 165013
A120: MidCentral DHB | B120: =-HLOOKUP($A120,'[1]Provider Arm'!$C$8:$Y$58,ROW('[1]Provider Arm'!$A$52)-ROW('[1]Provider Arm'!A$7),FALSE) -> 267338 | C120: =-HLOOKUP($A120,'[1]Provider Arm'!$C$140:$Y$190,ROW('[1]Provider Arm'!$A$184)-ROW('[1]Provider Arm'!B$139),FALSE) -> 288064 | D120: =-HLOOKUP($A120,'[1]Provider Arm'!$C$268:$Y$318,ROW('[1]Provider Arm'!$A$312)-ROW('[1]Provider Arm'!C$267),FALSE) -> 302210 | E120: =-HLOOKUP($A120,'[1]Provider Arm'!$C$394:$Y$444,ROW('[1]Provider Arm'!$A$438)-ROW('[1]Provider Arm'!D$393),FALSE) -> 301546 | F120: =-HLOOKUP($A120,'[1]Provider Arm'!$C$516:$AE$546,ROW('[1]Provider Arm'!$A$538)-ROW('[1]Provider Arm'!E$515),FALSE) -> 319782 | G120: =-HLOOKUP($A120,'[1]Provider Arm'!$C$596:$AE$626,ROW('[1]Provider Arm'!$A$618)-ROW('[1]Provider Arm'!F$595),FALSE) -> 337178 | H120: =-HLOOKUP($A120,'[1]Provider Arm'!$C$676:$AE$706,ROW('[1]Provider Arm'!$A$698)-ROW('[1]Provider Arm'!G$675),FALSE) -> 350600 | I120: =-HLOOKUP($A120,'[1]Provider Arm'!$C$757:$AF$787,ROW('[1]Provider Arm'!$A$779)-ROW('[1]Provider Arm'!H$756),FALSE) -> 355176 | J120: =-HLOOKUP($A120,'[1]Provider Arm'!$C$838:$AF$868,ROW('[1]Provider Arm'!$A$860)-ROW('[1]Provider Arm'!I$837),FALSE) -> 355320 | K120: =-HLOOKUP($A120,'[2]Provider Arm'!$C$919:$AF$949,ROW('[2]Provider Arm'!$A$941)-ROW('[2]Provider Arm'!$A$918),FALSE) -> 365226 | L120: =-HLOOKUP($A120,'[2]Provider Arm'!$C$1000:$AF$1030,ROW('[2]Provider Arm'!$A$1022)-ROW('[2]Provider Arm'!$A$999),FALSE) -> 311871.3877
A121: Nelson Marlborough DHB | B121: =-HLOOKUP($A121,'[1]Provider Arm'!$C$8:$Y$58,ROW('[1]Provider Arm'!$A$52)-ROW('[1]Provider Arm'!A$7),FALSE) -> 199206.01 | C121: =-HLOOKUP($A121,'[1]Provider Arm'!$C$140:$Y$190,ROW('[1]Provider Arm'!$A$184)-ROW('[1]Provider Arm'!B$139),FALSE) -> 221029 | D121: =-HLOOKUP($A121,'[1]Provider Arm'!$C$268:$Y$318,ROW('[1]Provider Arm'!$A$312)-ROW('[1]Provider Arm'!C$267),FALSE) -> 221240.3944 | E121: =-HLOOKUP($A121,'[1]Provider Arm'!$C$394:$Y$444,ROW('[1]Provider Arm'!$A$438)-ROW('[1]Provider Arm'!D$393),FALSE) -> 226106.4932 | F121: =-HLOOKUP($A121,'[1]Provider Arm'!$C$516:$AE$546,ROW('[1]Provider Arm'!$A$538)-ROW('[1]Provider Arm'!E$515),FALSE) -> 235474.0033 | G121: =-HLOOKUP($A121,'[1]Provider Arm'!$C$596:$AE$626,ROW('[1]Provider Arm'!$A$618)-ROW('[1]Provider Arm'!F$595),FALSE) -> 237623.6467 | H121: =-HLOOKUP($A121,'[1]Provider Arm'!$C$676:$AE$706,ROW('[1]Provider Arm'!$A$698)-ROW('[1]Provider Arm'!G$675),FALSE) -> 242784.35 | I121: =-HLOOKUP($A121,'[1]Provider Arm'!$C$757:$AF$787,ROW('[1]Provider Arm'!$A$779)-ROW('[1]Provider Arm'!H$756),FALSE) -> 250621.2336 | J121: =-HLOOKUP($A121,'[1]Provider Arm'!$C$838:$AF$868,ROW('[1]Provider Arm'!$A$860)-ROW('[1]Provider Arm'!I$837),FALSE) -> 260984.4887 | K121: =-HLOOKUP($A121,'[2]Provider Arm'!$C$919:$AF$949,ROW('[2]Provider Arm'!$A$941)-ROW('[2]Provider Arm'!$A$918),FALSE) -> 263800.0899 | L121: =-HLOOKUP($A121,'[2]Provider Arm'!$C$1000:$AF$1030,ROW('[2]Provider Arm'!$A$1022)-ROW('[2]Provider Arm'!$A$999),FALSE) -> 238314.6361
A122: Northland DHB | B122: =-HLOOKUP($A122,'[1]Provider Arm'!$C$8:$Y$58,ROW('[1]Provider Arm'!$A$52)-ROW('[1]Provider Arm'!A$7),FALSE) -> 205416.2348 | C122: =-HLOOKUP($A122,'[1]Provider Arm'!$C$140:$Y$190,ROW('[1]Provider Arm'!$A$184)-ROW('[1]Provider Arm'!B$139),FALSE) -> 228104.1952 | D122: =-HLOOKUP($A122,'[1]Provider Arm'!$C$268:$Y$318,ROW('[1]Provider Arm'!$A$312)-ROW('[1]Provider Arm'!C$267),FALSE) -> 249927.2234 | E122: =-HLOOKUP($A122,'[1]Provider Arm'!$C$394:$Y$444,ROW('[1]Provider Arm'!$A$438)-ROW('[1]Provider Arm'!D$393),FALSE) -> 260957.589 | F122: =-HLOOKUP($A122,'[1]Provider Arm'!$C$516:$AE$546,ROW('[1]Provider Arm'!$A$538)-ROW('[1]Provider Arm'!E$515),FALSE) -> 271586.9635 | G122: =-HLOOKUP($A122,'[1]Provider Arm'!$C$596:$AE$626,ROW('[1]Provider Arm'!$A$618)-ROW('[1]Provider Arm'!F$595),FALSE) -> 282961.9835 | H122: =-HLOOKUP($A122,'[1]Provider Arm'!$C$676:$AE$706,ROW('[1]Provider Arm'!$A$698)-ROW('[1]Provider Arm'!G$675),FALSE) -> 294393.8462 | I122: =-HLOOKUP($A122,'[1]Provider Arm'!$C$757:$AF$787,ROW('[1]Provider Arm'!$A$779)-ROW('[1]Provider Arm'!H$756),FALSE) -> 306284.6953 | J122: =-HLOOKUP($A122,'[1]Provider Arm'!$C$838:$AF$868,ROW('[1]Provider Arm'!$A$860)-ROW('[1]Provider Arm'!I$837),FALSE) -> 323159.1314 | K122: =-HLOOKUP($A122,'[2]Provider Arm'!$C$919:$AF$949,ROW('[2]Provider Arm'!$A$941)-ROW('[2]Provider Arm'!$A$918),FALSE) -> 336822.1278 | L122: =-HLOOKUP($A122,'[2]Provider Arm'!$C$1000:$AF$1030,ROW('[2]Provider Arm'!$A$1022)-ROW('[2]Provider Arm'!$A$999),FALSE) -> 303802.9451
A123: Otago DHB | B123: =-HLOOKUP($A123,'[1]Provider Arm'!$C$8:$Y$58,ROW('[1]Provider Arm'!$A$52)-ROW('[1]Provider Arm'!A$7),FALSE) -> 276923.82 | C123: =-HLOOKUP($A123,'[1]Provider Arm'!$C$140:$Y$190,ROW('[1]Provider Arm'!$A$184)-ROW('[1]Provider Arm'!B$139),FALSE) -> 288858.32
A124: South Canterbury DHB | B124: =-HLOOKUP($A124,'[1]Provider Arm'!$C$8:$Y$58,ROW('[1]Provider Arm'!$A$52)-ROW('[1]Provider Arm'!A$7),FALSE) -> 72486 | C124: =-HLOOKUP($A124,'[1]Provider Arm'!$C$140:$Y$190,ROW('[1]Provider Arm'!$A$184)-ROW('[1]Provider Arm'!B$139),FALSE) -> 78376 | D124: =-HLOOKUP($A124,'[1]Provider Arm'!$C$268:$Y$318,ROW('[1]Provider Arm'!$A$312)-ROW('[1]Provider Arm'!C$267),FALSE) -> 80172 | E124: =-HLOOKUP($A124,'[1]Provider Arm'!$C$394:$Y$444,ROW('[1]Provider Arm'!$A$438)-ROW('[1]Provider Arm'!D$393),FALSE) -> 84585 | F124: =-HLOOKUP($A124,'[1]Provider Arm'!$C$516:$AE$546,ROW('[1]Provider Arm'!$A$538)-ROW('[1]Provider Arm'!E$515),FALSE) -> 87228 | G124: =-HLOOKUP($A124,'[1]Provider Arm'!$C$596:$AE$626,ROW('[1]Provider Arm'!$A$618)-ROW('[1]Provider Arm'!F$595),FALSE) -> 88469 | H124: =-HLOOKUP($A124,'[1]Provider Arm'!$C$676:$AE$706,ROW('[1]Provider Arm'!$A$698)-ROW('[1]Provider Arm'!G$675),FALSE) -> 93724 | I124: =-HLOOKUP($A124,'[1]Provider Arm'!$C$757:$AF$787,ROW('[1]Provider Arm'!$A$779)-ROW('[1]Provider Arm'!H$756),FALSE) -> 97139 | J124: =-HLOOKUP($A124,'[1]Provider Arm'!$C$838:$AF$868,ROW('[1]Provider Arm'!$A$860)-ROW('[1]Provider Arm'!I$837),FALSE) -> 96141 | K124: =-HLOOKUP($A124,'[2]Provider Arm'!$C$919:$AF$949,ROW('[2]Provider Arm'!$A$941)-ROW('[2]Provider Arm'!$A$918),FALSE) -> 95146 | L124: =-HLOOKUP($A124,'[2]Provider Arm'!$C$1000:$AF$1030,ROW('[2]Provider Arm'!$A$1022)-ROW('[2]Provider Arm'!$A$999),FALSE) -> 81111
A125: Southern DHB | B125: =B123+B126 -> 399771.639 | C125: =C123+C126 -> 426760.9231 | D125: =-HLOOKUP($A125,'[1]Provider Arm'!$C$268:$Y$318,ROW('[1]Provider Arm'!$A$312)-ROW('[1]Provider Arm'!C$267),FALSE) -> 449867.8463 | E125: =-HLOOKUP($A125,'[1]Provider Arm'!$C$394:$Y$444,ROW('[1]Provider Arm'!$A$438)-ROW('[1]Provider Arm'!D$393),FALSE) -> 456941.4116 | F125: =-HLOOKUP($A125,'[1]Provider Arm'!$C$516:$AE$546,ROW('[1]Provider Arm'!$A$538)-ROW('[1]Provider Arm'!E$515),FALSE) -> 482830.0278 | G125: =-HLOOKUP($A125,'[1]Provider Arm'!$C$596:$AE$626,ROW('[1]Provider Arm'!$A$618)-ROW('[1]Provider Arm'!F$595),FALSE) -> 482372.8227 | H125: =-HLOOKUP($A125,'[1]Provider Arm'!$C$676:$AE$706,ROW('[1]Provider Arm'!$A$698)-ROW('[1]Provider Arm'!G$675),FALSE) -> 499553.937 | I125: =-HLOOKUP($A125,'[1]Provider Arm'!$C$757:$AF$787,ROW('[1]Provider Arm'!$A$779)-ROW('[1]Provider Arm'!H$756),FALSE) -> 524768.9338 | J125: =-HLOOKUP($A125,'[1]Provider Arm'!$C$838:$AF$868,ROW('[1]Provider Arm'!$A$860)-ROW('[1]Provider Arm'!I$837),FALSE) -> 544299.372 | K125: =-HLOOKUP($A125,'[2]Provider Arm'!$C$919:$AF$949,ROW('[2]Provider Arm'!$A$941)-ROW('[2]Provider Arm'!$A$918),FALSE) -> 552888.2283 | L125: =-HLOOKUP($A125,'[2]Provider Arm'!$C$1000:$AF$1030,ROW('[2]Provider Arm'!$A$1022)-ROW('[2]Provider Arm'!$A$999),FALSE) -> 474821.4324
A126: Southland DHB | B126: =-HLOOKUP($A126,'[1]Provider Arm'!$C$8:$Y$58,ROW('[1]Provider Arm'!$A$52)-ROW('[1]Provider Arm'!A$7),FALSE) -> 122847.819 | C126: =-HLOOKUP($A126,'[1]Provider Arm'!$C$140:$Y$190,ROW('[1]Provider Arm'!$A$184)-ROW('[1]Provider Arm'!B$139),FALSE) -> 137902.6031
A127: Tairawhiti DHB | B127: =-HLOOKUP($A127,'[1]Provider Arm'!$C$8:$Y$58,ROW('[1]Provider Arm'!$A$52)-ROW('[1]Provider Arm'!A$7),FALSE) -> 66352.2385 | C127: =-HLOOKUP($A127,'[1]Provider Arm'!$C$140:$Y$190,ROW('[1]Provider Arm'!$A$184)-ROW('[1]Provider Arm'!B$139),FALSE) -> 77861.875 | D127: =-HLOOKUP($A127,'[1]Provider Arm'!$C$268:$Y$318,ROW('[1]Provider Arm'!$A$312)-ROW('[1]Provider Arm'!C$267),FALSE) -> 82253.153 | E127: =-HLOOKUP($A127,'[1]Provider Arm'!$C$394:$Y$444,ROW('[1]Provider Arm'!$A$438)-ROW('[1]Provider Arm'!D$393),FALSE) -> 84966.288 | F127: =-HLOOKUP($A127,'[1]Provider Arm'!$C$516:$AE$546,ROW('[1]Provider Arm'!$A$538)-ROW('[1]Provider Arm'!E$515),FALSE) -> 86552 | G127: =-HLOOKUP($A127,'[1]Provider Arm'!$C$596:$AE$626,ROW('[1]Provider Arm'!$A$618)-ROW('[1]Provider Arm'!F$595),FALSE) -> 91157 | H127: =-HLOOKUP($A127,'[1]Provider Arm'!$C$676:$AE$706,ROW('[1]Provider Arm'!$A$698)-ROW('[1]Provider Arm'!G$675),FALSE) -> 91659 | I127: =-HLOOKUP($A127,'[1]Provider Arm'!$C$757:$AF$787,ROW('[1]Provider Arm'!$A$779)-ROW('[1]Provider Arm'!H$756),FALSE) -> 96156 | J127: =-HLOOKUP($A127,'[1]Provider Arm'!$C$838:$AF$868,ROW('[1]Provider Arm'!$A$860)-ROW('[1]Provider Arm'!I$837),FALSE) -> 97883.525 | K127: =-HLOOKUP($A127,'[2]Provider Arm'!$C$919:$AF$949,ROW('[2]Provider Arm'!$A$941)-ROW('[2]Provider Arm'!$A$918),FALSE) -> 100138 | L127: =-HLOOKUP($A127,'[2]Provider Arm'!$C$1000:$AF$1030,ROW('[2]Provider Arm'!$A$1022)-ROW('[2]Provider Arm'!$A$999),FALSE) -> 87627
A128: Taranaki DHB | B128: =-HLOOKUP($A128,'[1]Provider Arm'!$C$8:$Y$58,ROW('[1]Provider Arm'!$A$52)-ROW('[1]Provider Arm'!A$7),FALSE) -> 157351 | C128: =-HLOOKUP($A128,'[1]Provider Arm'!$C$140:$Y$190,ROW('[1]Provider Arm'!$A$184)-ROW('[1]Provider Arm'!B$139),FALSE) -> 166629 | D128: =-HLOOKUP($A128,'[1]Provider Arm'!$C$268:$Y$318,ROW('[1]Provider Arm'!$A$312)-ROW('[1]Provider Arm'!C$267),FALSE) -> 173026 | E128: =-HLOOKUP($A128,'[1]Provider Arm'!$C$394:$Y$444,ROW('[1]Provider Arm'!$A$438)-ROW('[1]Provider Arm'!D$393),FALSE) -> 173354 | F128: =-HLOOKUP($A128,'[1]Provider Arm'!$C$516:$AE$546,ROW('[1]Provider Arm'!$A$538)-ROW('[1]Provider Arm'!E$515),FALSE) -> 177116 | G128: =-HLOOKUP($A128,'[1]Provider Arm'!$C$596:$AE$626,ROW('[1]Provider Arm'!$A$618)-ROW('[1]Provider Arm'!F$595),FALSE) -> 182257 | H128: =-HLOOKUP($A128,'[1]Provider Arm'!$C$676:$AE$706,ROW('[1]Provider Arm'!$A$698)-ROW('[1]Provider Arm'!G$675),FALSE) -> 187803 | I128: =-HLOOKUP($A128,'[1]Provider Arm'!$C$757:$AF$787,ROW('[1]Provider Arm'!$A$779)-ROW('[1]Provider Arm'!H$756),FALSE) -> 195725 | J128: =-HLOOKUP($A128,'[1]Provider Arm'!$C$838:$AF$868,ROW('[1]Provider Arm'!$A$860)-ROW('[1]Provider Arm'!I$837),FALSE) -> 204061 | K128: =-HLOOKUP($A128,'[2]Provider Arm'!$C$919:$AF$949,ROW('[2]Provider Arm'!$A$941)-ROW('[2]Provider Arm'!$A$918),FALSE) -> 211119 | L128: =-HLOOKUP($A128,'[2]Provider Arm'!$C$1000:$AF$1030,ROW('[2]Provider Arm'!$A$1022)-ROW('[2]Provider Arm'!$A$999),FALSE) -> 185541
A129: Waikato DHB | B129: =-HLOOKUP($A129,'[1]Provider Arm'!$C$8:$Y$58,ROW('[1]Provider Arm'!$A$52)-ROW('[1]Provider Arm'!A$7),FALSE) -> 550282.877 | C129: =-HLOOKUP($A129,'[1]Provider Arm'!$C$140:$Y$190,ROW('[1]Provider Arm'!$A$184)-ROW('[1]Provider Arm'!B$139),FALSE) -> 636785 | D129: =-HLOOKUP($A129,'[1]Provider Arm'!$C$268:$Y$318,ROW('[1]Provider Arm'!$A$312)-ROW('[1]Provider Arm'!C$267),FALSE) -> 672144 | E129: =-HLOOKUP($A129,'[1]Provider Arm'!$C$394:$Y$444,ROW('[1]Provider Arm'!$A$438)-ROW('[1]Provider Arm'!D$393),FALSE) -> 779337 | F129: =-HLOOKUP($A129,'[1]Provider Arm'!$C$516:$AE$546,ROW('[1]Provider Arm'!$A$538)-ROW('[1]Provider Arm'!E$515),FALSE) -> 732930 | G129: =-HLOOKUP($A129,'[1]Provider Arm'!$C$596:$AE$626,ROW('[1]Provider Arm'!$A$618)-ROW('[1]Provider Arm'!F$595),FALSE) -> 763358 | H129: =-HLOOKUP($A129,'[1]Provider Arm'!$C$676:$AE$706,ROW('[1]Provider Arm'!$A$698)-ROW('[1]Provider Arm'!G$675),FALSE) -> 791776.3 | I129: =-HLOOKUP($A129,'[1]Provider Arm'!$C$757:$AF$787,ROW('[1]Provider Arm'!$A$779)-ROW('[1]Provider Arm'!H$756),FALSE) -> 822230.5551 | J129: =-HLOOKUP($A129,'[1]Provider Arm'!$C$838:$AF$868,ROW('[1]Provider Arm'!$A$860)-ROW('[1]Provider Arm'!I$837),FALSE) -> 837768.2619 | K129: =-HLOOKUP($A129,'[2]Provider Arm'!$C$919:$AF$949,ROW('[2]Provider Arm'!$A$941)-ROW('[2]Provider Arm'!$A$918),FALSE) -> 888205.4924 | L129: =-HLOOKUP($A129,'[2]Provider Arm'!$C$1000:$AF$1030,ROW('[2]Provider Arm'!$A$1022)-ROW('[2]Provider Arm'!$A$999),FALSE) -> 802701.5749
A130: Wairarapa DHB | B130: =-HLOOKUP($A130,'[1]Provider Arm'!$C$8:$Y$58,ROW('[1]Provider Arm'!$A$52)-ROW('[1]Provider Arm'!A$7),FALSE) -> 53130.5 | C130: =-HLOOKUP($A130,'[1]Provider Arm'!$C$140:$Y$190,ROW('[1]Provider Arm'!$A$184)-ROW('[1]Provider Arm'!B$139),FALSE) -> 59417 | D130: =-HLOOKUP($A130,'[1]Provider Arm'!$C$268:$Y$318,ROW('[1]Provider Arm'!$A$312)-ROW('[1]Provider Arm'!C$267),FALSE) -> 58028 | E130: =-HLOOKUP($A130,'[1]Provider Arm'!$C$394:$Y$444,ROW('[1]Provider Arm'!$A$438)-ROW('[1]Provider Arm'!D$393),FALSE) -> 59609 | F130: =-HLOOKUP($A130,'[1]Provider Arm'!$C$516:$AE$546,ROW('[1]Provider Arm'!$A$538)-ROW('[1]Provider Arm'!E$515),FALSE) -> 61577 | G130: =-HLOOKUP($A130,'[1]Provider Arm'!$C$596:$AE$626,ROW('[1]Provider Arm'!$A$618)-ROW('[1]Provider Arm'!F$595),FALSE) -> 61044 | H130: =-HLOOKUP($A130,'[1]Provider Arm'!$C$676:$AE$706,ROW('[1]Provider Arm'!$A$698)-ROW('[1]Provider Arm'!G$675),FALSE) -> 63091 | I130: =-HLOOKUP($A130,'[1]Provider Arm'!$C$757:$AF$787,ROW('[1]Provider Arm'!$A$779)-ROW('[1]Provider Arm'!H$756),FALSE) -> 64759 | J130: =-HLOOKUP($A130,'[1]Provider Arm'!$C$838:$AF$868,ROW('[1]Provider Arm'!$A$860)-ROW('[1]Provider Arm'!I$837),FALSE) -> 68926.12023 | K130: =-HLOOKUP($A130,'[2]Provider Arm'!$C$919:$AF$949,ROW('[2]Provider Arm'!$A$941)-ROW('[2]Provider Arm'!$A$918),FALSE) -> 69606.22471 | L130: =-HLOOKUP($A130,'[2]Provider Arm'!$C$1000:$AF$1030,ROW('[2]Provider Arm'!$A$1022)-ROW('[2]Provider Arm'!$A$999),FALSE) -> 59606.4154
A131: Waitemata DHB | B131: =-HLOOKUP($A131,'[1]Provider Arm'!$C$8:$Y$58,ROW('[1]Provider Arm'!$A$52)-ROW('[1]Provider Arm'!A$7),FALSE) -> 564833 | C131: =-HLOOKUP($A131,'[1]Provider Arm'!$C$140:$Y$190,ROW('[1]Provider Arm'!$A$184)-ROW('[1]Provider Arm'!B$139),FALSE) -> 627758 | D131: =-HLOOKUP($A131,'[1]Provider Arm'!$C$268:$Y$318,ROW('[1]Provider Arm'!$A$312)-ROW('[1]Provider Arm'!C$267),FALSE) -> 647493 | E131: =-HLOOKUP($A131,'[1]Provider Arm'!$C$394:$Y$444,ROW('[1]Provider Arm'!$A$438)-ROW('[1]Provider Arm'!D$393),FALSE) -> 658121 | F131: =-HLOOKUP($A131,'[1]Provider Arm'!$C$516:$AE$546,ROW('[1]Provider Arm'!$A$538)-ROW('[1]Provider Arm'!E$515),FALSE) -> 705311 | G131: =-HLOOKUP($A131,'[1]Provider Arm'!$C$596:$AE$626,ROW('[1]Provider Arm'!$A$618)-ROW('[1]Provider Arm'!F$595),FALSE) -> 734821 | H131: =-HLOOKUP($A131,'[1]Provider Arm'!$C$676:$AE$706,ROW('[1]Provider Arm'!$A$698)-ROW('[1]Provider Arm'!G$675),FALSE) -> 777204 | I131: =-HLOOKUP($A131,'[1]Provider Arm'!$C$757:$AF$787,ROW('[1]Provider Arm'!$A$779)-ROW('[1]Provider Arm'!H$756),FALSE) -> 845170 | J131: =-HLOOKUP($A131,'[1]Provider Arm'!$C$838:$AF$868,ROW('[1]Provider Arm'!$A$860)-ROW('[1]Provider Arm'!I$837),FALSE) -> 857041 | K131: =-HLOOKUP($A131,'[2]Provider Arm'!$C$919:$AF$949,ROW('[2]Provider Arm'!$A$941)-ROW('[2]Provider Arm'!$A$918),FALSE) -> 884642 | L131: =-HLOOKUP($A131,'[2]Provider Arm'!$C$1000:$AF$1030,ROW('[2]Provider Arm'!$A$1022)-ROW('[2]Provider Arm'!$A$999),FALSE) -> 774281
A132: West Coast DHB | B132: =-HLOOKUP($A132,'[1]Provider Arm'!$C$8:$Y$58,ROW('[1]Provider Arm'!$A$52)-ROW('[1]Provider Arm'!A$7),FALSE) -> 78133 | C132: =-HLOOKUP($A132,'[1]Provider Arm'!$C$140:$Y$190,ROW('[1]Provider Arm'!$A$184)-ROW('[1]Provider Arm'!B$139),FALSE) -> 84116 | D132: =-HLOOKUP($A132,'[1]Provider Arm'!$C$268:$Y$318,ROW('[1]Provider Arm'!$A$312)-ROW('[1]Provider Arm'!C$267),FALSE) -> 88347.168 | E132: =-HLOOKUP($A132,'[1]Provider Arm'!$C$394:$Y$444,ROW('[1]Provider Arm'!$A$438)-ROW('[1]Provider Arm'!D$393),FALSE) -> 90229 | F132: =-HLOOKUP($A132,'[1]Provider Arm'!$C$516:$AE$546,ROW('[1]Provider Arm'!$A$538)-ROW('[1]Provider Arm'!E$515),FALSE) -> 91210 | G132: =-HLOOKUP($A132,'[1]Provider Arm'!$C$596:$AE$626,ROW('[1]Provider Arm'!$A$618)-ROW('[1]Provider Arm'!F$595),FALSE) -> 91705.146 | H132: =-HLOOKUP($A132,'[1]Provider Arm'!$C$676:$AE$706,ROW('[1]Provider Arm'!$A$698)-ROW('[1]Provider Arm'!G$675),FALSE) -> 88544 | I132: =-HLOOKUP($A132,'[1]Provider Arm'!$C$757:$AF$787,ROW('[1]Provider Arm'!$A$779)-ROW('[1]Provider Arm'!H$756),FALSE) -> 90037 | J132: =-HLOOKUP($A132,'[1]Provider Arm'!$C$838:$AF$868,ROW('[1]Provider Arm'!$A$860)-ROW('[1]Provider Arm'!I$837),FALSE) -> 88637 | K132: =-HLOOKUP($A132,'[2]Provider Arm'!$C$919:$AF$949,ROW('[2]Provider Arm'!$A$941)-ROW('[2]Provider Arm'!$A$918),FALSE) -> 89641.36707 | L132: =-HLOOKUP($A132,'[2]Provider Arm'!$C$1000:$AF$1030,ROW('[2]Provider Arm'!$A$1022)-ROW('[2]Provider Arm'!$A$999),FALSE) -> 77164.703
A133: Whanganui DHB | B133: =-HLOOKUP($A133,'[1]Provider Arm'!$C$8:$Y$58,ROW('[1]Provider Arm'!$A$52)-ROW('[1]Provider Arm'!A$7),FALSE) -> 99825 | C133: =-HLOOKUP($A133,'[1]Provider Arm'!$C$140:$Y$190,ROW('[1]Provider Arm'!$A$184)-ROW('[1]Provider Arm'!B$139),FALSE) -> 108526 | D133: =-HLOOKUP($A133,'[1]Provider Arm'!$C$268:$Y$318,ROW('[1]Provider Arm'!$A$312)-ROW('[1]Provider Arm'!C$267),FALSE) -> 109571 | E133: =-HLOOKUP($A133,'[1]Provider Arm'!$C$394:$Y$444,ROW('[1]Provider Arm'!$A$438)-ROW('[1]Provider Arm'!D$393),FALSE) -> 111180 | F133: =-HLOOKUP($A133,'[1]Provider Arm'!$C$516:$AE$546,ROW('[1]Provider Arm'!$A$538)-ROW('[1]Provider Arm'!E$515),FALSE) -> 113829 | G133: =-HLOOKUP($A133,'[1]Provider Arm'!$C$596:$AE$626,ROW('[1]Provider Arm'!$A$618)-ROW('[1]Provider Arm'!F$595),FALSE) -> 116088 | H133: =-HLOOKUP($A133,'[1]Provider Arm'!$C$676:$AE$706,ROW('[1]Provider Arm'!$A$698)-ROW('[1]Provider Arm'!G$675),FALSE) -> 118067 | I133: =-HLOOKUP($A133,'[1]Provider Arm'!$C$757:$AF$787,ROW('[1]Provider Arm'!$A$779)-ROW('[1]Provider Arm'!H$756),FALSE) -> 119201 | J133: =-HLOOKUP($A133,'[1]Provider Arm'!$C$838:$AF$868,ROW('[1]Provider Arm'!$A$860)-ROW('[1]Provider Arm'!I$837),FALSE) -> 121218 | K133: =-HLOOKUP($A133,'[2]Provider Arm'!$C$919:$AF$949,ROW('[2]Provider Arm'!$A$941)-ROW('[2]Provider Arm'!$A$918),FALSE) -> 123929 | L133: =-HLOOKUP($A133,'[2]Provider Arm'!$C$1000:$AF$1030,ROW('[2]Provider Arm'!$A$1022)-ROW('[2]Provider Arm'!$A$999),FALSE) -> 109807
A134: All DHBs | B134: =-HLOOKUP($A134,'[1]Provider Arm'!$C$8:$Y$58,ROW('[1]Provider Arm'!$A$52)-ROW('[1]Provider Arm'!A$7),FALSE) -> 6269136.609 | C134: =-HLOOKUP($A134,'[1]Provider Arm'!$C$140:$Y$190,ROW('[1]Provider Arm'!$A$184)-ROW('[1]Provider Arm'!B$139),FALSE) -> 6866765.324 | D134: =-HLOOKUP($A134,'[1]Provider Arm'!$C$268:$Y$318,ROW('[1]Provider Arm'!$A$312)-ROW('[1]Provider Arm'!C$267),FALSE) -> 7207422.919 | E134: =-HLOOKUP($A134,'[1]Provider Arm'!$C$394:$Y$444,ROW('[1]Provider Arm'!$A$438)-ROW('[1]Provider Arm'!D$393),FALSE) -> 7583888.574 | F134: =-HLOOKUP($A134,'[1]Provider Arm'!$C$516:$AE$546,ROW('[1]Provider Arm'!$A$538)-ROW('[1]Provider Arm'!E$515),FALSE) -> 7789737.465 | G134: =-HLOOKUP($A134,'[1]Provider Arm'!$C$596:$AE$626,ROW('[1]Provider Arm'!$A$618)-ROW('[1]Provider Arm'!F$595),FALSE) -> 8015776.667 | H134: =-HLOOKUP($A134,'[1]Provider Arm'!$C$676:$AE$706,ROW('[1]Provider Arm'!$A$698)-ROW('[1]Provider Arm'!G$675),FALSE) -> 8302027.279 | I134: =-HLOOKUP($A134,'[1]Provider Arm'!$C$757:$AF$787,ROW('[1]Provider Arm'!$A$779)-ROW('[1]Provider Arm'!H$756),FALSE) -> 8656024.949 | J134: =-HLOOKUP($A134,'[1]Provider Arm'!$C$838:$AF$868,ROW('[1]Provider Arm'!$A$860)-ROW('[1]Provider Arm'!I$837),FALSE) -> 8906707.671 | K134: =-HLOOKUP($A134,'[2]Provider Arm'!$C$919:$AF$949,ROW('[2]Provider Arm'!$A$941)-ROW('[2]Provider Arm'!$A$918),FALSE) -> 9239999.809 | L134: =-HLOOKUP($A134,'[2]Provider Arm'!$C$1000:$AF$1030,ROW('[2]Provider Arm'!$A$1022)-ROW('[2]Provider Arm'!$A$999),FALSE) -> 8079787.552
A136: FTES
A137: Auckland DHB | B137: =VLOOKUP($A137,'[1]YTD FTE'!$A$9:$X$32,COLUMN('[1]YTD FTE'!$V$7),FALSE) -> 7423.1383 | C137: =VLOOKUP($A137,'[1]YTD FTE'!$A$50:$X$76,COLUMN('[1]YTD FTE'!$V$7),FALSE) -> 7669.2317 | D137: =VLOOKUP($A137,'[1]YTD FTE'!$A$96:$X$118,COLUMN('[1]YTD FTE'!$V$7),FALSE) -> 7810.8108 | E137: =VLOOKUP($A137,'[1]YTD FTE'!$A$136:$X$158,COLUMN('[1]YTD FTE'!$V$7),FALSE) -> 7926.2383 | F137: =VLOOKUP($A137,'[1]YTD FTE'!$A$179:$X$207,COLUMN('[1]YTD FTE'!$V$7),FALSE) -> 7859.110833 | G137: =VLOOKUP($A137,'[1]YTD FTE'!$A$226:$X$254,COLUMN('[1]YTD FTE'!$V$7),FALSE) -> 7876.915833 | H137: =VLOOKUP($A137,'[1]YTD FTE'!$A$272:$X$300,COLUMN('[1]YTD FTE'!$V$7),FALSE) -> 8066.916667 | I137: =VLOOKUP($A137,'[1]YTD FTE'!$A$318:$X$346,COLUMN('[1]YTD FTE'!$V$7),FALSE) -> 8282.729103 | J137: =VLOOKUP($A137,'[1]YTD FTE'!$A$365:$X$393,COLUMN('[1]YTD FTE'!$V$7),FALSE) -> 8379.698333 | K137: =VLOOKUP($A137,'[2]YTD FTE'!$A$412:$X$439,COLUMN('[2]YTD FTE'!$V$410),FALSE) -> 8733.557033 | L137: =VLOOKUP($A137,'[2]YTD FTE'!$A$459:$X$487,COLUMN('[2]YTD FTE'!$V$458),FALSE) -> 8964.1046
A138: Bay of Plenty DHB | B138: =VLOOKUP($A138,'[1]YTD FTE'!$A$9:$X$32,COLUMN('[1]YTD FTE'!$V$7),FALSE) -> 2206.5 | C138: =VLOOKUP($A138,'[1]YTD FTE'!$A$50:$X$76,COLUMN('[1]YTD FTE'!$V$7),FALSE) -> 2296.9166 | D138: =VLOOKUP($A138,'[1]YTD FTE'!$A$96:$X$118,COLUMN('[1]YTD FTE'!$V$7),FALSE) -> 2405.8334 | E138: =VLOOKUP($A138,'[1]YTD FTE'!$A$136:$X$158,COLUMN('[1]YTD FTE'!$V$7),FALSE) -> 2313.5 | F138: =VLOOKUP($A138,'[1]YTD FTE'!$A$179:$X$207,COLUMN('[1]YTD FTE'!$V$7),FALSE) -> 2393.75 | G138: =VLOOKUP($A138,'[1]YTD FTE'!$A$226:$X$254,COLUMN('[1]YTD FTE'!$V$7),FALSE) -> 2390.75 | H138: =VLOOKUP($A138,'[1]YTD FTE'!$A$272:$X$300,COLUMN('[1]YTD FTE'!$V$7),FALSE) -> 2442.583333 | I138: =VLOOKUP($A138,'[1]YTD FTE'!$A$318:$X$346,COLUMN('[1]YTD FTE'!$V$7),FALSE) -> 2531.25 | J138: =VLOOKUP($A138,'[1]YTD FTE'!$A$365:$X$393,COLUMN('[1]YTD FTE'!$V$7),FALSE) -> 2562.333333 | K138: =VLOOKUP($A138,'[2]YTD FTE'!$A$412:$X$439,COLUMN('[2]YTD FTE'!$V$410),FALSE) -> 2625.729167 | L138: =VLOOKUP($A138,'[2]YTD FTE'!$A$459:$X$487,COLUMN('[2]YTD FTE'!$V$458),FALSE) -> 2679.338
A139: Canterbury DHB | B139: =VLOOKUP($A139,'[1]YTD FTE'!$A$9:$X$32,COLUMN('[1]YTD FTE'!$V$7),FALSE) -> 6473.9633 | C139: =VLOOKUP($A139,'[1]YTD FTE'!$A$50:$X$76,COLUMN('[1]YTD FTE'!$V$7),FALSE) -> 6677.165 | D139: =VLOOKUP($A139,'[1]YTD FTE'!$A$96:$X$118,COLUMN('[1]YTD FTE'!$V$7),FALSE) -> 6849.1425 | E139: =VLOOKUP($A139,'[1]YTD FTE'!$A$136:$X$158,COLUMN('[1]YTD FTE'!$V$7),FALSE) -> 6970.8525 | F139: =VLOOKUP($A139,'[1]YTD FTE'!$A$179:$X$207,COLUMN('[1]YTD FTE'!$V$7),FALSE) -> 7013.998333 | G139: =VLOOKUP($A139,'[1]YTD FTE'!$A$226:$X$254,COLUMN('[1]YTD FTE'!$V$7),FALSE) -> 7333.075 | H139: =VLOOKUP($A139,'[1]YTD FTE'!$A$272:$X$300,COLUMN('[1]YTD FTE'!$V$7),FALSE) -> 7526.571239 | I139: =VLOOKUP($A139,'[1]YTD FTE'!$A$318:$X$346,COLUMN('[1]YTD FTE'!$V$7),FALSE) -> 7605.307488 | J139: =VLOOKUP($A139,'[1]YTD FTE'!$A$365:$X$393,COLUMN('[1]YTD FTE'!$V$7),FALSE) -> 7736.940878 | K139: =VLOOKUP($A139,'[2]YTD FTE'!$A$412:$X$439,COLUMN('[2]YTD FTE'!$V$410),FALSE) -> 7842.949167 | L139: =VLOOKUP($A139,'[2]YTD FTE'!$A$459:$X$487,COLUMN('[2]YTD FTE'!$V$458),FALSE) -> 8162.365496
A140: Capital & Coast DHB | B140: =VLOOKUP($A140,'[1]YTD FTE'!$A$9:$X$32,COLUMN('[1]YTD FTE'!$V$7),FALSE) -> 3865.0561 | C140: =VLOOKUP($A140,'[1]YTD FTE'!$A$50:$X$76,COLUMN('[1]YTD FTE'!$V$7),FALSE) -> 4085.8794 | D140: =VLOOKUP($A140,'[1]YTD FTE'!$A$96:$X$118,COLUMN('[1]YTD FTE'!$V$7),FALSE) -> 4341.484 | E140: =VLOOKUP($A140,'[1]YTD FTE'!$A$136:$X$158,COLUMN('[1]YTD FTE'!$V$7),FALSE) -> 4298.4309 | F140: =VLOOKUP($A140,'[1]YTD FTE'!$A$179:$X$207,COLUMN('[1]YTD FTE'!$V$7),FALSE) -> 4368.344777 | G140: =VLOOKUP($A140,'[1]YTD FTE'!$A$226:$X$254,COLUMN('[1]YTD FTE'!$V$7),FALSE) -> 4545.273332 | H140: =VLOOKUP($A140,'[1]YTD FTE'!$A$272:$X$300,COLUMN('[1]YTD FTE'!$V$7),FALSE) -> 4642.301509 | I140: =VLOOKUP($A140,'[1]YTD FTE'!$A$318:$X$346,COLUMN('[1]YTD FTE'!$V$7),FALSE) -> 4704.88479 | J140: =VLOOKUP($A140,'[1]YTD FTE'!$A$365:$X$393,COLUMN('[1]YTD FTE'!$V$7),FALSE) -> 4790.4287 | K140: =VLOOKUP($A140,'[2]YTD FTE'!$A$412:$X$439,COLUMN('[2]YTD FTE'!$V$410),FALSE) -> 4802.513608 | L140: =VLOOKUP($A140,'[2]YTD FTE'!$A$459:$X$487,COLUMN('[2]YTD FTE'!$V$458),FALSE) -> 4949.23001
A141: Counties Manukau DHB | B141: =VLOOKUP($A141,'[1]YTD FTE'!$A$9:$X$32,COLUMN('[1]YTD FTE'!$V$7),FALSE) -> 4385.5934 | C141: =VLOOKUP($A141,'[1]YTD FTE'!$A$50:$X$76,COLUMN('[1]YTD FTE'!$V$7),FALSE) -> 4849.25 | D141: =VLOOKUP($A141,'[1]YTD FTE'!$A$96:$X$118,COLUMN('[1]YTD FTE'!$V$7),FALSE) -> 5288.75 | E141: =VLOOKUP($A141,'[1]YTD FTE'!$A$136:$X$158,COLUMN('[1]YTD FTE'!$V$7),FALSE) -> 5414.75 | F141: =VLOOKUP($A141,'[1]YTD FTE'!$A$179:$X$207,COLUMN('[1]YTD FTE'!$V$7),FALSE) -> 5641.833333 | G141: =VLOOKUP($A141,'[1]YTD FTE'!$A$226:$X$254,COLUMN('[1]YTD FTE'!$V$7),FALSE) -> 5923.333333 | H141: =VLOOKUP($A141,'[1]YTD FTE'!$A$272:$X$300,COLUMN('[1]YTD FTE'!$V$7),FALSE) -> 5959.3 | I141: =VLOOKUP($A141,'[1]YTD FTE'!$A$318:$X$346,COLUMN('[1]YTD FTE'!$V$7),FALSE) -> 6026.75 | J141: =VLOOKUP($A141,'[1]YTD FTE'!$A$365:$X$393,COLUMN('[1]YTD FTE'!$V$7),FALSE) -> 6119.416667 | K141: =VLOOKUP($A141,'[2]YTD FTE'!$A$412:$X$439,COLUMN('[2]YTD FTE'!$V$410),FALSE) -> 6260.416667 | L141: =VLOOKUP($A141,'[2]YTD FTE'!$A$459:$X$487,COLUMN('[2]YTD FTE'!$V$458),FALSE) -> 6516.2
A142: Hawke's Bay DHB | B142: =VLOOKUP($A142,'[1]YTD FTE'!$A$9:$X$32,COLUMN('[1]YTD FTE'!$V$7),FALSE) -> 1927.1416 | C142: =VLOOKUP($A142,'[1]YTD FTE'!$A$50:$X$76,COLUMN('[1]YTD FTE'!$V$7),FALSE) -> 2034.8433 | D142: =VLOOKUP($A142,'[1]YTD FTE'!$A$96:$X$118,COLUMN('[1]YTD FTE'!$V$7),FALSE) -> 2048.8309 | E142: =VLOOKUP($A142,'[1]YTD FTE'!$A$136:$X$158,COLUMN('[1]YTD FTE'!$V$7),FALSE) -> 2001.8066 | F142: =VLOOKUP($A142,'[1]YTD FTE'!$A$179:$X$207,COLUMN('[1]YTD FTE'!$V$7),FALSE) -> 2033.941667 | G142: =VLOOKUP($A142,'[1]YTD FTE'!$A$226:$X$254,COLUMN('[1]YTD FTE'!$V$7),FALSE) -> 2030.698333 | H142: =VLOOKUP($A142,'[1]YTD FTE'!$A$272:$X$300,COLUMN('[1]YTD FTE'!$V$7),FALSE) -> 2072.055 | I142: =VLOOKUP($A142,'[1]YTD FTE'!$A$318:$X$346,COLUMN('[1]YTD FTE'!$V$7),FALSE) -> 2131.615 | J142: =VLOOKUP($A142,'[1]YTD FTE'!$A$365:$X$393,COLUMN('[1]YTD FTE'!$V$7),FALSE) -> 2163.789167 | K142: =VLOOKUP($A142,'[2]YTD FTE'!$A$412:$X$439,COLUMN('[2]YTD FTE'!$V$410),FALSE) -> 2233.163 | L142: =VLOOKUP($A142,'[2]YTD FTE'!$A$459:$X$487,COLUMN('[2]YTD FTE'!$V$458),FALSE) -> 2329.334
A143: Hutt Valley DHB | B143: =VLOOKUP($A143,'[1]YTD FTE'!$A$9:$X$32,COLUMN('[1]YTD FTE'!$V$7),FALSE) -> 1681.8333 | C143: =VLOOKUP($A143,'[1]YTD FTE'!$A$50:$X$76,COLUMN('[1]YTD FTE'!$V$7),FALSE) -> 1787.7658 | D143: =VLOOKUP($A143,'[1]YTD FTE'!$A$96:$X$118,COLUMN('[1]YTD FTE'!$V$7),FALSE) -> 1773.2583 | E143: =VLOOKUP($A143,'[1]YTD FTE'!$A$136:$X$158,COLUMN('[1]YTD FTE'!$V$7),FALSE) -> 1808.7325 | F143: =VLOOKUP($A143,'[1]YTD FTE'!$A$179:$X$207,COLUMN('[1]YTD FTE'!$V$7),FALSE) -> 1851.5175 | G143: =VLOOKUP($A143,'[1]YTD FTE'!$A$226:$X$254,COLUMN('[1]YTD FTE'!$V$7),FALSE) -> 1840.035833 | H143: =VLOOKUP($A143,'[1]YTD FTE'!$A$272:$X$300,COLUMN('[1]YTD FTE'!$V$7),FALSE) -> 1811.421667 | I143: =VLOOKUP($A143,'[1]YTD FTE'!$A$318:$X$346,COLUMN('[1]YTD FTE'!$V$7),FALSE) -> 1882.758333 | J143: =VLOOKUP($A143,'[1]YTD FTE'!$A$365:$X$393,COLUMN('[1]YTD FTE'!$V$7),FALSE) -> 1848.693333 | K143: =VLOOKUP($A143,'[2]YTD FTE'!$A$412:$X$439,COLUMN('[2]YTD FTE'!$V$410),FALSE) -> 1829.940833 | L143: =VLOOKUP($A143,'[2]YTD FTE'!$A$459:$X$487,COLUMN('[2]YTD FTE'!$V$458),FALSE) -> 1867.688073
A144: Lakes DHB | B144: =VLOOKUP($A144,'[1]YTD FTE'!$A$9:$X$32,COLUMN('[1]YTD FTE'!$V$7),FALSE) -> 1023.5833 | C144: =VLOOKUP($A144,'[1]YTD FTE'!$A$50:$X$76,COLUMN('[1]YTD FTE'!$V$7),FALSE) -> 1057.7308 | D144: =VLOOKUP($A144,'[1]YTD FTE'!$A$96:$X$118,COLUMN('[1]YTD FTE'!$V$7),FALSE) -> 1086.5833 | E144: =VLOOKUP($A144,'[1]YTD FTE'!$A$136:$X$158,COLUMN('[1]YTD FTE'!$V$7),FALSE) -> 1107.0473 | F144: =VLOOKUP($A144,'[1]YTD FTE'!$A$179:$X$207,COLUMN('[1]YTD FTE'!$V$7),FALSE) -> 1108.752916 | G144: =VLOOKUP($A144,'[1]YTD FTE'!$A$226:$X$254,COLUMN('[1]YTD FTE'!$V$7),FALSE) -> 1089.583333 | H144: =VLOOKUP($A144,'[1]YTD FTE'!$A$272:$X$300,COLUMN('[1]YTD FTE'!$V$7),FALSE) -> 1119.083333 | I144: =VLOOKUP($A144,'[1]YTD FTE'!$A$318:$X$346,COLUMN('[1]YTD FTE'!$V$7),FALSE) -> 1155.5 | J144: =VLOOKUP($A144,'[1]YTD FTE'!$A$365:$X$393,COLUMN('[1]YTD FTE'!$V$7),FALSE) -> 1180.75 | K144: =VLOOKUP($A144,'[2]YTD FTE'!$A$412:$X$439,COLUMN('[2]YTD FTE'!$V$410),FALSE) -> 1213.833333 | L144: =VLOOKUP($A144,'[2]YTD FTE'!$A$459:$X$487,COLUMN('[2]YTD FTE'!$V$458),FALSE) -> 1258.5
A145: MidCentral DHB | B145: =VLOOKUP($A145,'[1]YTD FTE'!$A$9:$X$32,COLUMN('[1]YTD FTE'!$V$7),FALSE) -> 2024.9083 | C145: =VLOOKUP($A145,'[1]YTD FTE'!$A$50:$X$76,COLUMN('[1]YTD FTE'!$V$7),FALSE) -> 2125.1557 | D145: =VLOOKUP($A145,'[1]YTD FTE'!$A$96:$X$118,COLUMN('[1]YTD FTE'!$V$7),FALSE) -> 2110.9108 | E145: =VLOOKUP($A145,'[1]YTD FTE'!$A$136:$X$158,COLUMN('[1]YTD FTE'!$V$7),FALSE) -> 2106.2133 | F145: =VLOOKUP($A145,'[1]YTD FTE'!$A$179:$X$207,COLUMN('[1]YTD FTE'!$V$7),FALSE) -> 2096.688333 | G145: =VLOOKUP($A145,'[1]YTD FTE'!$A$226:$X$254,COLUMN('[1]YTD FTE'!$V$7),FALSE) -> 2153.495 | H145: =VLOOKUP($A145,'[1]YTD FTE'!$A$272:$X$300,COLUMN('[1]YTD FTE'!$V$7),FALSE) -> 2185.998333 | I145: =VLOOKUP($A145,'[1]YTD FTE'!$A$318:$X$346,COLUMN('[1]YTD FTE'!$V$7),FALSE) -> 2208.82 | J145: =VLOOKUP($A145,'[1]YTD FTE'!$A$365:$X$393,COLUMN('[1]YTD FTE'!$V$7),FALSE) -> 2232.355833 | K145: =VLOOKUP($A145,'[2]YTD FTE'!$A$412:$X$439,COLUMN('[2]YTD FTE'!$V$410),FALSE) -> 2241.713333 | L145: =VLOOKUP($A145,'[2]YTD FTE'!$A$459:$X$487,COLUMN('[2]YTD FTE'!$V$458),FALSE) -> 2269.7
A146: Nelson Marlborough DHB | B146: =VLOOKUP($A146,'[1]YTD FTE'!$A$9:$X$32,COLUMN('[1]YTD FTE'!$V$7),FALSE) -> 1754.1959 | C146: =VLOOKUP($A146,'[1]YTD FTE'!$A$50:$X$76,COLUMN('[1]YTD FTE'!$V$7),FALSE) -> 1835.7725 | D146: =VLOOKUP($A146,'[1]YTD FTE'!$A$96:$X$118,COLUMN('[1]YTD FTE'!$V$7),FALSE) -> 1825.2301 | E146: =VLOOKUP($A146,'[1]YTD FTE'!$A$136:$X$158,COLUMN('[1]YTD FTE'!$V$7),FALSE) -> 1807.2167 | F146: =VLOOKUP($A146,'[1]YTD FTE'!$A$179:$X$207,COLUMN('[1]YTD FTE'!$V$7),FALSE) -> 1853.407877 | G146: =VLOOKUP($A146,'[1]YTD FTE'!$A$226:$X$254,COLUMN('[1]YTD FTE'!$V$7),FALSE) -> 1843.386667 | H146: =VLOOKUP($A146,'[1]YTD FTE'!$A$272:$X$300,COLUMN('[1]YTD FTE'!$V$7),FALSE) -> 1814.75 | I146: =VLOOKUP($A146,'[1]YTD FTE'!$A$318:$X$346,COLUMN('[1]YTD FTE'!$V$7),FALSE) -> 1857.487167 | J146: =VLOOKUP($A146,'[1]YTD FTE'!$A$365:$X$393,COLUMN('[1]YTD FTE'!$V$7),FALSE) -> 1874.327937 | K146: =VLOOKUP($A146,'[2]YTD FTE'!$A$412:$X$439,COLUMN('[2]YTD FTE'!$V$410),FALSE) -> 1885.61 | L146: =VLOOKUP($A146,'[2]YTD FTE'!$A$459:$X$487,COLUMN('[2]YTD FTE'!$V$458),FALSE) -> 1957.148
A147: Northland DHB | B147: =VLOOKUP($A147,'[1]YTD FTE'!$A$9:$X$32,COLUMN('[1]YTD FTE'!$V$7),FALSE) -> 1842.2374 | C147: =VLOOKUP($A147,'[1]YTD FTE'!$A$50:$X$76,COLUMN('[1]YTD FTE'!$V$7),FALSE) -> 1934.4349 | D147: =VLOOKUP($A147,'[1]YTD FTE'!$A$96:$X$118,COLUMN('[1]YTD FTE'!$V$7),FALSE) -> 2027.4052 | E147: =VLOOKUP($A147,'[1]YTD FTE'!$A$136:$X$158,COLUMN('[1]YTD FTE'!$V$7),FALSE) -> 2069.1632 | F147: =VLOOKUP($A147,'[1]YTD FTE'!$A$179:$X$207,COLUMN('[1]YTD FTE'!$V$7),FALSE) -> 2111.580899 | G147: =VLOOKUP($A147,'[1]YTD FTE'!$A$226:$X$254,COLUMN('[1]YTD FTE'!$V$7),FALSE) -> 2101.520467 | H147: =VLOOKUP($A147,'[1]YTD FTE'!$A$272:$X$300,COLUMN('[1]YTD FTE'!$V$7),FALSE) -> 2135.1547 | I147: =VLOOKUP($A147,'[1]YTD FTE'!$A$318:$X$346,COLUMN('[1]YTD FTE'!$V$7),FALSE) -> 2222.904833 | J147: =VLOOKUP($A147,'[1]YTD FTE'!$A$365:$X$393,COLUMN('[1]YTD FTE'!$V$7),FALSE) -> 2301.329508 | K147: =VLOOKUP($A147,'[2]YTD FTE'!$A$412:$X$439,COLUMN('[2]YTD FTE'!$V$410),FALSE) -> 2341.650158 | L147: =VLOOKUP($A147,'[2]YTD FTE'!$A$459:$X$487,COLUMN('[2]YTD FTE'!$V$458),FALSE) -> 2435.11779
A148: Otago DHB | B148: =VLOOKUP($A148,'[1]YTD FTE'!$A$9:$X$32,COLUMN('[1]YTD FTE'!$V$7),FALSE) -> 2334.2326 | C148: =VLOOKUP($A148,'[1]YTD FTE'!$A$50:$X$76,COLUMN('[1]YTD FTE'!$V$7),FALSE) -> 2397.8441
A149: South Canterbury DHB | B149: =VLOOKUP($A149,'[1]YTD FTE'!$A$9:$X$32,COLUMN('[1]YTD FTE'!$V$7),FALSE) -> 614.2501 | C149: =VLOOKUP($A149,'[1]YTD FTE'!$A$50:$X$76,COLUMN('[1]YTD FTE'!$V$7),FALSE) -> 631.04 | D149: =VLOOKUP($A149,'[1]YTD FTE'!$A$96:$X$118,COLUMN('[1]YTD FTE'!$V$7),FALSE) -> 628.25 | E149: =VLOOKUP($A149,'[1]YTD FTE'!$A$136:$X$158,COLUMN('[1]YTD FTE'!$V$7),FALSE) -> 646.5832 | F149: =VLOOKUP($A149,'[1]YTD FTE'!$A$179:$X$207,COLUMN('[1]YTD FTE'!$V$7),FALSE) -> 663.0833333 | G149: =VLOOKUP($A149,'[1]YTD FTE'!$A$226:$X$254,COLUMN('[1]YTD FTE'!$V$7),FALSE) -> 667.905 | H149: =VLOOKUP($A149,'[1]YTD FTE'!$A$272:$X$300,COLUMN('[1]YTD FTE'!$V$7),FALSE) -> 675.4883333 | I149: =VLOOKUP($A149,'[1]YTD FTE'!$A$318:$X$346,COLUMN('[1]YTD FTE'!$V$7),FALSE) -> 679.8766667 | J149: =VLOOKUP($A149,'[1]YTD FTE'!$A$365:$X$393,COLUMN('[1]YTD FTE'!$V$7),FALSE) -> 668.6775 | K149: =VLOOKUP($A149,'[2]YTD FTE'!$A$412:$X$439,COLUMN('[2]YTD FTE'!$V$410),FALSE) -> 647.53 | L149: =VLOOKUP($A149,'[2]YTD FTE'!$A$459:$X$487,COLUMN('[2]YTD FTE'!$V$458),FALSE) -> 636.299
A150: Southern DHB | B150: =B148+B151 -> 3300.2318 | C150: =C148+C151 -> 3407.5082 | D150: =VLOOKUP($A150,'[1]YTD FTE'!$A$96:$X$118,COLUMN('[1]YTD FTE'!$V$7),FALSE) -> 3471.0242 | E150: =VLOOKUP($A150,'[1]YTD FTE'!$A$136:$X$158,COLUMN('[1]YTD FTE'!$V$7),FALSE) -> 3504.8333 | F150: =VLOOKUP($A150,'[1]YTD FTE'!$A$179:$X$207,COLUMN('[1]YTD FTE'!$V$7),FALSE) -> 3582.583333 | G150: =VLOOKUP($A150,'[1]YTD FTE'!$A$226:$X$254,COLUMN('[1]YTD FTE'!$V$7),FALSE) -> 3637.583333 | H150: =VLOOKUP($A150,'[1]YTD FTE'!$A$272:$X$300,COLUMN('[1]YTD FTE'!$V$7),FALSE) -> 3648.3225 | I150: =VLOOKUP($A150,'[1]YTD FTE'!$A$318:$X$346,COLUMN('[1]YTD FTE'!$V$7),FALSE) -> 3644.085 | J150: =VLOOKUP($A150,'[1]YTD FTE'!$A$365:$X$393,COLUMN('[1]YTD FTE'!$V$7),FALSE) -> 3594.3275 | K150: =VLOOKUP($A150,'[2]YTD FTE'!$A$412:$X$439,COLUMN('[2]YTD FTE'!$V$410),FALSE) -> 3636.175833 | L150: =VLOOKUP($A150,'[2]YTD FTE'!$A$459:$X$487,COLUMN('[2]YTD FTE'!$V$458),FALSE) -> 3667.342
A151: Southland DHB | B151: =VLOOKUP($A151,'[1]YTD FTE'!$A$9:$X$32,COLUMN('[1]YTD FTE'!$V$7),FALSE) -> 965.9992 | C151: =VLOOKUP($A151,'[1]YTD FTE'!$A$50:$X$76,COLUMN('[1]YTD FTE'!$V$7),FALSE) -> 1009.6641
A152: Tairawhiti DHB | B152: =VLOOKUP($A152,'[1]YTD FTE'!$A$9:$X$32,COLUMN('[1]YTD FTE'!$V$7),FALSE) -> 583.1917 | C152: =VLOOKUP($A152,'[1]YTD FTE'!$A$50:$X$76,COLUMN('[1]YTD FTE'!$V$7),FALSE) -> 608.13 | D152: =VLOOKUP($A152,'[1]YTD FTE'!$A$96:$X$118,COLUMN('[1]YTD FTE'!$V$7),FALSE) -> 622.1583 | E152: =VLOOKUP($A152,'[1]YTD FTE'!$A$136:$X$158,COLUMN('[1]YTD FTE'!$V$7),FALSE) -> 620.6542 | F152: =VLOOKUP($A152,'[1]YTD FTE'!$A$179:$X$207,COLUMN('[1]YTD FTE'!$V$7),FALSE) -> 624.6666667 | G152: =VLOOKUP($A152,'[1]YTD FTE'!$A$226:$X$254,COLUMN('[1]YTD FTE'!$V$7),FALSE) -> 642.9166667 | H152: =VLOOKUP($A152,'[1]YTD FTE'!$A$272:$X$300,COLUMN('[1]YTD FTE'!$V$7),FALSE) -> 630.0833333 | I152: =VLOOKUP($A152,'[1]YTD FTE'!$A$318:$X$346,COLUMN('[1]YTD FTE'!$V$7),FALSE) -> 645.8633333 | J152: =VLOOKUP($A152,'[1]YTD FTE'!$A$365:$X$393,COLUMN('[1]YTD FTE'!$V$7),FALSE) -> 657.3908333 | K152: =VLOOKUP($A152,'[2]YTD FTE'!$A$412:$X$439,COLUMN('[2]YTD FTE'!$V$410),FALSE) -> 662.4166667 | L152: =VLOOKUP($A152,'[2]YTD FTE'!$A$459:$X$487,COLUMN('[2]YTD FTE'!$V$458),FALSE) -> 695.3
